Workbook

Sheet Tax & Debt Inputs
B2: Name | C2: %, Factor, or Amount | D2: Note | F2: Manual Input
B3: Federal Tax Rate | C3: 0.21 | D3: Constant between Rate Case, but may vary during Rate Case
B4: State Tax Rate | C4: 0.055 | D4: Constant between Rate Case, but may vary during Rate Case
B5: Total Income Tax Rate | C5: =C3+((1-C3)*C4) -> 0.25345 | D5: Formula
B6: ROE | C6: 0.115
B9: Name | C9: %, Factor, or Amount | D9: Note
B10: Bad Debt | C10: 0.002237
B11: Regulatory Assessment Fee | C11: 0.000848
B14: Name | C14: %, Factor, or Amount | D14: Note
B15: Long Term Debt | C15: 0.0163
B16: Short Term Debt | C16: 0.0015
B17: Deferred Revenue | C17: 0
B18: Customer Deposits | C18: 0.0002
B19: Preferred Stock | C19: 0
B20: Tax Credits | C20: 0.0018
B21: SUBTOTAL | C21: =+SUM(C15:C20) -> 0.0198
B22: Equity Ratio | C22: 0.4683 | D22: Enter as XX.XX%

Sheet Expansion Factor
B2: Name | C2: Excel Named Range | D2: %, Factor, or Amount | E2: Note | G2: Manual Input
B3: Expansion Factor | C3: EXP_FACTOR | D3: =+D19 -> 1.34364014 | E3: Link
B7: Expansion Factor Calculation | C7: Description | D7: Factor | E7: Note
B8: 1 | C8: Revenue Requirement | D8: 1 | E8: Manual Input
B9: 2 | C9: Gross Receipts Tax Rate | D9: 0 | E9: Manual Input
B10: 3 | C10: Regulatory Assessment Rate | D10: =+'Tax & Debt Inputs'!C11 -> 0.000848 | E10: Link
B11: 4 | C11: Bad Debt Rate | D11: =+'Tax & Debt Inputs'!C10 -> 0.002237 | E11: Link
B12: 5 | C12: Net Before Income Taxes | D12: =+D8-D9-D10-D11 -> 0.996915 | E12: Formula (1)-(2)-(3)-(3)
B13: 6 | C13: State Income Tax Rate | D13: =+'Tax & Debt Inputs'!C4 -> 0.055 | E13: Link
B14: 7 | C14: State Income Tax | D14: =+D12*D13 -> 0.054830325 | E14: Formula (5) x (6)
B15: 8 | C15: Net Before Federal Income Tax | D15: =+D12-D14 -> 0.942084675 | E15: Formula (5) - (7)
B16: 9 | C16: Federal Income Tax Rate | D16: =+'Tax & Debt Inputs'!C3 -> 0.21 | E16: Link
B17: 10 | C17: Federal Income Tax | D17: =+D15*D16 -> 0.1978377817 | E17: Formula (8) x (9)
B18: 11 | C18: Revenue Expansion Factor | D18: =+D15-D17 -> 0.7442468933 | E18: Formula (8) - (10)
B19: 12 | C19: Net Operating Income Multiplier | D19: =100%/D18 -> 1.34364014 | E19: Formula (100% / (11))

Sheet Surv Report Sched 2 pg 1
J2: TAMPA ELECTRIC COMPANY | T2: SCHEDULE 2
J3: AVERAGE RATE OF RETURN | T3: PAGE 1 OF 3
B4: RATE BASE
B5: 2025-12-31
D8: (1) | F8: (2) | H8: (3) | J8: (4) | L8: (5) | N8: (6) | P8: (7) | R8: (8) | T8: (9)
F9: Accumulated | H9: Net | L9: Construction
D10: Plant In | F10: Depreciation & | H10: Plant In | J10: Property Held | L10: Work In | N10: Nuclear Fuel | P10: Net | R10: Working | T10: Total
D11: Service | F11: Amortization | H11: Service | J11: For Future Use | L11: Progress | N11: (Net) | P11: Utility Plant | R11: Capital | T11: Rate Base
D12: - | F12: - | H12: - | J12: - | L12: - | N12: - | P12: - | R12: - | T12: -
B13: System Per Books | C13: $ | D13: 14471335398 | E13: $ | F13: -4169650370 | G13: $ | H13: 10301685028 | I13: $ | J13: 69494543 | K13: $ | L13: 1050507012 | M13: $ | N13: 0 | O13: $ | P13: 11421686583 | Q13: $ | R13: 606832557.7 | S13: $ | T13: 1.202851914e+10
D14: - | F14: - | H14: - | J14: - | L14: - | N14: - | P14: - | R14: - | T14: -
B16: Jurisdictional Per Books | D16: 14471335398 | F16: -4169650370 | H16: 10301685028 | J16: 69494543 | L16: 1050507012 | N16: 0 | P16: 11421686583 | R16: 606832558 | T16: 12028519141
D17: = | F17: = | H17: = | J17: = | L17: = | N17: = | P17: = | R17: = | T17: =
B19: FPSC Adjustments
B20: -
B21: Fuel & Capacity | D21: 0 | F21: 0 | H21: 0 | P21: 0 | R21: -4744787 | T21: -4744787
B22: ECCR | D22: -4188533 | F22: 3412090 | H22: -776443 | L22: 0 | P22: -776443 | R22: -3795196 | T22: -4571639
B23: Other | H23: 0 | P23: 0 | R23: -20051707 | T23: -20051707
B24: ECRC | D24: -262359646 | F24: 114523153 | H24: -147836493 | L24: -539783 | P24: -148376276 | R24: 0 | T24: -148376276
B25: SPPCRC | D25: -673695497 | F25: 21116910 | H25: -652578587 | L25: -32765367 | P25: -685343954 | R25: -3360346 | T25: -688704300
B26: CETM | P26: 0 | R26: -520846683 | T26: -520846683
B27: Fuel Inventory | P27: 0 | R27: -188876 | T27: -188876
B28: CWIP | L28: -1017201862 | P28: -1017201862 | T28: -1017201862
B29: CWIP in Rate Base | L29: 231613925.4 | P29: 231613925.4 | T29: 231613925.4
B30: Acquisition Book Values | D30: 0 | H30: 0 | P30: 0 | T30: 0
B31: Acquisition Accumulated Amortizations | F31: 0 | H31: 0 | P31: 0 | T31: 0
B32: Acquisition Adjustments | D32: -7484822.59 | F32: 7001719.59 | H32: -483103 | P32: -483103 | T32: -483103
B33: Shared Debt Adjustment | P33: 0 | R33: 0 | T33: 0
B34: Lease | D34: -31496686.78 | H34: -31496686.78 | P34: -31496686.78 | R34: 33124850 | T34: 1628163.225
D36: - | F36: - | H36: - | J36: - | L36: - | N36: - | P36: - | R36: - | T36: -
B37: Total FPSC Adjustments | D37: -979225185.4 | F37: 146053872.6 | H37: -833171312.8 | J37: 0 | L37: -818893086.6 | N37: 0 | P37: -1652064399 | R37: -519862745 | T37: -2171927144
D38: - | F38: - | H38: - | J38: - | L38: - | N38: - | P38: - | R38: - | T38: -
B39: FPSC Adjusted | D39: 1.349211021e+10 | F39: -4023596497 | H39: 9468513715 | J39: 69494543 | L39: 231613925.4 | N39: 0 | P39: 9769622184 | R39: 86969813 | T39: 9856591997
D40: - | F40: - | H40: - | J40: - | L40: - | N40: - | P40: - | R40: - | T40: -
B41: Pro Forma Revenue Increase and
B43: -
D46: - | F46: - | H46: - | J46: - | L46: - | N46: - | P46: - | R46: - | T46: -
B47: Total Pro Forma Adjustments | D47: 0 | F47: 0 | H47: 0 | J47: 0 | L47: 0 | N47: 0 | P47: 0 | R47: 0 | T47: 0
D48: - | F48: - | H48: - | J48: - | L48: - | N48: - | P48: - | R48: - | T48: -
B49: Pro Forma Adjusted | C49: $ | D49: 1.349211021e+10 | E49: $ | F49: -4023596497 | G49: $ | H49: 9468513715 | I49: $ | J49: 69494543 | K49: $ | L49: 231613925.4 | M49: $ | N49: 0 | O49: $ | P49: 9769622184 | Q49: $ | R49: 86969813 | S49: $ | T49: 9856591997
D50: = | F50: = | H50: = | J50: = | L50: = | N50: = | P50: = | R50: = | T50: =

Sheet Surv Report Sched 2 pg 2
L2: TAMPA ELECTRIC COMPANY | X2: SCHEDULE 2
L3: AVERAGE RATE OF RETURN | X3: PAGE 2 OF 3
B4: INCOME STATEMENT
B5: 2025-12-31
D8: (1) | F8: (2) | H8: (3) | J8: (4) | L8: (5) | N8: (6) | P8: (7) | R8: (8) | T8: (9) | V8: (10) | X8: (11)
B9: Manual Input | F9: O & M | P9: Deferred | R9: Investment Tax | V9: Total | X9: Net
D10: Operating | F10: Fuel & | H10: O & M | J10: Depreciation & | L10: Taxes Other | N10: Income Taxes | P10: Income Taxes | R10: Credit | T10: (Gain)/Loss | V10: Operating | X10: Operating
D11: Revenues | F11: Net Interchange | H11: Other | J11: Amortization | L11: Than Income | N11: Current | P11: (Net) | R11: (Net) | T11: On Disposition | V11: Expenses | X11: Income
D12: - | F12: - | H12: - | J12: - | L12: - | N12: - | P12: - | R12: - | T12: - | V12: - | X12: -
B13: System Per Books | C13: $ | D13: 2595564793 | F13: 682668562.7 | G13: $ | H13: 483252009.5 | I13: $ | J13: 587261219.8 | K13: $ | L13: 228358662.7 | M13: $ | N13: 27444324.51 | O13: $ | P13: 14283684.75 | Q13: $ | R13: -12876021 | S13: $ | T13: 0 | U13: $ | V13: 2010392443 | W13: $ | X13: 585172350.1
D14: - | F14: - | H14: - | J14: - | L14: - | N14: - | P14: - | R14: - | T14: - | V14: - | X14: -
B16: Jurisdictional Per Books | D16: 2595564793 | F16: 682668562.7 | H16: 483252009.5 | J16: 587261219.8 | L16: 228358662.7 | N16: 27444324.51 | P16: 14283684.75 | R16: -12876021 | T16: 0 | V16: 2010392443 | X16: 585172350.1
D17: = | F17: = | H17: = | J17: = | L17: = | N17: = | P17: = | R17: = | T17: = | V17: = | X17: =
B18: FPSC Adjustments
B19: -
B20: Recoverable Fuel | D20: -682643028.2 | F20: -682032059.2 | H20: -100000 | J20: 0 | L20: -507478.9816 | N20: 246969.788 | V20: -682392568.4 | X20: -250459.7973
B21: Recoverable Fuel - ROI | D21: 0 | F21: 0 | H21: 0 | J21: 0 | L21: 0 | N21: 0 | V21: 0 | X21: 0
B22: GPIF Revenues/Penalties | D22: 0 | F22: 0 | H22: 0 | J22: 0 | L22: 0 | N22: 0 | V22: 0 | X22: 0
B23: Recoverable ECCR | D23: -64968501.33 | F23: 0 | H23: -64084748.83 | J23: -837708 | L23: -46044.96965 | N23: 4755.095009 | V23: -64963746.71 | X23: -4754.623282
B24: Recoverable ECCR - ROI | D24: -378939.8238 | F24: 0 | H24: 0 | J24: 0 | L24: -272.8238417 | N24: -95973.15115 | V24: -96245.97499 | X24: -282693.8489
B25: Recoverable ECRC | D25: -13534515 | F25: -10042.6 | H25: -2027909.4 | J25: -11493010.83 | L25: -3552.019004 | N25: 46131.15658 | V25: -13488383.69 | X25: -46131.30758
B26: Recoverable ECRC - ROI | D26: -12289526.15 | F26: 0 | H26: 0 | J26: 0 | L26: -8848.020996 | N26: -3112537.872 | V26: -3121385.893 | X26: -9168140.258
B27: Recoverable SPPCRC | D27: -48038987.3 | F27: 0 | H27: -23228760 | J27: -19012200 | L27: -5798028.303 | N27: 1118.47485 | V27: -48037869.83 | X27: -1117.47485
B28: Recoverable SPPCRC - ROI | D28: -56325479.5 | F28: 0 | H28: 0 | J28: 0 | L28: -40554.49741 | N28: -14265414 | V28: -14305968.5 | X28: -42019511
B29: Recoverable CETM | D29: -21874096.23 | F29: 0 | H29: 0 | J29: -21858343.35 | L29: -15752.87756 | N29: 47275.18705 | V29: -21826821.04 | X29: -47275.18705
B30: Recoverable CETM - ROI | D30: -49366836.14 | H30: 0 | J30: 0 | L30: -35546.15244 | N30: -12503015 | V30: -12538561.15 | X30: -36828274.98
B31: Industry Association Dues | D31: 0 | F31: 0 | H31: -64860 | J31: 0 | L31: 0 | N31: 16438.767 | V31: -48421.233 | X31: 48421.233
B32: Solaris and Waterfall | D32: 0 | F32: 0 | H32: -3510.334593 | J32: 0 | L32: 0 | N32: 889.6943025 | V32: -2620.64029 | X32: 2620.64029
B33: Stockholder Relations | D33: 0 | F33: 0 | H33: -250911 | J33: 0 | L33: 0 | N33: 63593.39295 | V33: -187317.607 | X33: 187317.607
B34: Civic Club Meals | D34: 0 | F34: 0 | H34: 0 | J34: 0 | L34: 0 | N34: 0 | V34: 0 | X34: 0
B35: Promotional Advertising | D35: 0 | F35: 0 | H35: 0 | J35: 0 | L35: 0 | N35: 0 | V35: 0 | X35: 0
B36: Franchise Fee Revenue and Expense | D36: -58305038.07 | F36: 0 | H36: 0 | J36: 0 | L36: -58262811.21 | N36: -10702.39947 | V36: -58273513.61 | X36: -31524.46765
B37: Gross Receipts Tax | D37: -61357013.85 | F37: 0 | H37: 0 | J37: 0 | L37: -61357035.12 | N37: 5.392465558 | V37: -61357029.73 | X37: 15.88378442
B38: Income Tax True-up | D38: 0 | F38: 0 | H38: 0 | J38: 0 | L38: 0 | N38: 5798069 | V38: 5798069 | X38: -5798069
B39: Opt Prov Revenue and Third Party Purchase | D39: 0 | F39: 0 | H39: 0 | J39: 0 | L39: 0 | N39: 0 | V39: 0 | X39: 0
B40: Economic Development | D40: 0 | F40: 0 | H40: -23500.1 | J40: 0 | L40: 0 | N40: 5956.100345 | V40: -17543.99965 | X40: 17543.99965
B41: Acquisition Amortizations | D41: 0 | F41: 0 | H41: 0 | J41: -185749.32 | L41: -128300 | N41: 79595.80015 | V41: -234453.5198 | X41: 234453.5198
B42: Incentive Compensation Plan | D42: 0 | F42: 0 | H42: 0 | J42: 0 | L42: 0 | N42: 0 | V42: 0 | X42: 0
B43: Rate Case Expense | D43: 0 | F43: 0 | H43: 0 | J43: 0 | L43: 0 | N43: 0 | V43: 0 | X43: 0
B44: Shared Services Adjustment | D44: 0 | F44: 0 | H44: 0 | J44: 0 | L44: 0 | N44: 0 | V44: 0 | X44: 0
B45: Parent Debt Adjustment | D45: 0 | F45: 0 | H45: 0 | J45: 0 | L45: 0 | N45: -12936000 | V45: -12936000 | X45: 12936000
B46: Asset Optimization/Incentive Program | D46: 0 | F46: 0 | H46: 0 | J46: 0 | L46: 0 | N46: 0 | V46: 0 | X46: 0
D47: - | F47: - | H47: - | J47: - | L47: - | N47: - | P47: - | R47: - | T47: - | V47: - | X47: -
B48: Total FPSC Adjustments | D48: -1069081962 | F48: -682042101.8 | H48: -89784199.67 | J48: -53387011.5 | L48: -126204225 | N48: -36612844.57 | P48: 0 | R48: 0 | T48: 0 | V48: -988030382.5 | X48: -81051579.06
D49: - | F49: - | H49: - | J49: - | L49: - | N49: - | P49: - | R49: - | T49: - | V49: - | X49: -
B50: FPSC Adjusted | D50: 1526482831 | F50: 626460.9078 | H50: 393467809.8 | J50: 533874208.3 | L50: 102154437.7 | N50: -9168520.064 | P50: 14283684.75 | R50: -12876021 | T50: 0 | V50: 1022362060 | X50: 504120771.1
D51: - | F51: - | H51: - | J51: - | L51: - | N51: - | P51: - | R51: - | T51: - | V51: - | X51: -
B52: Pro Forma Revenue Increase and
B54: -
B55: Pro Forma R&D Tax Credit | P55: 0 | V55: 0 | X55: 0
D56: - | F56: - | H56: - | J56: - | L56: - | N56: - | P56: - | R56: - | T56: - | V56: - | X56: -
B57: Total Pro Forma Adjustments | D57: 0 | F57: 0 | H57: 0 | J57: 0 | L57: 0 | N57: 0 | P57: 0 | R57: 0 | T57: 0 | V57: 0 | X57: 0
D58: - | F58: - | H58: - | J58: - | L58: - | N58: - | P58: - | R58: - | T58: - | V58: - | X58: -
B59: Pro Forma Adjusted | C59: $ | D59: 1528704695 | E59: $ | F59: 626460.9078 | G59: $ | H59: 393467809.8 | I59: $ | J59: 533874208.3 | K59: $ | L59: 102154437.7 | M59: $ | N59: -9168520.064 | O59: $ | P59: 14283684.75 | Q59: $ | R59: -12876021 | S59: $ | T59: 0 | U59: $ | V59: 1022362060 | W59: $ | X59: 506342634.2

Sheet Surv Report Sched 2 pg 3 Net Ut
B2: Net Utility Plant Adjustments | F2: System | H2: Retail
F3: - | H3: -
B4: ECRC - Plant In Service | E4: $ | F4: -262359646 | G4: $ | H4: -262359646 | J4: Manual Input
B5: ECRC - Acc Deprec & Amortization | F5: 114523153 | H5: 114523153
B6: SPPCRC - Plant In Service | F6: -673695497 | H6: -673695497
B7: SPPCRC - Acc Deprec & Amortization | F7: 21116910 | H7: 21116910
B8: ECCR - Plant in Service | F8: -4188533 | H8: -4188533
B9: ECCR - Acc Deprec & Amortization | F9: 3412090 | H9: 3412090
B10: CWIP | F10: -1050507012 | H10: -1050507012
B11: CWIP in Rate Base | F11: 231613925.4 | H11: 231613925.4
B12: Acquisition Book Value | F12: 0 | H12: 0
B13: Acquisition Accumulated Amortization | F13: 0 | H13: 0
B14: Acquisition Adjustment - Plant | F14: -7484822.59 | H14: -7484822.59
B15: Acquisition Adjustment - Acc Amortiz | F15: 7001719.59 | H15: 7001719.59
B16: Lease | F16: -31496686.78 | H16: -31496686.78
F19: - | H19: -
B20: Total Adjustments | F20: -1652064400 | G20: $ | H20: -1652064399
F21: = | H21: =

Sheet Surv Report Sched 2 pg 3
B3: TAMPA ELECTRIC COMPANY | H3: SCHEDULE 2
B4: AVERAGE RATE OF RETURN | H4: PAGE 3 OF 3
B5: SYSTEM ADJUSTMENTS
B6: December 2025
B9: Working Capital Adjustments | D9: System | F9: Retail
B10: - | D10: - | F10: -
B11: Fuel & Capacity | C11: $ | D11: -4744787.403 | E11: $ | F11: -4744787
B12: ECCR | C12: $ | D12: -3795196.385 | E12: $ | F12: -3795196
B13: SPPCRC | C13: $ | D13: -3360346.385 | E13: $ | F13: -3360346
B14: ECRC | C14: $ | D14: 0 | E14: $ | F14: 0
B15: CETM | C15: $ | D15: -520846683.3 | E15: $ | F15: -520846683
D16: - | F16: -
B17: Other:
B18: Other Return Provided | D18: -1000000 | F18: -1000000
B19: Non-utility | D19: -17272815.75 | F19: -17272816
B20: Investor Funds | D20: 0 | F20: 0
B21: Unamortized Rate Case Expense | D21: -1778891.205 | F21: -1778891
D22: - | F22: -
C23: $ | D23: -19770201.34 | E23: $ | F23: -19770201
D24: = | F24: =
B26: Fuel Inventory | C26: $ | D26: -188876 | E26: $ | F26: -188876
D27: - | F27: -
B30: ECRC | D30: 0 | F30: 0
D31: - | F31: -
B33: Lease | C33: $ | D33: 33124850.29 | E33: $ | F33: 33124850
D34: - | F34: -
B36: Total Adjustments | C36: $ | D36: -506155656.7 | E36: $ | F36: -506155657
D37: = | F37: =

Sheet Working Captial Input
C3: Working Capital - Assets
C5: 13-Month Average
B6: Formula | C6: FERC Account | D6: Description | E6: 13 Month Average | F6: Clause Adjustments | G6: Other Return Provided | H6: Non-Utility | I6: Lease | J6: Investor Funds | K6: Unamort. Rate Case | L6: Shared Debt Adj. | M6: Adj. Working Capital
B7: =+MID(C7,2,3) -> 121 | C7: 9121000 | D7: Nonutility Property | E7: 24533891.34 | H7: -24533891.34 | M7: 0
B8: 122 | C8: 9122000 | D8: Accum Provision Depr Amortiz Nonutility Property | E8: -8155856.686 | H8: 8155856.686 | M8: 0
B9: 123 | C9: 9123000 | D9: Investment in Associated Companies | E9: 0 | M9: 0
B10: 123 | C10: 9123100 | D10: Investment in Subsidiary Companies | E10: 0 | M10: 0
B11: 124 | C11: 9124000 | D11: Other Investments | E11: 0 | M11: 0
B12: 131 | C12: 9131000 | D12: Cash | E12: 1000000 | G12: -1000000 | M12: 0
B13: 134 | C13: 9134000 | D13: Other Special Deposits | E13: 0 | M13: 0
B14: 135 | C14: 9135000 | D14: Working Funds | E14: 52665.39 | M14: 52665.39
B15: 136 | C15: 9136000 | D15: Temporary Cash Investments | E15: 0 | G15: 0 | H15: 0 | M15: 0
B16: 141 | C16: 9141000 | D16: Notes Receivable | E16: 0 | M16: 0
B17: 142 | C17: 9142000 | D17: Customer Accounts Receivable | E17: 181510058.2 | M17: 181510058.2
B18: 143 | C18: 9143000 | D18: Other Accounts Receivable | E18: 7359140.431 | G18: 0 | M18: 7359140.431
B19: 144 | C19: 9144000 | D19: Accumulated Provision Uncollectible Accounts-Cr | E19: -1650981.227 | M19: -1650981.227
B20: 145 | C20: 9145000 | D20: Notes Receivable from Associated Companies | E20: 0 | L20: 0 | M20: 0
B21: 146 | C21: 9146000 | D21: Accounts Receivable from Associated Companies | E21: 13678606.18 | H21: 0 | L21: 0 | M21: 13678606.18
B22: 151 | C22: 9151000 | D22: Fuel Stock | E22: 36823692.31 | M22: 36823692.31
B23: 152 | C23: 9152000 | D23: Fuel Stock Expenses Undistributed | E23: 0 | M23: 0
B24: 153 | C24: 9153000 | D24: Residuals and Extracted Products | E24: 0 | M24: 0
B25: 154 | C25: 9154000 | D25: Plant Materials and Operating Supplies | E25: 162822150 | M25: 162822150
B26: 158 | C26: 9158100 | D26: Allowance Inventory | E26: 0 | M26: 0
B27: 158 | C27: 9158200 | D27: Allowances Withheld | E27: 0 | M27: 0
B28: 163 | C28: 9163000 | D28: Stores Expense Undistributed | E28: 0 | M28: 0
B29: 165 | C29: 9165000 | D29: Prepayments | E29: 30636298.08 | L29: 0 | M29: 30636298.08
B30: 171 | C30: 9171000 | D30: Interest and Dividends Receivable | E30: 0 | M30: 0
B31: 173 | C31: 9173000 | D31: Accrued Utility Revenues | E31: 79503511.41 | M31: 79503511.41
B32: 176 | C32: 9176000 | D32: Derivative Instrument Assets - Hedges | E32: 528000 | M32: 528000
B33: 182 | C33: 9182100 | D33: Extraordinary Property Losses | E33: 0 | M33: 0
B34: 182 | C34: 9182200 | D34: Unrecovered Plant and Regulatory Study Costs | E34: 520846683.3 | F34: -520846683.3 | M34: 0
B35: 182 | C35: 9182300 | D35: Other Regulatory Assets | E35: 394011993.8 | F35: -12095598.48 | K35: -1778891.205 | M35: 380137504.1
B36: 823 | C36: 1823610 | D36: Oth Reg Asset-FAS 109 Income Tax | E36: -126766182.9 | M36: -126766182.9
B37: 183 | C37: 9183000 | D37: Preliminary Survey and Investigation Charges | E37: 6566744.627 | M37: 6566744.627
B38: 184 | C38: 9184000 | D38: Clearing Accounts | E38: 0 | M38: 0
B39: 186 | C39: 9186000 | D39: Miscellaneous Deferred Debits | E39: 4110483.308 | L39: 0 | M39: 4110483.308
B40: 188 | C40: 9188000 | D40: Research Development & Demonstration Expenditures | E40: 0 | M40: 0
C41: Total Assets | E41: =SUM(E7:E40) -> 1327410898 | F41: -532942281.8 | G41: -1000000 | H41: -16378034.65 | I41: 0 | J41: 0 | K41: -1778891.205 | L41: 0 | M41: 775311690
C44: Working Capital - Liabilities
C46: 13-Month Average
C47: FERC Account | D47: Description | E47: 13 Month Average | F47: Clause Adjustments | G47: Other Return Provided | H47: Non-Utility | I47: Lease | J47: Investor Funds | K47: Unamort. Rate Case | L47: Other Adj. | M47: Adj. Working Capital
B48: =+MID(C48,2,3) -> 228 | C48: 9228100 | D48: Accumulated Provision for Property Insurance | E48: 17835455.57 | M48: 17835455.57
B49: 228 | C49: 9228200 | D49: Accumulated Provision for Injuries and Damages | E49: 7962060.009 | M49: 7962060.009
B50: 228 | C50: 9228300 | D50: Accumulated Provision for Pension and Benefits | E50: 75854965.61 | M50: 75854965.61
B51: 228 | C51: 9228400 | D51: Accumulated Miscellaneous Operating Provisions | E51: 783000 | M51: 783000
B52: 229 | C52: 9229000 | D52: Accumulated Provision for Rate Refunds | E52: 0 | M52: 0
B53: 230 | C53: 9230000 | D53: Asset Retirement Obligations | E53: 34647242.68 | M53: 34647242.68
B54: 232 | C54: 9232000 | D54: Accounts Payable | E54: 262287351.2 | M54: 262287351.2
B55: 233 | C55: 9233000 | D55: Notes Payable to Associated Companies | E55: 0 | M55: 0
B56: 234 | C56: 9234000 | D56: Accounts Payable to Associated Companies | E56: 11430237.18 | M56: 11430237.18
B57: 236 | C57: 9236000 | D57: Taxes Accrued | E57: 44320676.26 | H57: 894781.0954 | M57: 45215457.36
B58: 237 | C58: 9237000 | D58: Interest Accrued | E58: 46827295.57 | L58: 0 | M58: 46827295.57
B59: 238 | C59: 9238000 | D59: Dividends Declared | E59: 0 | J59: 0 | M59: 0
B60: 241 | C60: 9241000 | D60: Tax Collections Payable | E60: 14207134.95 | M60: 14207134.95
B61: 242 | C61: 9242000 | D61: Miscellaneous Current and Accrued Liabilities | E61: 41537637.46 | M61: 41537637.46
B62: 243 | C62: 9243000 | D62: Obligations Under Capital Leases - Current | E62: 944404.0011 | I62: -944404.0011 | M62: 0
B63: 227 | C63: 9227000 | D63: Obligations Under Capital Leases - Noncurrent | E63: 32180446.29 | I63: -32180446.29 | M63: 0
B64: 245 | C64: 9245000 | D64: Derivative Instrument Liabilities - Hedges | E64: 0 | M64: 0
B65: 253 | C65: 9253000 | D65: Other Deferred Credits | E65: 36211952.58 | H65: 0 | M65: 36211952.58
B66: 254 | C66: 9254000 | D66: Other Regulatory Liabilities | E66: 523655042 | F66: -195268.3077 | M66: 523459773.7
B67: 540 | C67: 2540610 | D67: Oth Reg Liab-FAS 109 Income Tax | E67: -430098685.3 | M67: -430098685.3
B68: 256 | C68: 9256000 | D68: Deferred Gains from Disposition of Utility Plant | E68: -7876.12 | M68: -7876.12
B69: 257 | C69: 9257000 | D69: Unamortized Gain on Reacquired Debt | E69: 0 | M69: 0
C70: Total Liabilities | E70: =SUM(E48:E69) -> 720578340 | F70: -195268.3077 | G70: 0 | H70: 894781.0954 | I70: -33124850.29 | J70: 0 | K70: 0 | L70: 0 | M70: 688153002.5
C74: System per Books Working Capital | E74: =+E41-E70 -> 606832557.7 | F74: =+F41-F70 -> -532747013.5 | G74: -1000000 | H74: -17272815.75 | I74: 33124850.29 | J74: 0 | K74: -1778891.205 | L74: 0 | M74: 87158687.52
E75: 0
M76: =+'Surv Report Sched 2 pg 1'!R39 -> 86969813
M77: =+M74-M76 -> 188874.5187
M78: =+'Surv Report Sched 2 pg 1'!R27 -> -188876 | N78: FUEL INVENTORY
G79: Other Return Provided | H79: Non-Utility | J79: Investor Funds | L79: Other Adj. | M79: Adj. Working Capital

Sheet Balance Sheet Accounts
F2: wkg_budget | G2: WKG_BUDGET | H2: WKG_BUDGET | I2: WKG_BUDGET | J2: WKG_BUDGET | K2: WKG_BUDGET | L2: WKG_BUDGET | M2: WKG_BUDGET | N2: WKG_BUDGET | O2: WKG_BUDGET | P2: WKG_BUDGET | Q2: WKG_BUDGET | R2: WKG_BUDGET | S2: 13 Month Avg | U2: Recon Data | V2: Recon Check | X2: Month | Y2: Total Assets | Z2: Total Liabilities | AA2: Recon Check
B3: SAP Account Formula | D3: Balance Sheet Accounts | E3: Description | F3: 2024.DEC | G3: 2025.JAN | H3: 2025.FEB | I3: 2025.MAR | J3: 2025.APR | K3: 2025.MAY | L3: 2025.JUN | M3: 2025.JUL | N3: 2025.AUG | O3: 2025.SEP | P3: 2025.OCT | Q3: 2025.NOV | R3: 2025.DEC | S3: 2025
A4: =+LEFT(B4,3) -> 131 | B4: 1310070 | D4: A_1310070 | E4: JPM Tampa Electric Concentration | F4: 0 | G4: 0 | H4: 0 | I4: 0 | J4: 0 | K4: 0 | L4: 0 | M4: 0 | N4: 0 | O4: 0 | P4: 0 | Q4: 0 | R4: 0 | S4: 0 | U4: =+IF(F4="","",SUM(F4:R4)/13) -> 0 | V4: =IF(S4="","",+U4-S4) -> 0 | X4: Previous December | Y4: =+SUMIFS(F:F,D:D,"A_1*") -> 13050021.78 | Z4: =+SUMIF(D:D,"*A_2*",F:F) -> 13050021.78 | AA4: =+Y4-Z4 -> 0
A5: =+LEFT(B5,3) -> 131 | B5: 1310085 | D5: A_1310085 | E5: JPM Tampa Electric - Payroll - Outgoing Check | F5: 0 | G5: 0 | H5: 0 | I5: 0 | J5: 0 | K5: 0 | L5: 0 | M5: 0 | N5: 0 | O5: 0 | P5: 0 | Q5: 0 | R5: 0 | S5: 0 | U5: =+IF(F5="","",SUM(F5:R5)/13) -> 0 | V5: =IF(S5="","",+U5-S5) -> 0 | X5: January | Y5: =+SUMIFS(G:G,D:D,"A_1*") -> 13175694.21 | Z5: =+SUMIF(D:D,"*A_2*",G:G) -> 13175694.21 | AA5: =+Y5-Z5 -> 0
A6: 131 | B6: 1310095 | D6: A_1310095 | E6: JPM Tampa Electric - CDA - Outgoing Check | F6: 0 | G6: 0 | H6: 0 | I6: 0 | J6: 0 | K6: 0 | L6: 0 | M6: 0 | N6: 0 | O6: 0 | P6: 0 | Q6: 0 | R6: 0 | S6: 0 | U6: =+IF(F6="","",SUM(F6:R6)/13) -> 0 | V6: 0 | X6: February | Y6: =+SUMIFS(H:H,D:D,"A_1*") -> 13283354.58 | Z6: =+SUMIF(D:D,"*A_2*",H:H) -> 13283354.58 | AA6: 0
A7: 131 | B7: 1310150 | D7: A_1310150 | E7: SUN Tampa Electric Misc Deposit | F7: 0 | G7: 0 | H7: 0 | I7: 0 | J7: 0 | K7: 0 | L7: 0 | M7: 0 | N7: 0 | O7: 0 | P7: 0 | Q7: 0 | R7: 0 | S7: 0 | U7: 0 | V7: 0 | X7: March | Y7: =+SUMIFS(I:I,D:D,"A_1*") -> 13384643.65 | Z7: =+SUMIF(D:D,"*A_2*",I:I) -> 13384643.65 | AA7: 0
A8: 131 | B8: 1310990 | D8: A_1310990 | E8: Cash - Miscellaneous Adjustments | F8: 1000 | G8: 1000 | H8: 1000 | I8: 1000 | J8: 1000 | K8: 1000 | L8: 1000 | M8: 1000 | N8: 1000 | O8: 1000 | P8: 1000 | Q8: 1000 | R8: 1000 | S8: 1000 | U8: 1000 | V8: 0 | X8: April | Y8: =+SUMIFS(J:J,D:D,"A_1*") -> 13534249.08 | Z8: =+SUMIF(D:D,"*A_2*",J:J) -> 13534249.08 | AA8: 0
A9: 135 | B9: 1350000 | D9: A_1350000 | E9: Petty Cash USD | F9: 52.66539 | G9: 52.66539 | H9: 52.66539 | I9: 52.66539 | J9: 52.66539 | K9: 52.66539 | L9: 52.66539 | M9: 52.66539 | N9: 52.66539 | O9: 52.66539 | P9: 52.66539 | Q9: 52.66539 | R9: 52.66539 | S9: 52.66539 | U9: 52.66539 | V9: 0 | X9: May | Y9: =+SUMIFS(K:K,D:D,"A_1*") -> 13651652.95 | Z9: =+SUMIF(D:D,"*A_2*",K:K) -> 13651652.95 | AA9: 0
A10: 142 | B10: 1420400 | D10: A_1420400 | E10: AR - CRM (includes TEC-R) (RECON) | F10: 188937.4896 | G10: 173534.247 | H10: 165572.2972 | I10: 140540.6819 | J10: 155516.5799 | K10: 164406.3987 | L10: 189294.3536 | M10: 211020.2524 | N10: 197373.3236 | O10: 222831.7676 | P10: 200789.0384 | Q10: 182023.0889 | R10: 174641.2384 | S10: 182036.9813 | U10: 182036.9813 | V10: 0 | X10: June | Y10: =+SUMIFS(L:L,D:D,"A_1*") -> 13837397.42 | Z10: =+SUMIF(D:D,"*A_2*",L:L) -> 13837397.42 | AA10: 0
A11: 142 | B11: 1420401 | D11: A_1420401 | E11: AR - CRM (includes TEC-R) (Posting) | F11: -550 | G11: -525 | H11: -525 | I11: -525 | J11: -525 | K11: -525 | L11: -525 | M11: -525 | N11: -525 | O11: -525 | P11: -525 | Q11: -525 | R11: -525 | S11: -526.9230769 | U11: -526.9230769 | V11: 0 | X11: July | Y11: =+SUMIFS(M:M,D:D,"A_1*") -> 14004559.99 | Z11: =+SUMIF(D:D,"*A_2*",M:M) -> 14004559.99 | AA11: 0
A12: 143 | B12: 1430000 | D12: A_1430000 | E12: AR Misc Other (RECON) | F12: 3200 | G12: 3300 | H12: 3300 | I12: 3300 | J12: 3300 | K12: 3300 | L12: 3300 | M12: 3300 | N12: 3300 | O12: 3300 | P12: 3300 | Q12: 3300 | R12: 3300 | S12: 3292.307692 | U12: 3292.307692 | V12: 0 | X12: August | Y12: =+SUMIFS(N:N,D:D,"A_1*") -> 14052331.27 | Z12: =+SUMIF(D:D,"*A_2*",N:N) -> 14052331.27 | AA12: 0
A13: 143 | B13: 1430001 | D13: A_1430001 | E13: AR Misc Other (Posting) | F13: 4000 | G13: 4121.30595 | H13: 4134.49675 | I13: 4102.61735 | J13: 4049.94795 | K13: 4074.76755 | L13: 4008.36375 | M13: 4022.32295 | N13: 4026.97635 | O13: 4067.35095 | P13: 4069.92415 | Q13: 4110.33995 | R13: 4080.41195 | S13: 4066.832738 | U13: 4066.832738 | V13: 0 | X13: September | Y13: =+SUMIFS(O:O,D:D,"A_1*") -> 14114049.32 | Z13: =+SUMIF(D:D,"*A_2*",O:O) -> 14114049.32 | AA13: 0
A14: 143 | B14: 1430030 | D14: A_1430030 | E14: AR - Employee Advances | F14: 0 | G14: 0 | H14: 0 | I14: 0 | J14: 0 | K14: 0 | L14: 0 | M14: 0 | N14: 0 | O14: 0 | P14: 0 | Q14: 0 | R14: 0 | S14: 0 | U14: 0 | V14: 0 | X14: October | Y14: =+SUMIFS(P:P,D:D,"A_1*") -> 14134733.58 | Z14: =+SUMIF(D:D,"*A_2*",P:P) -> 14134733.58 | AA14: 0
A15: 143 | B15: 1430036 | D15: A_1430036 | E15: AR - Employee Personal Reimbursement Pcard Charge | F15: 0 | G15: 0 | H15: 0 | I15: 0 | J15: 0 | K15: 0 | L15: 0 | M15: 0 | N15: 0 | O15: 0 | P15: 0 | Q15: 0 | R15: 0 | S15: 0 | U15: 0 | V15: 0 | X15: November | Y15: =+SUMIFS(Q:Q,D:D,"A_1*") -> 14143674.28 | Z15: =+SUMIF(D:D,"*A_2*",Q:Q) -> 14143674.28 | AA15: 0
A16: 144 | B16: 1440000 | D16: A_1440000 | E16: Accumulated Provision for Uncollectible Accounts | F16: -2508.719917 | G16: -2514.566003 | H16: -2476.792441 | I16: -2438.326708 | J16: -2488.600417 | K16: -2549.161137 | L16: -2621.2883 | M16: -2680.272947 | N16: -2655.54017 | O16: -2673.688282 | P16: -2599.419902 | Q16: -2518.949666 | R16: -2490.118343 | S16: -2555.034172 | U16: -2555.034172 | V16: 0 | X16: December | Y16: =+SUMIFS(R:R,D:D,"A_1*") -> 14220035.59 | Z16: =+SUMIF(D:D,"*A_2*",R:R) -> 14220035.59 | AA16: 0
A17: 144 | B17: 1440001 | D17: A_1440001 | E17: Accum Provision for Uncollectible Accts - CRM FF | F17: 777.7031743 | G17: 779.5154608 | H17: 767.8056568 | I17: 755.8812795 | J17: 771.4661294 | K17: 790.2399524 | L17: 812.599373 | M17: 830.8846135 | N17: 823.2174526 | O17: 828.8433674 | P17: 805.8201697 | Q17: 780.8743966 | R17: 771.9366864 | S17: 792.0605933 | U17: 792.0605933 | V17: 0 | X17: 13 Month Avg | Y17: =+SUMIFS(S:S,D:D,"A_1*") -> 13737415.21 | Z17: =+SUMIF(D:D,"*A_2*",S:S) -> 13737415.21 | AA17: 0
A18: 144 | B18: 1440002 | D18: A_1440002 | E18: Accum Provision for Uncollectible Accts - CRM GRT | F18: 752.6159752 | G18: 754.3698008 | H18: 743.0377323 | I18: 731.4980124 | J18: 746.5801252 | K18: 764.748341 | L18: 786.38649 | M18: 804.081884 | N18: 796.6620509 | O18: 802.1064846 | P18: 779.8259707 | Q18: 755.6848999 | R18: 747.035503 | S18: 766.5102515 | U18: 766.5102515 | V18: 0
A19: 144 | B19: 1440010 | D19: A_1440010 | E19: Accum Provision for Uncollectible - Regular | F19: 0 | G19: 0 | H19: 0 | I19: 0 | J19: 0 | K19: 0 | L19: 0 | M19: 0 | N19: 0 | O19: 0 | P19: 0 | Q19: 0 | R19: 0 | S19: 0 | U19: 0 | V19: 0
A20: 144 | B20: 1440020 | D20: A_1440020 | E20: Accum Provision for Uncollectible - Misc Billing | F20: -654.5179 | G20: -654.5179 | H20: -654.5179 | I20: -654.5179 | J20: -654.5179 | K20: -654.5179 | L20: -654.5179 | M20: -654.5179 | N20: -654.5179 | O20: -654.5179 | P20: -654.5179 | Q20: -654.5179 | R20: -654.5179 | S20: -654.5179 | U20: -654.5179 | V20: 0
A21: 173 | B21: 1730100 | D21: A_1730100 | E21: Accrued Utility Revenues - Current | F21: 73385.642 | G21: 71061.00033 | H21: 65978.523 | I21: 70682.536 | J21: 75107.868 | K21: 85428.984 | L21: 89018.443 | M21: 91484.849 | N21: 96122.569 | O21: 87044.014 | P21: 82054.446 | Q21: 72861.231 | R21: 73315.543 | S21: 79503.51141 | U21: 79503.51141 | V21: 0
A22: 145 | B22: 1450713 | D22: A_1450713 | E22: Notes Receivable - Intercompany - Shared Debt - C | F22: 0 | G22: 0 | H22: 0 | I22: 0 | J22: 0 | K22: 0 | L22: 0 | M22: 0 | N22: 0 | O22: 0 | P22: 0 | Q22: 0 | R22: 0 | S22: 0 | U22: 0 | V22: 0
A23: 146 | B23: 1460700 | D23: A_1460700 | E23: Trade Receivable-Intercompany (RECON) | F23: 9002.11035 | G23: 7976.393175 | H23: 8139.57154 | I23: 8480.043586 | J23: 8432.267222 | K23: 8404.989981 | L23: 8402.384633 | M23: 8582.805524 | N23: 8583.818985 | O23: 8495.616153 | P23: 8868.837894 | Q23: 9002.284838 | R23: 9118.008972 | S23: 8576.087143 | U23: 8576.087143 | V23: 0
A24: 146 | B24: 1460701 | D24: A_1460701 | E24: Trade Receivable-Intercompany (Posting) | F24: 0 | G24: 0 | H24: 0 | I24: 0 | J24: 0 | K24: 0 | L24: 0 | M24: 0 | N24: 0 | O24: 0 | P24: 0 | Q24: 0 | R24: 0 | S24: 0 | U24: 0 | V24: 0
A25: 146 | B25: 1460706 | D25: A_1460706 | E25: Trade Receivable-Interco-Emera Inc. E009 | F25: 5.024682638 | G25: 24.44990024 | H25: 24.22586036 | I25: 23.84297074 | J25: 23.2223408 | K25: 23.70900522 | L25: 22.45614412 | M25: 20.25954094 | N25: 20.68021096 | O25: 22.06380138 | P25: 22.72920627 | Q25: 24.87784807 | R25: 25.97671559 | S25: 21.80909441 | U25: 21.80909441 | V25: 0
A26: 146 | B26: 1460707 | D26: A_1460707 | E26: Trade Receivable-Interco-Emera Energy E012 | F26: 0 | G26: 0.733435 | H26: 0.733435 | I26: 0.733435 | J26: 0.733435 | K26: 0.733435 | L26: 0.733435 | M26: 0.733435 | N26: 0.733435 | O26: 0.733435 | P26: 0.733435 | Q26: 0.733435 | R26: 0.733435 | S26: 0.6770169231 | U26: 0.6770169231 | V26: 0
A27: 146 | B27: 1460708 | D27: A_1460708 | E27: Trade Receivable-Interco-Grand Bahama PowerCo E851 | F27: 230.47514 | G27: 201.2672383 | H27: 201.2672383 | I27: 201.2672383 | J27: 201.2672383 | K27: 201.2672383 | L27: 201.2672383 | M27: 201.2672383 | N27: 201.2672383 | O27: 201.2672383 | P27: 201.2672383 | Q27: 201.2672383 | R27: 201.2672383 | S27: 203.514 | U27: 203.514 | V27: 0
A28: 146 | B28: 1460709 | D28: A_1460709 | E28: Trade Receivable-Interco-Nova Scotia Power E001 | F28: 13.18789 | G28: 95.37088 | H28: 95.37088 | I28: 95.37088 | J28: 95.37088 | K28: 95.37088 | L28: 95.37088 | M28: 95.37088 | N28: 95.37088 | O28: 95.37088 | P28: 95.37088 | Q28: 95.37088 | R28: 95.37088 | S28: 89.04911154 | U28: 89.04911154 | V28: 0
A29: 146 | B29: 1460750 | D29: A_1460750 | E29: Trade Receivable-Interco-Emera Brunswick E350 | F29: 0 | G29: 0 | H29: 0 | I29: 0 | J29: 0 | K29: 0 | L29: 0 | M29: 0 | N29: 0 | O29: 0 | P29: 0 | Q29: 0 | R29: 0 | S29: 0 | U29: 0 | V29: 0
A30: 146 | B30: 1460751 | D30: A_1460751 | E30: Trade Receivable-Interco-Emera Caribbean Hlds Ltd E033 | F30: 20.04093 | G30: 18.30476 | H30: 18.30476 | I30: 18.30476 | J30: 18.30476 | K30: 18.30476 | L30: 18.30476 | M30: 18.30476 | N30: 18.30476 | O30: 18.30476 | P30: 18.30476 | Q30: 18.30476 | R30: 18.30476 | S30: 18.43831154 | U30: 18.43831154 | V30: 0
A31: 146 | B31: 1460752 | D31: A_1460752 | E31: Trade Receivable-Interco-EUSHI E390 (Emera US Holdings) | F31: 0 | G31: 8.02694 | H31: 8.02694 | I31: 8.02694 | J31: 8.02694 | K31: 8.02694 | L31: 8.02694 | M31: 8.02694 | N31: 8.02694 | O31: 8.02694 | P31: 8.02694 | Q31: 8.02694 | R31: 8.02694 | S31: 7.409483077 | U31: 7.409483077 | V31: 0
A32: 146 | B32: 1460754 | D32: A_1460754 | E32: Trade Rec-Interco-Emera US Sub 1 E017 | F32: 4.7043 | G32: 10.1162 | H32: 10.1162 | I32: 10.1162 | J32: 10.1162 | K32: 10.1162 | L32: 10.1162 | M32: 10.1162 | N32: 10.1162 | O32: 10.1162 | P32: 10.1162 | Q32: 10.1162 | R32: 10.1162 | S32: 9.6999 | U32: 9.6999 | V32: 0
A33: 146 | B33: 1460755 | D33: A_1460755 | E33: Trade Rec-Interco-Emera Scotia Power E025 | F33: 1.88171 | G33: 17.44243 | H33: 17.44243 | I33: 17.44243 | J33: 17.44243 | K33: 17.44243 | L33: 17.44243 | M33: 17.44243 | N33: 17.44243 | O33: 17.44243 | P33: 17.44243 | Q33: 17.44243 | R33: 17.44243 | S33: 16.24545154 | U33: 16.24545154 | V33: 0
A34: 146 | B34: 1460760 | D34: A_1460760 | E34: Trade Rec-Interco-Emera Caribbean Inc E855 | F34: 159.78101 | G34: 159.75099 | H34: 159.75099 | I34: 159.75099 | J34: 159.75099 | K34: 159.75099 | L34: 159.75099 | M34: 159.75099 | N34: 159.75099 | O34: 159.75099 | P34: 159.75099 | Q34: 159.75099 | R34: 159.75099 | S34: 159.7532992 | U34: 159.7532992 | V34: 0
A35: 146 | B35: 1460761 | D35: A_1460761 | E35: Trade Rec-Interco-Emera Maine E393 | F35: 1.29891 | G35: 1.29891 | H35: 1.29891 | I35: 1.29891 | J35: 1.29891 | K35: 1.29891 | L35: 1.29891 | M35: 1.29891 | N35: 1.29891 | O35: 1.29891 | P35: 1.29891 | Q35: 1.29891 | R35: 1.29891 | S35: 1.29891 | U35: 1.29891 | V35: 0
A36: 146 | B36: 1460762 | D36: A_1460762 | E36: Trade Rec-Interco-Emera Energy Services Inc. E016 | F36: 15.1578 | G36: 10.99933274 | H36: 10.87129951 | I36: 11.10742186 | J36: 11.47790628 | K36: 11.67879491 | L36: 12.6508102 | M36: 13.84529262 | N36: 15.09283491 | O36: 14.96404858 | P36: 15.02942582 | Q36: 15.01507134 | R36: 15.05548826 | S36: 13.30350208 | U36: 13.30350208 | V36: 0
A37: 146 | B37: 1460780 | D37: A_1460780 | E37: Trade Receivable-Emera Interco on SAP E410 (RECON) | F37: 16.57524 | G37: 16.57524 | H37: 16.57524 | I37: 16.57524 | J37: 16.57524 | K37: 16.57524 | L37: 16.57524 | M37: 16.57524 | N37: 16.57524 | O37: 16.57524 | P37: 16.57524 | Q37: 16.57524 | R37: 16.57524 | S37: 16.57524 | U37: 16.57524 | V37: 0
A38: 146 | B38: 1460791 | D38: A_1460791 | E38: Trade Receivable-Emera Intercompany (Posting) | F38: 20.85 | G38: 20.85 | H38: 20.85 | I38: 20.85 | J38: 20.85 | K38: 20.85 | L38: 20.85 | M38: 20.85 | N38: 20.85 | O38: 20.85 | P38: 20.85 | Q38: 20.85 | R38: 20.85 | S38: 20.85 | U38: 20.85 | V38: 0
A39: 146 | B39: 1460799 | D39: A_1460799 | E39: Trade Rec-Interco-Emera Energy Svc E016 Asset Mgmt | F39: 4249.43241 | G39: 4421.04893 | H39: 4421.04893 | I39: 4421.04893 | J39: 4421.04893 | K39: 4421.04893 | L39: 4421.04893 | M39: 4421.04893 | N39: 4421.04893 | O39: 4421.04893 | P39: 4421.04893 | Q39: 4421.04893 | R39: 4421.04893 | S39: 4407.847659 | U39: 4407.847659 | V39: 0
A40: 146 | B40: 1460763 | D40: A_1460763 | E40: Trade Rec-Interco-Emera Grand HVAC Leasing US E416 | F40: 15.91349 | G40: 4.10106 | H40: 4.10106 | I40: 4.10106 | J40: 4.10106 | K40: 4.10106 | L40: 4.10106 | M40: 4.10106 | N40: 4.10106 | O40: 4.10106 | P40: 4.10106 | Q40: 4.10106 | R40: 4.10106 | S40: 5.009708462 | U40: 5.009708462 | V40: 0
A41: 146 | B41: 1460764 | D41: A_1460764 | E41: Trade Rec-Interco-Emera Technologies LLC E410 | F41: 203.42256 | G41: 103.3396633 | H41: 103.3396633 | I41: 103.3396633 | J41: 103.3396633 | K41: 103.3396633 | L41: 103.3396633 | M41: 103.3396633 | N41: 103.3396633 | O41: 103.3396633 | P41: 103.3396633 | Q41: 103.3396633 | R41: 103.3396633 | S41: 111.0383477 | U41: 111.0383477 | V41: 0
A42: 151 | B42: 1510020 | D42: A_1510020 | E42: Fuel Stock - Coal | F42: 29309 | G42: 30584 | H42: 31809 | I42: 31809 | J42: 31809 | K42: 31809 | L42: 31809 | M42: 29416 | N42: 29403 | O42: 30678 | P42: 30678 | Q42: 29844 | R42: 29844 | S42: 30677 | U42: 30677 | V42: 0
A43: 151 | B43: 1510030 | D43: A_1510030 | E43: Fuel Stock - #2 Oil | F43: 5059 | G43: 4992 | H43: 4926 | I43: 5374 | J43: 5374 | K43: 5308 | L43: 5243 | M43: 5178 | N43: 5113 | O43: 5305 | P43: 5241 | Q43: 5176 | R43: 5112 | S43: 5184.692308 | U43: 5184.692308 | V43: 0
A44: 151 | B44: 1510050 | D44: A_1510050 | E44: Fuel Stock - Natural Gas | F44: 1016 | G44: 1086 | H44: 1062 | I44: 971 | J44: 864 | K44: 857 | L44: 885 | M44: 913 | N44: 922 | O44: 911 | P44: 928 | Q44: 1003 | R44: 1088 | S44: 962 | U44: 962 | V44: 0
A45: 154 | B45: 1540000 | D45: A_1540000 | E45: Plant Materials and Operating Supplies (RECON) | F45: 162822.15 | G45: 162822.15 | H45: 162822.15 | I45: 162822.15 | J45: 162822.15 | K45: 162822.15 | L45: 162822.15 | M45: 162822.15 | N45: 162822.15 | O45: 162822.15 | P45: 162822.15 | Q45: 162822.15 | R45: 162822.15 | S45: 162822.15 | U45: 162822.15 | V45: 0
A46: 154 | B46: 1540001 | D46: A_1540001 | E46: Plant Materials and Operating Supplies (Posting) | F46: 0 | G46: 0 | H46: 0 | I46: 0 | J46: 0 | K46: 0 | L46: 0 | M46: 0 | N46: 0 | O46: 0 | P46: 0 | Q46: 0 | R46: 0 | S46: 0 | U46: 0 | V46: 0
A47: 176 | B47: 1760120 | D47: A_1760120 | E47: Current Derivative Asset - Collateral | F47: 0 | G47: 0 | H47: 0 | I47: 0 | J47: 0 | K47: 0 | L47: 0 | M47: 0 | N47: 0 | O47: 0 | P47: 0 | Q47: 0 | R47: 0 | S47: 0 | U47: 0 | V47: 0
A48: 176 | B48: 1760700 | D48: A_1760700 | E48: Current Deriv Asset-Intercompany | F48: 0 | G48: 0 | H48: 0 | I48: 0 | J48: 528 | K48: 528 | L48: 528 | M48: 528 | N48: 528 | O48: 528 | P48: 528 | Q48: 528 | R48: 528 | S48: 365.5384615 | U48: 365.5384615 | V48: 0
A49: 143 | B49: 1430300 | D49: A_1430300 | E49: AR - Income Taxes Receivable - Federal | F49: 0 | G49: 0 | H49: 0 | I49: 0 | J49: 0 | K49: 0 | L49: 0 | M49: 0 | N49: 0 | O49: 0 | P49: 0 | Q49: 0 | R49: 0 | S49: 0 | U49: 0 | V49: 0
A50: 143 | B50: 1430400 | D50: A_1430400 | E50: AR - Income Taxes Receivable - State | F50: 0 | G50: 0 | H50: 0 | I50: 0 | J50: 0 | K50: 0 | L50: 0 | M50: 0 | N50: 0 | O50: 0 | P50: 0 | Q50: 0 | R50: 0 | S50: 0 | U50: 0 | V50: 0
A51: 121 | B51: 1210100 | D51: A_1210100 | E51: Intangible Asset - C | F51: 249.9999 | G51: 250 | H51: 250 | I51: 250 | J51: 250 | K51: 250 | L51: 250 | M51: 250 | N51: 250 | O51: 250 | P51: 250 | Q51: 250 | R51: 250 | S51: 249.9999923 | U51: 249.9999923 | V51: 0
A52: 165 | B52: 1650020 | D52: A_1650020 | E52: Prepaid Ammonia Supply | F52: 0 | G52: 0 | H52: 0 | I52: 0 | J52: 0 | K52: 0 | L52: 0 | M52: 0 | N52: 0 | O52: 0 | P52: 0 | Q52: 0 | R52: 0 | S52: 0 | U52: 0 | V52: 0
A53: 165 | B53: 1650050 | D53: A_1650050 | E53: Prepaid Short-term Debt Facility Fees | F53: 1430.57416 | G53: 2152.70403 | H53: 2056.06976 | I53: 1959.43549 | J53: 1900.67312 | K53: 1841.91075 | L53: 1783.14838 | M53: 1724.38601 | N53: 1665.62364 | O53: 1606.86127 | P53: 1548.0989 | Q53: 1489.33653 | R53: 1430.57416 | S53: 1737.645862 | U53: 1737.645862 | V53: 0
A54: 165 | B54: 1650401 | D54: A_1650401 | E54: Prepaid LTSA - Polk Unit #1 | F54: 0 | G54: 0 | H54: 0 | I54: 0 | J54: 0 | K54: 0 | L54: 0 | M54: 0 | N54: 0 | O54: 0 | P54: 0 | Q54: 0 | R54: 0 | S54: 0 | U54: 0 | V54: 0
A55: 165 | B55: 1650402 | D55: A_1650402 | E55: Prepaid CSA - Polk Unit #2 | F55: 0 | G55: 0 | H55: 0 | I55: 0 | J55: 0 | K55: 0 | L55: 0 | M55: 0 | N55: 0 | O55: 0 | P55: 0 | Q55: 0 | R55: 0 | S55: 0 | U55: 0 | V55: 0
A56: 165 | B56: 1650403 | D56: A_1650403 | E56: Prepaid CSA - Polk Unit #3 | F56: 0 | G56: 0 | H56: 0 | I56: 0 | J56: 0 | K56: 0 | L56: 0 | M56: 0 | N56: 0 | O56: 0 | P56: 0 | Q56: 0 | R56: 0 | S56: 0 | U56: 0 | V56: 0
A57: 165 | B57: 1650404 | D57: A_1650404 | E57: Prepaid CSA - Polk Unit #4 | F57: 0 | G57: 0 | H57: 0 | I57: 0 | J57: 0 | K57: 0 | L57: 0 | M57: 0 | N57: 0 | O57: 0 | P57: 0 | Q57: 0 | R57: 0 | S57: 0 | U57: 0 | V57: 0
A58: 165 | B58: 1650405 | D58: A_1650405 | E58: Prepaid CSA - Polk Unit #5 | F58: 0 | G58: 0 | H58: 0 | I58: 0 | J58: 0 | K58: 0 | L58: 0 | M58: 0 | N58: 0 | O58: 0 | P58: 0 | Q58: 0 | R58: 0 | S58: 0 | U58: 0 | V58: 0
A59: 165 | B59: 1650599 | D59: A_1650599 | E59: Prepaid Insurance - Other | F59: 10174.4671 | G59: 7956.240428 | H59: 5229.682238 | I59: 17758.24433 | J59: 14861.69502 | K59: 11975.83376 | L59: 28926.99355 | M59: 25882.19118 | N59: 23500.03879 | O59: 20449.05008 | P59: 17398.06137 | Q59: 14347.07266 | R59: 11380.07108 | S59: 16141.51089 | U59: 16141.51089 | V59: 0
A60: 165 | B60: 1650800 | D60: A_1650800 | E60: Prepaid Miscellaneous | F60: 8269.824763 | G60: 9791.916427 | H60: 9745.558202 | I60: 9195.029294 | J60: 7757.43739 | K60: 6878.158482 | L60: 6763.595957 | M60: 6873.620698 | N60: 6487.204406 | O60: 5776.704781 | P60: 6269.592063 | Q60: 5780.469353 | R60: 7502.97258 | S60: 7468.621877 | U60: 7468.621877 | V60: 0
A61: 165 | B61: 1650801 | D61: A_1650801 | E61: Prepaid Miscellaneous - Other Shared Services | F61: 3971.455845 | G61: 6644.356523 | H61: 6068.321188 | I61: 5254.753353 | J61: 5564.088821 | K61: 5478.174241 | L61: 5125.298341 | M61: 6459.896228 | N61: 5651.704468 | O61: 5157.85576 | P61: 4450.349769 | Q61: 4873.613366 | R61: 4050.884962 | S61: 5288.519451 | U61: 5288.519451 | V61: 0
A62: 165 | B62: 1650051 | D62: A_1650051 | E62: Prepaid Interest Expense | F62: 0 | G62: 0 | H62: 0 | I62: 0 | J62: 0 | K62: 0 | L62: 0 | M62: 0 | N62: 0 | O62: 0 | P62: 0 | Q62: 0 | R62: 0 | S62: 0 | U62: 0 | V62: 0
A63: 182 | B63: 1823020 | D63: A_1823020 | E63: Oth Reg Asset-Fuel Clause | F63: 0 | G63: 0 | H63: -0.0003 | I63: -0.0003 | J63: -0.0003 | K63: -0.0003 | L63: -0.0003 | M63: -0.0003 | N63: 0 | O63: 0 | P63: 0 | Q63: 0 | R63: 0 | S63: -0.0001384615385 | U63: -0.0001384615385 | V63: 0
A64: 182 | B64: 1823090 | D64: A_1823090 | E64: Oth Reg Asset-Storm Protection Clause | F64: 0 | G64: 0 | H64: 696.035 | I64: 2750.217 | J64: 4603.255 | K64: 5607.905 | L64: 5167.446 | M64: 4257.309 | N64: 3527.567 | O64: 2684.573 | P64: 3214.255 | Q64: 5438.278 | R64: 8276.151 | S64: 3555.614692 | U64: 3555.614692 | V64: 0
A65: 182 | B65: 1823102 | D65: A_1823102 | E65: Oth Reg Asset-Rate Case Expense Current | F65: 460.116 | G65: 1104.309667 | H65: 1065.966667 | I65: 1027.623667 | J65: 989.2806667 | K65: 950.9376667 | L65: 912.5946667 | M65: 874.2516667 | N65: 835.9086667 | O65: 797.5656667 | P65: 759.2226667 | Q65: 720.8796667 | R65: 682.5366667 | S65: 860.0918462 | U65: 860.0918462 | V65: 0
A66: 182 | B66: 1823103 | D66: A_1823103 | E66: Oth Reg Asset-Deferred Dredging Costs Current | F66: 903.672502 | G66: 885.9534333 | H66: 868.2343647 | I66: 850.515296 | J66: 832.7962273 | K66: 815.0771587 | L66: 797.35809 | M66: 779.6390213 | N66: 761.9199527 | O66: 744.200884 | P66: 726.4818153 | Q66: 708.7627467 | R66: 691.043678 | S66: 797.35809 | U66: 797.35809 | V66: 0
A67: 182 | B67: 1823104 | D67: A_1823104 | E67: Oth Reg Asset-ARO Asset Current | F67: 0 | G67: 0 | H67: 0 | I67: 0 | J67: 0 | K67: 0 | L67: 0 | M67: 0 | N67: 0 | O67: 0 | P67: 0 | Q67: 0 | R67: 0 | S67: 0 | U67: 0 | V67: 0
A68: 182 | B68: 1823105 | D68: A_1823105 | E68: Current Derivative Asset - Regulatory | F68: 0 | G68: 0 | H68: 0 | I68: 0 | J68: 0 | K68: 0 | L68: 0 | M68: 0 | N68: 0 | O68: 0 | P68: 0 | Q68: 0 | R68: 0 | S68: 0 | U68: 0 | V68: 0
A69: =+LEFT(B69,3) -> 182 | B69: 1823612 | D69: A_1823612 | E69: Oth Reg Asset-Deferred Tax Reform Impact Current | F69: 0 | G69: 0 | H69: 0 | I69: 0 | J69: 0 | K69: 0 | L69: 0 | M69: 0 | N69: 0 | O69: 0 | P69: 0 | Q69: 0 | R69: 0 | S69: 0 | U69: 0 | V69: =IF(S69="","",+U69-S69) -> 0
A70: 189 | B70: 1890100 | D70: A_1890100 | E70: Unamortized Loss on Reacquired Debt - Short-term | F70: 360.48176 | G70: 382.15884 | H70: 382.15884 | I70: 382.15884 | J70: 382.15884 | K70: 382.15884 | L70: 382.15884 | M70: 382.15884 | N70: 382.15884 | O70: 376.73957 | P70: 371.3203 | Q70: 365.90103 | R70: 360.48176 | S70: 376.3227031 | U70: =+IF(F70="","",SUM(F70:R70)/13) -> 376.3227031 | V70: 0
A71: 228 | B71: 2281100 | D71: A_2281100 | E71: Accum Provision for Property Insurance-Debit-Curr | F71: 0 | G71: 0 | H71: 0 | I71: 0 | J71: 0 | K71: 0 | L71: 0 | M71: 0 | N71: 0 | O71: 0 | P71: 0 | Q71: 0 | R71: 0 | S71: 0 | U71: 0 | V71: 0
A72: 182 | B72: 1823106 | D72: A_1823106 | E72: Oth Reg Asset-Asset Optimization Gain Current | F72: 532.41916 | G72: 0 | H72: 0 | I72: 0 | J72: 0 | K72: 0 | L72: 0 | M72: 0 | N72: 0 | O72: 0 | P72: 0 | Q72: 0 | R72: 0 | S72: 40.95532 | U72: 40.95532 | V72: 0
A73: 182 | B73: 1822111 | D73: A_1822111 | E73: Unrecov Plant - (CETM) Clean Energy Trans Mech Cur | F73: 42800.44512 | G73: 42986.92791 | H73: 43414.27576 | I73: 43880.91456 | J73: 44333.76819 | K73: 44786.14491 | L73: 45249.33867 | M73: 45741.05013 | N73: 46291.39163 | O73: 46744.72181 | P73: 47267.69283 | Q73: 47653.72506 | R73: 48247.9881 | S73: 45338.33728 | U73: 45338.33728 | V73: 0
A74: 182 | B74: 1823113 | D74: A_1823113 | E74: Accum Provision for Property Insurance-Debit-Curr | F74: 0 | G74: 0 | H74: 0 | I74: 0 | J74: 0 | K74: 0 | L74: 0 | M74: 0 | N74: 0 | O74: 0 | P74: 0 | Q74: 0 | R74: 0 | S74: 0 | U74: 0 | V74: 0
A75: 101 | B75: 1010000 | D75: A_1010000 | E75: Utility Plant in Service | F75: 11533012.19 | G75: 11571960.81 | H75: 11646604.83 | I75: 11699312.51 | J75: 11931074.03 | K75: 12227843.93 | L75: 12620506.63 | M75: 12677288.19 | N75: 12742732.68 | O75: 12812126.34 | P75: 12880285.23 | Q75: 12922495.91 | R75: 13336395.12 | S75: 12353972.18 | U75: 12353972.18 | V75: 0
A76: 101 | B76: 1011000 | D76: A_1011000 | E76: Property Under Capital Leases | F76: 3026.106113 | G76: 2988.279787 | H76: 2950.45346 | I76: 2912.627134 | J76: 2874.800808 | K76: 2836.974481 | L76: 2799.148155 | M76: 2761.321828 | N76: 2723.495502 | O76: 2685.669175 | P76: 2647.842849 | Q76: 2610.016523 | R76: 2572.190196 | S76: 2799.148155 | U76: 2799.148155 | V76: 0
A77: 102 | B77: 1020000 | D77: A_1020000 | E77: Plant Purchased or Sold | F77: 0 | G77: 0 | H77: 0 | I77: 0 | J77: 0 | K77: 0 | L77: 0 | M77: 0 | N77: 0 | O77: 0 | P77: 0 | Q77: 0 | R77: 0 | S77: 0 | U77: 0 | V77: 0
A78: 106 | B78: 1060000 | D78: A_1060000 | E78: Completed Construction not Classified | F78: 2078381.705 | G78: 2078381.705 | H78: 2078381.705 | I78: 2078381.705 | J78: 2078381.705 | K78: 2078381.705 | L78: 2078381.705 | M78: 2078381.705 | N78: 2078381.705 | O78: 2078381.705 | P78: 2078381.705 | Q78: 2078381.705 | R78: 2078381.705 | S78: 2078381.705 | U78: 2078381.705 | V78: 0
A79: 114 | B79: 1140000 | D79: A_1140000 | E79: Plant Acquisition Adjustments | F79: 7484.82276 | G79: 7484.82276 | H79: 7484.82276 | I79: 7484.82276 | J79: 7484.82276 | K79: 7484.82276 | L79: 7484.82276 | M79: 7484.82276 | N79: 7484.82276 | O79: 7484.82276 | P79: 7484.82276 | Q79: 7484.82276 | R79: 7484.82276 | S79: 7484.82276 | U79: 7484.82276 | V79: 0
A80: 105 | B80: 1050000 | D80: A_1050000 | E80: Plant Held for Future Use | F80: 64262.39953 | G80: 64262.39953 | H80: 70262.39953 | I80: 70262.39953 | J80: 70262.39953 | K80: 70262.39953 | L80: 70264.95227 | M80: 70264.95227 | N80: 70264.95227 | O80: 70764.95227 | P80: 70764.95227 | Q80: 70764.95227 | R80: 70764.95227 | S80: 69494.54331 | U80: 69494.54331 | V80: 0
A81: 107 | B81: 1070000 | D81: A_1070000 | E81: Construction Work in Progress | F81: 1082288.904 | G81: 1214318.498 | H81: 1262739.751 | I81: 1343231.884 | J81: 1234133.482 | K81: 1049240.159 | L81: 826404.6853 | M81: 945656.7966 | N81: 974098.3269 | O81: 989658.2254 | P81: 996139.2553 | Q81: 1026714.722 | R81: 711966.4732 | S81: 1050507.012 | U81: 1050507.012 | V81: 0
A82: 121 | B82: 1210000 | D82: A_1210000 | E82: Nonutility Property | F82: 19720.46779 | G82: 19820.80202 | H82: 19927.11929 | I82: 20031.90385 | J82: 20137.23929 | K82: 20227.54929 | L82: 20326.45816 | M82: 20316.32585 | N82: 20355.69302 | O82: 20440.78011 | P82: 20498.97472 | Q82: 20620.64648 | R82: 20724.96079 | S82: 20242.22467 | U82: 20242.22467 | V82: 0
A83: 108 | B83: 1080000 | D83: A_1080000 | E83: Accumulated Provision for Depreciation | F83: -3876777.556 | G83: -3901814.503 | H83: -3934662.711 | I83: -3964586.26 | J83: -3996514.477 | K83: -4010422.068 | L83: -4040873.086 | M83: -4073809.842 | N83: -4110298.76 | O83: -4143906.843 | P83: -4170968.975 | Q83: -4205274.221 | R83: -4223419.288 | S83: -4050256.046 | U83: -4050256.046 | V83: 0
A84: 108 | B84: 1080001 | D84: A_1080001 | E84: Retirement Work in Progress | F84: 80078.52571 | G84: 80078.52571 | H84: 80078.52571 | I84: 80078.52571 | J84: 80078.52571 | K84: 80078.52571 | L84: 80078.52571 | M84: 80078.52571 | N84: 80078.52571 | O84: 80078.52571 | P84: 80078.52571 | Q84: 80078.52571 | R84: 80078.52571 | S84: 80078.52571 | U84: 80078.52571 | V84: 0
A85: 108 | B85: 1080100 | D85: A_1080100 | E85: Accumulated Reserve Cost of Removal - Current | F85: 13287.32495 | G85: 13265.17941 | H85: 13243.07078 | I85: 13220.999 | J85: 13198.964 | K85: 13176.96573 | L85: 13155.00412 | M85: 13133.07911 | N85: 13111.19064 | O85: 13089.33866 | P85: 13067.5231 | Q85: 13045.74389 | R85: 13024.00098 | S85: 13155.26034 | U85: 13155.26034 | V85: 0
A86: 108 | B86: 1080200 | D86: A_1080200 | E86: Accumulated Reserve Cost of Removal - Non-Current | F86: 252459.1737 | G86: 252038.4085 | H86: 251618.3444 | I86: 251198.9805 | J86: 250780.3156 | K86: 250362.3484 | L86: 249945.0778 | M86: 249528.5027 | N86: 249112.6218 | O86: 248697.4341 | P86: 248282.9384 | Q86: 247869.1335 | R86: 247456.0183 | S86: 249949.946 | U86: 249949.946 | V86: 0
A87: 111 | B87: 1110000 | D87: A_1110000 | E87: Accumulated Provision For Amortization | F87: -176791.0733 | G87: -176207.7536 | H87: -179444.6756 | I87: -182683.9102 | J87: -185936.0659 | K87: -189133.2036 | L87: -192389.0548 | M87: -195326.7251 | N87: -198172.591 | O87: -201428.7828 | P87: -204629.8741 | Q87: -208198.8536 | R87: -211782.1274 | S87: -192471.1301 | U87: -192471.1301 | V87: 0
A88: 115 | B88: 1150000 | D88: A_1150000 | E88: Accum Provision Amort Plant Acquisition Adjustment | F88: -6883.36617 | G88: -6903.0919 | H88: -6922.81763 | I88: -6942.54336 | J88: -6962.26909 | K88: -6981.99482 | L88: -7001.72055 | M88: -7021.44628 | N88: -7041.17201 | O88: -7060.89774 | P88: -7080.62347 | Q88: -7100.3492 | R88: -7120.07493 | S88: -7001.72055 | U88: -7001.72055 | V88: 0
A89: 122 | B89: 1220000 | D89: A_1220000 | E89: Accum Provision Depr Amortiz Nonutility Property | F89: -7869.60088 | G89: -7928.83221 | H89: -7994.60677 | I89: -8059.44227 | J89: -8125.41366 | K89: -8176.94773 | L89: -8237.5849 | M89: -8189.73313 | N89: -8191.32427 | O89: -8238.85513 | P89: -8259.96858 | Q89: -8344.88409 | R89: -8408.9433 | S89: -8155.856686 | U89: -8155.856686 | V89: 0
A90: 190 | B90: 1900300 | D90: A_1900300 | E90: Deferred Tax Asset - Federal | F90: 104855.044 | G90: 105864.3005 | H90: 106795.4001 | I90: 107773.8184 | J90: 108768.2223 | K90: 109752.8129 | L90: 110688.0231 | M90: 111507.3676 | N90: 112561.4079 | O90: 113476.0837 | P90: 114742.3585 | Q90: 115963.7581 | R90: 117167.056 | S90: 110762.7426 | U90: 110762.7426 | V90: 0
A91: 190 | B91: 1900303 | D91: A_1900303 | E91: DTA Separate Company - Federal | F91: 110743.4623 | G91: 110743.4623 | H91: 110743.4623 | I91: 109830.9239 | J91: 109830.9239 | K91: 109830.9239 | L91: 108918.3855 | M91: 108918.3855 | N91: 108918.3855 | O91: 108005.8471 | P91: 108005.8471 | Q91: 108005.8471 | R91: 107093.3087 | S91: 109199.1666 | U91: 109199.1666 | V91: 0
A92: 190 | B92: 1900305 | D92: A_1900305 | E92: Deferred Tax Asset - Federal Non Utility | F92: -18.80851 | G92: -18.80851 | H92: -18.80851 | I92: -18.80851 | J92: -18.80851 | K92: -18.80851 | L92: -18.80851 | M92: -18.80851 | N92: -18.80851 | O92: -18.80851 | P92: -18.80851 | Q92: -18.80851 | R92: -18.80851 | S92: -18.80851 | U92: -18.80851 | V92: 0
A93: 190 | B93: 1900306 | D93: A_1900306 | E93: Deferred Tax FIT - FAS 133 | F93: 1926.50804 | G93: 1926.50804 | H93: 1926.50804 | I93: 1926.50804 | J93: 1926.50804 | K93: 1926.50804 | L93: 1926.50804 | M93: 1926.50804 | N93: 1926.50804 | O93: 1926.50804 | P93: 1926.50804 | Q93: 1926.50804 | R93: 1926.50804 | S93: 1926.50804 | U93: 1926.50804 | V93: 0
A94: 190 | B94: 1900307 | D94: A_1900307 | E94: Deferred Tax FIT - FAS 133 Interest | F94: 1091.82785 | G94: 1115.6613 | H94: 1113.49462 | I94: 1111.32794 | J94: 1109.16127 | K94: 1106.99459 | L94: 1104.82791 | M94: 1102.66124 | N94: 1100.49456 | O94: 1098.32788 | P94: 1096.1612 | Q94: 1093.99453 | R94: 1091.82785 | S94: 1102.827903 | U94: 1102.827903 | V94: 0
A95: 190 | B95: 1900308 | D95: A_1900308 | E95: Deferred Tax FIT - FAS 158 | F95: 79139.92876 | G95: 79139.92876 | H95: 79139.92876 | I95: 79139.92876 | J95: 79139.92876 | K95: 79139.92876 | L95: 79139.92876 | M95: 79139.92876 | N95: 79139.92876 | O95: 79139.92876 | P95: 79139.92876 | Q95: 79139.92876 | R95: 79139.92876 | S95: 79139.92876 | U95: 79139.92876 | V95: 0
A96: 190 | B96: 1900310 | D96: A_1900310 | E96: Deferred Tax FIT - Credits | F96: 300305.6587 | G96: 300305.6587 | H96: 315518.3587 | I96: 315968.3587 | J96: 341615.4277 | K96: 341615.4277 | L96: 342065.4277 | M96: 342065.4277 | N96: 342065.4277 | O96: 342515.4277 | P96: 342515.4277 | Q96: 342515.4277 | R96: 344415.8247 | S96: 331806.7139 | U96: 331806.7139 | V96: 0
A97: 190 | B97: 1900400 | D97: A_1900400 | E97: Deferred Tax Asset - State | F97: 23825.81528 | G97: 24026.83768 | H97: 24206.19903 | I97: 24398.6747 | J97: 24595.58073 | K97: 24789.767 | L97: 24970.26763 | M97: 25118.6563 | N97: 25332.09042 | O97: 25506.89998 | P97: 25779.15447 | Q97: 26038.97187 | R97: 26293.77244 | S97: 24990.97596 | U97: 24990.97596 | V97: 0
A98: 190 | B98: 1900403 | D98: A_1900403 | E98: DTA Separate Company - State | F98: 16789.87824 | G98: 16789.87824 | H98: 16789.87824 | I98: 16789.87824 | J98: 16789.87824 | K98: 16789.87824 | L98: 16789.87824 | M98: 16789.87824 | N98: 16789.87824 | O98: 16789.87824 | P98: 16789.87824 | Q98: 16789.87824 | R98: 16789.87824 | S98: 16789.87824 | U98: 16789.87824 | V98: 0
A99: 190 | B99: 1900405 | D99: A_1900405 | E99: Deferred Tax Asset - State Non Utility | F99: -5.21092 | G99: -5.21092 | H99: -5.21092 | I99: -5.21092 | J99: -5.21092 | K99: -5.21092 | L99: -5.21092 | M99: -5.21092 | N99: -5.21092 | O99: -5.21092 | P99: -5.21092 | Q99: -5.21092 | R99: -5.21092 | S99: -5.21092 | U99: -5.21092 | V99: 0
A100: 190 | B100: 1900406 | D100: A_1900406 | E100: Deferred Tax SIT - FAS 133 | F100: 0.0002 | G100: 0.0002 | H100: 0.0002 | I100: 0.0002 | J100: 0.0002 | K100: 0.0002 | L100: 0.0002 | M100: 0.0002 | N100: 0.0002 | O100: 0.0002 | P100: 0.0002 | Q100: 0.0002 | R100: 0.0002 | S100: 0.0002 | U100: 0.0002 | V100: 0
A101: 190 | B101: 1900407 | D101: A_1900407 | E101: Deferred Tax SIT - FAS 133 Interest | F101: 136.09513 | G101: 142.70052 | H101: 142.10003 | I101: 141.49954 | J101: 140.89905 | K101: 140.29856 | L101: 139.69807 | M101: 139.09758 | N101: 138.49709 | O101: 137.8966 | P101: 137.29611 | Q101: 136.69562 | R101: 136.09513 | S101: 139.1437715 | U101: 139.1437715 | V101: 0
A102: 190 | B102: 1900408 | D102: A_1900408 | E102: Deferred Tax SIT - FAS 158 | F102: 12997.8957 | G102: 12997.8957 | H102: 12997.8957 | I102: 12997.8957 | J102: 12997.8957 | K102: 12997.8957 | L102: 12997.8957 | M102: 12997.8957 | N102: 12997.8957 | O102: 12997.8957 | P102: 12997.8957 | Q102: 12997.8957 | R102: 12997.8957 | S102: 12997.8957 | U102: 12997.8957 | V102: 0
A103: 190 | B103: 1900315 | D103: A_1900315 | E103: Deferred Tax FIT - Production Tax Credits | F103: 50210.37032 | G103: 52342.76632 | H103: 54773.39832 | I103: 57583.68432 | J103: 61278.52532 | K103: 65378.70532 | L103: 68929.64832 | M103: 72306.71632 | N103: 75580.69032 | O103: 78467.04832 | P103: 81276.96132 | Q103: 83434.07632 | R103: 85598.17432 | S103: 68243.13578 | U103: 68243.13578 | V103: 0
A104: 182 | B104: 1823200 | D104: A_1823200 | E104: Oth Reg Asset-FAS 158 Benefit Non-Current | F104: 236366.507 | G104: 236366.507 | H104: 236366.507 | I104: 236366.507 | J104: 236366.507 | K104: 236366.507 | L104: 236366.507 | M104: 236366.507 | N104: 236366.507 | O104: 236366.507 | P104: 236366.507 | Q104: 236366.507 | R104: 236366.507 | S104: 236366.507 | U104: 236366.507 | V104: 0
A105: 182 | B105: 1823201 | D105: A_1823201 | E105: Oth Reg Asset-PBOP FAS 106 Non-Current | F105: -41.13457 | G105: -41.13457 | H105: -41.13457 | I105: -41.13457 | J105: -41.13457 | K105: -41.13457 | L105: -41.13457 | M105: -41.13457 | N105: -41.13457 | O105: -41.13457 | P105: -41.13457 | Q105: -41.13457 | R105: -41.13457 | S105: -41.13457 | U105: -41.13457 | V105: 0
A106: 182 | B106: 1823202 | D106: A_1823202 | E106: Oth Reg Asset-Rate Case Expense Non-Current | F106: 0 | G106: 1308.195278 | H106: 1251.317222 | I106: 1194.439167 | J106: 1137.561111 | K106: 1080.683056 | L106: 1023.805 | M106: 966.9269444 | N106: 910.0488889 | O106: 853.1708333 | P106: 796.2927778 | Q106: 739.4147222 | R106: 682.5366667 | S106: 918.799359 | U106: 918.799359 | V106: 0
A107: 182 | B107: 1823204 | D107: A_1823204 | E107: Oth Reg Asset-ARO Asset Non-Current | F107: 13874.21173 | G107: 14072.45878 | H107: 14271.29245 | I107: 14470.71519 | J107: 14670.72945 | K107: 14871.33769 | L107: 15072.5424 | M107: 15274.34605 | N107: 15476.75114 | O107: 15679.76018 | P107: 15883.37569 | Q107: 16087.60019 | R107: 16292.43622 | S107: 15076.73517 | U107: 15076.73517 | V107: 0
A108: 182 | B108: 1823322 | D108: A_1823322 | E108: Oth Reg Asset-Price Responsive Load Management | F108: 1771.915 | G108: 1783.151 | H108: 1794.057 | I108: 1805.21 | J108: 1816.059 | K108: 1825.901 | L108: 1834.736 | M108: 1842.564 | N108: 1849.555 | O108: 1855.739 | P108: 1860.96 | Q108: 1865.205 | R108: 1868.459 | S108: 1828.731615 | U108: 1828.731615 | V108: 0
A109: 182 | B109: 1823324 | D109: A_1823324 | E109: Oth Reg Asset-Energy Education Awareness/Outreach | F109: 0 | G109: 0 | H109: 0 | I109: 0 | J109: 0 | K109: 0 | L109: 0 | M109: 0 | N109: 0 | O109: 0 | P109: 0 | Q109: 0 | R109: 0 | S109: 0 | U109: 0 | V109: 0
A110: 189 | B110: 1890200 | D110: A_1890200 | E110: Unamortized Loss on Reacquired Debt | F110: 2174.39216 | G110: 2503.02735 | H110: 2471.18078 | I110: 2439.33421 | J110: 2407.48764 | K110: 2375.64107 | L110: 2343.7945 | M110: 2311.94793 | N110: 2280.10136 | O110: 2253.67406 | P110: 2227.24676 | Q110: 2200.81946 | R110: 2174.39216 | S110: 2320.233803 | U110: 2320.233803 | V110: 0
A111: 182 | B111: 1823206 | D111: A_1823206 | E111: Oth Reg Asset-Asset Optimization Gain Non-Current | F111: 2200 | G111: 0 | H111: 0 | I111: 0 | J111: 0 | K111: 0 | L111: 0 | M111: 0 | N111: 0 | O111: 0 | P111: 0 | Q111: 0 | R111: 0 | S111: 169.2307692 | U111: 169.2307692 | V111: 0
A112: 182 | B112: 1822211 | D112: A_1822211 | E112: Unrecov Plant - (CETM) Clean Energy Trans Mech NC | F112: 470804.8963 | G112: 469273.963 | H112: 470321.3208 | I112: 471719.8315 | J112: 472893.5274 | K112: 473986.7003 | L112: 475118.056 | M112: 476469.2721 | N112: 478344.3802 | O112: 479133.3986 | P112: 480554.8771 | Q112: 480508.3944 | R112: 482479.881 | S112: 475508.346 | U112: 475508.346 | V112: 0
A113: 182 | B113: 1823220 | D113: A_1823220 | E113: Oth Reg Asset-Fuel Clause Non-Current | F113: 0 | G113: 0 | H113: 0 | I113: 0 | J113: 0 | K113: 0 | L113: 0 | M113: 0 | N113: 0 | O113: 0 | P113: 0 | Q113: 0 | R113: 0 | S113: 0 | U113: 0 | V113: 0
A114: 182 | B114: 1823610 | D114: A_1823610 | E114: Oth Reg Asset-FAS 109 Income Tax | F114: 117987.5841 | G114: 118667.9899 | H114: 122035.6036 | I114: 122873.796 | J114: 128055.5066 | K114: 128660.7372 | L114: 128985.1785 | M114: 129208.5844 | N114: 129512.7935 | O114: 129871.134 | P114: 130255.5395 | Q114: 130660.0048 | R114: 131185.9252 | S114: 126766.1829 | U114: 126766.1829 | V114: 0
A115: 182 | B115: 1823611 | D115: A_1823611 | E115: Oth Reg Asset-Medicare Part D | F115: 961.66959 | G115: 961.66959 | H115: 961.66959 | I115: 961.66959 | J115: 961.66959 | K115: 961.66959 | L115: 961.66959 | M115: 961.66959 | N115: 961.66959 | O115: 961.66959 | P115: 961.66959 | Q115: 961.66959 | R115: 961.66959 | S115: 961.66959 | U115: 961.66959 | V115: 0
A116: 183 | B116: 1830000 | D116: A_1830000 | E116: Preliminary Survey and Investigation Charges | F116: 14320.82155 | G116: 6756.82155 | H116: 6803.82155 | I116: 6884.82155 | J116: 6952.82155 | K116: 6990.82155 | L116: 7028.82155 | M116: 7091.82155 | N116: 7129.82155 | O116: 3866.82155 | P116: 3904.82155 | Q116: 3942.82155 | R116: 3692.82155 | S116: 6566.744627 | U116: 6566.744627 | V116: 0
A117: 184 | B117: 1840010 | D117: A_1840010 | E117: Clearing Account - Uniform Rental | F117: 0 | G117: 0 | H117: 0 | I117: 0 | J117: 0 | K117: 0 | L117: 0 | M117: 0 | N117: 0 | O117: 0 | P117: 0 | Q117: 0 | R117: 0 | S117: 0 | U117: 0 | V117: 0
A118: 186 | B118: 1860020 | D118: A_1860020 | E118: Deferred Debits - SERP Trust | F118: 1653 | G118: 1653 | H118: 1653 | I118: 1593 | J118: 1593 | K118: 1593 | L118: 1533 | M118: 1533 | N118: 1533 | O118: 1473 | P118: 1473 | Q118: 1473 | R118: 1413 | S118: 1551.461538 | U118: 1551.461538 | V118: 0
A119: 186 | B119: 1860800 | D119: A_1860800 | E119: Deferred Debits - Other | F119: 4092.29266 | G119: 1487.02857 | H119: 1622.6271 | I119: 1447.41604 | J119: 1361.19299 | K119: 1235.62598 | L119: 1585.57889 | M119: 3743.05487 | N119: 4074.65068 | O119: 3790.81794 | P119: 3671.09905 | Q119: 3580.51288 | R119: 1575.38536 | S119: 2559.02177 | U119: 2559.02177 | V119: 0
A120: 228 | B120: 2283202 | D120: A_2283202 | E120: Pension Asset - Non-Current | F120: -227513.898 | G120: -229974.898 | H120: -229974.898 | I120: -229670.551 | J120: -232131.551 | K120: -232131.551 | L120: -231827.204 | M120: -234288.204 | N120: -234288.204 | O120: -236444.857 | P120: -236444.857 | Q120: -236444.857 | R120: -236140.511 | S120: -232867.3878 | U120: -232867.3878 | V120: 0
A121: 228 | B121: 2283203 | D121: A_2283203 | E121: Pension Asset FAS158 - Non-Current | F121: 206391.291 | G121: 206391.291 | H121: 206391.291 | I121: 206391.291 | J121: 206391.291 | K121: 206391.291 | L121: 206391.291 | M121: 206391.291 | N121: 206391.291 | O121: 206391.291 | P121: 206391.291 | Q121: 206391.291 | R121: 206391.291 | S121: 206391.291 | U121: 206391.291 | V121: 0
A122: 228 | B122: 2282210 | D122: A_2282210 | E122: I&D Gen Liab Expected Recoveries - Non-Current | F122: -1027.652 | G122: -1027.652 | H122: -1027.652 | I122: -1027.652 | J122: -1027.652 | K122: -1027.652 | L122: -1027.652 | M122: -1027.652 | N122: -1027.652 | O122: -1027.652 | P122: -1027.652 | Q122: -1027.652 | R122: -1027.652 | S122: -1027.652 | U122: -1027.652 | V122: 0
A123: 121 | B123: 1210200 | D123: A_1210200 | E123: Intangible Asset - Non-Current | F123: 4166.66685 | G123: 4145.833333 | H123: 4125 | I123: 4104.166667 | J123: 4083.333333 | K123: 4062.5 | L123: 4041.666667 | M123: 4020.833333 | N123: 4000 | O123: 3979.166667 | P123: 3958.333333 | Q123: 3937.5 | R123: 3916.666667 | S123: 4041.666681 | U123: 4041.666681 | V123: 0
A124: 101 | B124: 1011200 | D124: A_1011200 | E124: ROUS_OPT_LEASES | F124: 29713.61209 | G124: 29534.07287 | H124: 29354.08758 | I124: 29173.65492 | J124: 28992.77356 | K124: 28811.44216 | L124: 28629.65941 | M124: 28447.42396 | N124: 28264.73121 | O124: 28081.57981 | P124: 28051.56983 | Q124: 28021.631 | R124: 27991.76366 | S124: 28697.53862 | U124: 28697.53862 | V124: 0
A125: 176 | B125: 1760720 | D125: A_1760720 | E125: Non-Current Deriv Asset-Intercompany | F125: 528 | G125: 528 | H125: 528 | I125: 528 | J125: 0 | K125: 0 | L125: 0 | M125: 0 | N125: 0 | O125: 0 | P125: 0 | Q125: 0 | R125: 0 | S125: 162.4615385 | U125: 162.4615385 | V125: 0
A126: 182 | B126: 1823030 | D126: A_1823030 | E126: Oth Reg Asset-Capacity Clause | F126: 2238.308341 | G126: 3979.180302 | H126: 5545.118197 | I126: 5259.342236 | J126: 6429.226787 | K126: 6103.323072 | L126: 5728.663415 | M126: 5334.855298 | N126: 4941.233462 | O126: 4540.948269 | P126: 4174.21425 | Q126: 3855.829076 | R126: 3551.993532 | S126: 4744.787403 | U126: 4744.787403 | V126: 0
A127: 182 | B127: 1823321 | D127: A_1823321 | E127: Oth Reg Asset-Commercial Load Management | F127: 0 | G127: 0 | H127: 0 | I127: 0 | J127: 0 | K127: 0 | L127: 0 | M127: 0 | N127: 0 | O127: 0 | P127: 0 | Q127: 0 | R127: 0 | S127: 0 | U127: 0 | V127: 0
A128: 182 | B128: 1823327 | D128: A_1823327 | E128: Oth Reg Asset-Prime Time Plus | F128: 1531.816 | G128: 1610.98 | H128: 1688.31 | I128: 1763.807 | J128: 1837.471 | K128: 1909.301 | L128: 1979.298 | M128: 2047.462 | N128: 2113.792 | O128: 2178.289 | P128: 2240.953 | Q128: 2301.783 | R128: 2360.78 | S128: 1966.464769 | U128: 1966.464769 | V128: 0
A129: 232 | B129: 2320412 | D129: A_2320412 | E129: AP CSA - Bayside #2 | F129: 0 | G129: -472.0833333 | H129: -944.1666667 | I129: 0 | J129: -472.0833333 | K129: -944.1666667 | L129: 0 | M129: -472.0833333 | N129: -944.1666667 | O129: 0 | P129: -472.0833333 | Q129: -944.1666667 | R129: 0 | S129: -435.7692308 | U129: -435.7692308 | V129: 0
A130: 254 | B130: 2540205 | D130: A_2540205 | E130: Long-Term Derivative Liability - Regulatory | F130: 528 | G130: 528 | H130: 528 | I130: 528 | J130: 0 | K130: 0 | L130: 0 | M130: 0 | N130: 0 | O130: 0 | P130: 0 | Q130: 0 | R130: 0 | S130: 162.4615385 | U130: 162.4615385 | V130: 0
A131: 254 | B131: 2540020 | D131: A_2540020 | E131: Oth Reg Liab-Fuel and Purchased Power Clause | F131: 31771.49979 | G131: 25642.08317 | H131: 23946.25728 | I131: 20915.46272 | J131: 19458.7476 | K131: 20005.75184 | L131: 24356.98902 | M131: 27026.42551 | N131: 28425.77179 | O131: 37118.4436 | P131: 40323.96926 | Q131: 43460.81258 | R131: 36786.33069 | S131: 29172.19576 | U131: 29172.19576 | V131: 0
A132: 221 | B132: 2210100 | D132: A_2210100 | E132: Bonds - Recourse - Current | F132: 0 | G132: 0 | H132: 0 | I132: 0 | J132: 0 | K132: 0 | L132: 0 | M132: 0 | N132: 0 | O132: 0 | P132: 0 | Q132: 0 | R132: 0 | S132: 0 | U132: 0 | V132: 0
A133: =+LEFT(B133,3) -> 181 | B133: 1810100 | D133: A_1810100 | E133: Unamortized Debt Expense - Short-term Loan | F133: 0 | G133: 8.32097 | H133: 0 | I133: 0 | J133: 0 | K133: 0 | L133: 0 | M133: 0 | N133: 0 | O133: 0 | P133: 0 | Q133: 0 | R133: 0 | S133: 0.6400746154 | U133: 0.6400746154 | V133: =IF(S133="","",+U133-S133) -> 0
A134: 231 | B134: 2310000 | D134: A_2310000 | E134: Notes Payable (Borrowings < 1 Year Duration) | F134: 595364.8572 | G134: 598422.4012 | H134: 655705.0873 | I134: 260252.5067 | J134: 333921.0466 | K134: 304118.4385 | L134: 369466.3079 | M134: 437362.472 | N134: 456960.3297 | O134: 471462.43 | P134: 432650.8699 | Q134: 596370.821 | R134: 553907.7779 | S134: 466612.7189 | U134: =+IF(F134="","",SUM(F134:R134)/13) -> 466612.7189 | V134: 0
A135: 233 | B135: 2330711 | D135: A_2330711 | E135: Notes Payable-Intercompany-Current (Posting) | F135: 0 | G135: 0 | H135: 0 | I135: 0 | J135: 0 | K135: 0 | L135: 0 | M135: 0 | N135: 0 | O135: 0 | P135: 0 | Q135: 0 | R135: 0 | S135: 0 | U135: 0 | V135: 0
A136: 232 | B136: 2320000 | D136: A_2320000 | E136: AP Vouchers (Do not Post) | F136: 33338 | G136: 33338 | H136: 33338 | I136: 33338 | J136: 33338 | K136: 33338 | L136: 33338 | M136: 33338 | N136: 33338 | O136: 33338 | P136: 33338 | Q136: 33338 | R136: 33338 | S136: 33338 | U136: 33338 | V136: 0
A137: 232 | B137: 2320001 | D137: A_2320001 | E137: AP Manual Accruals | F137: 120140.9654 | G137: 193227.082 | H137: 104539.7672 | I137: 118795.7152 | J137: 106427.5501 | K137: 113718.9033 | L137: 167375.6489 | M137: 173805.8901 | N137: 91425.83707 | O137: 101195.6417 | P137: 102591.101 | Q137: 90732.37091 | R137: 198058.6735 | S137: 129387.3189 | U137: 129387.3189 | V137: 0
A138: 232 | B138: 2320002 | D138: A_2320002 | E138: AP GR/IR Clearing | F138: 15000 | G138: 15000 | H138: 15000 | I138: 15000 | J138: 15000 | K138: 15000 | L138: 15000 | M138: 15000 | N138: 15000 | O138: 15000 | P138: 15000 | Q138: 15000 | R138: 15000 | S138: 15000 | U138: 15000 | V138: 0
A139: 232 | B139: 2320003 | D139: A_2320003 | E139: AP P-Card Clearing | F139: 579.894895 | G139: 203.051095 | H139: 210.36239 | I139: 549.066015 | J139: 247.2498 | K139: 227.363865 | L139: 140.808555 | M139: 66.22809 | N139: 270.185985 | O139: 297.68707 | P139: 987.77822 | Q139: 257.54747 | R139: 579.894895 | S139: 355.1629496 | U139: 355.1629496 | V139: 0
A140: 232 | B140: 2320005 | D140: A_2320005 | E140: AP Employee Expenses (RECON) | F140: 18.88054 | G140: 18.88054 | H140: 18.88054 | I140: 18.88054 | J140: 18.88054 | K140: 18.88054 | L140: 18.88054 | M140: 18.88054 | N140: 18.88054 | O140: 18.88054 | P140: 18.88054 | Q140: 18.88054 | R140: 18.88054 | S140: 18.88054 | U140: 18.88054 | V140: 0
A141: 232 | B141: 2320006 | D141: A_2320006 | E141: AP Energy Conservation Allowances | F141: -5.20383 | G141: -5.20383 | H141: -5.20383 | I141: -5.20383 | J141: -5.20383 | K141: -5.20383 | L141: -5.20383 | M141: -5.20383 | N141: -5.20383 | O141: -5.20383 | P141: -5.20383 | Q141: -5.20383 | R141: -5.20383 | S141: -5.20383 | U141: -5.20383 | V141: 0
A142: 232 | B142: 2320007 | D142: A_2320007 | E142: AP Payroll | F142: 6544.625804 | G142: 8930.083609 | H142: 9014.565129 | I142: 683.5440788 | J142: 2252.391603 | K142: 4541.413396 | L142: 5431.818034 | M142: 8405.784661 | N142: 0 | O142: 1439.430817 | P142: 3852.041561 | Q142: 5044.354435 | R142: 7339.264711 | S142: 4883.024449 | U142: 4883.024449 | V142: 0
A143: 232 | B143: 2320008 | D143: A_2320008 | E143: AP 401K Fixed Match | F143: 888 | G143: 962 | H143: 1036 | I143: 222 | J143: 296 | K143: 370 | L143: 444 | M143: 518 | N143: 592 | O143: 666 | P143: 740 | Q143: 814 | R143: 888 | S143: 648.9230769 | U143: 648.9230769 | V143: 0
A144: 232 | B144: 2320009 | D144: A_2320009 | E144: AP 401K Performance Match | F144: 0 | G144: 0 | H144: 0 | I144: 0 | J144: 0 | K144: 0 | L144: 0 | M144: 0 | N144: 0 | O144: 0 | P144: 0 | Q144: 0 | R144: 0 | S144: 0 | U144: 0 | V144: 0
A145: 232 | B145: 2320010 | D145: A_2320010 | E145: AP 401K Employee Contributions | F145: 0 | G145: 0 | H145: 0 | I145: 0 | J145: 0 | K145: 0 | L145: 0 | M145: 0 | N145: 0 | O145: 0 | P145: 0 | Q145: 0 | R145: 0 | S145: 0 | U145: 0 | V145: 0
A146: 232 | B146: 2320011 | D146: A_2320011 | E146: AP Stock Purchase Employee Contributions | F146: 0 | G146: 0 | H146: 0 | I146: 0 | J146: 0 | K146: 0 | L146: 0 | M146: 0 | N146: 0 | O146: 0 | P146: 0 | Q146: 0 | R146: 0 | S146: 0 | U146: 0 | V146: 0
A147: 232 | B147: 2320012 | D147: A_2320012 | E147: AP PSP / Incentive | F147: 27186 | G147: 29536 | H147: 31886 | I147: 7050 | J147: 9400 | K147: 11750 | L147: 14100 | M147: 16450 | N147: 18800 | O147: 21150 | P147: 23500 | Q147: 25850 | R147: 28200 | S147: 20373.69231 | U147: 20373.69231 | V147: 0
A148: 232 | B148: 2320013 | D148: A_2320013 | E148: AP Garnishments (Child Support. Levy. etc.) | F148: 13.2 | G148: 13.2 | H148: 13.2 | I148: 13.2 | J148: 13.2 | K148: 13.2 | L148: 13.2 | M148: 13.2 | N148: 13.2 | O148: 13.2 | P148: 13.2 | Q148: 13.2 | R148: 13.2 | S148: 13.2 | U148: 13.2 | V148: 0
A149: 232 | B149: 2320014 | D149: A_2320014 | E149: AP TECO Benefit Association | F149: 1.6 | G149: 1.6 | H149: 1.6 | I149: 1.6 | J149: 1.6 | K149: 1.6 | L149: 1.6 | M149: 1.6 | N149: 1.6 | O149: 1.6 | P149: 1.6 | Q149: 1.6 | R149: 1.6 | S149: 1.6 | U149: 1.6 | V149: 0
A150: 232 | B150: 2320015 | D150: A_2320015 | E150: AP Group Life Insurance | F150: 85.759 | G150: 85.759 | H150: 85.759 | I150: 85.759 | J150: 85.759 | K150: 85.759 | L150: 85.759 | M150: 85.759 | N150: 85.759 | O150: 85.759 | P150: 85.759 | Q150: 85.759 | R150: 85.759 | S150: 85.759 | U150: 85.759 | V150: 0
A151: 232 | B151: 2320016 | D151: A_2320016 | E151: AP Long-term Care Insurance | F151: -2.876 | G151: -2.876 | H151: -2.876 | I151: -2.876 | J151: -2.876 | K151: -2.876 | L151: -2.876 | M151: -2.876 | N151: -2.876 | O151: -2.876 | P151: -2.876 | Q151: -2.876 | R151: -2.876 | S151: -2.876 | U151: -2.876 | V151: 0
A152: 232 | B152: 2320020 | D152: A_2320020 | E152: AP HSA Employee Contribution | F152: 258.7 | G152: 258.7 | H152: 258.7 | I152: 258.7 | J152: 258.7 | K152: 258.7 | L152: 258.7 | M152: 258.7 | N152: 258.7 | O152: 258.7 | P152: 258.7 | Q152: 258.7 | R152: 258.7 | S152: 258.7 | U152: 258.7 | V152: 0
A153: 232 | B153: 2320021 | D153: A_2320021 | E153: AP HSA Employer Contribution | F153: -30.7 | G153: -30.7 | H153: -30.7 | I153: -30.7 | J153: -30.7 | K153: -30.7 | L153: -30.7 | M153: -30.7 | N153: -30.7 | O153: -30.7 | P153: -30.7 | Q153: -30.7 | R153: -30.7 | S153: -30.7 | U153: -30.7 | V153: 0
A154: 232 | B154: 2320022 | D154: A_2320022 | E154: AP Medical Insurance Reserve - Active Employees | F154: 4587.928 | G154: 4591.261 | H154: 4594.594 | I154: 4597.927 | J154: 4601.26 | K154: 4604.593 | L154: 4607.926 | M154: 4611.259 | N154: 4614.592 | O154: 4617.925 | P154: 4621.258 | Q154: 4624.591 | R154: 4627.928 | S154: 4607.926308 | U154: 4607.926308 | V154: 0
A155: 232 | B155: 2320023 | D155: A_2320023 | E155: AP IBEW Union Dues | F155: 70.6 | G155: 70.6 | H155: 70.6 | I155: 70.6 | J155: 70.6 | K155: 70.6 | L155: 70.6 | M155: 70.6 | N155: 70.6 | O155: 70.6 | P155: 70.6 | Q155: 70.6 | R155: 70.6 | S155: 70.6 | U155: 70.6 | V155: 0
A156: 232 | B156: 2320024 | D156: A_2320024 | E156: AP OPEIU Union Dues | F156: 0.9 | G156: 0.9 | H156: 0.9 | I156: 0.9 | J156: 0.9 | K156: 0.9 | L156: 0.9 | M156: 0.9 | N156: 0.9 | O156: 0.9 | P156: 0.9 | Q156: 0.9 | R156: 0.9 | S156: 0.9 | U156: 0.9 | V156: 0
A157: 232 | B157: 2320025 | D157: A_2320025 | E157: AP IAM/AU Union Dues | F157: 0 | G157: 0 | H157: 0 | I157: 0 | J157: 0 | K157: 0 | L157: 0 | M157: 0 | N157: 0 | O157: 0 | P157: 0 | Q157: 0 | R157: 0 | S157: 0 | U157: 0 | V157: 0
A158: 232 | B158: 2320027 | D158: A_2320027 | E158: AP FSA - Medical | F158: 261 | G158: 269 | H158: 269 | I158: 269 | J158: 269 | K158: 269 | L158: 269 | M158: 269 | N158: 269 | O158: 269 | P158: 269 | Q158: 269 | R158: 269 | S158: 268.3846154 | U158: 268.3846154 | V158: 0
A159: 232 | B159: 2320028 | D159: A_2320028 | E159: AP FSA - Dependent Care | F159: 90 | G159: 93 | H159: 93 | I159: 93 | J159: 93 | K159: 93 | L159: 93 | M159: 93 | N159: 93 | O159: 93 | P159: 93 | Q159: 93 | R159: 93 | S159: 92.76923077 | U159: 92.76923077 | V159: 0
A160: 232 | B160: 2320029 | D160: A_2320029 | E160: AP FSA - Parking/Transit | F160: 76 | G160: 78 | H160: 78 | I160: 78 | J160: 78 | K160: 78 | L160: 78 | M160: 78 | N160: 78 | O160: 78 | P160: 78 | Q160: 78 | R160: 78 | S160: 77.84615385 | U160: 77.84615385 | V160: 0
A161: 232 | B161: 2320031 | D161: A_2320031 | E161: AP Fuel Accrual | F161: 44738 | G161: 49651 | H161: 43913 | I161: 44258 | J161: 44615 | K161: 51183 | L161: 56459 | M161: 63083 | N161: 66650 | O161: 59084 | P161: 54945 | Q161: 47148 | R161: 48950 | S161: 51898.23077 | U161: 51898.23077 | V161: 0
A162: 232 | B162: 2320035 | D162: A_2320035 | E162: AP Interchange | F162: 441.5103301 | G162: 3864.376636 | H162: 3983.168652 | I162: 1989.239656 | J162: 4272.180101 | K162: 622.0375718 | L162: 267.66828 | M162: 63.85931989 | N162: 66.49435408 | O162: 253.4182341 | P162: 970.5914039 | Q162: 187.4760607 | R162: 242.7447534 | S162: 1324.98195 | U162: 1324.98195 | V162: 0
A163: 232 | B163: 2320036 | D163: A_2320036 | E163: AP Customer Assistance Program | F163: 11 | G163: 11 | H163: 11 | I163: 11 | J163: 11 | K163: 11 | L163: 11 | M163: 11 | N163: 11 | O163: 11 | P163: 11 | Q163: 11 | R163: 11 | S163: 11 | U163: 11 | V163: 0
A164: 232 | B164: 2320037 | D164: A_2320037 | E164: AP Vision Benefit Plan | F164: 45 | G164: 45 | H164: 45 | I164: 45 | J164: 45 | K164: 45 | L164: 45 | M164: 45 | N164: 45 | O164: 45 | P164: 45 | Q164: 45 | R164: 45 | S164: 45 | U164: 45 | V164: 0
A165: 232 | B165: 2320039 | D165: A_2320039 | E165: AP Consignment Liability | F165: 0 | G165: 0 | H165: 0 | I165: 0 | J165: 0 | K165: 0 | L165: 0 | M165: 0 | N165: 0 | O165: 0 | P165: 0 | Q165: 0 | R165: 0 | S165: 0 | U165: 0 | V165: 0
A166: 232 | B166: 2320402 | D166: A_2320402 | E166: AP CSA - Polk Unit #2 | F166: 0 | G166: 0 | H166: 0 | I166: 0 | J166: 0 | K166: 0 | L166: 0 | M166: 0 | N166: 0 | O166: 0 | P166: 0 | Q166: 0 | R166: 0 | S166: 0 | U166: 0 | V166: 0
A167: 232 | B167: 2320403 | D167: A_2320403 | E167: AP CSA - Polk Unit #3 | F167: 0 | G167: 0 | H167: 0 | I167: 0 | J167: 0 | K167: 0 | L167: 0 | M167: 0 | N167: 0 | O167: 0 | P167: 0 | Q167: 0 | R167: 0 | S167: 0 | U167: 0 | V167: 0
A168: 232 | B168: 2320404 | D168: A_2320404 | E168: AP CSA - Polk Unit #4 | F168: 0 | G168: 0 | H168: 0 | I168: 0 | J168: 0 | K168: 0 | L168: 0 | M168: 0 | N168: 0 | O168: 0 | P168: 0 | Q168: 0 | R168: 0 | S168: 0 | U168: 0 | V168: 0
A169: 232 | B169: 2320405 | D169: A_2320405 | E169: AP CSA - Polk Unit #5 | F169: 0 | G169: 0 | H169: 0 | I169: 0 | J169: 0 | K169: 0 | L169: 0 | M169: 0 | N169: 0 | O169: 0 | P169: 0 | Q169: 0 | R169: 0 | S169: 0 | U169: 0 | V169: 0
A170: 241 | B170: 2410000 | D170: A_2410000 | E170: Taxes Payable - Sales Use Tax (CIS) | F170: 1455.205529 | G170: 1439.17042 | H170: 1460.136401 | I170: 1448.525925 | J170: 1507.107961 | K170: 1595.707326 | L170: 1709.368327 | M170: 1786.147451 | N170: 1871.781267 | O170: 1899.242088 | P170: 1756.088799 | Q170: 1602.750385 | R170: 1654.135394 | S170: 1629.643636 | U170: 1629.643636 | V170: 0
A171: 241 | B171: 2410005 | D171: A_2410005 | E171: Taxes Payable - Sales Surtax (CIS) | F171: 730.0539666 | G171: 671.2432339 | H171: 681.0219738 | I171: 675.6067337 | J171: 702.9299712 | K171: 744.2535858 | L171: 797.2661945 | M171: 833.0767326 | N171: 873.0171862 | O171: 885.8251832 | P171: 819.0570818 | Q171: 747.538538 | R171: 771.5050115 | S171: 764.0304148 | U171: 764.0304148 | V171: 0
A172: 241 | B172: 2410300 | D172: A_2410300 | E172: Taxes Payable - Sales and Use Tax (AP) | F172: 1577.164487 | G172: 1460.566839 | H172: 1481.844526 | I172: 1470.061435 | J172: 1529.514421 | K172: 1619.431009 | L172: 1734.78183 | M172: 1812.702443 | N172: 1899.609393 | O172: 1927.47848 | P172: 1782.196904 | Q172: 1626.578779 | R172: 1678.727739 | S172: 1661.589099 | U172: 1661.589099 | V172: 0
A173: 241 | B173: 2410305 | D173: A_2410305 | E173: Taxes Payable - Sales Surtax (AP) | F173: 239.9379501 | G173: 226.2014768 | H173: 229.496803 | I173: 227.6719276 | J173: 236.8795536 | K173: 250.8051504 | L173: 268.6698078 | M173: 280.7375594 | N173: 294.1970464 | O173: 298.5131984 | P173: 276.0130936 | Q173: 251.9121427 | R173: 259.9885767 | S173: 257.0018682 | U173: 257.0018682 | V173: 0
A174: 241 | B174: 2410310 | D174: A_2410310 | E174: Taxes Payable - Utility Tax | F174: 7771.046067 | G174: 7180.22603 | H174: 7284.828296 | I174: 7226.901978 | J174: 7519.176093 | K174: 7961.210929 | L174: 8528.281841 | M174: 8911.343814 | N174: 9338.583108 | O174: 9475.589051 | P174: 8761.376922 | Q174: 7996.349755 | R174: 8252.716879 | S174: 8169.817751 | U174: 8169.817751 | V174: 0
A175: 241 | B175: 2410320 | D175: A_2410320 | E175: Taxes Payable - FICA | F175: 600.60475 | G175: 600.60475 | H175: 600.60475 | I175: 600.60475 | J175: 600.60475 | K175: 600.60475 | L175: 600.60475 | M175: 600.60475 | N175: 600.60475 | O175: 600.60475 | P175: 600.60475 | Q175: 600.60475 | R175: 600.60475 | S175: 600.60475 | U175: 600.60475 | V175: 0
A176: 241 | B176: 2410330 | D176: A_2410330 | E176: Taxes Payable - FIT Withholding | F176: 1092.72739 | G176: 1092.72739 | H176: 1092.72739 | I176: 1092.72739 | J176: 1092.72739 | K176: 1092.72739 | L176: 1092.72739 | M176: 1092.72739 | N176: 1092.72739 | O176: 1092.72739 | P176: 1092.72739 | Q176: 1092.72739 | R176: 1092.72739 | S176: 1092.72739 | U176: 1092.72739 | V176: 0
A177: 241 | B177: 2410430 | D177: A_2410430 | E177: Taxes Payable - SIT Withholding | F177: 31.72004 | G177: 31.72004 | H177: 31.72004 | I177: 31.72004 | J177: 31.72004 | K177: 31.72004 | L177: 31.72004 | M177: 31.72004 | N177: 31.72004 | O177: 31.72004 | P177: 31.72004 | Q177: 31.72004 | R177: 31.72004 | S177: 31.72004 | U177: 31.72004 | V177: 0
A178: 242 | B178: 2420300 | D178: A_2420300 | E178: Misc Accru Liab-Vacation Liability | F178: 22953 | G178: 22956 | H178: 23050 | I178: 23130 | J178: 23208 | K178: 23263 | L178: 23339 | M178: 23350 | N178: 23395 | O178: 23440 | P178: 23485 | Q178: 23530 | R178: 23359 | S178: 23266 | U178: 23266 | V178: 0
A179: 234 | B179: 2340700 | D179: A_2340700 | E179: Trade Payable-Intercompany (RECON) | F179: 6265.18157 | G179: 4523.413192 | H179: 4700.360839 | I179: 4817.309233 | J179: 4880.365919 | K179: 4881.672069 | L179: 4886.305409 | M179: 5749.922306 | N179: 5887.621375 | O179: 5881.380477 | P179: 5903.778076 | Q179: 5896.546014 | R179: 5611.255004 | S179: 5375.777806 | U179: 5375.777806 | V179: 0
A180: 234 | B180: 2340701 | D180: A_2340701 | E180: Trade Payable-Intercompany (Posting) | F180: 924.94634 | G180: 930.1005904 | H180: 930.1005904 | I180: 930.1005904 | J180: 930.1005904 | K180: 930.1005904 | L180: 930.1005904 | M180: 930.1005904 | N180: 930.1005904 | O180: 930.1005904 | P180: 930.1005904 | Q180: 930.1005904 | R180: 930.1005904 | S180: 929.7041096 | U180: 929.7041096 | V180: 0
A181: 234 | B181: 2340711 | D181: A_2340711 | E181: Trade Payable-Emera Intercompany (Posting) | F181: 4419.91359 | G181: 4076.096089 | H181: 3775.360847 | I181: 3675.90481 | J181: 3616.693927 | K181: 4802.588725 | L181: 5875.508791 | M181: 6301.464708 | N181: 6353.573436 | O181: 6087.340049 | P181: 5086.145883 | Q181: 4111.430553 | R181: 4471.341528 | S181: 4819.489457 | U181: 4819.489457 | V181: 0
A182: 234 | B182: 2340799 | D182: A_2340799 | E182: Trade Payable-Emera Interco Accruals/Reversals | F182: 330.18571 | G182: 318.8237722 | H182: 296.0490324 | I182: 274.6102989 | J182: 280.1273722 | K182: 284.9893797 | L182: 291.4203731 | M182: 297.7674602 | N182: 303.955024 | O182: 314.1169856 | P182: 320.4201835 | Q182: 323.972218 | R182: 332.0177429 | S182: 305.2658117 | U182: 305.2658117 | V182: 0
A183: 235 | B183: 2350100 | D183: A_2350100 | E183: CIS Customer Deposits Short-term | F183: 121238.9325 | G183: 121289.4487 | H183: 121339.986 | I183: 121390.5443 | J183: 121441.1237 | K183: 121491.7242 | L183: 121542.3457 | M183: 121592.9884 | N183: 121643.6521 | O183: 121694.337 | P183: 121745.043 | Q183: 121795.7701 | R183: 121846.5183 | S183: 121542.4934 | U183: 121542.4934 | V183: 0
A184: 254 | B184: 2540030 | D184: A_2540030 | E184: Oth Reg Liab-Capacity Clause | F184: 0 | G184: 0 | H184: 0 | I184: 0 | J184: 0 | K184: 0 | L184: 0 | M184: 0 | N184: 0 | O184: 0 | P184: 0 | Q184: 0 | R184: 0 | S184: 0 | U184: 0 | V184: 0
A185: 254 | B185: 2540040 | D185: A_2540040 | E185: Oth Reg Liab-Conservation Clause | F185: 1013.905 | G185: 932.611 | H185: 850.94 | I185: 769.012 | J185: 686.729 | K185: 604.119 | L185: 521.269 | M185: 438.133 | N185: 354.729 | O185: 271.097 | P185: 187.216 | Q185: 103.098 | R185: 18.762 | S185: 519.3553846 | U185: 519.3553846 | V185: 0
A186: 254 | B186: 2540050 | D186: A_2540050 | E186: Oth Reg Liab-Environmental Clause | F186: 7965.014 | G186: 7368.503 | H186: 6704.756 | I186: 6034.573 | J186: 5413.409 | K186: 4951.812 | L186: 4723.122 | M186: 4594.918 | N186: 4475.9 | O186: 4391.455 | P186: 4126.876 | Q186: 3636.625 | R186: 3079.809 | S186: 5189.751692 | U186: 5189.751692 | V186: 0
A187: 254 | B187: 2540090 | D187: A_2540090 | E187: Oth Reg Liability-Storm Protection Clause | F187: 1688.414 | G187: 850.074 | H187: 0 | I187: 0 | J187: 0 | K187: 0 | L187: 0 | M187: 0 | N187: 0 | O187: 0 | P187: 0 | Q187: 0 | R187: 0 | S187: 195.2683077 | U187: 195.2683077 | V187: 0
A188: 108 | B188: 1080110 | D188: A_1080110 | E188: Accum Reserve Cost of Removal Contra- Current | F188: -13287.32495 | G188: -13265.17941 | H188: -13243.07078 | I188: -13220.999 | J188: -13198.964 | K188: -13176.96573 | L188: -13155.00412 | M188: -13133.07911 | N188: -13111.19064 | O188: -13089.33866 | P188: -13067.5231 | Q188: -13045.74389 | R188: -13024.00098 | S188: -13155.26034 | U188: -13155.26034 | V188: 0
A189: 254 | B189: 2540105 | D189: A_2540105 | E189: Current Derivative Liability - Regulatory | F189: 0 | G189: 0 | H189: 0 | I189: 0 | J189: 528 | K189: 528 | L189: 528 | M189: 528 | N189: 528 | O189: 528 | P189: 528 | Q189: 528 | R189: 528 | S189: 365.5384615 | U189: 365.5384615 | V189: 0
A190: 254 | B190: 2540180 | D190: A_2540180 | E190: Oth Reg Liab-Defd Gain Prop Sales-Current | F190: 0 | G190: 2.36088 | H190: 1.77516 | I190: 1.4793 | J190: 1.18344 | K190: 0.88758 | L190: 0.59172 | M190: 0.29586 | N190: 0 | O190: 0 | P190: 0 | Q190: 0 | R190: 0 | S190: 0.6595338462 | U190: 0.6595338462 | V190: 0
A191: 254 | B191: 2540612 | D191: A_2540612 | E191: Oth Reg Liab-Deferred Tax Reform Impact Current | F191: 55227.08677 | G191: 54766.86105 | H191: 54306.63532 | I191: 53846.4096 | J191: 53386.18388 | K191: 52925.95815 | L191: 52465.73243 | M191: 52005.50671 | N191: 51545.28099 | O191: 51085.05526 | P191: 50624.82954 | Q191: 50164.60382 | R191: 49704.37809 | S191: 52465.73243 | U191: 52465.73243 | V191: 0
A192: 245 | B192: 2450700 | D192: A_2450700 | E192: Current Derivative Liab-Intercompany | F192: 0 | G192: 0 | H192: 0 | I192: 0 | J192: 0 | K192: 0 | L192: 0 | M192: 0 | N192: 0 | O192: 0 | P192: 0 | Q192: 0 | R192: 0 | S192: 0 | U192: 0 | V192: 0
A193: 237 | B193: 2370300 | D193: A_2370300 | E193: Interest Accrued on Customer Deposits | F193: 114.7685516 | G193: 341.1965964 | H193: 567.7261411 | I193: 794.357228 | J193: 1021.089899 | K193: 1247.924198 | L193: 1474.860165 | M193: 1701.897844 | N193: 1929.037277 | O193: 2156.278506 | P193: 2383.621574 | Q193: 2611.066523 | R193: 115.3437113 | S193: 1266.089863 | U193: 1266.089863 | V193: 0
A194: 237 | B194: 2370350 | D194: A_2370350 | E194: Interest Accrued on Credit Facility | F194: 532.0749714 | G194: 241.9212676 | H194: 253.8065101 | I194: 198.7272406 | J194: 115.2516911 | K194: 123.2596194 | L194: 141.2789049 | M194: 146.3217641 | N194: 161.4536744 | O194: 178.8814386 | P194: 154.4602084 | Q194: 174.8627973 | R194: 206.1990803 | S194: 202.1922437 | U194: 202.1922437 | V194: 0
A195: 237 | B195: 2370400 | D195: A_2370400 | E195: Interest Accrued Long Term Debt | F195: 34554.67711 | G195: 33314.06233 | H195: 47740.10399 | I195: 38216.14566 | J195: 54683.85399 | K195: 43501.56233 | L195: 38663.02066 | M195: 47630.72899 | N195: 57948.43733 | O195: 50466.14566 | P195: 66933.85399 | Q195: 43501.56233 | R195: 32513.02066 | S195: 45359.01346 | U195: 45359.01346 | V195: 0
A196: 236 | B196: 2360310 | D196: A_2360310 | E196: Income Tax Pay - Federal Current Year | F196: 0.00062595 | G196: 1115.900007 | H196: 957.0453179 | I196: -5151.223327 | J196: -11886.4923 | K196: -7620.360929 | L196: -7954.667515 | M196: 79.15869466 | N196: 8497.238619 | O196: 6578.478935 | P196: 9332.083114 | Q196: 7995.181395 | R196: 0.000229675 | S196: 149.4109899 | U196: 149.4109899 | V196: 0
A197: =+LEFT(B197,3) -> 236 | B197: 2360410 | D197: A_2360410 | E197: Income Tax Pay - State Current Year | F197: 0.000305 | G197: 266.545635 | H197: 179.7956833 | I197: -1555.82183 | J197: -3337.040119 | K197: -2197.414494 | L197: -2204.619525 | M197: -20.78520122 | N197: 2269.544231 | O197: 1823.211081 | P197: 2543.642977 | Q197: 2130.399769 | R197: 0.0004658333 | S197: -7.887771 | U197: -7.887771 | V197: =IF(S197="","",+U197-S197) -> 0
A198: 236 | B198: 2360600 | D198: A_2360600 | E198: Taxes Payable - Unemployment - Federal | F198: 0 | G198: 0 | H198: 0 | I198: 0 | J198: 0 | K198: 0 | L198: 0 | M198: 0 | N198: 0 | O198: 0 | P198: 0 | Q198: 0 | R198: 0 | S198: 0 | U198: =+IF(F198="","",SUM(F198:R198)/13) -> 0 | V198: 0
A199: 236 | B199: 2360601 | D199: A_2360601 | E199: Taxes Payable - Unemployment - State | F199: 0 | G199: 0 | H199: 0 | I199: 0 | J199: 0 | K199: 0 | L199: 0 | M199: 0 | N199: 0 | O199: 0 | P199: 0 | Q199: 0 | R199: 0 | S199: 0 | U199: 0 | V199: 0
A200: 236 | B200: 2360602 | D200: A_2360602 | E200: Taxes Payable - Regulatory Assessment Fee | F200: 999.423688 | G200: 140.4868342 | H200: 271.1971273 | I200: 397.8401669 | J200: 530.9183107 | K200: 678.1150289 | L200: 848.3613727 | M200: 179.3100065 | N200: 357.3389212 | O200: 539.9164801 | P200: 703.4420355 | Q200: 843.6048736 | R200: 977.1846264 | S200: 574.395344 | U200: 574.395344 | V200: 0
A201: 236 | B201: 2360603 | D201: A_2360603 | E201: Taxes Payable - Gross Receipts Tax | F201: 4570.155365 | G201: 4711.301518 | H201: 4371.892577 | I201: 4229.59515 | J201: 4451.442251 | K201: 4942.012785 | L201: 5741.312099 | M201: 6056.092051 | N201: 6011.446184 | O201: 6170.113253 | P201: 5507.465006 | Q201: 4696.99535 | R201: 4467.3669 | S201: 5071.322345 | U201: 5071.322345 | V201: 0
... 145 more rows

Sheet Income Statement Accounts
F2: WKG_BUDGET | G2: WKG_BUDGET | H2: WKG_BUDGET | I2: WKG_BUDGET | J2: WKG_BUDGET | K2: WKG_BUDGET | L2: WKG_BUDGET | M2: WKG_BUDGET | N2: WKG_BUDGET | O2: WKG_BUDGET | P2: WKG_BUDGET | Q2: WKG_BUDGET | R2: Total
B3: SAP Account Formula | C3: CLASS | D3: Income Statement Accounts | E3: Description | F3: 2025.JAN | G3: 2025.FEB | H3: 2025.MAR | I3: 2025.APR | J3: 2025.MAY | K3: 2025.JUN | L3: 2025.JUL | M3: 2025.AUG | N3: 2025.SEP | O3: 2025.OCT | P3: 2025.NOV | Q3: 2025.DEC | R3: 2025 | T3: Recon Check
B4: 4070211 | C4: EXPENSES | D4: A_4070211 | E4: Unrecov Plant DR Defd - CETM | F4: 1821.52862 | G4: 1821.52862 | H4: 1821.52862 | I4: 1821.52862 | J4: 1821.52862 | K4: 1821.52862 | L4: 1821.52862 | M4: 1821.52862 | N4: 1821.52862 | O4: 1821.52862 | P4: 1821.52862 | Q4: 1821.52853 | R4: 21858.34335 | T4: =IF(R4="","",+R4-SUM(F4:Q4)) -> 0
B5: 4073020 | C5: REVENUE | D5: A_4073020 | E5: REG DR Defd Fuel and Purchased Power | F5: 0 | G5: 0 | H5: 0 | I5: 0 | J5: -228.4870738 | K5: -4025.579015 | L5: -2335.848328 | M5: -1062.221105 | N5: -8341.688646 | O5: -2841.294493 | P5: -2767.917152 | Q5: 0 | R5: -21603.03581 | T5: =IF(R5="","",+R5-SUM(F5:Q5)) -> 0
B6: 4073021 | C6: EXPENSES | D6: A_4073021 | E6: REG DR Defd Fuel and Purchased Power - Amortiz | F6: 260.9831667 | G6: 260.9831667 | H6: 260.9831667 | I6: 260.9831667 | J6: 260.9831667 | K6: 260.9831667 | L6: 260.9831667 | M6: 260.9831667 | N6: 260.9831667 | O6: 260.9831667 | P6: 260.9831667 | Q6: 260.9831667 | R6: 3131.798 | T6: 0
B7: 4073022 | D7: A_4073022 | E7: REG DR Asset Optimization | F7: 0 | G7: 0 | H7: 0 | I7: 0 | J7: 0 | K7: 0 | L7: 0 | M7: 0 | N7: 0 | O7: 0 | P7: 0 | Q7: 0 | R7: 0 | T7: 0
B8: 4073030 | C8: REVENUE | D8: A_4073030 | E8: REG DR Defd Capacity | F8: 0 | G8: 0 | H8: -283.3040448 | I8: 0 | J8: -325.1047983 | K8: -372.81074 | L8: -390.5882002 | M8: -389.03292 | N8: -394.5392754 | O8: -359.6961025 | P8: -310.1612576 | Q8: -294.7326269 | R8: -3119.969966 | T8: 0
B9: 4073031 | C9: EXPENSES | D9: A_4073031 | E9: REG DR Defd Capacity - Amortization | F9: 19.56991667 | G9: 19.56991667 | H9: 19.56991667 | I9: 19.56991667 | J9: 19.56991667 | K9: 19.56991667 | L9: 19.56991667 | M9: 19.56991667 | N9: 19.56991667 | O9: 19.56991667 | P9: 19.56991667 | Q9: 19.56991667 | R9: 234.839 | T9: 0
B10: 4073040 | C10: REVENUE | D10: A_4073040 | E10: REG DR Defd Conservation Electric | F10: -0.0006665096 | G10: 0 | H10: -1.286e-05 | I10: -0.0001872024 | J10: -2.6716e-05 | K10: -0.0010554472 | L10: 0 | M10: 0 | N10: -0.0005139424 | O10: -0.000205768 | P10: 0 | Q10: 0 | R10: -0.0026684456 | T10: 0
B11: 4073050 | C11: REVENUE | D11: A_4073050 | E11: REG DR Defd Environmental | F11: -42.058 | G11: 0 | H11: 0 | I11: -25.212 | J11: -187.043 | K11: -420.956 | L11: -522.381 | M11: -532.278 | N11: -567.13 | O11: -387.815 | P11: -163.498 | Q11: -98.284 | R11: -2946.655 | T11: 0
B12: 4073051 | D12: A_4073051 | E12: REG DR Defd Environmental - Amortization | F12: 0 | G12: 0 | H12: 0 | I12: 0 | J12: 0 | K12: 0 | L12: 0 | M12: 0 | N12: 0 | O12: 0 | P12: 0 | Q12: 0 | R12: 0 | T12: 0
B13: 4073090 | C13: REVENUE | D13: A_4073090 | E13: REG DR Defd SPPCRC | F13: 0 | G13: 0 | H13: 0 | I13: 0 | J13: 0 | K13: -596.869 | L13: -1064.155 | M13: -881.133 | N13: -992.225 | O13: 0 | P13: 0 | Q13: 0 | R13: -3534.382 | T13: 0
B14: 4073200 | C14: EXPENSES | D14: A_4073200 | E14: REG DR Deferred PBOP FAS106 | F14: 0 | G14: 0 | H14: 4.89288866 | I14: 0 | J14: 0 | K14: 4.89288866 | L14: 0 | M14: 0 | N14: 4.89288866 | O14: 0 | P14: 0 | Q14: 4.89288866 | R14: 19.57155464 | T14: 0
B15: 4073212 | C15: EXPENSES | D15: A_4073212 | E15: REG DR Tax Reform | F15: -460.2257231 | G15: -460.2257231 | H15: -460.2257231 | I15: -460.2257231 | J15: -460.2257231 | K15: -460.2257231 | L15: -460.2257231 | M15: -460.2257231 | N15: -460.2257231 | O15: -460.2257231 | P15: -460.2257231 | Q15: -460.2257231 | R15: -5522.708677 | T15: 0
B16: 4073213 | C16: REVENUE | D16: A_4073213 | E16: REG DR Defd (CETM) Clean Energy Trans Mechanism | F16: -129.839 | G16: -129.824 | H16: -129.812 | I16: -129.824 | J16: -129.855 | K16: -129.901 | L16: -129.92 | M16: -129.919 | N16: -129.924 | O16: -129.889 | P16: -129.84 | Q16: -129.819 | R16: -1558.366 | T16: 0
B17: 4074214 | C17: REVENUE | D17: A_4074214 | E17: REG CR Defd (CETM) Clean Energy Trans - Amortiz. | F17: 129.56 | G17: 129.56 | H17: 129.56 | I17: 129.56 | J17: 129.56 | K17: 129.56 | L17: 129.56 | M17: 129.56 | N17: 129.56 | O17: 129.56 | P17: 129.56 | Q17: 129.5553633 | R17: 1554.715363 | T17: 0
B18: 4074020 | C18: EXPENSES | D18: A_4074020 | E18: REG CR Defd Fuel and Purchased Power | F18: -4873.12979 | G18: -2035.281759 | H18: -3362.770723 | I18: -1778.974288 | J18: 0 | K18: 0 | L18: 0 | M18: 0 | N18: 0 | O18: 0 | P18: 0 | Q18: -7038.850051 | R18: -19089.00661 | T18: 0
B19: 4074030 | C19: EXPENSES | D19: A_4074030 | E19: REG CR Defd Capacity | F19: -1755.041878 | G19: -1570.435812 | H19: 0 | I19: -1171.481468 | J19: 0 | K19: 0 | L19: 0 | M19: 0 | N19: 0 | O19: 0 | P19: 0 | Q19: 0 | R19: -4496.959157 | T19: 0
B20: 4074031 | D20: A_4074031 | E20: REG CR Defd Capacity - Amortization | F20: 0 | G20: 0 | H20: 0 | I20: 0 | J20: 0 | K20: 0 | L20: 0 | M20: 0 | N20: 0 | O20: 0 | P20: 0 | Q20: 0 | R20: 0 | T20: 0
B21: 4074040 | C21: EXPENSES | D21: A_4074040 | E21: REG CR Defd Conservation - Elec | F21: 0 | G21: -0.0009097368 | H21: 0 | I21: 0 | J21: 0 | K21: 0 | L21: -0.0004822816 | M21: -0.0006855728 | N21: 0 | O21: 0 | P21: -0.0002551768 | Q21: -0.0003053272 | R21: -0.0026380952 | T21: 0
B22: 4074041 | C22: REVENUE | D22: A_4074041 | E22: REG CR Defd Conservation - Elec - Amortiz | F22: 84.492 | G22: 84.492 | H22: 84.492 | I22: 84.492 | J22: 84.492 | K22: 84.492 | L22: 84.492 | M22: 84.492 | N22: 84.492 | O22: 84.492 | P22: 84.492 | Q22: 84.493 | R22: 1013.905 | T22: 0
B23: 4074050 | C23: EXPENSES | D23: A_4074050 | E23: REG CR Defd Environmental | F23: 0 | G23: -22.267 | H23: -26.592 | I23: 0 | J23: 0 | K23: 0 | L23: 0 | M23: 0 | N23: 0 | O23: 0 | P23: 0 | Q23: 0 | R23: -48.859 | T23: 0
B24: 4074051 | C24: REVENUE | D24: A_4074051 | E24: REG CR Defd Environmental - Amortization | F24: 663.751 | G24: 663.751 | H24: 663.751 | I24: 663.751 | J24: 663.751 | K24: 663.751 | L24: 663.751 | M24: 663.751 | N24: 663.751 | O24: 663.751 | P24: 663.751 | Q24: 663.753 | R24: 7965.014 | T24: 0
B25: 4074090 | C25: EXPENSES | D25: A_4074090 | E25: REG CR Defd SPPCRC | F25: -701.808 | G25: -1405.652 | H25: -1908.027 | I25: -1701.177 | J25: -849.062 | K25: 0 | L25: 0 | M25: 0 | N25: 0 | O25: -381.117 | P25: -2072.175 | Q25: -2679.501 | R25: -11698.519 | T25: 0
B26: 4074091 | C26: REVENUE | D26: A_4074091 | E26: REG CR Defd SPPCRC - Amortization | F26: 140.701 | G26: 140.701 | H26: 140.701 | I26: 140.701 | J26: 140.701 | K26: 140.701 | L26: 140.701 | M26: 140.701 | N26: 140.701 | O26: 140.701 | P26: 140.701 | Q26: 140.703 | R26: 1688.414 | T26: 0
B27: 4074211 | C27: EXPENSES | D27: A_4074211 | E27: REG CR FERC Wholesale (AFUDC) - Amortization | F27: -0.198 | G27: -0.198 | H27: -0.198 | I27: -0.198 | J27: -0.198 | K27: -0.198 | L27: -0.198 | M27: -0.198 | N27: -0.198 | O27: -0.198 | P27: -0.198 | Q27: -0.198 | R27: -2.376 | T27: 0
B28: 4400010 | C28: REVENUE | D28: A_4400010 | E28: Residential Base Revenue | F28: 71587.23 | G28: 65234.419 | H28: 61476.65 | I28: 64799.481 | J28: 73528.378 | K28: 88199.8 | L28: 93817.366 | M28: 92601.01 | N28: 96103.58 | O28: 83382.128 | P28: 68929.709 | Q28: 66203.171 | R28: 925862.922 | T28: 0
B29: 4400020 | C29: REVENUE | D29: A_4400020 | E29: Residential Sales Fuel Adjustment Revenue | F29: 26257.164 | G29: 23562.772 | H29: 21762.286 | I29: 23233.103 | J29: 27777.692 | K29: 35157.449 | L29: 37986.456 | M29: 37632.497 | N29: 38941.957 | O29: 32740.202 | P29: 25479.36 | Q29: 23410.601 | R29: 353941.539 | T29: 0
B30: 4400030 | C30: REVENUE | D30: A_4400030 | E30: Residential Capacity Revenue | F30: 162.972 | G30: 148.111 | H30: 137.714 | I30: 145.53 | J30: 170.554 | K30: 210.805 | L30: 226.109 | M30: 224.514 | N30: 230.963 | O30: 198.288 | P30: 158.631 | Q30: 147.41 | R30: 2161.601 | T30: 0
B31: 4400040 | C31: REVENUE | D31: A_4400040 | E31: Residential Conservation Revenue | F31: 2803.168 | G31: 2547.692 | H31: 2368.973 | I31: 2503.303 | J31: 2933.445 | K31: 3625.371 | L31: 3888.461 | M31: 3861.034 | N31: 3971.918 | O31: 3410.215 | P31: 2728.53 | Q31: 2535.676 | R31: 37177.786 | T31: 0
B32: 4400050 | C32: REVENUE | D32: A_4400050 | E32: Residential Environmental Revenue | F32: 690.93 | G32: 627.915 | H32: 583.884 | I32: 617.004 | J32: 723.04 | K32: 893.645 | L32: 958.513 | M32: 951.763 | N32: 979.098 | O32: 840.603 | P32: 672.533 | Q32: 624.967 | R32: 9163.895 | T32: 0
B33: 4400060 | C33: REVENUE | D33: A_4400060 | E33: Residential Franchise Revenue | F33: 2278.15378 | G33: 2070.75919 | H33: 1935.29829 | I33: 2043.81311 | J33: 2365.29763 | K33: 2899.56189 | L33: 3100.25731 | M33: 3067.14605 | N33: 3176.99489 | O33: 2732.43219 | P33: 2211.54039 | Q33: 2084.13994 | R33: 29965.39466 | T33: 0
B34: 4400070 | C34: REVENUE | D34: A_4400070 | E34: Residential Gross Receipts Tax Revenue | F34: 2780.2789 | G34: 2518.59009 | H34: 2355.29448 | I34: 2493.8196 | J34: 2884.16853 | K34: 3530.03278 | L34: 3777.20049 | M34: 3733.75005 | N34: 3870.03209 | O34: 3319.50947 | P34: 2683.50964 | Q34: 2538.14256 | R34: 36484.32868 | T34: 0
B35: 4400090 | C35: REVENUE | D35: A_4400090 | E35: Residential Storm Revenue | F35: 5831.20062 | G35: 5301.75033 | H35: 4931.56306 | I35: 5209.54989 | J35: 6100.35241 | K35: 7533.83784 | L35: 8078.88191 | M35: 8022.1654 | N35: 8252.08587 | O35: 7088.23857 | P35: 5676.35337 | Q35: 5277.36962 | R35: 77303.34889 | T35: 0
B36: 4400091 | C36: REVENUE | D36: A_4400091 | E36: Residential CETM Revenue | F36: 3244.033 | G36: 2948.169 | H36: 2741.228 | I36: 2896.816 | J36: 3394.954 | K36: 4196.244 | L36: 4500.918 | M36: 4469.158 | N36: 4597.548 | O36: 3947.076 | P36: 3157.621 | Q36: 2934.225 | R36: 43027.99 | T36: 0
B37: 4420010 | D37: A_4420010 | E37: Commercial Small Base Revenue | F37: 0 | G37: 0 | H37: 0 | I37: 0 | J37: 0 | K37: 0 | L37: 0 | M37: 0 | N37: 0 | O37: 0 | P37: 0 | Q37: 0 | R37: 0 | T37: 0
B38: 4420020 | D38: A_4420020 | E38: Commercial Small Sales Fuel Adjustment Revenue | F38: 0 | G38: 0 | H38: 0 | I38: 0 | J38: 0 | K38: 0 | L38: 0 | M38: 0 | N38: 0 | O38: 0 | P38: 0 | Q38: 0 | R38: 0 | T38: 0
B39: 4420030 | D39: A_4420030 | E39: Commercial Small Capacity Revenue | F39: 0 | G39: 0 | H39: 0 | I39: 0 | J39: 0 | K39: 0 | L39: 0 | M39: 0 | N39: 0 | O39: 0 | P39: 0 | Q39: 0 | R39: 0 | T39: 0
B40: 4420040 | D40: A_4420040 | E40: Commercial Small Conservation Revenue | F40: 0 | G40: 0 | H40: 0 | I40: 0 | J40: 0 | K40: 0 | L40: 0 | M40: 0 | N40: 0 | O40: 0 | P40: 0 | Q40: 0 | R40: 0 | T40: 0
B41: 4420050 | D41: A_4420050 | E41: Commercial Small Environmental Revenue | F41: 0 | G41: 0 | H41: 0 | I41: 0 | J41: 0 | K41: 0 | L41: 0 | M41: 0 | N41: 0 | O41: 0 | P41: 0 | Q41: 0 | R41: 0 | T41: 0
B42: 4420060 | D42: A_4420060 | E42: Commercial Small Franchise Revenue | F42: 0 | G42: 0 | H42: 0 | I42: 0 | J42: 0 | K42: 0 | L42: 0 | M42: 0 | N42: 0 | O42: 0 | P42: 0 | Q42: 0 | R42: 0 | T42: 0
B43: 4420070 | D43: A_4420070 | E43: Commercial Small Gross Receipts Tax Revenue | F43: 0 | G43: 0 | H43: 0 | I43: 0 | J43: 0 | K43: 0 | L43: 0 | M43: 0 | N43: 0 | O43: 0 | P43: 0 | Q43: 0 | R43: 0 | T43: 0
B44: 4420090 | D44: A_4420090 | E44: Commercial Small Storm Revenue | F44: 0 | G44: 0 | H44: 0 | I44: 0 | J44: 0 | K44: 0 | L44: 0 | M44: 0 | N44: 0 | O44: 0 | P44: 0 | Q44: 0 | R44: 0 | T44: 0
B45: 4420091 | D45: A_4420091 | E45: Commercial Small CETM Revenue | F45: 0 | G45: 0 | H45: 0 | I45: 0 | J45: 0 | K45: 0 | L45: 0 | M45: 0 | N45: 0 | O45: 0 | P45: 0 | Q45: 0 | R45: 0 | T45: 0
B46: 4420110 | C46: REVENUE | D46: A_4420110 | E46: Commercial Large Base Revenue | F46: 28422.258 | G46: 27446.197 | H46: 27567.302 | I46: 28703.151 | J46: 29889.952 | K46: 31978.173 | L46: 32880.713 | M46: 32783.059 | N46: 32966.714 | O46: 31675.15 | P46: 29465.788 | Q46: 28430.009 | R46: 362208.466 | T46: 0
B47: 4420120 | C47: REVENUE | D47: A_4420120 | E47: Commercial Large Sales Fuel Adjustment | F47: 16590.292 | G47: 15261.015 | H47: 15551.083 | I47: 16560.778 | J47: 17675.219 | K47: 19683.654 | L47: 20570.092 | M47: 20613.033 | N47: 21150.146 | O47: 19337.887 | P47: 17628.345 | Q47: 16448.456 | R47: 217070 | T47: 0
B48: 4420130 | C48: REVENUE | D48: A_4420130 | E48: Commercial Large Capacity Revenue | F48: 81.169 | G48: 79.883 | H48: 80.055 | I48: 83.182 | J48: 86.867 | K48: 92.759 | L48: 95.394 | M48: 94.988 | N48: 94.155 | O48: 91.914 | P48: 84.794 | Q48: 81.502 | R48: 1046.662 | T48: 0
B49: 4420140 | C49: REVENUE | D49: A_4420140 | E49: Commercial Large Conservation Revenue | F49: 1370.8 | G49: 1346.63 | H49: 1350.198 | I49: 1403.266 | J49: 1465.938 | K49: 1567.275 | L49: 1612.025 | M49: 1605.462 | N49: 1593.506 | O49: 1552.529 | P49: 1432.637 | Q49: 1376.109 | R49: 17676.375 | T49: 0
B50: 4420150 | C50: REVENUE | D50: A_4420150 | E50: Commercial Large Environmental Revenue | F50: 390.449 | G50: 359.175 | H50: 365.998 | I50: 389.768 | J50: 415.99 | K50: 463.237 | L50: 484.093 | M50: 485.103 | N50: 497.732 | O50: 455.103 | P50: 414.875 | Q50: 387.099 | R50: 5108.622 | T50: 0
B51: 4420160 | C51: REVENUE | D51: A_4420160 | E51: Commercial Large Franchise Revenue | F51: 1558.40277 | G51: 1481.76751 | H51: 1495.43923 | I51: 1569.11404 | J51: 1648.68414 | K51: 1789.50548 | L51: 1851.11454 | M51: 1848.90137 | N51: 1871.38126 | O51: 1767.30822 | P51: 1630.92583 | Q51: 1554.58523 | R51: 20067.12962 | T51: 0
B52: 4420170 | C52: REVENUE | D52: A_4420170 | E52: Commercial Large Gross Receipts Tax Revenue | F52: 1271.63729 | G52: 1209.10629 | H52: 1220.26079 | I52: 1280.37803 | J52: 1345.30538 | K52: 1460.21155 | L52: 1510.4859 | M52: 1508.6805 | N52: 1527.02358 | O52: 1442.10197 | P52: 1330.8185 | Q52: 1268.52277 | R52: 16374.53255 | T52: 0
B53: 4420180 | D53: A_4420180 | E53: Commercial Large Optional Billing Provision | F53: 0 | G53: 0 | H53: 0 | I53: 0 | J53: 0 | K53: 0 | L53: 0 | M53: 0 | N53: 0 | O53: 0 | P53: 0 | Q53: 0 | R53: 0 | T53: 0
B54: 4420190 | C54: REVENUE | D54: A_4420190 | E54: Commercial Large Storm Revenue | F54: 1565.83046 | G54: 1517.71289 | H54: 1526.73373 | I54: 1588.01212 | J54: 1658.9896 | K54: 1780.85474 | L54: 1835.18297 | M54: 1831.87577 | N54: 1837.95952 | O54: 1762.68755 | P54: 1636.70497 | Q54: 1571.43951 | R54: 20113.98383 | T54: 0
B55: 4420191 | C55: REVENUE | D55: A_4420191 | E55: Commercial Large CETM Revenue | F55: 1443.547 | G55: 1415.014 | H55: 1419.28 | I55: 1477.063 | J55: 1544.429 | K55: 1652.773 | L55: 1701.921 | M55: 1695.487 | N55: 1684.172 | O55: 1637.162 | P55: 1509.224 | Q55: 1448.213 | R55: 18628.285 | T55: 0
B56: 4420210 | D56: A_4420210 | E56: Industrial-Phosphate Small Base Revenue | F56: 0 | G56: 0 | H56: 0 | I56: 0 | J56: 0 | K56: 0 | L56: 0 | M56: 0 | N56: 0 | O56: 0 | P56: 0 | Q56: 0 | R56: 0 | T56: 0
B57: 4420210 | D57: A_4420210 | E57: Industrial-Phosphate Small Sales Fuel Adjustment | F57: 0 | G57: 0 | H57: 0 | I57: 0 | J57: 0 | K57: 0 | L57: 0 | M57: 0 | N57: 0 | O57: 0 | P57: 0 | Q57: 0 | R57: 0 | T57: 0
B58: 4420230 | D58: A_4420230 | E58: Industrial-Phosphate Small Capacity Revenue | F58: 0 | G58: 0 | H58: 0 | I58: 0 | J58: 0 | K58: 0 | L58: 0 | M58: 0 | N58: 0 | O58: 0 | P58: 0 | Q58: 0 | R58: 0 | T58: 0
B59: 4420240 | D59: A_4420240 | E59: Industrial-Phosphate Small Conservation Revenue | F59: 0 | G59: 0 | H59: 0 | I59: 0 | J59: 0 | K59: 0 | L59: 0 | M59: 0 | N59: 0 | O59: 0 | P59: 0 | Q59: 0 | R59: 0 | T59: 0
B60: 4420250 | D60: A_4420250 | E60: Industrial-Phosphate Small Environmental Revenue | F60: 0 | G60: 0 | H60: 0 | I60: 0 | J60: 0 | K60: 0 | L60: 0 | M60: 0 | N60: 0 | O60: 0 | P60: 0 | Q60: 0 | R60: 0 | T60: 0
B61: 4420270 | D61: A_4420270 | E61: Industrial-Phosphate Small Gross Receipts Tax Rev | F61: 0 | G61: 0 | H61: 0 | I61: 0 | J61: 0 | K61: 0 | L61: 0 | M61: 0 | N61: 0 | O61: 0 | P61: 0 | Q61: 0 | R61: 0 | T61: 0
B62: 4420290 | D62: A_4420290 | E62: Industrial-Phosphate Small Storm Revenue | F62: 0 | G62: 0 | H62: 0 | I62: 0 | J62: 0 | K62: 0 | L62: 0 | M62: 0 | N62: 0 | O62: 0 | P62: 0 | Q62: 0 | R62: 0 | T62: 0
B63: 4420291 | D63: A_4420291 | E63: Industrial-Phosphate Small CETM Revenue | F63: 0 | G63: 0 | H63: 0 | I63: 0 | J63: 0 | K63: 0 | L63: 0 | M63: 0 | N63: 0 | O63: 0 | P63: 0 | Q63: 0 | R63: 0 | T63: 0
B64: 4420310 | C64: REVENUE | D64: A_4420310 | E64: Industrial-Phosphate Large Base Revenue | F64: 1732.134 | G64: 1755.917 | H64: 1804.689 | I64: 1763.324 | J64: 1709.703 | K64: 1658.898 | L64: 1764.953 | M64: 1752.17 | N64: 1684.512 | O64: 1740.848 | P64: 1775.338 | Q64: 1747.27 | R64: 20889.756 | T64: 0
B65: 4420320 | C65: REVENUE | D65: A_4420320 | E65: Industrial-Phosphate Large Sales Fuel Adjustment | F65: 1852.136 | G65: 1673.058 | H65: 1852.446 | I65: 1793.104 | J65: 1852.558 | K65: 1793.258 | L65: 1852.937 | M65: 1852.901 | N65: 1792.783 | O65: 1852.789 | P65: 1792.444 | Q65: 1852.456 | R65: 21812.87 | T65: 0
B66: 4420330 | C66: REVENUE | D66: A_4420330 | E66: Industrial-Phosphate Large Capacity Revenue | F66: 6.912 | G66: 7.249 | H66: 7.172 | I66: 7.14 | J66: 6.675 | K66: 6.738 | L66: 7.042 | M66: 6.908 | N66: 6.797 | O66: 6.83 | P66: 7.114 | Q66: 7.016 | R66: 83.593 | T66: 0
B67: 4420340 | C67: REVENUE | D67: A_4420340 | E67: Industrial-Phosphate Large Conservation Revenue | F67: 109.617 | G67: 114.962 | H67: 113.733 | I67: 113.229 | J67: 105.872 | K67: 106.861 | L67: 111.683 | M67: 109.562 | N67: 107.797 | O67: 108.321 | P67: 112.81 | Q67: 111.259 | R67: 1325.706 | T67: 0
B68: 4420350 | C68: REVENUE | D68: A_4420350 | E68: Industrial-Phosphate Large Environmental Revenue | F68: 40.868 | G68: 36.913 | H68: 40.868 | I68: 39.55 | J68: 40.868 | K68: 39.55 | L68: 40.868 | M68: 40.868 | N68: 39.55 | O68: 40.868 | P68: 39.55 | Q68: 40.868 | R68: 481.189 | T68: 0
B69: 4420370 | C69: REVENUE | D69: A_4420370 | E69: Industrial-Phosphate Large Gross Receipts Tax Rev | F69: 100.16678 | G69: 96.90416 | H69: 102.49485 | I69: 99.70974 | J69: 99.442 | K69: 95.84087 | L69: 101.01709 | M69: 100.69746 | N69: 97.0031 | O69: 100.37148 | P69: 100.34423 | Q69: 100.43583 | R69: 1194.42759 | T69: =IF(R69="","",+R69-SUM(F69:Q69)) -> 0
B70: 4420380 | D70: A_4420380 | E70: Industrial-Phosphate Large Optional Billing Provsn | F70: 0 | G70: 0 | H70: 0 | I70: 0 | J70: 0 | K70: 0 | L70: 0 | M70: 0 | N70: 0 | O70: 0 | P70: 0 | Q70: 0 | R70: 0 | T70: 0
B71: 4420390 | C71: REVENUE | D71: A_4420390 | E71: Industrial-Phosphate Large Storm Revenue | F71: 31.27525 | G71: 36.40331 | H71: 33.79373 | I71: 32.73329 | J71: 31.09648 | K71: 24.91459 | L71: 30.61567 | M71: 31.20021 | N71: 28.87228 | O71: 31.3077 | P71: 35.45013 | Q71: 29.80947 | R71: 377.47211 | T71: 0
B72: 4420391 | C72: REVENUE | D72: A_4420391 | E72: Industrial-Phosphate Large CETM Revenue | F72: 133.566 | G72: 154.763 | H72: 144.601 | I72: 139.604 | J72: 131.469 | K72: 107.578 | L72: 131.572 | M72: 133.596 | N72: 122.814 | O72: 133.528 | P72: 150.724 | Q72: 128.323 | R72: 1612.138 | T72: 0
B73: 4420410 | D73: A_4420410 | E73: Industrial-Other Small Base Revenue | F73: 0 | G73: 0 | H73: 0 | I73: 0 | J73: 0 | K73: 0 | L73: 0 | M73: 0 | N73: 0 | O73: 0 | P73: 0 | Q73: 0 | R73: 0 | T73: 0
B74: 4420420 | D74: A_4420420 | E74: Industrial-Other Small Sales Fuel Adjustment Rev | F74: 0 | G74: 0 | H74: 0 | I74: 0 | J74: 0 | K74: 0 | L74: 0 | M74: 0 | N74: 0 | O74: 0 | P74: 0 | Q74: 0 | R74: 0 | T74: 0
B75: 4420430 | D75: A_4420430 | E75: Industrial-Other Small Capacity Revenue | F75: 0 | G75: 0 | H75: 0 | I75: 0 | J75: 0 | K75: 0 | L75: 0 | M75: 0 | N75: 0 | O75: 0 | P75: 0 | Q75: 0 | R75: 0 | T75: 0
B76: 4420440 | D76: A_4420440 | E76: Industrial-Other Small Conservation Revenue | F76: 0 | G76: 0 | H76: 0 | I76: 0 | J76: 0 | K76: 0 | L76: 0 | M76: 0 | N76: 0 | O76: 0 | P76: 0 | Q76: 0 | R76: 0 | T76: 0
B77: 4420450 | D77: A_4420450 | E77: Industrial-Other Small Environmental Revenue | F77: 0 | G77: 0 | H77: 0 | I77: 0 | J77: 0 | K77: 0 | L77: 0 | M77: 0 | N77: 0 | O77: 0 | P77: 0 | Q77: 0 | R77: 0 | T77: 0
B78: 4420460 | D78: A_4420460 | E78: Industrial-Other Small Franchise Revenue | F78: 0 | G78: 0 | H78: 0 | I78: 0 | J78: 0 | K78: 0 | L78: 0 | M78: 0 | N78: 0 | O78: 0 | P78: 0 | Q78: 0 | R78: 0 | T78: 0
B79: 4420470 | D79: A_4420470 | E79: Industrial-Other Small Gross Receipts Tax Rev | F79: 0 | G79: 0 | H79: 0 | I79: 0 | J79: 0 | K79: 0 | L79: 0 | M79: 0 | N79: 0 | O79: 0 | P79: 0 | Q79: 0 | R79: 0 | T79: 0
B80: 4420490 | D80: A_4420490 | E80: Industrial-Other Small Storm Revenue | F80: 0 | G80: 0 | H80: 0 | I80: 0 | J80: 0 | K80: 0 | L80: 0 | M80: 0 | N80: 0 | O80: 0 | P80: 0 | Q80: 0 | R80: 0 | T80: 0
B81: 4420491 | D81: A_4420491 | E81: Industrial-Other Small CETM Revenue | F81: 0 | G81: 0 | H81: 0 | I81: 0 | J81: 0 | K81: 0 | L81: 0 | M81: 0 | N81: 0 | O81: 0 | P81: 0 | Q81: 0 | R81: 0 | T81: 0
B82: 4420510 | C82: REVENUE | D82: A_4420510 | E82: Industrial-Other Large Base Revenue | F82: 3769.577 | G82: 3762.172 | H82: 3864.574 | I82: 4080.293 | J82: 4195.675 | K82: 4179.724 | L82: 4207.103 | M82: 4182.398 | N82: 4113.012 | O82: 4100.125 | P82: 3879.692 | Q82: 3833.047 | R82: 48167.392 | T82: 0
B83: 4420520 | C83: REVENUE | D83: A_4420520 | E83: Industrial-Other Large Sales Fuel Adjustment | F83: 3209.634 | G83: 3081.82 | H83: 3243.162 | I83: 3431.023 | J83: 3519.126 | K83: 3532.399 | L83: 3581.423 | M83: 3534.912 | N83: 3554.777 | O83: 3402.763 | P83: 3243.09 | Q83: 3240.551 | R83: 40574.68 | T83: 0
B84: 4420530 | C84: REVENUE | D84: A_4420530 | E84: Industrial-Other Large Capacity Revenue | F84: 13.68 | G84: 13.948 | H84: 14.234 | I84: 14.421 | J84: 15.257 | K84: 15.314 | L84: 15.504 | M84: 15.586 | N84: 15.084 | O84: 15.266 | P84: 14.43 | Q84: 14.134 | R84: 176.858 | T84: 0
B85: 4420540 | C85: REVENUE | D85: A_4420540 | E85: Industrial-Other Large Conservation Revenue | F85: 226.658 | G85: 231.161 | H85: 235.898 | I85: 239.064 | J85: 252.93 | K85: 253.701 | L85: 256.699 | M85: 258.004 | N85: 249.927 | O85: 252.755 | P85: 239.05 | Q85: 234.3 | R85: 2930.147 | T85: 0
B86: 4420550 | C86: REVENUE | D86: A_4420550 | E86: Industrial-Other Large Environmental Revenue | F86: 73.493 | G86: 70.681 | H86: 74.19 | I86: 78.554 | J86: 80.612 | K86: 81.09 | L86: 82.213 | M86: 81.143 | N86: 81.713 | O86: 78.062 | P86: 74.467 | Q86: 74.264 | R86: 930.482 | T86: 0
B87: 4420560 | C87: REVENUE | D87: A_4420560 | E87: Industrial-Other Large Franchise Revenue | F87: 321.09291 | G87: 315.65031 | H87: 327.26836 | I87: 345.03121 | J87: 355.49283 | K87: 355.55129 | L87: 359.12522 | M87: 356.1938 | N87: 353.33696 | O87: 346.37784 | P87: 328.77386 | Q87: 326.05722 | R87: 4089.95181 | T87: 0
B88: 4420570 | C88: REVENUE | D88: A_4420570 | E88: Industrial-Other Large Gross Receipts Tax Revenue | F88: 195.42574 | G88: 192.01515 | H88: 199.09133 | I88: 209.95948 | J88: 216.56552 | K88: 216.49273 | L88: 218.64365 | M88: 216.85961 | N88: 215.1251 | O88: 210.89049 | P88: 200.28729 | Q88: 198.56761 | R88: 2489.9237 | T88: 0
B89: 4420580 | D89: A_4420580 | E89: Industrial-Other Large Optional Billing Provision | F89: 0 | G89: 0 | H89: 0 | I89: 0 | J89: 0 | K89: 0 | L89: 0 | M89: 0 | N89: 0 | O89: 0 | P89: 0 | Q89: 0 | R89: 0 | T89: 0
B90: 4420590 | C90: REVENUE | D90: A_4420590 | E90: Industrial-Other Large Storm Revenue | F90: 166.77327 | G90: 166.94344 | H90: 167.81713 | I90: 173.50285 | J90: 188.86446 | K90: 188.87248 | L90: 190.19962 | M90: 190.63574 | N90: 187.13285 | O90: 186.36339 | P90: 179.9456 | Q90: 174.68104 | R90: 2161.73187 | T90: 0
B91: 4420591 | C91: REVENUE | D91: A_4420591 | E91: Industrial-Other Large CETM Revenue | F91: 224.543 | G91: 224.62 | H91: 227.441 | I91: 234.316 | J91: 256.346 | K91: 254.871 | L91: 256.718 | M91: 257.601 | N91: 250.988 | O91: 252.151 | P91: 243.284 | Q91: 235.915 | R91: 2918.794 | T91: 0
B92: 4440010 | D92: A_4440010 | E92: Public Street HW Lighting Base Revenue | F92: 0 | G92: 0 | H92: 0 | I92: 0 | J92: 0 | K92: 0 | L92: 0 | M92: 0 | N92: 0 | O92: 0 | P92: 0 | Q92: 0 | R92: 0 | T92: 0
B93: 4440020 | D93: A_4440020 | E93: Public Street HW Lighting Sales Fuel Adjustment | F93: 0 | G93: 0 | H93: 0 | I93: 0 | J93: 0 | K93: 0 | L93: 0 | M93: 0 | N93: 0 | O93: 0 | P93: 0 | Q93: 0 | R93: 0 | T93: 0
B94: 4440030 | D94: A_4440030 | E94: Public Street HW Lighting Capacity Revenue | F94: 0 | G94: 0 | H94: 0 | I94: 0 | J94: 0 | K94: 0 | L94: 0 | M94: 0 | N94: 0 | O94: 0 | P94: 0 | Q94: 0 | R94: 0 | T94: 0
B95: 4440040 | D95: A_4440040 | E95: Public Street HW Lighting Conservation Revenue | F95: 0 | G95: 0 | H95: 0 | I95: 0 | J95: 0 | K95: 0 | L95: 0 | M95: 0 | N95: 0 | O95: 0 | P95: 0 | Q95: 0 | R95: 0 | T95: 0
B96: 4440050 | D96: A_4440050 | E96: Public Street HW Lighting Environmental Revenue | F96: 0 | G96: 0 | H96: 0 | I96: 0 | J96: 0 | K96: 0 | L96: 0 | M96: 0 | N96: 0 | O96: 0 | P96: 0 | Q96: 0 | R96: 0 | T96: 0
B97: 4440060 | D97: A_4440060 | E97: Public Street HW Lighting Franchise Revenue | F97: 0 | G97: 0 | H97: 0 | I97: 0 | J97: 0 | K97: 0 | L97: 0 | M97: 0 | N97: 0 | O97: 0 | P97: 0 | Q97: 0 | R97: 0 | T97: 0
B98: 4440070 | D98: A_4440070 | E98: Public Street HW Lighting Gross Receipts Tax Rev | F98: 0 | G98: 0 | H98: 0 | I98: 0 | J98: 0 | K98: 0 | L98: 0 | M98: 0 | N98: 0 | O98: 0 | P98: 0 | Q98: 0 | R98: 0 | T98: 0
B99: 4440090 | D99: A_4440090 | E99: Public Street HW Lighting Storm Revenue | F99: 0 | G99: 0 | H99: 0 | I99: 0 | J99: 0 | K99: 0 | L99: 0 | M99: 0 | N99: 0 | O99: 0 | P99: 0 | Q99: 0 | R99: 0 | T99: 0
B100: 4440091 | D100: A_4440091 | E100: Public Street HW Lighting CETM Revenue | F100: 0 | G100: 0 | H100: 0 | I100: 0 | J100: 0 | K100: 0 | L100: 0 | M100: 0 | N100: 0 | O100: 0 | P100: 0 | Q100: 0 | R100: 0 | T100: 0
B101: 4450010 | C101: REVENUE | D101: A_4450010 | E101: Oth Sales Public Authority Base Revenue | F101: 9780.457 | G101: 9847.378 | H101: 9788.372 | I101: 9954.964 | J101: 10264.794 | K101: 10710.913 | L101: 10667.334 | M101: 10783.096 | N101: 10958.952 | O101: 10810.181 | P101: 10123.754 | Q101: 9906.765 | R101: 123596.96 | T101: 0
B102: 4450020 | C102: REVENUE | D102: A_4450020 | E102: Oth Sales Public Authority Sales Fuel Adjustment | F102: 5144.269 | G102: 5027.975 | H102: 5111.195 | I102: 5311.885 | J102: 5660.683 | K102: 6104.851 | L102: 6309.069 | M102: 6321.5 | N102: 6364.732 | O102: 6071.993 | P102: 5531.784 | Q102: 5209.352 | R102: 68169.288 | T102: 0
B103: 4450030 | C103: REVENUE | D103: A_4450030 | E103: Oth Sales Public Authority Capacity Revenue | F103: 23.588 | G103: 23.998 | H103: 23.636 | I103: 24.148 | J103: 25.291 | K103: 26.767 | L103: 26.124 | M103: 26.621 | N103: 27.128 | O103: 26.961 | P103: 24.719 | Q103: 24.187 | R103: 303.168 | T103: 0
B104: 4450040 | C104: REVENUE | D104: A_4450040 | E104: Oth Sales Public Authority Conservation Revenue | F104: 406.985 | G104: 413.86 | H104: 407.916 | I104: 416.337 | J104: 435.458 | K104: 460.589 | L104: 450.247 | M104: 458.196 | N104: 466.526 | O104: 463.533 | P104: 426.479 | Q104: 417.399 | R104: 5223.525 | T104: 0
B105: 4450050 | C105: REVENUE | D105: A_4450050 | E105: Oth Sales Public Authority Environmental Revenue | F105: 115.839 | G105: 113.138 | H105: 115.028 | I105: 119.671 | J105: 127.76 | K105: 138.081 | L105: 142.824 | M105: 143.104 | N105: 144.115 | O105: 137.311 | P105: 124.766 | Q105: 117.305 | R105: 1538.942 | T105: 0
B106: 4450060 | C106: REVENUE | D106: A_4450060 | E106: Oth Sales Public Authority Franchise Revenue | F106: 442.04612 | G106: 441.02871 | H106: 441.24881 | I106: 451.9887 | J106: 471.54641 | K106: 497.98102 | L106: 501.74516 | M106: 505.82625 | N106: 512.56061 | O106: 500.00643 | P106: 463.47772 | Q106: 448.10702 | R106: 5677.56296 | T106: 0
B107: 4450070 | C107: REVENUE | D107: A_4450070 | E107: Oth Sales Public Authority Gross Receipts Tax Rev | F107: 248.79868 | G107: 247.54452 | H107: 247.47038 | I107: 257.32491 | J107: 275.50412 | K107: 300.16801 | L107: 303.43711 | M107: 307.00506 | N107: 313.07097 | O107: 300.93667 | P107: 266.1656 | Q107: 251.37432 | R107: 3318.80035 | T107: 0
B108: 4450080 | D108: A_4450080 | E108: Oth Sales Public Authority Optional Billing Provsn | F108: 0 | G108: 0 | H108: 0 | I108: 0 | J108: 0 | K108: 0 | L108: 0 | M108: 0 | N108: 0 | O108: 0 | P108: 0 | Q108: 0 | R108: 0 | T108: 0
B109: 4450090 | C109: REVENUE | D109: A_4450090 | E109: Oth Sales Public Authority Storm Revenue | F109: 502.53737 | G109: 504.0432 | H109: 498.53015 | I109: 504.13048 | J109: 517.9621 | K109: 539.01059 | L109: 533.41303 | M109: 538.58885 | N109: 548.36447 | O109: 541.58829 | P109: 513.43521 | Q109: 512.29436 | R109: 6253.8981 | T109: 0
B110: 4450091 | C110: REVENUE | D110: A_4450091 | E110: Oth Sales Public Authority CETM Revenue | F110: 394.192 | G110: 399.593 | H110: 393.479 | I110: 402.431 | J110: 421.719 | K110: 446.486 | L110: 436.352 | M110: 444.603 | N110: 453.689 | O110: 449.957 | P110: 411.527 | Q110: 403.348 | R110: 5057.376 | T110: 0
B111: 4470010 | C111: REVENUE | D111: A_4470010 | E111: Recoverable Retail Non-Separated Sales for Resale | F111: 200.979 | G111: 213.7958 | H111: 182.8194 | I111: 131.641 | J111: 155.7576 | K111: 126.387 | L111: 139.9512 | M111: 144.4726 | N111: 183.6852 | O111: 151.0512 | P111: 190.323 | Q111: 161.242 | R111: 1982.105 | T111: 0
B112: 4470011 | D112: A_4470011 | E112: Non-Recoverable Retail Non-Separated Sales Resale | F112: 0 | G112: 0 | H112: 0 | I112: 0 | J112: 0 | K112: 0 | L112: 0 | M112: 0 | N112: 0 | O112: 0 | P112: 0 | Q112: 0 | R112: 0 | T112: 0
B113: 4470012 | C113: REVENUE | D113: A_4470012 | E113: Recoverable Retail Non-Separated Sales for Resale-Margin | F113: 4.682 | G113: 5.056 | H113: 4.153 | I113: 2.662 | J113: 3.365 | K113: 2.509 | L113: 2.904 | M113: 3.036 | N113: 4.178 | O113: 3.228 | P113: 4.372 | Q113: 3.525 | R113: 43.67 | T113: 0
B114: 4510100 | D114: A_4510100 | E114: Misc Svc Rev - Connection - Same Day Service | F114: 0 | G114: 0 | H114: 0 | I114: 0 | J114: 0 | K114: 0 | L114: 0 | M114: 0 | N114: 0 | O114: 0 | P114: 0 | Q114: 0 | R114: 0 | T114: 0
B115: 4510101 | D115: A_4510101 | E115: Misc Svc Rev - Connection - Saturday | F115: 0 | G115: 0 | H115: 0 | I115: 0 | J115: 0 | K115: 0 | L115: 0 | M115: 0 | N115: 0 | O115: 0 | P115: 0 | Q115: 0 | R115: 0 | T115: 0
B116: 4510102 | C116: REVENUE | D116: A_4510102 | E116: Misc Svc Rev - Reconnect - at Pole | F116: 0.5833333333 | G116: 0.5833333333 | H116: 0.5833333333 | I116: 0.5833333333 | J116: 0.5833333333 | K116: 0.5833333333 | L116: 0.5833333333 | M116: 0.5833333333 | N116: 0.5833333333 | O116: 0.5833333333 | P116: 0.5833333333 | Q116: 0.5833333333 | R116: 7 | T116: 0
B117: 4510103 | C117: REVENUE | D117: A_4510103 | E117: Misc Svc Rev - Reconnect - Subsequent Subscriber | F117: 244.1666667 | G117: 244.1666667 | H117: 244.1666667 | I117: 244.1666667 | J117: 244.1666667 | K117: 244.1666667 | L117: 244.1666667 | M117: 244.1666667 | N117: 244.1666667 | O117: 244.1666667 | P117: 244.1666667 | Q117: 244.1666667 | R117: 2930 | T117: 0
B118: 4510104 | C118: REVENUE | D118: A_4510104 | E118: Misc Svc Rev - Reconnect - at Meter | F118: 202.5833333 | G118: 202.5833333 | H118: 202.5833333 | I118: 202.5833333 | J118: 202.5833333 | K118: 202.5833333 | L118: 202.5833333 | M118: 202.5833333 | N118: 202.5833333 | O118: 202.5833333 | P118: 202.5833333 | Q118: 202.5833333 | R118: 2431 | T118: 0
B119: 4510107 | C119: REVENUE | D119: A_4510107 | E119: Misc Svc Rev - Late Payment Fee | F119: 910.24483 | G119: 910.24483 | H119: 910.24483 | I119: 910.24483 | J119: 910.24483 | K119: 910.24483 | L119: 910.24483 | M119: 910.24483 | N119: 910.24483 | O119: 910.24483 | P119: 910.24483 | Q119: 910.24483 | R119: 10922.93796 | T119: 0
B120: 4510108 | C120: REVENUE | D120: A_4510108 | E120: Misc Svc Rev - Initial Turn On | F120: 253.9166667 | G120: 253.9166667 | H120: 253.9166667 | I120: 253.9166667 | J120: 253.9166667 | K120: 253.9166667 | L120: 253.9166667 | M120: 253.9166667 | N120: 253.9166667 | O120: 253.9166667 | P120: 253.9166667 | Q120: 253.9166667 | R120: 3047 | T120: 0
B121: 4510109 | C121: REVENUE | D121: A_4510109 | E121: Misc Svc Rev - Temp. Svcs | F121: 37.58333333 | G121: 37.58333333 | H121: 37.58333333 | I121: 37.58333333 | J121: 37.58333333 | K121: 37.58333333 | L121: 37.58333333 | M121: 37.58333333 | N121: 37.58333333 | O121: 37.58333333 | P121: 37.58333333 | Q121: 37.58333333 | R121: 451 | T121: 0
B122: 4510110 | C122: REVENUE | D122: A_4510110 | E122: Misc Svc Rev - Tampering | F122: 1.5 | G122: 1.5 | H122: 1.5 | I122: 1.5 | J122: 1.5 | K122: 1.5 | L122: 1.5 | M122: 1.5 | N122: 1.5 | O122: 1.5 | P122: 1.5 | Q122: 1.5 | R122: 18 | T122: 0
B123: 4510111 | C123: REVENUE | D123: A_4510111 | E123: Misc Svc Rev - Returned Check | F123: 123.358 | G123: 123.358 | H123: 123.358 | I123: 123.358 | J123: 123.358 | K123: 123.358 | L123: 123.358 | M123: 123.358 | N123: 123.358 | O123: 123.358 | P123: 123.358 | Q123: 123.358 | R123: 1480.296 | T123: 0
B124: 4510112 | C124: REVENUE | D124: A_4510112 | E124: Misc Svc Rev - Field Credit Check | F124: 4.5 | G124: 4.5 | H124: 4.5 | I124: 4.5 | J124: 4.5 | K124: 4.5 | L124: 4.5 | M124: 4.5 | N124: 4.5 | O124: 4.5 | P124: 4.5 | Q124: 4.5 | R124: 54 | T124: 0
B125: 4510113 | D125: A_4510113 | E125: Misc Svc Rev - Billing Adjustments | F125: 0 | G125: 0 | H125: 0 | I125: 0 | J125: 0 | K125: 0 | L125: 0 | M125: 0 | N125: 0 | O125: 0 | P125: 0 | Q125: 0 | R125: 0 | T125: 0
B126: 4510800 | C126: REVENUE | D126: A_4510800 | E126: Miscellaneous Service Revenues - Other | F126: 8.50851475 | G126: 7.31631675 | H126: 8.84785125 | I126: 8.6228535 | J126: 8.79592475 | K126: 8.002134 | L126: 8.788719 | M126: 8.791425 | N126: 8.8806 | O126: 8.96875 | P126: 9.057925 | Q126: 9.14915 | R126: 103.730164 | T126: 0
B127: 4540010 | C127: REVENUE | D127: A_4540010 | E127: Rental Revenue - Commercial Property | F127: 27.939 | G127: 440.242 | H127: 20.417 | I127: 33.945 | J127: 0.248 | K127: 3.636 | L127: 8.456 | M127: 85.863 | N127: 19.148 | O127: 32.749 | P127: 24.511 | Q127: 31.119 | R127: 728.273 | T127: 0
B128: 4540020 | C128: REVENUE | D128: A_4540020 | E128: Rental Revenue - Agricultural Property | F128: 4.021 | G128: 0.369 | H128: 0.377 | I128: 6.685 | J128: 2.178 | K128: 0 | L128: 0 | M128: 4.624 | N128: 2.235 | O128: 6.324 | P128: 0.543 | Q128: 0.102 | R128: 27.458 | T128: 0
B129: 4540030 | C129: REVENUE | D129: A_4540030 | E129: Rental Revenue - Electric Equipment | F129: 9.91383 | G129: 9.91383 | H129: 9.91383 | I129: 9.91383 | J129: 9.91383 | K129: 9.91383 | L129: 9.91383 | M129: 9.91383 | N129: 9.91383 | O129: 9.91383 | P129: 9.91383 | Q129: 9.91383 | R129: 118.96596 | T129: 0
B130: 4540040 | C130: REVENUE | D130: A_4540040 | E130: Rental Revenue - Big Bend Station | F130: 26.01733333 | G130: 26.01733333 | H130: 26.01733333 | I130: 26.01733333 | J130: 26.01733333 | K130: 26.01733333 | L130: 26.01733333 | M130: 26.01733333 | N130: 26.01733333 | O130: 26.01733333 | P130: 26.01733333 | Q130: 26.01733333 | R130: =+SUM(F130:Q130) -> 312.208 | T130: 0
B131: 4540081 | C131: REVENUE | D131: A_4540081 | E131: Rental Revenue - Pole Attachments - Distribution | F131: 398.3771663 | G131: 398.3771765 | H131: 402.926311 | I131: 402.926311 | J131: 402.9263007 | K131: 402.926311 | L131: 402.912494 | M131: 402.992075 | N131: 402.992075 | O131: 402.992075 | P131: 402.992075 | Q131: 402.992075 | R131: 4826.332446 | T131: 0
B132: 4540700 | C132: REVENUE | D132: A_4540700 | E132: Rental Revenue - Intercompany | F132: 57.73913917 | G132: 57.73913917 | H132: 57.73913917 | I132: 57.73913917 | J132: 57.73913917 | K132: 57.73913917 | L132: 57.73913917 | M132: 57.73913917 | N132: 57.73913917 | O132: 57.73913917 | P132: 57.73913917 | Q132: 57.73913917 | R132: 692.86967 | T132: 0
B133: 4540701 | C133: REVENUE | D133: A_4540701 | E133: Rental Revenue - Intercompany - Asset Usage Fee | F133: 475.3262839 | G133: 471.8163694 | H133: 471.1886702 | I133: 470.7216286 | J133: 470.8265 | K133: 471.5385635 | L133: 470.4319358 | M133: 467.4074424 | N133: 466.8153574 | O133: 467.9260687 | P133: 466.7826034 | Q133: 470.5694811 | R133: 5641.350904 | T133: =IF(R133="","",+R133-SUM(F133:Q133)) -> 0
B134: 4540800 | C134: REVENUE | D134: A_4540800 | E134: Rental Revenue - MetroLink | F134: 226.8333333 | G134: 226.8333333 | H134: 226.8333333 | I134: 226.8333333 | J134: 226.8333333 | K134: 226.8333333 | L134: 226.8333333 | M134: 226.8333333 | N134: 226.8333333 | O134: 226.8333333 | P134: 226.8333333 | Q134: 226.8333333 | R134: 2722 | T134: 0
B135: 4550000 | D135: A_4550000 | E135: Interdepartmental Rents | F135: 0 | G135: 0 | H135: 0 | I135: 0 | J135: 0 | K135: 0 | L135: 0 | M135: 0 | N135: 0 | O135: 0 | P135: 0 | Q135: 0 | R135: 0 | T135: 0
B136: 4550001 | D136: A_4550001 | E136: Interdepartmental Rents - Asset Usage Fee | F136: 0 | G136: 0 | H136: 0 | I136: 0 | J136: 0 | K136: 0 | L136: 0 | M136: 0 | N136: 0 | O136: 0 | P136: 0 | Q136: 0 | R136: 0 | T136: 0
B137: 4560020 | C137: REVENUE | D137: A_4560020 | E137: Other Revenue - At-Cost Job Orders | F137: 167 | G137: 267 | H137: 167 | I137: 266 | J137: 167 | K137: 267 | L137: 166 | M137: 267 | N137: 166 | O137: 267 | P137: 167 | Q137: 266 | R137: 2600 | T137: 0
B138: 4560030 | C138: REVENUE | D138: A_4560030 | E138: Other Revenue - Sales Tax | F138: 8 | G138: 8 | H138: 8 | I138: 8 | J138: 8 | K138: 9 | L138: 10 | M138: 11 | N138: 11 | O138: 10 | P138: 8 | Q138: 8 | R138: 107 | T138: 0
B139: 4560080 | C139: REVENUE | D139: A_4560080 | E139: Other Revenue - Cogen Maintenance - Transmission | F139: 10.1 | G139: 10.1 | H139: 10.1 | I139: 10.1 | J139: 10.1 | K139: 10.1 | L139: 10.1 | M139: 10.1 | N139: 10.1 | O139: 10.1 | P139: 10.1 | Q139: 10.1 | R139: 121.2 | T139: 0
B140: 4560110 | D140: A_4560110 | E140: Other Revenue - Metro Link Job Orders | F140: 0 | G140: 0 | H140: 0 | I140: 0 | J140: 0 | K140: 0 | L140: 0 | M140: 0 | N140: 0 | O140: 0 | P140: 0 | Q140: 0 | R140: 0 | T140: 0
B141: 4560120 | C141: REVENUE | D141: A_4560120 | E141: Other Revenue - Green Power Program | F141: 1.766073847 | G141: 1.473639241 | H141: 1.467529095 | I141: 76.54292558 | J141: 1.727058083 | K141: 1.404995063 | L141: 11.61048811 | M141: 6.53666704 | N141: 76.49602461 | O141: 1.703274755 | P141: 1.482316429 | Q141: 1.559534254 | R141: 183.7705261 | T141: 0
B142: 4560180 | D142: A_4560180 | E142: Other Revenue - Asset Optimization | F142: 0 | G142: 0 | H142: 0 | I142: 0 | J142: 0 | K142: 0 | L142: 0 | M142: 0 | N142: 0 | O142: 0 | P142: 0 | Q142: 0 | R142: 0 | T142: 0
B143: 4560190 | C143: REVENUE | D143: A_4560190 | E143: Other Revenue - Lighting Smart Service-Regulated | F143: 8.33334 | G143: 8.33334 | H143: 8.33334 | I143: 8.33334 | J143: 8.33333 | K143: 8.33333 | L143: 8.33333 | M143: 8.33333 | N143: 8.33333 | O143: 8.33333 | P143: 8.33333 | Q143: 8.33333 | R143: 100 | T143: 0
B144: 4560200 | C144: REVENUE | D144: A_4560200 | E144: OATT Pt to Pt Revenue | F144: 697.9965577 | G144: 697.9965577 | H144: =97.9965576923+86 -> 183.9965577 | I144: 697.9965577 | J144: 697.9965577 | K144: 662.42925 | L144: 662.42925 | M144: 662.42925 | N144: 662.42925 | O144: 697.9965577 | P144: 697.9965577 | Q144: 697.9965577 | R144: =+SUM(F144:Q144) -> 7719.689462 | T144: 0
B145: 4560210 | C145: REVENUE | D145: A_4560210 | E145: OATT Ancillary Scheduling Revenue | F145: 17.64839011 | G145: 17.64839011 | H145: 17.64839011 | I145: 17.64839011 | J145: 17.64839011 | K145: 17.0385 | L145: 17.0385 | M145: 17.0385 | N145: 17.0385 | O145: 17.64839011 | P145: 17.64839011 | Q145: 17.64839011 | R145: 209.3411209 | T145: 0
B146: 4560401 | D146: A_4560401 | E146: Pt to Pt Transmission Non Separated Sale-Retail | F146: 0 | G146: 0 | H146: 0 | I146: 0 | J146: 0 | K146: 0 | L146: 0 | M146: 0 | N146: 0 | O146: 0 | P146: 0 | Q146: 0 | R146: 0 | T146: 0
B147: 4560411 | D147: A_4560411 | E147: Ancillary Transmission Non Separated-Retail | F147: 0 | G147: 0 | H147: 0 | I147: 0 | J147: 0 | K147: 0 | L147: 0 | M147: 0 | N147: 0 | O147: 0 | P147: 0 | Q147: 0 | R147: 0 | T147: 0
B148: 4560501 | D148: A_4560501 | E148: Unused Pt to Pt Transm Non Separated-Retail | F148: 0 | G148: 0 | H148: 0 | I148: 0 | J148: 0 | K148: 0 | L148: 0 | M148: 0 | N148: 0 | O148: 0 | P148: 0 | Q148: 0 | R148: 0 | T148: 0
B149: 4560511 | D149: A_4560511 | E149: Unused Ancillary Transm Non Separated-Retail | F149: 0 | G149: 0 | H149: 0 | I149: 0 | J149: 0 | K149: 0 | L149: 0 | M149: 0 | N149: 0 | O149: 0 | P149: 0 | Q149: 0 | R149: 0 | T149: 0
B150: 4560660 | C150: REVENUE | D150: A_4560660 | E150: Other Revenue - Gypsum Excluding ECRC | F150: 38.542507 | G150: 28.976335 | H150: 30.265414 | I150: 25 | J150: 33.326857 | K150: 30.571654 | L150: 26.630728 | M150: 30.545815 | N150: 28.843312 | O150: 33.238813 | P150: 60.5047 | Q150: 120.427255 | R150: 486.87339 | T150: 0
B151: 4560800 | C151: REVENUE | D151: A_4560800 | E151: Other Revenue - Miscellaneous | F151: 0.5 | G151: 0 | H151: 1.25 | I151: 0.5 | J151: 0 | K151: 0 | L151: 1 | M151: 0.75 | N151: 0.75 | O151: 0.75 | P151: 0.75 | Q151: 0.75 | R151: 7 | T151: 0
B152: 4560900 | C152: REVENUE | D152: A_4560900 | E152: Unbilled Revenue | F152: -2324.642 | G152: -5082.478 | H152: 4704.013 | I152: 4425.332 | J152: 10321.116 | K152: 3589.459 | L152: 2466.406 | M152: 4637.721 | N152: -9078.556 | O152: -4989.568 | P152: -9193.215 | Q152: 454.312 | R152: -70.1 | T152: 0
B153: 6010110 | C153: EXPENSES | D153: A_6010110 | E153: Labor Exempt - Straight Time | F153: 0 | G153: 0 | H153: 0 | I153: 0 | J153: 0 | K153: 0 | L153: 0 | M153: 0 | N153: 0 | O153: 0 | P153: 0 | Q153: 0 | R153: 0 | T153: 0
B154: 6010120 | C154: EXPENSES | D154: A_6010120 | E154: Labor Exempt - Overtime | F154: 0 | G154: 0 | H154: 0 | I154: 0 | J154: 0 | K154: 0 | L154: 0 | M154: 0 | N154: 0 | O154: 0 | P154: 0 | Q154: 0 | R154: 0 | T154: 0
B155: 6010130 | C155: EXPENSES | D155: A_6010130 | E155: Labor Exempt - Non-Productive Time | F155: -47.61461143 | G155: -43.4742128 | H155: -43.4742128 | I155: -45.54441211 | J155: -47.61461143 | K155: -41.40400896 | L155: -47.61461143 | M155: -45.54441211 | N155: -43.4742128 | O155: -47.61461143 | P155: -43.4742128 | Q155: -45.54441211 | R155: -542.3925422 | T155: 0
B156: 6010210 | C156: EXPENSES | D156: A_6010210 | E156: Labor Non Exempt - Straight Time | F156: 0 | G156: 0 | H156: 0 | I156: 0 | J156: 0 | K156: 0 | L156: 0 | M156: 0 | N156: 0 | O156: 0 | P156: 0 | Q156: 0 | R156: 0 | T156: 0
B157: 6010220 | C157: EXPENSES | D157: A_6010220 | E157: Labor Non Exempt - Overtime | F157: 0 | G157: 0 | H157: 0 | I157: 0 | J157: 0 | K157: 0 | L157: 0 | M157: 0 | N157: 0 | O157: 0 | P157: 0 | Q157: 0 | R157: 0 | T157: 0
B158: 6010230 | C158: EXPENSES | D158: A_6010230 | E158: Labor Non Exempt - Non-Productive Time | F158: 0 | G158: 0 | H158: 0 | I158: 0 | J158: 0 | K158: 0 | L158: 0 | M158: 0 | N158: 0 | O158: 0 | P158: 0 | Q158: 0 | R158: 0 | T158: 0
B159: 6010310 | C159: EXPENSES | D159: A_6010310 | E159: Labor Union - Straight Time | F159: 0 | G159: 0 | H159: 0 | I159: 0 | J159: 0 | K159: 0 | L159: 0 | M159: 0 | N159: 0 | O159: 0 | P159: 0 | Q159: 0 | R159: 0 | T159: 0
B160: 6010320 | C160: EXPENSES | D160: A_6010320 | E160: Labor Union - Overtime | F160: 0 | G160: 0 | H160: 0 | I160: 0 | J160: 0 | K160: 0 | L160: 0 | M160: 0 | N160: 0 | O160: 0 | P160: 0 | Q160: 0 | R160: 0 | T160: 0
B161: 6010330 | C161: EXPENSES | D161: A_6010330 | E161: Labor Union - Non-Productive Time | F161: 0 | G161: 0 | H161: 0 | I161: 0 | J161: 0 | K161: 0 | L161: 0 | M161: 0 | N161: 0 | O161: 0 | P161: 0 | Q161: 0 | R161: 0 | T161: 0
B162: 6010400 | C162: EXPENSES | D162: A_6010400 | E162: Labor Severance | F162: 0 | G162: 0 | H162: 0 | I162: 0 | J162: 0 | K162: 0 | L162: 0 | M162: 0 | N162: 0 | O162: 0 | P162: 0 | Q162: 0 | R162: 0 | T162: 0
B163: 6010900 | C163: EXPENSES | D163: A_6010900 | E163: Labor Commissions | F163: 0 | G163: 0 | H163: 0 | I163: 0 | J163: 0 | K163: 0 | L163: 0 | M163: 0 | N163: 0 | O163: 0 | P163: 0 | Q163: 0 | R163: 0 | T163: 0
B164: 6010910 | C164: EXPENSES | D164: A_6010910 | E164: Labor Off-Cycle Bonus | F164: 9.85625 | G164: 9.85625 | H164: 9.85625 | I164: 9.85625 | J164: 9.85625 | K164: 9.85625 | L164: 9.85625 | M164: 9.85625 | N164: 9.85625 | O164: 9.85625 | P164: 9.85625 | Q164: 9.85625 | R164: 118.275 | T164: 0
B165: 6010990 | C165: EXPENSES | D165: A_6010990 | E165: Labor Seconded Employees | F165: 133.2069463 | G165: 170.7318881 | H165: 133.2069463 | I165: 133.2069463 | J165: 142.2850713 | K165: 133.2069463 | L165: 133.2069463 | M165: 170.7318881 | N165: 142.2850713 | O165: 133.2069463 | P165: 133.2069463 | Q165: 133.2069463 | R165: 1691.689489 | T165: 0
B166: 6018999 | C166: EXPENSES | D166: A_6018999 | E166: Labor Expense Reclass | F166: -1564.70425 | G166: -1520.044984 | H166: -1536.641499 | I166: -1567.67278 | J166: -1574.448221 | K166: -1501.362355 | L166: -1566.090653 | M166: -1542.679842 | N166: -1519.801285 | O166: -1573.719076 | P166: -1535.768273 | Q166: -1534.821107 | R166: -18537.75432 | T166: 0
B167: 6019000 | C167: EXPENSES | D167: A_6019000 | E167: Labor Expense sent to Balance Sheet | F167: 0 | G167: 0 | H167: 0 | I167: 0 | J167: 0 | K167: 0 | L167: 0 | M167: 0 | N167: 0 | O167: 0 | P167: 0 | Q167: 0 | R167: 0 | T167: 0
B168: 6019900 | C168: EXPENSES | D168: A_6019900 | E168: ST Labor & Benefits Expense to Balance Sheet | F168: 0 | G168: 0 | H168: 0 | I168: 0 | J168: 0 | K168: 0 | L168: 0 | M168: 0 | N168: 0 | O168: 0 | P168: 0 | Q168: 0 | R168: 0 | T168: 0
B169: 6019910 | C169: EXPENSES | D169: A_6019910 | E169: OT Labor & Benefits Expense to Balance Sheet | F169: 0 | G169: 0 | H169: 0 | I169: 0 | J169: 0 | K169: 0 | L169: 0 | M169: 0 | N169: 0 | O169: 0 | P169: 0 | Q169: 0 | R169: 0 | T169: 0
B170: 6020010 | C170: EXPENSES | D170: A_6020010 | E170: Benefit Plan Admin Fees | F170: 26.456 | G170: 26.456 | H170: 26.456 | I170: 26.456 | J170: 26.456 | K170: 26.456 | L170: 26.456 | M170: 26.456 | N170: 26.456 | O170: 26.456 | P170: 26.456 | Q170: 26.456 | R170: 317.472 | T170: 0
B171: 6020020 | C171: EXPENSES | D171: A_6020020 | E171: Tuition Reimbursement | F171: 18.589 | G171: 18.589 | H171: 18.589 | I171: 18.589 | J171: 18.589 | K171: 18.589 | L171: 18.589 | M171: 18.589 | N171: 18.589 | O171: 18.589 | P171: 18.589 | Q171: 18.589 | R171: 223.068 | T171: 0
B172: 6020030 | C172: EXPENSES | D172: A_6020030 | E172: Life Insurance | F172: 30.779 | G172: 30.779 | H172: 30.779 | I172: 30.779 | J172: 30.779 | K172: 30.779 | L172: 30.779 | M172: 30.779 | N172: 30.779 | O172: 30.779 | P172: 30.779 | Q172: 30.779 | R172: 369.348 | T172: 0
B173: 6020040 | C173: EXPENSES | D173: A_6020040 | E173: Long-term Care Insurance | F173: 12.45 | G173: 12.45 | H173: 12.45 | I173: 12.45 | J173: 12.45 | K173: 12.45 | L173: 12.45 | M173: 12.45 | N173: 12.45 | O173: 12.45 | P173: 12.45 | Q173: 12.45 | R173: 149.4 | T173: 0
B174: 6020050 | C174: EXPENSES | D174: A_6020050 | E174: Medical Insurance - Active | F174: 2809.896 | G174: 2809.896 | H174: 2809.896 | I174: 2809.896 | J174: 2809.896 | K174: 2809.896 | L174: 2809.896 | M174: 2809.896 | N174: 2809.896 | O174: 2809.896 | P174: 2809.896 | Q174: 2809.896 | R174: 33718.752 | T174: 0
B175: 6020060 | C175: EXPENSES | D175: A_6020060 | E175: Pensions | F175: 0 | G175: 0 | H175: 304.347 | I175: 0 | J175: 0 | K175: 304.347 | L175: 0 | M175: 0 | N175: 304.347 | O175: 0 | P175: 0 | Q175: 304.347 | R175: 1217.388 | T175: 0
B176: 6020080 | C176: EXPENSES | D176: A_6020080 | E176: Post Retirement Benefits FAS 106 - Active | F176: 0 | G176: 0 | H176: 500.975 | I176: 0 | J176: 0 | K176: 500.975 | L176: 0 | M176: 0 | N176: 500.975 | O176: 0 | P176: 0 | Q176: 500.975 | R176: 2003.9 | T176: 0
B177: 6020090 | C177: EXPENSES | D177: A_6020090 | E177: Post Retirememt Benefits FAS 106 - Retiree | F177: 0 | G177: 0 | H177: 847.123 | I177: 0 | J177: 0 | K177: 847.123 | L177: 0 | M177: 0 | N177: 847.123 | O177: 0 | P177: 0 | Q177: 847.123 | R177: 3388.492 | T177: 0
B178: 6020100 | C178: EXPENSES | D178: A_6020100 | E178: Long-term incentive Expense | F178: 0 | G178: 0 | H178: 1706.346 | I178: 0 | J178: 0 | K178: 1706.346 | L178: 0 | M178: 0 | N178: 1706.346 | O178: 0 | P178: 0 | Q178: 1706.346 | R178: 6825.384 | T178: 0
B179: 6020101 | C179: EXPENSES | D179: A_6020101 | E179: Employee Deferred Compensation Expense | F179: 0 | G179: 0 | H179: 0 | I179: 0 | J179: 0 | K179: 0 | L179: 0 | M179: 0 | N179: 0 | O179: 0 | P179: 0 | Q179: 0 | R179: 0 | T179: 0
B180: 6020110 | C180: EXPENSES | D180: A_6020110 | E180: Employee Wellness | F180: 12.969 | G180: 12.969 | H180: 12.969 | I180: 12.969 | J180: 12.969 | K180: 12.969 | L180: 12.969 | M180: 12.969 | N180: 12.969 | O180: 12.969 | P180: 12.969 | Q180: 12.969 | R180: 155.628 | T180: 0
B181: 6020130 | C181: EXPENSES | D181: A_6020130 | E181: Employer 401K Fixed Match | F181: 711.157 | G181: 711.157 | H181: 711.157 | I181: 711.157 | J181: 711.157 | K181: 711.157 | L181: 711.157 | M181: 711.157 | N181: 711.157 | O181: 711.157 | P181: 711.157 | Q181: 711.157 | R181: 8533.884 | T181: 0
B182: 6020131 | C182: EXPENSES | D182: A_6020131 | E182: Employer 401K – IBEW Plan Match | F182: 854.545 | G182: 854.545 | H182: 854.545 | I182: 854.545 | J182: 854.545 | K182: 854.545 | L182: 854.545 | M182: 854.545 | N182: 854.545 | O182: 854.545 | P182: 854.545 | Q182: 854.545 | R182: 10254.54 | T182: 0
B183: 6020140 | C183: EXPENSES | D183: A_6020140 | E183: Employer 401K Performance Match | F183: 0 | G183: 0 | H183: 0 | I183: 0 | J183: 0 | K183: 0 | L183: 0 | M183: 0 | N183: 0 | O183: 0 | P183: 0 | Q183: 0 | R183: 0 | T183: 0
B184: 6020150 | C184: EXPENSES | D184: A_6020150 | E184: Supplemental Executive Retirement Plan (SERP) | F184: 0 | G184: 0 | H184: 26.704 | I184: 0 | J184: 0 | K184: 26.704 | L184: 0 | M184: 0 | N184: 26.704 | O184: 0 | P184: 0 | Q184: 26.704 | R184: 106.816 | T184: 0
B185: 6020170 | C185: EXPENSES | D185: A_6020170 | E185: Long-term Disability - FAS 112 | F185: 155.625 | G185: 155.625 | H185: 155.625 | I185: 155.625 | J185: 155.625 | K185: 155.625 | L185: 155.625 | M185: 155.625 | N185: 155.625 | O185: 155.625 | P185: 155.625 | Q185: 155.625 | R185: 1867.5 | T185: 0
B186: 6020180 | C186: EXPENSES | D186: A_6020180 | E186: Long-term Disability Premiums | F186: 103.75 | G186: 103.75 | H186: 103.75 | I186: 103.75 | J186: 103.75 | K186: 103.75 | L186: 103.75 | M186: 103.75 | N186: 103.75 | O186: 103.75 | P186: 103.75 | Q186: 103.75 | R186: 1245 | T186: 0
B187: 6020210 | C187: EXPENSES | D187: A_6020210 | E187: Vacations (accrual) | F187: 0 | G187: 0 | H187: 0 | I187: 0 | J187: 0 | K187: 0 | L187: 0 | M187: 0 | N187: 0 | O187: 0 | P187: 0 | Q187: 0 | R187: 0 | T187: 0
B188: 6020230 | C188: EXPENSES | D188: A_6020230 | E188: Restoriation Benefit Plan Expense | F188: 0 | G188: 0 | H188: 32.412 | I188: 0 | J188: 0 | K188: 32.412 | L188: 0 | M188: 0 | N188: 32.412 | O188: 0 | P188: 0 | Q188: 32.412 | R188: 129.648 | T188: 0
B189: 6020240 | C189: EXPENSES | D189: A_6020240 | E189: Employer Match on Common Stock Purchase Program | F189: 41.849 | G189: 41.85 | H189: 41.851 | I189: 41.849 | J189: 41.85 | K189: 41.851 | L189: 41.849 | M189: 41.85 | N189: 41.851 | O189: 41.849 | P189: 41.85 | Q189: 41.851 | R189: 502.2 | T189: 0
B190: 6020800 | C190: EXPENSES | D190: A_6020800 | E190: Benefits - Other | F190: -143.2427283 | G190: -130.0873867 | H190: -121.7873867 | I190: -139.7933511 | J190: -146.5132169 | K190: -118.0536074 | L190: -146.5132169 | M190: -139.7933511 | N190: -124.7734852 | O190: -146.5132169 | P190: -133.0734852 | Q190: -131.9864283 | R190: -1622.130861 | T190: 0
B191: 6020900 | C191: EXPENSES | D191: A_6020900 | E191: Employee Incentive Expense | F191: 2350.53 | G191: 2350.53 | H191: 2350.53 | I191: 2350.53 | J191: 2350.53 | K191: 2350.53 | L191: 2350.53 | M191: 2350.53 | N191: 2350.53 | O191: 2350.53 | P191: 2350.53 | Q191: 2350.53 | R191: 28206.36 | T191: 0
B192: 6028999 | C192: EXPENSES | D192: A_6028999 | E192: Benefits Fringe Reclass | F192: 111.8357502 | G192: 112.4138409 | H192: 112.9362243 | I192: 113.8798223 | J192: 118.4977526 | K192: 119.9442148 | L192: 120.9214471 | M192: 121.1277744 | N192: 121.1797477 | O192: 112.8657016 | P192: 116.5493212 | Q192: 118.3099968 | R192: 1400.461594 | T192: 0
B193: 6029000 | C193: EXPENSES | D193: A_6029000 | E193: Benefits Expense sent to Balance Sheet | F193: 0 | G193: 0 | H193: 0 | I193: 0 | J193: 0 | K193: 0 | L193: 0 | M193: 0 | N193: 0 | O193: 0 | P193: 0 | Q193: 0 | R193: 0 | T193: 0
B194: 6030010 | C194: EXPENSES | D194: A_6030010 | E194: Empl Exp - Professional Dues. Subscriptions. Fees | F194: 50.08840842 | G194: 38.73837425 | H194: 33.3074905 | I194: 25.70400676 | J194: 24.29299176 | K194: 31.45305401 | L194: 26.49867152 | M194: 26.12828952 | N194: 26.95193177 | O194: 25.98793927 | P194: 27.82093927 | Q194: 38.9296168 | R194: 375.9017138 | T194: 0
B195: 6030020 | C195: EXPENSES | D195: A_6030020 | E195: Empl Exp - Social/Civic Dues | F195: 0 | G195: 0.1 | H195: 0.5 | I195: 0 | J195: 0.1 | K195: 0 | L195: 0.1 | M195: 0 | N195: 0.1 | O195: 0 | P195: 0.1 | Q195: 0 | R195: 1 | T195: 0
B196: 6030030 | C196: EXPENSES | D196: A_6030030 | E196: Inactive Acc - Do Not Use - Empl Exp - Meals & Ent 100% Ded | F196: 6 | G196: 6 | H196: 6 | I196: 6 | J196: 6 | K196: 6 | L196: 6 | M196: 6 | N196: 6 | O196: 6 | P196: 6 | Q196: 6 | R196: 72 | T196: 0
B197: 6030040 | C197: EXPENSES | D197: A_6030040 | E197: Empl Exp - Meals & Entertainment 50% Deductible | F197: 96.97095261 | G197: 94.98589971 | H197: 103.6799631 | I197: 105.1174421 | J197: 103.5996916 | K197: 112.7253403 | L197: 106.8955589 | M197: 108.4617999 | N197: 109.1864964 | O197: 106.7006651 | P197: 111.4112401 | Q197: 133.7405741 | R197: 1293.475624 | T197: =IF(R197="","",+R197-SUM(F197:Q197)) -> 0
B198: 6030050 | C198: EXPENSES | D198: A_6030050 | E198: Empl Exp - Mileage | F198: 14.38045256 | G198: 14.92145256 | H198: 14.82995256 | I198: 14.45071991 | J198: 14.96871991 | K198: 16.43709491 | L198: 13.78635358 | M198: 14.61335358 | N198: 15.05511958 | O198: 14.28598726 | P198: 15.47273726 | Q198: 17.24620463 | R198: 180.4481483 | T198: 0
B199: 6030060 | C199: EXPENSES | D199: A_6030060 | E199: Empl Exp - Shoes and uniforms | F199: 5.489726663 | G199: 5.489726663 | H199: 5.489726663 | I199: 6.023973329 | J199: 6.023973329 | K199: 6.023973329 | L199: 6.291096663 | M199: 6.291096663 | N199: 6.291096663 | O199: 6.558219996 | P199: 6.558219996 | Q199: 7.893836661 | R199: 74.42466662 | T199: 0
B200: 6030070 | C200: EXPENSES | D200: A_6030070 | E200: Empl Exp - Training | F200: 42.96894154 | G200: 43.48194154 | H200: 63.80344154 | I200: 47.55540748 | J200: 62.15647748 | K200: 78.42540748 | L200: 49.27414045 | M200: 51.51193845 | N200: 59.30164045 | O200: 49.64687341 | P200: 44.28087341 | Q200: 61.28433825 | R200: 653.6914215 | T200: 0
B201: 6030080 | C201: EXPENSES | D201: A_6030080 | E201: Empl Exp - Travel and Lodging | F201: 89.75894425 | G201: 95.2162305 | H201: 103.9061136 | I201: 113.4269568 | J201: 96.70990622 | K201: 138.9321256 | L201: 100.1600347 | M201: 90.83964009 | N201: 118.3033785 | O201: 106.1378626 | P201: 103.8069355 | Q201: 123.2446009 | R201: 1280.442729 | T201: 0
... 521 more rows

Sheet Accounting Schedule B-7
A1: SCHEDULE B-07 | G1: PLANT BALANCES BY ACCOUNT AND SUB-ACCOUNT | P1: 10 | R1: Page 1 of 10 | AB1: 10 | AD1: Page 1 of 10
A2: FLORIDA PUBLIC SERVICE COMMISSION | E2: EXPLANATION: | F2: Provide the depreciation rate and plant balances for each account or sub-account to which | P2: Type of data shown: | AB2: Type of data shown:
F3: a separate depreciation rate is prescribed. (Include Amortization/Recovery schedule amounts). | O3: XX | P3: Projected Test Year Ended 12/31/2025 | AA3: XX | AB3: Projected Test Year Ended 12/31/2025
A4: COMPANY: TAMPA ELECTRIC COMPANY | P4: Projected Prior Year Ended 12/31/2024 | AB4: Projected Prior Year Ended 12/31/2024
P5: Historical Prior Year Ended 12/31/2023 | AB5: Historical Prior Year Ended 12/31/2023
P6: Witness: D. Avellan | AB6: Witness: D. Avellan
A7: DOCKET No. XXX | H7: (Dollars in cents) | T7: (Dollars in cents)
C9: (1) | D9: (2) | F9: (3) | H9: (4) | J9: (5) | L9: (6) | N9: (7) | P9: (8) | R9: (9) | T9: (4) | V9: (5) | X9: (6) | Z9: (7) | AB9: (8) | AD9: (9)
C10: Account/ | D10: Account/ | F10: Depreciation | H10: Plant | J10: Total | L10: Total | P10: Plant | T10: Plant | V10: Total | X10: Total | AB10: Plant
A11: Line | C11: Sub-account | D11: Sub-account | F11: Rate* | H11: Balance | J11: Plant | L11: Plant | N11: Adjustments | P11: Balance | R11: 13-Month | T11: Balance | V11: Plant | X11: Plant | Z11: Adjustments | AB11: Balance | AD11: 13-Month
A12: No. | C12: Number | D12: Title | F12: (%) | H12: Beg. of Year | J12: Added | L12: Retired | N12: or Transfers | P12: End of Year | R12: Average | T12: Beg. of Year | V12: Added | X12: Retired | Z12: or Transfers | AB12: End of Year | AD12: Average
A13: 1 | N13: 6 | Z13: 6
A14: 2 | D14: STEAM PRODUCTION | F14: 24 | H14: 3 | J14: 4 | L14: 5 | N14: 7 | P14: 8 | R14: 9 | T14: 3 | V14: 4 | X14: 5 | Z14: 7 | AB14: 8 | AD14: 9
A15: 3 | D15: BIG BEND POWER STATION
A16: 4 | D16: BIG BEND COMMON
A17: 5 | C17: 31140 | D17: Structures and Improvements | F17: 2.52 | H17: =+IF(ISNUMBER(T17),T17/1000,T17) -> 280963.5253 | I17: =+IF(ISNUMBER(U17),U17/1000,U17) -> 0 | J17: =+IF(ISNUMBER(V17),V17/1000,V17) -> 0 | K17: =+IF(ISNUMBER(W17),W17/1000,W17) -> 0 | L17: =+IF(ISNUMBER(X17),X17/1000,X17) -> 0 | M17: =+IF(ISNUMBER(Y17),Y17/1000,Y17) -> 0 | N17: =+IF(ISNUMBER(Z17),Z17/1000,Z17) -> 0 | O17: =+IF(ISNUMBER(AA17),AA17/1000,AA17) -> 0 | P17: =+IF(ISNUMBER(AB17),AB17/1000,AB17) -> 280963.5253 | Q17: =+IF(ISNUMBER(AC17),AC17/1000,AC17) -> 0 | R17: =+IF(ISNUMBER(AD17),AD17/1000,AD17) -> 280963.5253 | T17: 280963525.3 | V17: 0 | X17: 0 | Z17: 0 | AB17: 280963525.3 | AD17: 280963525.3
A18: 6 | C18: 31240 | D18: Boiler Plant Equipment | F18: 3.81 | H18: =+IF(ISNUMBER(T18),T18/1000,T18) -> 197728.6685 | I18: 0 | J18: 5357.06562 | K18: 0 | L18: -1071.41309 | M18: 0 | N18: 0 | O18: 0 | P18: 202014.321 | Q18: 0 | R18: 199557.6154 | T18: 197728668.5 | V18: 5357065.62 | X18: -1071413.09 | Z18: 0 | AB18: 202014321 | AD18: 199557615.4
A19: 7 | C19: 31440 | D19: Turbogenerator Units | F19: 3.9 | H19: 28785.79603 | I19: 0 | J19: 5357.06562 | K19: 0 | L19: -1071.41309 | M19: 0 | N19: 0 | O19: 0 | P19: 33071.44856 | Q19: 0 | R19: 30614.74295 | T19: 28785796.03 | V19: 5357065.62 | X19: -1071413.09 | Z19: 0 | AB19: 33071448.56 | AD19: 30614742.95
A20: 8 | C20: 31540 | D20: Accessory Electric Equipment | F20: 2.16 | H20: 43980.09472 | I20: 0 | J20: 0 | K20: 0 | L20: 0 | M20: 0 | N20: 0 | O20: 0 | P20: 43980.09472 | Q20: 0 | R20: 43980.09472 | T20: 43980094.72 | V20: 0 | X20: 0 | Z20: 0 | AB20: 43980094.72 | AD20: 43980094.72
A21: 9 | C21: 31640 | D21: Misc. Power Plant Equipment | F21: 2.02 | H21: 26448.4988 | I21: 0 | J21: 0 | K21: 0 | L21: 0 | M21: 0 | N21: 0 | O21: 0 | P21: 26448.4988 | Q21: 0 | R21: 26448.4988 | T21: 26448498.8 | V21: 0 | X21: 0 | Z21: 0 | AB21: 26448498.8 | AD21: 26448498.8
A22: 10 | D22: TOTAL BIG BEND COMMON | H22: 577906.5833 | I22: 0 | J22: 10714.13124 | K22: 0 | L22: -2142.82618 | M22: 0 | N22: 0 | O22: 0 | P22: 586477.8884 | Q22: 0 | R22: 581564.4772 | T22: 577906583.3 | V22: 10714131.24 | X22: -2142826.18 | Z22: 0 | AB22: 586477888.4 | AD22: 581564477.2
A23: 11 | H23: 0 | I23: 0 | J23: 0 | K23: 0 | L23: 0 | M23: 0 | N23: 0 | O23: 0 | P23: 0 | Q23: 0 | R23: 0
A24: 12 | D24: BIG BEND UNIT 1 | H24: 0 | I24: 0 | J24: 0 | K24: 0 | L24: 0 | M24: 0 | N24: 0 | O24: 0 | P24: 0 | Q24: 0 | R24: 0
A25: 13 | C25: 31141 | D25: Structures and Improvements | F25: 0 | H25: 0 | I25: 0 | J25: 0 | K25: 0 | L25: 0 | M25: 0 | N25: 0 | O25: 0 | P25: 0 | Q25: 0 | R25: 0 | T25: 0 | V25: 0 | X25: 0 | Z25: 0 | AB25: 0 | AD25: 0
A26: 14 | C26: 31241 | D26: Boiler Plant Equipment | F26: 0 | H26: 0 | I26: 0 | J26: 0 | K26: 0 | L26: 0 | M26: 0 | N26: 0 | O26: 0 | P26: 0 | Q26: 0 | R26: 0 | T26: 0 | V26: 0 | X26: 0 | Z26: 0 | AB26: 0 | AD26: 0
A27: 15 | C27: 31441 | D27: Turbogenerator Units | F27: 0 | H27: 0 | I27: 0 | J27: 0 | K27: 0 | L27: 0 | M27: 0 | N27: 0 | O27: 0 | P27: 0 | Q27: 0 | R27: 0 | T27: 0 | V27: 0 | X27: 0 | Z27: 0 | AB27: 0 | AD27: 0
A28: 16 | C28: 31541 | D28: Accessory Electric Equipment | F28: 0 | H28: 0 | I28: 0 | J28: 0 | K28: 0 | L28: 0 | M28: 0 | N28: 0 | O28: 0 | P28: 0 | Q28: 0 | R28: 0 | T28: 0 | V28: 0 | X28: 0 | Z28: 0 | AB28: 0 | AD28: 0
A29: 17 | C29: 31641 | D29: Misc. Power Plant Equipment | F29: 0 | H29: 0 | I29: 0 | J29: 0 | K29: 0 | L29: 0 | M29: 0 | N29: 0 | O29: 0 | P29: 0 | Q29: 0 | R29: 0 | T29: 0 | V29: 0 | X29: 0 | Z29: 0 | AB29: 0 | AD29: 0
A30: 18 | D30: TOTAL BIG BEND UNIT 1 | H30: 0 | I30: 0 | J30: 0 | K30: 0 | L30: 0 | M30: 0 | N30: 0 | O30: 0 | P30: 0 | Q30: 0 | R30: 0 | T30: 0 | V30: 0 | X30: 0 | Z30: 0 | AB30: 0 | AD30: 0
A31: 19 | H31: 0 | I31: 0 | J31: 0 | K31: 0 | L31: 0 | M31: 0 | N31: 0 | O31: 0 | P31: 0 | Q31: 0 | R31: 0
A32: 20 | D32: BIG BEND UNIT 2 | H32: 0 | I32: 0 | J32: 0 | K32: 0 | L32: 0 | M32: 0 | N32: 0 | O32: 0 | P32: 0 | Q32: 0 | R32: 0
A33: 21 | C33: 31142 | D33: Structures and Improvements | F33: 0 | H33: 0 | I33: 0 | J33: 0 | K33: 0 | L33: 0 | M33: 0 | N33: 0 | O33: 0 | P33: 0 | Q33: 0 | R33: 0 | T33: 0 | V33: 0 | X33: 0 | Z33: 0 | AB33: 0 | AD33: 0
A34: 22 | C34: 31242 | D34: Boiler Plant Equipment | F34: 0 | H34: 0 | I34: 0 | J34: 0 | K34: 0 | L34: 0 | M34: 0 | N34: 0 | O34: 0 | P34: 0 | Q34: 0 | R34: 0 | T34: 0 | V34: 0 | X34: 0 | Z34: 0 | AB34: 0 | AD34: 0
A35: 23 | C35: 31442 | D35: Turbogenerator Units | F35: 0 | H35: 0 | I35: 0 | J35: 0 | K35: 0 | L35: 0 | M35: 0 | N35: 0 | O35: 0 | P35: 0 | Q35: 0 | R35: 0 | T35: 0 | V35: 0 | X35: 0 | Z35: 0 | AB35: 0 | AD35: 0
A36: 24 | C36: 31542 | D36: Accessory Electric Equipment | F36: 0 | H36: 0 | I36: 0 | J36: 0 | K36: 0 | L36: 0 | M36: 0 | N36: 0 | O36: 0 | P36: 0 | Q36: 0 | R36: 0 | T36: 0 | V36: 0 | X36: 0 | Z36: 0 | AB36: 0 | AD36: 0
A37: 25 | C37: 31642 | D37: Misc. Power Plant Equipment | F37: 0 | H37: 0 | I37: 0 | J37: 0 | K37: 0 | L37: 0 | M37: 0 | N37: 0 | O37: 0 | P37: 0 | Q37: 0 | R37: 0 | T37: 0 | V37: 0 | X37: 0 | Z37: 0 | AB37: 0 | AD37: 0
A38: 26 | D38: TOTAL BIG BEND UNIT 2 | H38: 0 | I38: 0 | J38: 0 | K38: 0 | L38: 0 | M38: 0 | N38: 0 | O38: 0 | P38: 0 | Q38: 0 | R38: 0 | T38: 0 | V38: 0 | X38: 0 | Z38: 0 | AB38: 0 | AD38: 0
A39: 27 | H39: 0 | I39: 0 | J39: 0 | K39: 0 | L39: 0 | M39: 0 | N39: 0 | O39: 0 | P39: 0 | Q39: 0 | R39: 0
A40: 28 | D40: BIG BEND UNIT 3 | H40: 0 | I40: 0 | J40: 0 | K40: 0 | L40: 0 | M40: 0 | N40: 0 | O40: 0 | P40: 0 | Q40: 0 | R40: 0
A41: 29 | C41: 31143 | D41: Structures and Improvements | F41: 0 | H41: 0 | I41: 0 | J41: 0 | K41: 0 | L41: 0 | M41: 0 | N41: 0 | O41: 0 | P41: 0 | Q41: 0 | R41: 0 | T41: 0 | V41: 0 | X41: 0 | Z41: 0 | AB41: 0 | AD41: 0
A42: 30 | C42: 31243 | D42: Boiler Plant Equipment | F42: 0 | H42: 0 | I42: 0 | J42: 0 | K42: 0 | L42: 0 | M42: 0 | N42: 0 | O42: 0 | P42: 0 | Q42: 0 | R42: 0 | T42: 0 | V42: 0 | X42: 0 | Z42: 0 | AB42: 0 | AD42: 0
A43: 31 | C43: 31443 | D43: Turbogenerator Units | F43: 0 | H43: 0 | I43: 0 | J43: 0 | K43: 0 | L43: 0 | M43: 0 | N43: 0 | O43: 0 | P43: 0 | Q43: 0 | R43: 0 | T43: 0 | V43: 0 | X43: 0 | Z43: 0 | AB43: 0 | AD43: 0
A44: 32 | C44: 31543 | D44: Accessory Electric Equipment | F44: 0 | H44: 0 | I44: 0 | J44: 0 | K44: 0 | L44: 0 | M44: 0 | N44: 0 | O44: 0 | P44: 0 | Q44: 0 | R44: 0 | T44: 0 | V44: 0 | X44: 0 | Z44: 0 | AB44: 0 | AD44: 0
A45: 33 | C45: 31643 | D45: Misc. Power Plant Equipment | F45: 0 | H45: 0 | I45: 0 | J45: 0 | K45: 0 | L45: 0 | M45: 0 | N45: 0 | O45: 0 | P45: 0 | Q45: 0 | R45: 0 | T45: 0 | V45: 0 | X45: 0 | Z45: 0 | AB45: 0 | AD45: 0
A46: 34 | D46: TOTAL BIG BEND UNIT 3 | H46: 0 | I46: 0 | J46: 0 | K46: 0 | L46: 0 | M46: 0 | N46: 0 | O46: 0 | P46: 0 | Q46: 0 | R46: 0 | T46: 0 | V46: 0 | X46: 0 | Z46: 0 | AB46: 0 | AD46: 0
A47: 35 | H47: 0 | I47: 0 | J47: 0 | K47: 0 | L47: 0 | M47: 0 | N47: 0 | O47: 0 | P47: 0 | Q47: 0 | R47: 0
A48: 36 | D48: BIG BEND UNIT 4 | H48: 0 | I48: 0 | J48: 0 | K48: 0 | L48: 0 | M48: 0 | N48: 0 | O48: 0 | P48: 0 | Q48: 0 | R48: 0
A49: 37 | C49: 31144 | D49: Structures and Improvements | F49: 3.49 | H49: 55902.23631 | I49: 0 | J49: 0 | K49: 0 | L49: 0 | M49: 0 | N49: 0 | O49: 0 | P49: 55902.23631 | Q49: 0 | R49: 55902.23631 | T49: 55902236.31 | V49: 0 | X49: 0 | Z49: 0 | AB49: 55902236.31 | AD49: 55902236.31
A50: 38 | C50: 31244 | D50: Boiler Plant Equipment | F50: 5.38 | H50: 315953.3099 | I50: 0 | J50: 3285.05934 | K50: 0 | L50: -657.01186 | M50: 0 | N50: 0 | O50: 0 | P50: 318581.3574 | Q50: 0 | R50: 316923.7519 | T50: 315953309.9 | V50: 3285059.34 | X50: -657011.86 | Z50: 0 | AB50: 318581357.4 | AD50: 316923751.9
A51: 39 | C51: 31444 | D51: Turbogenerator Units | F51: 4.66 | H51: 120281.0004 | I51: 0 | J51: 3285.05934 | K51: 0 | L51: -657.01186 | M51: 0 | N51: 0 | O51: 0 | P51: 122909.0479 | Q51: 0 | R51: 121251.4424 | T51: 120281000.4 | V51: 3285059.34 | X51: -657011.86 | Z51: 0 | AB51: 122909047.9 | AD51: 121251442.4
A52: 40 | C52: 31544 | D52: Accessory Electric Equipment | F52: 2.8 | H52: 52859.49408 | I52: 0 | J52: 0 | K52: 0 | L52: 0 | M52: 0 | N52: 0 | O52: 0 | P52: 52859.49408 | Q52: 0 | R52: 52859.49408 | T52: 52859494.08 | V52: 0 | X52: 0 | Z52: 0 | AB52: 52859494.08 | AD52: 52859494.08
A53: 41 | C53: 31644 | D53: Misc. Power Plant Equipment | F53: 1.92 | H53: 5865.81179 | I53: 0 | J53: 0 | K53: 0 | L53: 0 | M53: 0 | N53: 0 | O53: 0 | P53: 5865.81179 | Q53: 0 | R53: 5865.81179 | T53: 5865811.79 | V53: 0 | X53: 0 | Z53: 0 | AB53: 5865811.79 | AD53: 5865811.79
A54: 42 | D54: TOTAL BIG BEND UNIT 4 | H54: 550861.8525 | I54: 0 | J54: 6570.11868 | K54: 0 | L54: -1314.02372 | M54: 0 | N54: 0 | O54: 0 | P54: 556117.9475 | Q54: 0 | R54: 552802.7365 | T54: 550861852.5 | V54: 6570118.68 | X54: -1314023.72 | Z54: 0 | AB54: 556117947.5 | AD54: 552802736.5
A55: 43 | H55: 0 | I55: 0 | J55: 0 | K55: 0 | L55: 0 | M55: 0 | N55: 0 | O55: 0 | P55: 0 | Q55: 0 | R55: 0
A56: 44 | B56: Totals may be affected due to rounding. | H56: 0 | I56: 0 | J56: 0 | K56: 0 | L56: 0 | M56: 0 | N56: 0 | O56: 0 | P56: 0 | Q56: 0 | R56: 0
A57: Supporting Schedules: B-08, B-11 | H57: 0 | I57: 0 | J57: 0 | K57: 0 | L57: 0 | M57: 0 | N57: 0 | O57: 0 | P57: Recap Schedules: B-03, B-06 | Q57: 0 | R57: 0 | AB57: Recap Schedules: B-03, B-06
A58: SCHEDULE B-07 | G58: PLANT BALANCES BY ACCOUNT AND SUB-ACCOUNT | H58: 0 | I58: 0 | J58: 0 | K58: 0 | L58: 0 | M58: 0 | N58: 0 | O58: 0 | P58: 0 | Q58: 0 | R58: Page 2 of 10 | AD58: Page 2 of 10
A59: FLORIDA PUBLIC SERVICE COMMISSION | E59: EXPLANATION: | F59: Provide the depreciation rate and plant balances for each account or sub-account to which | H59: 0 | I59: 0 | J59: 0 | K59: 0 | L59: 0 | M59: 0 | N59: 0 | O59: 0 | P59: Type of data shown: | Q59: 0 | R59: 0 | AB59: Type of data shown:
F60: a separate depreciation rate is prescribed. (Include Amortization/Recovery schedule amounts). | H60: 0 | I60: 0 | J60: 0 | K60: 0 | L60: 0 | M60: 0 | N60: 0 | O60: XX | P60: Projected Test Year Ended 12/31/2025 | Q60: 0 | R60: 0 | AA60: XX | AB60: Projected Test Year Ended 12/31/2025
A61: COMPANY: TAMPA ELECTRIC COMPANY | H61: 0 | I61: 0 | J61: 0 | K61: 0 | L61: 0 | M61: 0 | N61: 0 | P61: Projected Prior Year Ended 12/31/2024 | Q61: 0 | R61: 0 | AB61: Projected Prior Year Ended 12/31/2024
H62: 0 | I62: 0 | J62: 0 | K62: 0 | L62: 0 | M62: 0 | N62: 0 | P62: Historical Prior Year Ended 12/31/2023 | Q62: 0 | R62: 0 | AB62: Historical Prior Year Ended 12/31/2023
H63: 0 | I63: 0 | J63: 0 | K63: 0 | L63: 0 | M63: 0 | N63: 0 | O63: 0 | P63: Witness: D. Avellan | Q63: 0 | R63: 0 | AB63: Witness: D. Avellan
A64: DOCKET No. XXX | H64: (Dollars in cents) | I64: 0 | J64: 0 | K64: 0 | L64: 0 | M64: 0 | N64: 0 | O64: 0 | Q64: 0 | R64: 0 | T64: (Dollars in cents)
H65: 0 | I65: 0 | J65: 0 | K65: 0 | L65: 0 | M65: 0 | N65: 0 | O65: 0 | P65: 0 | Q65: 0 | R65: 0
C66: (1) | D66: (2) | F66: (3) | H66: (4) | I66: 0 | J66: (5) | K66: 0 | L66: (6) | M66: 0 | N66: (7) | O66: 0 | P66: (8) | Q66: 0 | R66: (9) | T66: (4) | V66: (5) | X66: (6) | Z66: (7) | AB66: (8) | AD66: (9)
C67: Account/ | D67: Account/ | F67: Depreciation | H67: Plant | I67: 0 | J67: Total | K67: 0 | L67: Total | M67: 0 | N67: 0 | O67: 0 | P67: Plant | Q67: 0 | R67: 0 | T67: Plant | V67: Total | X67: Total | AB67: Plant
A68: Line | C68: Sub-account | D68: Sub-account | F68: Rate* | H68: Balance | I68: 0 | J68: Plant | K68: 0 | L68: Plant | M68: 0 | N68: Adjustments | O68: 0 | P68: Balance | Q68: 0 | R68: 13-Month | T68: Balance | V68: Plant | X68: Plant | Z68: Adjustments | AB68: Balance | AD68: 13-Month
A69: No. | C69: Number | D69: Title | F69: (%) | H69: Beg. of Year | I69: 00:00:00 | J69: Added | K69: 00:00:00 | L69: Retired | M69: 0 | N69: or Transfers | O69: 0 | P69: End of Year | Q69: 0 | R69: Average | T69: Beg. of Year | V69: Added | X69: Retired | Z69: or Transfers | AB69: End of Year | AD69: Average
A70: 1 | H70: 0 | I70: 0 | J70: 0 | K70: 0 | L70: 0 | M70: 0 | N70: 0 | O70: 0 | P70: 0 | Q70: 0 | R70: 0
A71: 2 | D71: BIG BEND UNIT 3 & 4 FGD | H71: 0 | I71: 0 | J71: 0 | K71: 0 | L71: 0 | M71: 0 | N71: 0 | O71: 0 | P71: 0 | Q71: 0 | R71: 0
A72: 3 | C72: 31145 | D72: Structures and Improvements | F72: 3.49 | H72: 31998.66315 | I72: 0 | J72: 0 | K72: 0 | L72: 0 | M72: 0 | N72: 0 | O72: 0 | P72: 31998.66315 | Q72: 0 | R72: 31998.66315 | T72: 31998663.15 | V72: 0 | X72: 0 | Z72: 0 | AB72: 31998663.15 | AD72: 31998663.15
A73: 4 | C73: 31245 | D73: Boiler Plant Equipment | F73: 5.38 | H73: 197144.713 | I73: 0 | J73: 575.00288 | K73: 0 | L73: -115.00058 | M73: 0 | N73: 0 | O73: 0 | P73: 197604.7153 | Q73: 0 | R73: 197292.9652 | T73: 197144713 | V73: 575002.88 | X73: -115000.58 | Z73: 0 | AB73: 197604715.3 | AD73: 197292965.2
A74: 5 | C74: 31545 | D74: Accessory Electric Equipment | F74: 2.8 | H74: 26849.74393 | I74: 0 | J74: 575.00288 | K74: 0 | L74: -115.00058 | M74: 0 | N74: 0 | O74: 0 | P74: 27309.74623 | Q74: 0 | R74: 26997.99607 | T74: 26849743.93 | V74: 575002.88 | X74: -115000.58 | Z74: 0 | AB74: 27309746.23 | AD74: 26997996.07
A75: 6 | C75: 31645 | D75: Misc. Power Plant Equipment | F75: 1.92 | H75: 1694.84795 | I75: 0 | J75: 0 | K75: 0 | L75: 0 | M75: 0 | N75: 0 | O75: 0 | P75: 1694.84795 | Q75: 0 | R75: 1694.84795 | T75: 1694847.95 | V75: 0 | X75: 0 | Z75: 0 | AB75: 1694847.95 | AD75: 1694847.95
A76: 7 | D76: TOTAL BIG BEND UNIT 3 & 4 FGD | H76: 257687.9681 | I76: 0 | J76: 1150.00576 | K76: 0 | L76: -230.00116 | M76: 0 | N76: 0 | O76: 0 | P76: 258607.9727 | Q76: 0 | R76: 257984.4723 | T76: 257687968.1 | V76: 1150005.76 | X76: -230001.16 | Z76: 0 | AB76: 258607972.7 | AD76: 257984472.3
A77: 8 | H77: 0 | I77: 0 | J77: 0 | K77: 0 | L77: 0 | M77: 0 | N77: 0 | O77: 0 | P77: 0 | Q77: 0 | R77: 0
A78: 9 | D78: BIG BEND UNIT 1 & 2 FGD | H78: 0 | I78: 0 | J78: 0 | K78: 0 | L78: 0 | M78: 0 | N78: 0 | O78: 0 | P78: 0 | Q78: 0 | R78: 0
A79: 10 | C79: 31146 | D79: Structures and Improvements | F79: 0 | H79: 0 | I79: 0 | J79: 0 | K79: 0 | L79: 0 | M79: 0 | N79: 0 | O79: 0 | P79: 0 | Q79: 0 | R79: 0 | T79: 0 | V79: 0 | X79: 0 | Z79: 0 | AB79: 0 | AD79: 0
A80: 11 | C80: 31246 | D80: Boiler Plant Equipment | F80: 0 | H80: 0 | I80: 0 | J80: 0 | K80: 0 | L80: 0 | M80: 0 | N80: 0 | O80: 0 | P80: 0 | Q80: 0 | R80: 0 | T80: 0 | V80: 0 | X80: 0 | Z80: 0 | AB80: 0 | AD80: 0
A81: 12 | C81: 31546 | D81: Accessory Electric Equipment | F81: 0 | H81: 0 | I81: =+IF(ISNUMBER(U81),U81/1000,U81) -> 0 | J81: =+IF(ISNUMBER(V81),V81/1000,V81) -> 0 | K81: =+IF(ISNUMBER(W81),W81/1000,W81) -> 0 | L81: =+IF(ISNUMBER(X81),X81/1000,X81) -> 0 | M81: =+IF(ISNUMBER(Y81),Y81/1000,Y81) -> 0 | N81: =+IF(ISNUMBER(Z81),Z81/1000,Z81) -> 0 | O81: =+IF(ISNUMBER(AA81),AA81/1000,AA81) -> 0 | P81: =+IF(ISNUMBER(AB81),AB81/1000,AB81) -> 0 | Q81: =+IF(ISNUMBER(AC81),AC81/1000,AC81) -> 0 | R81: =+IF(ISNUMBER(AD81),AD81/1000,AD81) -> 0 | T81: 0 | V81: 0 | X81: 0 | Z81: 0 | AB81: 0 | AD81: 0
A82: 13 | C82: 31646 | D82: Misc. Power Plant Equipment | F82: 0 | H82: =+IF(ISNUMBER(T82),T82/1000,T82) -> 0 | I82: 0 | J82: 0 | K82: 0 | L82: 0 | M82: 0 | N82: 0 | O82: 0 | P82: 0 | Q82: 0 | R82: 0 | T82: 0 | V82: 0 | X82: 0 | Z82: 0 | AB82: 0 | AD82: 0
A83: 14 | D83: TOTAL BIG BEND UNIT 1 & 2 FGD | H83: 0 | I83: 0 | J83: 0 | K83: 0 | L83: 0 | M83: 0 | N83: 0 | O83: 0 | P83: 0 | Q83: 0 | R83: 0 | T83: 0 | V83: 0 | X83: 0 | Z83: 0 | AB83: 0 | AD83: 0
A84: 15 | H84: 0 | I84: 0 | J84: 0 | K84: 0 | L84: 0 | M84: 0 | N84: 0 | O84: 0 | P84: 0 | Q84: 0 | R84: 0
A85: 16 | D85: BIG BEND UNIT 1 SCR | H85: 0 | I85: 0 | J85: 0 | K85: 0 | L85: 0 | M85: 0 | N85: 0 | O85: 0 | P85: 0 | Q85: 0 | R85: 0
A86: 17 | C86: 31151 | D86: Structures and Improvements | F86: 0 | H86: 0 | I86: 0 | J86: 0 | K86: 0 | L86: 0 | M86: 0 | N86: 0 | O86: 0 | P86: 0 | Q86: 0 | R86: 0 | T86: 0 | V86: 0 | X86: 0 | Z86: 0 | AB86: 0 | AD86: 0
A87: 18 | C87: 31251 | D87: Boiler Plant Equipment | F87: 0 | H87: 0 | I87: 0 | J87: 0 | K87: 0 | L87: 0 | M87: 0 | N87: 0 | O87: 0 | P87: 0 | Q87: 0 | R87: 0 | T87: 0 | V87: 0 | X87: 0 | Z87: 0 | AB87: 0 | AD87: 0
A88: 19 | C88: 31551 | D88: Accessory Electric Equipment | F88: 0 | H88: 0 | I88: 0 | J88: 0 | K88: 0 | L88: 0 | M88: 0 | N88: 0 | O88: 0 | P88: 0 | Q88: 0 | R88: 0 | T88: 0 | V88: 0 | X88: 0 | Z88: 0 | AB88: 0 | AD88: 0
A89: 20 | C89: 31651 | D89: Misc Power Plant Eq-BPC | F89: 0 | H89: 0 | I89: 0 | J89: 0 | K89: 0 | L89: 0 | M89: 0 | N89: 0 | O89: 0 | P89: 0 | Q89: 0 | R89: 0 | T89: 0 | V89: 0 | X89: 0 | Z89: 0 | AB89: 0 | AD89: 0
A90: 21 | D90: TOTAL BIG BEND UNIT 1 SCR | H90: 0 | I90: 0 | J90: 0 | K90: 0 | L90: 0 | M90: 0 | N90: 0 | O90: 0 | P90: 0 | Q90: 0 | R90: 0 | T90: 0 | V90: 0 | X90: 0 | Z90: 0 | AB90: 0 | AD90: 0
A91: 22 | H91: 0 | I91: 0 | J91: 0 | K91: 0 | L91: 0 | M91: 0 | N91: 0 | O91: 0 | P91: 0 | Q91: 0 | R91: 0
A92: 23 | D92: BIG BEND UNIT 2 SCR | H92: 0 | I92: 0 | J92: 0 | K92: 0 | L92: 0 | M92: 0 | N92: 0 | O92: 0 | P92: 0 | Q92: 0 | R92: 0
A93: 24 | C93: 31152 | D93: Structures and Improvements | F93: 0 | H93: 0 | I93: 0 | J93: 0 | K93: 0 | L93: 0 | M93: 0 | N93: 0 | O93: 0 | P93: 0 | Q93: 0 | R93: 0 | T93: 0 | V93: 0 | X93: 0 | Z93: 0 | AB93: 0 | AD93: 0
A94: 25 | C94: 31252 | D94: Boiler Plant Equipment | F94: 0 | H94: 0 | I94: 0 | J94: 0 | K94: 0 | L94: 0 | M94: 0 | N94: 0 | O94: 0 | P94: 0 | Q94: 0 | R94: 0 | T94: 0 | V94: 0 | X94: 0 | Z94: 0 | AB94: 0 | AD94: 0
A95: 26 | C95: 31552 | D95: Accessory Electric Equipment | F95: 0 | H95: 0 | I95: 0 | J95: 0 | K95: 0 | L95: 0 | M95: 0 | N95: 0 | O95: 0 | P95: 0 | Q95: 0 | R95: 0 | T95: 0 | V95: 0 | X95: 0 | Z95: 0 | AB95: 0 | AD95: 0
A96: 27 | C96: 31652 | D96: Misc. Power Plant Equipment | F96: 0 | H96: 0 | I96: 0 | J96: 0 | K96: 0 | L96: 0 | M96: 0 | N96: 0 | O96: 0 | P96: 0 | Q96: 0 | R96: 0 | T96: 0 | V96: 0 | X96: 0 | Z96: 0 | AB96: 0 | AD96: 0
A97: 28 | D97: TOTAL BIG BEND UNIT 2 SCR | H97: 0 | I97: 0 | J97: 0 | K97: 0 | L97: 0 | M97: 0 | N97: 0 | O97: 0 | P97: 0 | Q97: 0 | R97: 0 | T97: 0 | V97: 0 | X97: 0 | Z97: 0 | AB97: 0 | AD97: 0
A98: 29 | H98: 0 | I98: 0 | J98: 0 | K98: 0 | L98: 0 | M98: 0 | N98: 0 | O98: 0 | P98: 0 | Q98: 0 | R98: 0
A99: 30 | D99: BIG BEND UNIT 3 SCR | H99: 0 | I99: 0 | J99: 0 | K99: 0 | L99: 0 | M99: 0 | N99: 0 | O99: 0 | P99: 0 | Q99: 0 | R99: 0
A100: 31 | C100: 31153 | D100: Structures and Improvements | F100: 0 | H100: 0 | I100: 0 | J100: 0 | K100: 0 | L100: 0 | M100: 0 | N100: 0 | O100: 0 | P100: 0 | Q100: 0 | R100: 0 | T100: 0 | V100: 0 | X100: 0 | Z100: 0 | AB100: 0 | AD100: 0
A101: 32 | C101: 31253 | D101: Boiler Plant Equipment | F101: 0 | H101: 0 | I101: 0 | J101: 0 | K101: 0 | L101: 0 | M101: 0 | N101: 0 | O101: 0 | P101: 0 | Q101: 0 | R101: 0 | T101: 0 | V101: 0 | X101: 0 | Z101: 0 | AB101: 0 | AD101: 0
A102: 33 | C102: 31553 | D102: Accessory Electric Equipment | F102: 0 | H102: 0 | I102: 0 | J102: 0 | K102: 0 | L102: 0 | M102: 0 | N102: 0 | O102: 0 | P102: 0 | Q102: 0 | R102: 0 | T102: 0 | V102: 0 | X102: 0 | Z102: 0 | AB102: 0 | AD102: 0
A103: 34 | C103: 31653 | D103: Misc. Power Plant Equipment | F103: 0 | H103: 0 | I103: 0 | J103: 0 | K103: 0 | L103: 0 | M103: 0 | N103: 0 | O103: 0 | P103: 0 | Q103: 0 | R103: 0 | T103: 0 | V103: 0 | X103: 0 | Z103: 0 | AB103: 0 | AD103: 0
A104: 35 | D104: TOTAL BIG BEND UNIT 3 SCR | H104: 0 | I104: 0 | J104: 0 | K104: 0 | L104: 0 | M104: 0 | N104: 0 | O104: 0 | P104: 0 | Q104: 0 | R104: 0 | T104: 0 | V104: 0 | X104: 0 | Z104: 0 | AB104: 0 | AD104: 0
A105: 36 | H105: 0 | I105: 0 | J105: 0 | K105: 0 | L105: 0 | M105: 0 | N105: 0 | O105: 0 | P105: 0 | Q105: 0 | R105: 0
A106: 37 | D106: BIG BEND UNIT 4 SCR | H106: 0 | I106: 0 | J106: 0 | K106: 0 | L106: 0 | M106: 0 | N106: 0 | O106: 0 | P106: 0 | Q106: 0 | R106: 0
A107: 38 | C107: 31154 | D107: Structures and Improvements | F107: 3.49 | H107: 16995.42825 | I107: 0 | J107: 0 | K107: 0 | L107: 0 | M107: 0 | N107: 0 | O107: 0 | P107: 16995.42825 | Q107: 0 | R107: 16995.42825 | T107: 16995428.25 | V107: 0 | X107: 0 | Z107: 0 | AB107: 16995428.25 | AD107: 16995428.25
A108: 39 | C108: 31254 | D108: Boiler Plant Equipment | F108: 5.38 | H108: 40267.60259 | I108: 0 | J108: 0 | K108: 0 | L108: 0 | M108: 0 | N108: 0 | O108: 0 | P108: 40267.60259 | Q108: 0 | R108: 40267.60259 | T108: 40267602.59 | V108: 0 | X108: 0 | Z108: 0 | AB108: 40267602.59 | AD108: 40267602.59
A109: 40 | C109: 31554 | D109: Accessory Electric Equipment | F109: 2.8 | H109: 15495.56548 | I109: 0 | J109: 0 | K109: 0 | L109: 0 | M109: 0 | N109: 0 | O109: 0 | P109: 15495.56548 | Q109: 0 | R109: 15495.56549 | T109: 15495565.48 | V109: 0 | X109: 0 | Z109: 0 | AB109: 15495565.48 | AD109: 15495565.49
A110: 41 | C110: 31654 | D110: Misc. Power Plant Equipment | F110: 1.92 | H110: 687.93436 | I110: 0 | J110: 0 | K110: 0 | L110: 0 | M110: 0 | N110: 0 | O110: 0 | P110: 687.93436 | Q110: 0 | R110: 687.93436 | T110: 687934.36 | V110: 0 | X110: 0 | Z110: 0 | AB110: 687934.36 | AD110: 687934.36
A111: 42 | D111: TOTAL BIG BEND UNIT 4 SCR | H111: 73446.53068 | I111: 0 | J111: 0 | K111: 0 | L111: 0 | M111: 0 | N111: 0 | O111: 0 | P111: 73446.53068 | Q111: 0 | R111: 73446.53069 | T111: 73446530.68 | V111: 0 | X111: 0 | Z111: 0 | AB111: 73446530.68 | AD111: 73446530.69
A112: 43 | H112: 0 | I112: 0 | J112: 0 | K112: 0 | L112: 0 | M112: 0 | N112: 0 | O112: 0 | P112: 0 | Q112: 0 | R112: 0
A113: 44 | B113: Totals may be affected due to rounding. | H113: 0 | I113: 0 | J113: 0 | K113: 0 | L113: 0 | M113: 0 | N113: 0 | O113: 0 | P113: 0 | Q113: 0 | R113: 0
A114: Supporting Schedules: B-08, B-11 | H114: 0 | I114: 0 | J114: 0 | K114: 0 | L114: 0 | M114: 0 | N114: 0 | O114: 0 | P114: Recap Schedules: B-03, B-06 | Q114: 0 | R114: 0 | AB114: Recap Schedules: B-03, B-06
A115: SCHEDULE B-07 | G115: PLANT BALANCES BY ACCOUNT AND SUB-ACCOUNT | H115: 0 | I115: 0 | J115: 0 | K115: 0 | L115: 0 | M115: 0 | N115: 0 | O115: 0 | P115: 0 | Q115: 0 | R115: Page 3 of 10 | AD115: Page 3 of 10
A116: FLORIDA PUBLIC SERVICE COMMISSION | E116: EXPLANATION: | F116: Provide the depreciation rate and plant balances for each account or sub-account to which | H116: 0 | I116: 0 | J116: 0 | K116: 0 | L116: 0 | M116: 0 | N116: 0 | O116: 0 | P116: Type of data shown: | Q116: 0 | R116: 0 | AB116: Type of data shown:
F117: a separate depreciation rate is prescribed. (Include Amortization/Recovery schedule amounts). | H117: 0 | I117: 0 | J117: 0 | K117: 0 | L117: 0 | M117: 0 | N117: 0 | O117: XX | P117: Projected Test Year Ended 12/31/2025 | Q117: 0 | R117: 0 | AA117: XX | AB117: Projected Test Year Ended 12/31/2025
A118: COMPANY: TAMPA ELECTRIC COMPANY | H118: 0 | I118: 0 | J118: 0 | K118: 0 | L118: 0 | M118: 0 | N118: 0 | P118: Projected Prior Year Ended 12/31/2024 | Q118: 0 | R118: 0 | AB118: Projected Prior Year Ended 12/31/2024
H119: 0 | I119: 0 | J119: 0 | K119: 0 | L119: 0 | M119: 0 | N119: 0 | P119: Historical Prior Year Ended 12/31/2023 | Q119: 0 | R119: 0 | AB119: Historical Prior Year Ended 12/31/2023
H120: 0 | I120: 0 | J120: 0 | K120: 0 | L120: 0 | M120: 0 | N120: 0 | O120: 0 | P120: Witness: D. Avellan | Q120: 0 | R120: 0 | AB120: Witness: D. Avellan
A121: DOCKET No. XXX | H121: (Dollars in cents) | I121: 0 | J121: 0 | K121: 0 | L121: 0 | M121: 0 | N121: 0 | O121: 0 | Q121: 0 | R121: 0 | T121: (Dollars in cents)
H122: 0 | I122: 0 | J122: 0 | K122: 0 | L122: 0 | M122: 0 | N122: 0 | O122: 0 | P122: 0 | Q122: 0 | R122: 0
C123: (1) | D123: (2) | F123: (3) | H123: (4) | I123: 0 | J123: (5) | K123: 0 | L123: (6) | M123: 0 | N123: (7) | O123: 0 | P123: (8) | Q123: 0 | R123: (9) | T123: (4) | V123: (5) | X123: (6) | Z123: (7) | AB123: (8) | AD123: (9)
C124: Account/ | D124: Account/ | F124: Depreciation | H124: Plant | I124: 0 | J124: Total | K124: 0 | L124: Total | M124: 0 | N124: 0 | O124: 0 | P124: Plant | Q124: 0 | R124: 0 | T124: Plant | V124: Total | X124: Total | AB124: Plant
A125: Line | C125: Sub-account | D125: Sub-account | F125: Rate* | H125: Balance | I125: 0 | J125: Plant | K125: 0 | L125: Plant | M125: 0 | N125: Adjustments | O125: 0 | P125: Balance | Q125: 0 | R125: 13-Month | T125: Balance | V125: Plant | X125: Plant | Z125: Adjustments | AB125: Balance | AD125: 13-Month
A126: No. | C126: Number | D126: Title | F126: (%) | H126: Beg. of Year | I126: 00:00:00 | J126: Added | K126: 00:00:00 | L126: Retired | M126: 0 | N126: or Transfers | O126: 0 | P126: End of Year | Q126: 0 | R126: Average | T126: Beg. of Year | V126: Added | X126: Retired | Z126: or Transfers | AB126: End of Year | AD126: Average
A127: 1 | H127: 0 | I127: 0 | J127: 0 | K127: 0 | L127: 0 | M127: 0 | N127: 0 | O127: 0 | P127: 0 | Q127: 0 | R127: 0
A128: 2 | C128: 31247 | D128: Big Bend Fuel Clause | F128: 20 | H128: 10156.52381 | I128: 0 | J128: 0 | K128: 0 | L128: 0 | M128: 0 | N128: 0 | O128: 0 | P128: 10156.52381 | Q128: 0 | R128: 10156.52381 | T128: 10156523.81 | V128: 0 | X128: 0 | Z128: 0 | AB128: 10156523.81 | AD128: 10156523.81
A129: 3 | C129: 31647 | D129: Big Bend Tools - Amort | F129: 14.3 | H129: 765.49425 | I129: 0 | J129: 0 | K129: 0 | L129: -37.59132 | M129: 0 | N129: 0 | O129: 0 | P129: 727.90293 | Q129: 0 | R129: 736.13937 | T129: 765494.25 | V129: 0 | X129: -37591.32 | Z129: 0 | AB129: 727902.93 | AD129: 736139.37
A130: 4 | H130: 0 | I130: 0 | J130: 0 | K130: 0 | L130: 0 | M130: 0 | N130: 0 | O130: 0 | P130: 0 | Q130: 0 | R130: 0
A131: 5 | D131: TOTAL BIG BEND POWER STATION | H131: 1470824.953 | I131: 0 | J131: 18434.25568 | K131: 0 | L131: -3724.44238 | M131: 0 | N131: 0 | O131: 0 | P131: 1485534.766 | Q131: 0 | R131: 1476690.88 | T131: 1470824953 | V131: 18434255.68 | X131: -3724442.38 | Z131: 0 | AB131: 1485534766 | AD131: 1476690880
A132: 6 | H132: 0 | I132: 0 | J132: 0 | K132: 0 | L132: 0 | M132: 0 | N132: 0 | O132: 0 | P132: 0 | Q132: 0 | R132: 0
A133: 7 | D133: TOTAL STEAM PRODUCTION | H133: 1470824.953 | I133: 0 | J133: 18434.25568 | K133: 0 | L133: -3724.44238 | M133: 0 | N133: 0 | O133: 0 | P133: 1485534.766 | Q133: 0 | R133: 1476690.88 | T133: 1470824953 | V133: 18434255.68 | X133: -3724442.38 | Z133: 0 | AB133: 1485534766 | AD133: 1476690880
A134: 8 | H134: 0 | I134: 0 | J134: 0 | K134: 0 | L134: 0 | M134: 0 | N134: 0 | O134: 0 | P134: 0 | Q134: 0 | R134: 0
A135: 9 | D135: OTHER PRODUCTION | H135: 0 | I135: 0 | J135: 0 | K135: 0 | L135: 0 | M135: 0 | N135: 0 | O135: 0 | P135: 0 | Q135: 0 | R135: 0
A136: 10 | D136: BIG BEND POWER STATION | H136: 0 | I136: 0 | J136: 0 | K136: 0 | L136: 0 | M136: 0 | N136: 0 | O136: 0 | P136: 0 | Q136: 0 | R136: 0
A137: 11 | D137: BIG BEND COMBUSTION TURBINE 4 | H137: 0 | I137: 0 | J137: 0 | K137: 0 | L137: 0 | M137: 0 | N137: 0 | O137: 0 | P137: 0 | Q137: 0 | R137: 0
A138: 12 | C138: 34144 | D138: Structures and Improvements | F138: 3.38 | H138: 3335.88255 | I138: 0 | J138: 0 | K138: 0 | L138: 0 | M138: 0 | N138: 0 | O138: 0 | P138: 3335.88255 | Q138: 0 | R138: 3335.88255 | T138: 3335882.55 | V138: 0 | X138: 0 | Z138: 0 | AB138: 3335882.55 | AD138: 3335882.55
A139: 13 | C139: 34244 | D139: Fuel Holders, Producers and Accessories | F139: 4.45 | H139: 3722.741325 | I139: 0 | J139: 0 | K139: 0 | L139: 0 | M139: 0 | N139: 0 | O139: 0 | P139: 3722.741325 | Q139: 0 | R139: 3722.74133 | T139: 3722741.325 | V139: 0 | X139: 0 | Z139: 0 | AB139: 3722741.325 | AD139: 3722741.33
A140: 14 | C140: 34344 | D140: Prime Movers | F140: 2.72 | H140: 21710.2688 | I140: 0 | J140: 0 | K140: 0 | L140: 0 | M140: 0 | N140: 0 | O140: 0 | P140: 21710.2688 | Q140: 0 | R140: 21710.2688 | T140: 21710268.8 | V140: 0 | X140: 0 | Z140: 0 | AB140: 21710268.8 | AD140: 21710268.8
A141: 15 | C141: 34544 | D141: Accessory Electric Equipment | F141: 2.42 | H141: 16328.71347 | I141: 0 | J141: 0 | K141: 0 | L141: 0 | M141: 0 | N141: 0 | O141: 0 | P141: 16328.71347 | Q141: 0 | R141: 16328.71347 | T141: 16328713.47 | V141: 0 | X141: 0 | Z141: 0 | AB141: 16328713.47 | AD141: 16328713.47
A142: 16 | C142: 34644 | D142: Misc. Power Plant Equipment | F142: 3.13 | H142: 510.66471 | I142: 0 | J142: 0 | K142: 0 | L142: 0 | M142: 0 | N142: 0 | O142: 0 | P142: 510.66471 | Q142: 0 | R142: 510.66471 | T142: 510664.71 | V142: 0 | X142: 0 | Z142: 0 | AB142: 510664.71 | AD142: 510664.71
A143: 17 | D143: TOTAL BIG BEND COMBUSTION TURBINE 4 | H143: 45608.27085 | I143: 0 | J143: 0 | K143: 0 | L143: 0 | M143: 0 | N143: 0 | O143: 0 | P143: 45608.27085 | Q143: 0 | R143: 45608.27086 | T143: 45608270.85 | V143: 0 | X143: 0 | Z143: 0 | AB143: 45608270.85 | AD143: 45608270.86
A144: 18 | H144: 0 | I144: 0 | J144: 0 | K144: 0 | L144: 0 | M144: 0 | N144: 0 | O144: 0 | P144: 0 | Q144: 0 | R144: 0
A145: 19 | D145: BIG BEND COMBUSTION TURBINE 5 | H145: 0 | I145: =+IF(ISNUMBER(U145),U145/1000,U145) -> 0 | J145: =+IF(ISNUMBER(V145),V145/1000,V145) -> 0 | K145: =+IF(ISNUMBER(W145),W145/1000,W145) -> 0 | L145: =+IF(ISNUMBER(X145),X145/1000,X145) -> 0 | M145: =+IF(ISNUMBER(Y145),Y145/1000,Y145) -> 0 | N145: =+IF(ISNUMBER(Z145),Z145/1000,Z145) -> 0 | O145: =+IF(ISNUMBER(AA145),AA145/1000,AA145) -> 0 | P145: =+IF(ISNUMBER(AB145),AB145/1000,AB145) -> 0 | Q145: =+IF(ISNUMBER(AC145),AC145/1000,AC145) -> 0 | R145: =+IF(ISNUMBER(AD145),AD145/1000,AD145) -> 0
A146: 20 | C146: 34145 | D146: Structures and Improvements | F146: 2.2 | H146: =+IF(ISNUMBER(T146),T146/1000,T146) -> 0 | I146: 0 | J146: 0 | K146: 0 | L146: 0 | M146: 0 | N146: 0 | O146: 0 | P146: 0 | Q146: 0 | R146: 0 | T146: 0 | V146: 0 | X146: 0 | Z146: 0 | AB146: 0 | AD146: 0
A147: 21 | C147: 34245 | D147: Fuel Holders, Producers and Accessories | F147: 3.78 | H147: 307.02813 | I147: 0 | J147: 202.5 | K147: 0 | L147: 0 | M147: 0 | N147: 0 | O147: 0 | P147: 509.52813 | Q147: 0 | R147: 391.83582 | T147: 307028.13 | V147: 202500 | X147: 0 | Z147: 0 | AB147: 509528.13 | AD147: 391835.82
A148: 22 | C148: 34345 | D148: Prime Movers | F148: 3.5 | H148: 176825.3833 | I148: 0 | J148: 202.5 | K148: 0 | L148: 0 | M148: 0 | N148: 0 | O148: 0 | P148: 177027.8833 | Q148: 0 | R148: 176910.1909 | T148: 176825383.3 | V148: 202500 | X148: 0 | Z148: 0 | AB148: 177027883.3 | AD148: 176910190.9
A149: 23 | C149: 34545 | D149: Accessory Electric Equipment | F149: 1.89 | H149: 58.76936 | I149: 0 | J149: 0 | K149: 0 | L149: 0 | M149: 0 | N149: 0 | O149: 0 | P149: 58.76936 | Q149: 0 | R149: 58.76936 | T149: 58769.36 | V149: 0 | X149: 0 | Z149: 0 | AB149: 58769.36 | AD149: 58769.36
A150: 24 | C150: 34645 | D150: Misc. Power Plant Equipment | F150: 2.94 | H150: 0 | I150: 0 | J150: 0 | K150: 0 | L150: 0 | M150: 0 | N150: 0 | O150: 0 | P150: 0 | Q150: 0 | R150: 0 | T150: 0 | V150: 0 | X150: 0 | Z150: 0 | AB150: 0 | AD150: 0
A151: 25 | D151: TOTAL BIG BEND COMBUSTION TURBINE 5 | H151: 177191.1807 | I151: 0 | J151: 405 | K151: 0 | L151: 0 | M151: 0 | N151: 0 | O151: 0 | P151: 177596.1807 | Q151: 0 | R151: 177360.7961 | T151: 177191180.7 | V151: 405000 | X151: 0 | Z151: 0 | AB151: 177596180.7 | AD151: 177360796.1
A152: 26 | H152: 0 | I152: 0 | J152: 0 | K152: 0 | L152: 0 | M152: 0 | N152: 0 | O152: 0 | P152: 0 | Q152: 0 | R152: 0
A153: 27 | D153: BIG BEND COMBUSTION TURBINE 6 | H153: 0 | I153: 0 | J153: 0 | K153: 0 | L153: 0 | M153: 0 | N153: 0 | O153: 0 | P153: 0 | Q153: 0 | R153: 0
A154: 28 | C154: 34146 | D154: Structures and Improvements | F154: 2.2 | H154: 0 | I154: 0 | J154: 0 | K154: 0 | L154: 0 | M154: 0 | N154: 0 | O154: 0 | P154: 0 | Q154: 0 | R154: 0 | T154: 0 | V154: 0 | X154: 0 | Z154: 0 | AB154: 0 | AD154: 0
A155: 29 | C155: 34246 | D155: Fuel Holders, Producers and Accessories | F155: 3.65 | H155: 388.113425 | I155: 0 | J155: 0 | K155: 0 | L155: 0 | M155: 0 | N155: 0 | O155: 0 | P155: 388.113425 | Q155: 0 | R155: 388.11343 | T155: 388113.425 | V155: 0 | X155: 0 | Z155: 0 | AB155: 388113.425 | AD155: 388113.43
A156: 30 | C156: 34346 | D156: Prime Movers | F156: 3.5 | H156: 175636.4326 | I156: 0 | J156: 0 | K156: 0 | L156: 0 | M156: 0 | N156: 0 | O156: 0 | P156: 175636.4326 | Q156: 0 | R156: 175636.4326 | T156: 175636432.6 | V156: 0 | X156: 0 | Z156: 0 | AB156: 175636432.6 | AD156: 175636432.6
A157: 31 | C157: 34546 | D157: Accessory Electric Equipment | F157: 1.89 | H157: 19.19082 | I157: 0 | J157: 0 | K157: 0 | L157: 0 | M157: 0 | N157: 0 | O157: 0 | P157: 19.19082 | Q157: 0 | R157: 19.19082 | T157: 19190.82 | V157: 0 | X157: 0 | Z157: 0 | AB157: 19190.82 | AD157: 19190.82
A158: 32 | C158: 34646 | D158: Misc. Power Plant Equipment | F158: 2.94 | H158: 0 | I158: 0 | J158: 0 | K158: 0 | L158: 0 | M158: 0 | N158: 0 | O158: 0 | P158: 0 | Q158: 0 | R158: 0 | T158: 0 | V158: 0 | X158: 0 | Z158: 0 | AB158: 0 | AD158: 0
A159: 33 | D159: TOTAL BIG BEND COMBUSTION TURBINE 6 | H159: 176043.7369 | I159: 0 | J159: 0 | K159: 0 | L159: 0 | M159: 0 | N159: 0 | O159: 0 | P159: 176043.7369 | Q159: 0 | R159: 176043.7369 | T159: 176043736.9 | V159: 0 | X159: 0 | Z159: 0 | AB159: 176043736.9 | AD159: 176043736.9
A160: 34 | H160: 0 | I160: 0 | J160: 0 | K160: 0 | L160: 0 | M160: 0 | N160: 0 | O160: 0 | P160: 0 | Q160: 0 | R160: 0
A161: 35 | D161: BIG BEND NEW STEAM TURBINE 1 | H161: 0 | I161: 0 | J161: 0 | K161: 0 | L161: 0 | M161: 0 | N161: 0 | O161: 0 | P161: 0 | Q161: 0 | R161: 0
A162: 36 | C162: 34143 | D162: Structures and Improvements | F162: 3.43 | H162: 2290.54898 | I162: 0 | J162: 0 | K162: 0 | L162: 0 | M162: 0 | N162: 0 | O162: 0 | P162: 2290.54898 | Q162: 0 | R162: 2290.54898 | T162: 2290548.98 | V162: 0 | X162: 0 | Z162: 0 | AB162: 2290548.98 | AD162: 2290548.98
A163: 37 | C163: 34243 | D163: Fuel Holders, Producers and Accessories | F163: 2.22 | H163: 3578.328715 | I163: 0 | J163: 22.67364 | K163: 0 | L163: 0 | M163: 0 | N163: 0 | O163: 0 | P163: 3601.002355 | Q163: 0 | R163: 3590.5376 | T163: 3578328.715 | V163: 22673.64 | X163: 0 | Z163: 0 | AB163: 3601002.355 | AD163: 3590537.6
A164: 38 | C164: 34343 | D164: Prime Movers | F164: 3.64 | H164: 459235.3964 | I164: 0 | J164: 22.67364 | K164: 0 | L164: 0 | M164: 0 | N164: 0 | O164: 0 | P164: 459258.0701 | Q164: 0 | R164: 459247.6053 | T164: 459235396.4 | V164: 22673.64 | X164: 0 | Z164: 0 | AB164: 459258070.1 | AD164: 459247605.3
A165: 39 | C165: 34543 | D165: Accessory Electric Equipment | F165: 2.92 | H165: 700.67702 | I165: 0 | J165: 0 | K165: 0 | L165: 0 | M165: 0 | N165: 0 | O165: 0 | P165: 700.67702 | Q165: 0 | R165: 700.67702 | T165: 700677.02 | V165: 0 | X165: 0 | Z165: 0 | AB165: 700677.02 | AD165: 700677.02
A166: 40 | C166: 34643 | D166: Misc. Power Plant Equipment | F166: 2.66 | H166: 308.52593 | I166: 0 | J166: 0 | K166: 0 | L166: 0 | M166: 0 | N166: 0 | O166: 0 | P166: 308.52593 | Q166: 0 | R166: 308.52593 | T166: 308525.93 | V166: 0 | X166: 0 | Z166: 0 | AB166: 308525.93 | AD166: 308525.93
A167: 41 | D167: TOTAL BIG BEND NEW STEAM TURBINE 1 | H167: 466113.4771 | I167: 0 | J167: 45.34728 | K167: 0 | L167: 0 | M167: 0 | N167: 0 | O167: 0 | P167: 466158.8244 | Q167: 0 | R167: 466137.8948 | T167: 466113477.1 | V167: 45347.28 | X167: 0 | Z167: 0 | AB167: 466158824.4 | AD167: 466137894.8
A168: 42 | H168: 0 | I168: 0 | J168: 0 | K168: 0 | L168: 0 | M168: 0 | N168: 0 | O168: 0 | P168: 0 | Q168: 0 | R168: 0
A169: 43 | D169: TOTAL BIG BEND POWER STATION | H169: 864956.6655 | I169: 0 | J169: 450.34728 | K169: 0 | L169: 0 | M169: 0 | N169: 0 | O169: 0 | P169: 865407.0128 | Q169: 0 | R169: 865150.6987 | T169: 864956665.5 | V169: 450347.28 | X169: 0 | Z169: 0 | AB169: 865407012.8 | AD169: 865150698.7
A170: 44 | B170: Totals may be affected due to rounding. | H170: 0 | I170: 0 | J170: 0 | K170: 0 | L170: 0 | M170: 0 | N170: 0 | O170: 0 | P170: 0 | Q170: 0 | R170: 0
A171: Supporting Schedules: B-08, B-11 | H171: 0 | I171: 0 | J171: 0 | K171: 0 | L171: 0 | M171: 0 | N171: 0 | O171: 0 | P171: Recap Schedules: B-03, B-06 | Q171: 0 | R171: 0 | AB171: Recap Schedules: B-03, B-06
A172: SCHEDULE B-07 | G172: PLANT BALANCES BY ACCOUNT AND SUB-ACCOUNT | H172: 0 | I172: 0 | J172: 0 | K172: 0 | L172: 0 | M172: 0 | N172: 0 | O172: 0 | P172: 0 | Q172: 0 | R172: Page 4 of 10 | AD172: Page 4 of 10
A173: FLORIDA PUBLIC SERVICE COMMISSION | E173: EXPLANATION: | F173: Provide the depreciation rate and plant balances for each account or sub-account to which | H173: 0 | I173: 0 | J173: 0 | K173: 0 | L173: 0 | M173: 0 | N173: 0 | O173: 0 | P173: Type of data shown: | Q173: 0 | R173: 0 | AB173: Type of data shown:
F174: a separate depreciation rate is prescribed. (Include Amortization/Recovery schedule amounts). | H174: 0 | I174: 0 | J174: 0 | K174: 0 | L174: 0 | M174: 0 | N174: 0 | O174: XX | P174: Projected Test Year Ended 12/31/2025 | Q174: 0 | R174: 0 | AA174: XX | AB174: Projected Test Year Ended 12/31/2025
A175: COMPANY: TAMPA ELECTRIC COMPANY | H175: 0 | I175: 0 | J175: 0 | K175: 0 | L175: 0 | M175: 0 | N175: 0 | P175: Projected Prior Year Ended 12/31/2024 | Q175: 0 | R175: 0 | AB175: Projected Prior Year Ended 12/31/2024
H176: 0 | I176: 0 | J176: 0 | K176: 0 | L176: 0 | M176: 0 | N176: 0 | P176: Historical Prior Year Ended 12/31/2023 | Q176: 0 | R176: 0 | AB176: Historical Prior Year Ended 12/31/2023
H177: 0 | I177: 0 | J177: 0 | K177: 0 | L177: 0 | M177: 0 | N177: 0 | O177: 0 | P177: Witness: D. Avellan | Q177: 0 | R177: 0 | AB177: Witness: D. Avellan
A178: DOCKET No. XXX | H178: (Dollars in cents) | I178: 0 | J178: 0 | K178: 0 | L178: 0 | M178: 0 | N178: 0 | O178: 0 | Q178: 0 | R178: 0 | T178: (Dollars in cents)
H179: 0 | I179: 0 | J179: 0 | K179: 0 | L179: 0 | M179: 0 | N179: 0 | O179: 0 | P179: 0 | Q179: 0 | R179: 0
C180: (1) | D180: (2) | F180: (3) | H180: (4) | I180: 0 | J180: (5) | K180: 0 | L180: (6) | M180: 0 | N180: (7) | O180: 0 | P180: (8) | Q180: 0 | R180: (9) | T180: (4) | V180: (5) | X180: (6) | Z180: (7) | AB180: (8) | AD180: (9)
C181: Account/ | D181: Account/ | F181: Depreciation | H181: Plant | I181: 0 | J181: Total | K181: 0 | L181: Total | M181: 0 | N181: 0 | O181: 0 | P181: Plant | Q181: 0 | R181: 0 | T181: Plant | V181: Total | X181: Total | AB181: Plant
A182: Line | C182: Sub-account | D182: Sub-account | F182: Rate* | H182: Balance | I182: 0 | J182: Plant | K182: 0 | L182: Plant | M182: 0 | N182: Adjustments | O182: 0 | P182: Balance | Q182: 0 | R182: 13-Month | T182: Balance | V182: Plant | X182: Plant | Z182: Adjustments | AB182: Balance | AD182: 13-Month
A183: No. | C183: Number | D183: Title | F183: (%) | H183: Beg. of Year | I183: 00:00:00 | J183: Added | K183: 00:00:00 | L183: Retired | M183: 0 | N183: or Transfers | O183: 0 | P183: End of Year | Q183: 0 | R183: Average | T183: Beg. of Year | V183: Added | X183: Retired | Z183: or Transfers | AB183: End of Year | AD183: Average
A184: 1 | H184: 0 | I184: 0 | J184: 0 | K184: 0 | L184: 0 | M184: 0 | N184: 0 | O184: 0 | P184: 0 | Q184: 0 | R184: 0
A185: 2 | D185: POLK POWER STATION | H185: 0 | I185: 0 | J185: 0 | K185: 0 | L185: 0 | M185: 0 | N185: 0 | O185: 0 | P185: 0 | Q185: 0 | R185: 0
A186: 3 | D186: POLK COMMON | H186: 0 | I186: 0 | J186: 0 | K186: 0 | L186: 0 | M186: 0 | N186: 0 | O186: 0 | P186: 0 | Q186: 0 | R186: 0
A187: 4 | C187: 34180 | D187: Structures and Improvements | F187: 2.98 | H187: 193028.8777 | I187: 0 | J187: 0 | K187: 0 | L187: 0 | M187: 0 | N187: 0 | O187: 0 | P187: 193028.8777 | Q187: 0 | R187: 193028.8777 | T187: 193028877.7 | V187: 0 | X187: 0 | Z187: 0 | AB187: 193028877.7 | AD187: 193028877.7
A188: 5 | C188: 34280 | D188: Fuel Holders, Producers and Accessories | F188: 3.18 | H188: 12463.38885 | I188: 0 | J188: 3094.84298 | K188: 0 | L188: -618.96859 | M188: 0 | N188: 0 | O188: 0 | P188: 14939.26324 | Q188: 0 | R188: 13157.13647 | T188: 12463388.85 | V188: 3094842.98 | X188: -618968.59 | Z188: 0 | AB188: 14939263.24 | AD188: 13157136.47
A189: 6 | C189: 34380 | D189: Prime Movers | F189: 3.78 | H189: 13374.22122 | I189: 0 | J189: 3094.84298 | K189: 0 | L189: -618.96859 | M189: 0 | N189: 0 | O189: 0 | P189: 15850.09561 | Q189: 0 | R189: 14067.96884 | T189: 13374221.22 | V189: 3094842.98 | X189: -618968.59 | Z189: 0 | AB189: 15850095.61 | AD189: 14067968.84
A190: 7 | C190: 34580 | D190: Accessory Electric Equipment | F190: 2.84 | H190: 14500.59653 | I190: 0 | J190: 0 | K190: 0 | L190: 0 | M190: 0 | N190: 0 | O190: 0 | P190: 14500.59653 | Q190: 0 | R190: 14500.59653 | T190: 14500596.53 | V190: 0 | X190: 0 | Z190: 0 | AB190: 14500596.53 | AD190: 14500596.53
A191: 8 | C191: 34680 | D191: Misc. Power Plant Equipment | F191: 4.67 | H191: 1259.50778 | I191: 0 | J191: 0 | K191: 0 | L191: 0 | M191: 0 | N191: 0 | O191: 0 | P191: 1259.50778 | Q191: 0 | R191: 1259.50778 | T191: 1259507.78 | V191: 0 | X191: 0 | Z191: 0 | AB191: 1259507.78 | AD191: 1259507.78
A192: 9 | D192: TOTAL POLK POWER COMMON | H192: 234626.5921 | I192: 0 | J192: 6189.68596 | K192: 0 | L192: -1237.93718 | M192: 0 | N192: 0 | O192: 0 | P192: 239578.3409 | Q192: 0 | R192: 236014.0873 | T192: 234626592.1 | V192: 6189685.96 | X192: -1237937.18 | Z192: 0 | AB192: 239578340.9 | AD192: 236014087.3
A193: 10 | H193: 0 | I193: 0 | J193: 0 | K193: 0 | L193: 0 | M193: 0 | N193: 0 | O193: 0 | P193: 0 | Q193: 0 | R193: 0
A194: 11 | D194: POLK UNIT 1 | H194: 0 | I194: 0 | J194: 0 | K194: 0 | L194: 0 | M194: 0 | N194: 0 | O194: 0 | P194: 0 | Q194: 0 | R194: 0
A195: 12 | C195: 34181 | D195: Structures and Improvements | F195: 4.9 | H195: 53101.27578 | I195: 0 | J195: 0 | K195: 0 | L195: 0 | M195: 0 | N195: 0 | O195: 0 | P195: 53101.27578 | Q195: 0 | R195: 53101.27578 | T195: 53101275.78 | V195: 0 | X195: 0 | Z195: 0 | AB195: 53101275.78 | AD195: 53101275.78
A196: 13 | C196: 34281 | D196: Fuel Holders, Producers and Accessories | F196: 3.73 | H196: 249190.6875 | I196: 0 | J196: 41699.07741 | K196: 0 | L196: -282.92578 | M196: 0 | N196: 0 | O196: 0 | P196: 290606.8391 | Q196: 0 | R196: 274202.6444 | T196: 249190687.5 | V196: 41699077.41 | X196: -282925.78 | Z196: 0 | AB196: 290606839.1 | AD196: 274202644.4
A197: 14 | C197: 34381 | D197: Prime Movers | F197: 4.28 | H197: 164019.2807 | I197: 0 | J197: 41699.07741 | K197: 0 | L197: -282.92578 | M197: 0 | N197: 0 | O197: 0 | P197: 205435.4323 | Q197: 0 | R197: 189031.2376 | T197: 164019280.7 | V197: 41699077.41 | X197: -282925.78 | Z197: 0 | AB197: 205435432.3 | AD197: 189031237.6
A198: 15 | C198: 34581 | D198: Accessory Electric Equipment | F198: 2.54 | H198: 60502.60423 | I198: 0 | J198: 0 | K198: 0 | L198: 0 | M198: 0 | N198: 0 | O198: 0 | P198: 60502.60423 | Q198: 0 | R198: 60502.60423 | T198: 60502604.23 | V198: 0 | X198: 0 | Z198: 0 | AB198: 60502604.23 | AD198: 60502604.23
A199: 16 | C199: 34681 | D199: Misc. Power Plant Equipment | F199: 5.28 | H199: 6717.06059 | I199: 0 | J199: 0 | K199: 0 | L199: 0 | M199: 0 | N199: 0 | O199: 0 | P199: 6717.06059 | Q199: 0 | R199: 6717.06059 | T199: 6717060.59 | V199: 0 | X199: 0 | Z199: 0 | AB199: 6717060.59 | AD199: 6717060.59
A200: 17 | D200: TOTAL POLK UNIT 1 | H200: 533530.9088 | I200: 0 | J200: 83398.15482 | K200: 0 | L200: -565.85156 | M200: 0 | N200: 0 | O200: 0 | P200: 616363.212 | Q200: 0 | R200: 583554.8226 | T200: 533530908.8 | V200: 83398154.82 | X200: -565851.56 | Z200: 0 | AB200: 616363212 | AD200: 583554822.6
A201: 18 | H201: 0 | I201: 0 | J201: 0 | K201: 0 | L201: 0 | M201: 0 | N201: 0 | O201: 0 | P201: 0 | Q201: 0 | R201: 0
... 369 more rows

Sheet Accounting Schedule B-9
A1: SCHEDULE B-09 | F1: DEPRECIATION RESERVE BALANCES BY ACCOUNT AND SUB-ACCOUNT | R1: 10 | T1: Page 1 of 10 | V1: DEPRECIATION RESERVE BALANCES BY ACCOUNT AND SUB-ACCOUNT | AH1: 10 | AJ1: Page 1 of 10
A2: FLORIDA PUBLIC SERVICE COMMISSION | E2: EXPLANATION: | F2: Provide the depreciation reserve balances for each account or sub-account to which | R2: Type of data shown: | V2: Provide the depreciation reserve balances for each account or sub-account to which | AH2: Type of data shown:
F3: an individual depreciation rate is applied. (Include Amortization/Recovery amounts). | Q3: XX | R3: Projected Test Year Ended 12/31/2025 | V3: an individual depreciation rate is applied. (Include Amortization/Recovery amounts). | AG3: XX | AH3: Projected Test Year Ended 12/31/2025
A4: COMPANY: TAMPA ELECTRIC COMPANY | R4: Projected Prior Year Ended 12/31/2024 | AH4: Projected Prior Year Ended 12/31/2024
R5: Historical Prior Year Ended 12/31/2023 | AH5: Historical Prior Year Ended 12/31/2023
R6: Witness: D. Avellan | AH6: Witness: D. Avellan
A7: DOCKET No. XXX | H7: (Dollars in cents) | X7: (Dollars in cents)
C9: (1) | D9: (2) | F9: (3) | H9: (4) | J9: (5) | L9: (6) | N9: (7) | P9: (8) | R9: (9) | T9: (10) | V9: (3) | X9: (4) | Z9: (5) | AB9: (6) | AD9: (7) | AF9: (8) | AH9: (9) | AJ9: (10)
C10: Account/ | D10: Account/ | F10: Accumulated | H10: Total | R10: Accumulated | V10: Accumulated | X10: Total | AH10: Accumulated
A11: Line | C11: Sub-account | D11: Sub-account | F11: Depreciation | H11: Depreciation | L11: Gross | N11: Gross | P11: Adjustments | R11: Depreciation | T11: 13-Month | V11: Depreciation | X11: Depreciation | AB11: Gross | AD11: Gross | AF11: Adjustments | AH11: Depreciation | AJ11: 13-Month
A12: No. | C12: Number | D12: Title | F12: Beg. of Year | H12: Accrued | J12: Retirements | L12: COR | N12: Salvage | P12: or Transfers | R12: End of Year | T12: Average | V12: Beg. of Year | X12: Accrued | Z12: Retirements | AB12: COR | AD12: Salvage | AF12: or Transfers | AH12: End of Year | AJ12: Average
A13: 1 | L13: 14 | N13: 16 | P13: 18 | AB13: 14 | AD13: 16 | AF13: 18
A14: 2 | D14: STEAM PRODUCTION | F14: 11 | H14: 12 | J14: 13 | L14: 15 | N14: 17 | P14: 19 | R14: 21 | T14: 22 | V14: 11 | X14: 12 | Z14: 13 | AB14: 15 | AD14: 17 | AF14: 19 | AH14: 21 | AJ14: 22
A15: 3 | D15: BIG BEND POWER STATION | P15: 20 | AF15: 20
A16: 4 | D16: BIG BEND COMMON
A17: 5 | C17: 31140 | D17: Structures and Improvements | F17: =+IF(ISNUMBER(V17),V17/1000,V17) -> 72424.45529 | G17: =+IF(ISNUMBER(W17),W17/1000,W17) -> 0 | H17: =+IF(ISNUMBER(X17),X17/1000,X17) -> 7080.2808 | I17: =+IF(ISNUMBER(Y17),Y17/1000,Y17) -> 0 | J17: =+IF(ISNUMBER(Z17),Z17/1000,Z17) -> 0 | K17: =+IF(ISNUMBER(AA17),AA17/1000,AA17) -> 0 | L17: =+IF(ISNUMBER(AB17),AB17/1000,AB17) -> 0 | M17: =+IF(ISNUMBER(AC17),AC17/1000,AC17) -> 0 | N17: =+IF(ISNUMBER(AD17),AD17/1000,AD17) -> 0 | O17: =+IF(ISNUMBER(AE17),AE17/1000,AE17) -> 0 | P17: =+IF(ISNUMBER(AF17),AF17/1000,AF17) -> 0 | Q17: =+IF(ISNUMBER(AG17),AG17/1000,AG17) -> 0 | R17: =+IF(ISNUMBER(AH17),AH17/1000,AH17) -> 79504.73609 | S17: =+IF(ISNUMBER(AI17),AI17/1000,AI17) -> 0 | T17: =+IF(ISNUMBER(AJ17),AJ17/1000,AJ17) -> 75964.59569 | V17: 72424455.29 | X17: 7080280.8 | Z17: 0 | AB17: 0 | AD17: 0 | AF17: 0 | AH17: 79504736.09 | AJ17: 75964595.69
A18: 6 | C18: 31240 | D18: Boiler Plant Equipment | F18: =+IF(ISNUMBER(V18),V18/1000,V18) -> 50486.98994 | G18: 0 | H18: 7595.34511 | I18: 0 | J18: -1071.41309 | K18: 0 | L18: -548.24575 | M18: 0 | N18: 0 | O18: 0 | P18: 0 | Q18: 0 | R18: 56462.67621 | S18: 0 | T18: 53547.75622 | V18: 50486989.94 | X18: 7595345.11 | Z18: -1071413.09 | AB18: -548245.75 | AD18: 0 | AF18: 0 | AH18: 56462676.21 | AJ18: 53547756.22
A19: 7 | C19: 31440 | D19: Turbogenerator Units | F19: 954.130385 | G19: 0 | H19: 1185.99068 | I19: 0 | J19: -1071.41309 | K19: 0 | L19: -548.24575 | M19: 0 | N19: 0 | O19: 0 | P19: 0 | Q19: 0 | R19: 520.462225 | S19: 0 | T19: 809.92262 | V19: 954130.385 | X19: 1185990.68 | Z19: -1071413.09 | AB19: -548245.75 | AD19: 0 | AF19: 0 | AH19: 520462.225 | AJ19: 809922.62
A20: 8 | C20: 31540 | D20: Accessory Electric Equipment | F20: 19711.99914 | G20: 0 | H20: 949.97004 | I20: 0 | J20: 0 | K20: 0 | L20: 0 | M20: 0 | N20: 0 | O20: 0 | P20: 0 | Q20: 0 | R20: 20661.96918 | S20: 0 | T20: 20186.98416 | V20: 19711999.14 | X20: 949970.04 | Z20: 0 | AB20: 0 | AD20: 0 | AF20: 0 | AH20: 20661969.18 | AJ20: 20186984.16
A21: 9 | C21: 31640 | D21: Misc. Power Plant Equipment | F21: 11794.16124 | G21: 0 | H21: 534.25968 | I21: 0 | J21: 0 | K21: 0 | L21: 0 | M21: 0 | N21: 0 | O21: 0 | P21: 0 | Q21: 0 | R21: 12328.42092 | S21: 0 | T21: 12061.29108 | V21: 11794161.24 | X21: 534259.68 | Z21: 0 | AB21: 0 | AD21: 0 | AF21: 0 | AH21: 12328420.92 | AJ21: 12061291.08
A22: 10 | D22: TOTAL BIG BEND COMMON | F22: 155371.736 | G22: 0 | H22: 17345.84631 | I22: 0 | J22: -2142.82618 | K22: 0 | L22: -1096.4915 | M22: 0 | N22: 0 | O22: 0 | P22: 0 | Q22: 0 | R22: 169478.2646 | S22: 0 | T22: 162570.5498 | V22: 155371736 | X22: 17345846.31 | Z22: -2142826.18 | AB22: -1096491.5 | AD22: 0 | AF22: 0 | AH22: 169478264.6 | AJ22: 162570549.8
A23: 11 | F23: 0 | G23: 0 | H23: 0 | I23: 0 | J23: 0 | K23: 0 | L23: 0 | M23: 0 | N23: 0 | O23: 0 | P23: 0 | Q23: 0 | R23: 0 | S23: 0 | T23: 0
A24: 12 | D24: BIG BEND UNIT 1 | F24: 0 | G24: 0 | H24: 0 | I24: 0 | J24: 0 | K24: 0 | L24: 0 | M24: 0 | N24: 0 | O24: 0 | P24: 0 | Q24: 0 | R24: 0 | S24: 0 | T24: 0
A25: 13 | C25: 31141 | D25: Structures and Improvements | F25: 0 | G25: 0 | H25: 0 | I25: 0 | J25: 0 | K25: 0 | L25: 0 | M25: 0 | N25: 0 | O25: 0 | P25: 0 | Q25: 0 | R25: 0 | S25: 0 | T25: 0 | V25: 0 | X25: 0 | Z25: 0 | AB25: 0 | AD25: 0 | AF25: 0 | AH25: 0 | AJ25: 0
A26: 14 | C26: 31241 | D26: Boiler Plant Equipment | F26: 0 | G26: 0 | H26: 0 | I26: 0 | J26: 0 | K26: 0 | L26: 0 | M26: 0 | N26: 0 | O26: 0 | P26: 0 | Q26: 0 | R26: 0 | S26: 0 | T26: 0 | V26: 0 | X26: 0 | Z26: 0 | AB26: 0 | AD26: 0 | AF26: 0 | AH26: 0 | AJ26: 0
A27: 15 | C27: 31441 | D27: Turbogenerator Units | F27: 0 | G27: 0 | H27: 0 | I27: 0 | J27: 0 | K27: 0 | L27: 0 | M27: 0 | N27: 0 | O27: 0 | P27: 0 | Q27: 0 | R27: 0 | S27: 0 | T27: 0 | V27: 0 | X27: 0 | Z27: 0 | AB27: 0 | AD27: 0 | AF27: 0 | AH27: 0 | AJ27: 0
A28: 16 | C28: 31541 | D28: Accessory Electric Equipment | F28: 0 | G28: 0 | H28: 0 | I28: 0 | J28: 0 | K28: 0 | L28: 0 | M28: 0 | N28: 0 | O28: 0 | P28: 0 | Q28: 0 | R28: 0 | S28: 0 | T28: 0 | V28: 0 | X28: 0 | Z28: 0 | AB28: 0 | AD28: 0 | AF28: 0 | AH28: 0 | AJ28: 0
A29: 17 | C29: 31641 | D29: Misc. Power Plant Equipment | F29: 0 | G29: 0 | H29: 0 | I29: 0 | J29: 0 | K29: 0 | L29: 0 | M29: 0 | N29: 0 | O29: 0 | P29: 0 | Q29: 0 | R29: 0 | S29: 0 | T29: 0 | V29: 0 | X29: 0 | Z29: 0 | AB29: 0 | AD29: 0 | AF29: 0 | AH29: 0 | AJ29: 0
A30: 18 | D30: TOTAL BIG BEND UNIT 1 | F30: 0 | G30: 0 | H30: 0 | I30: 0 | J30: 0 | K30: 0 | L30: 0 | M30: 0 | N30: 0 | O30: 0 | P30: 0 | Q30: 0 | R30: 0 | S30: 0 | T30: 0 | V30: 0 | X30: 0 | Z30: 0 | AB30: 0 | AD30: 0 | AF30: 0 | AH30: 0 | AJ30: 0
A31: 19 | F31: 0 | G31: 0 | H31: 0 | I31: 0 | J31: 0 | K31: 0 | L31: 0 | M31: 0 | N31: 0 | O31: 0 | P31: 0 | Q31: 0 | R31: 0 | S31: 0 | T31: 0
A32: 20 | D32: BIG BEND UNIT 2 | F32: 0 | G32: 0 | H32: 0 | I32: 0 | J32: 0 | K32: 0 | L32: 0 | M32: 0 | N32: 0 | O32: 0 | P32: 0 | Q32: 0 | R32: 0 | S32: 0 | T32: 0
A33: 21 | C33: 31142 | D33: Structures and Improvements | F33: 0 | G33: 0 | H33: 0 | I33: 0 | J33: 0 | K33: 0 | L33: 0 | M33: 0 | N33: 0 | O33: 0 | P33: 0 | Q33: 0 | R33: 0 | S33: 0 | T33: 0 | V33: 0 | X33: 0 | Z33: 0 | AB33: 0 | AD33: 0 | AF33: 0 | AH33: 0 | AJ33: 0
A34: 22 | C34: 31242 | D34: Boiler Plant Equipment | F34: 0 | G34: 0 | H34: 0 | I34: 0 | J34: 0 | K34: 0 | L34: 0 | M34: 0 | N34: 0 | O34: 0 | P34: 0 | Q34: 0 | R34: 0 | S34: 0 | T34: 0 | V34: 0 | X34: 0 | Z34: 0 | AB34: 0 | AD34: 0 | AF34: 0 | AH34: 0 | AJ34: 0
A35: 23 | C35: 31442 | D35: Turbogenerator Units | F35: 0 | G35: 0 | H35: 0 | I35: 0 | J35: 0 | K35: 0 | L35: 0 | M35: 0 | N35: 0 | O35: 0 | P35: 0 | Q35: 0 | R35: 0 | S35: 0 | T35: 0 | V35: 0 | X35: 0 | Z35: 0 | AB35: 0 | AD35: 0 | AF35: 0 | AH35: 0 | AJ35: 0
A36: 24 | C36: 31542 | D36: Accessory Electric Equipment | F36: 0 | G36: 0 | H36: 0 | I36: 0 | J36: 0 | K36: 0 | L36: 0 | M36: 0 | N36: 0 | O36: 0 | P36: 0 | Q36: 0 | R36: 0 | S36: 0 | T36: 0 | V36: 0 | X36: 0 | Z36: 0 | AB36: 0 | AD36: 0 | AF36: 0 | AH36: 0 | AJ36: 0
A37: 25 | C37: 31642 | D37: Misc. Power Plant Equipment | F37: 0 | G37: 0 | H37: 0 | I37: 0 | J37: 0 | K37: 0 | L37: 0 | M37: 0 | N37: 0 | O37: 0 | P37: 0 | Q37: 0 | R37: 0 | S37: 0 | T37: 0 | V37: 0 | X37: 0 | Z37: 0 | AB37: 0 | AD37: 0 | AF37: 0 | AH37: 0 | AJ37: 0
A38: 26 | D38: TOTAL BIG BEND UNIT 2 | F38: 0 | G38: 0 | H38: 0 | I38: 0 | J38: 0 | K38: 0 | L38: 0 | M38: 0 | N38: 0 | O38: 0 | P38: 0 | Q38: 0 | R38: 0 | S38: 0 | T38: 0 | V38: 0 | X38: 0 | Z38: 0 | AB38: 0 | AD38: 0 | AF38: 0 | AH38: 0 | AJ38: 0
A39: 27 | F39: 0 | G39: 0 | H39: 0 | I39: 0 | J39: 0 | K39: 0 | L39: 0 | M39: 0 | N39: 0 | O39: 0 | P39: 0 | Q39: 0 | R39: 0 | S39: 0 | T39: 0
A40: 28 | D40: BIG BEND UNIT 3 | F40: 0 | G40: 0 | H40: 0 | I40: 0 | J40: 0 | K40: 0 | L40: 0 | M40: 0 | N40: 0 | O40: 0 | P40: 0 | Q40: 0 | R40: 0 | S40: 0 | T40: 0
A41: 29 | C41: 31143 | D41: Structures and Improvements | F41: 0 | G41: 0 | H41: 0 | I41: 0 | J41: 0 | K41: 0 | L41: 0 | M41: 0 | N41: 0 | O41: 0 | P41: 0 | Q41: 0 | R41: 0 | S41: 0 | T41: 0 | V41: 0 | X41: 0 | Z41: 0 | AB41: 0 | AD41: 0 | AF41: 0 | AH41: 0 | AJ41: 0
A42: 30 | C42: 31243 | D42: Boiler Plant Equipment | F42: 0 | G42: 0 | H42: 0 | I42: 0 | J42: 0 | K42: 0 | L42: 0 | M42: 0 | N42: 0 | O42: 0 | P42: 0 | Q42: 0 | R42: 0 | S42: 0 | T42: 0 | V42: 0 | X42: 0 | Z42: 0 | AB42: 0 | AD42: 0 | AF42: 0 | AH42: 0 | AJ42: 0
A43: 31 | C43: 31443 | D43: Turbogenerator Units | F43: 0 | G43: 0 | H43: 0 | I43: 0 | J43: 0 | K43: 0 | L43: 0 | M43: 0 | N43: 0 | O43: 0 | P43: 0 | Q43: 0 | R43: 0 | S43: 0 | T43: 0 | V43: 0 | X43: 0 | Z43: 0 | AB43: 0 | AD43: 0 | AF43: 0 | AH43: 0 | AJ43: 0
A44: 32 | C44: 31543 | D44: Accessory Electric Equipment | F44: 0 | G44: 0 | H44: 0 | I44: 0 | J44: 0 | K44: 0 | L44: 0 | M44: 0 | N44: 0 | O44: 0 | P44: 0 | Q44: 0 | R44: 0 | S44: 0 | T44: 0 | V44: 0 | X44: 0 | Z44: 0 | AB44: 0 | AD44: 0 | AF44: 0 | AH44: 0 | AJ44: 0
A45: 33 | C45: 31643 | D45: Misc. Power Plant Equipment | F45: 0 | G45: 0 | H45: 0 | I45: 0 | J45: 0 | K45: 0 | L45: 0 | M45: 0 | N45: 0 | O45: 0 | P45: 0 | Q45: 0 | R45: 0 | S45: 0 | T45: 0 | V45: 0 | X45: 0 | Z45: 0 | AB45: 0 | AD45: 0 | AF45: 0 | AH45: 0 | AJ45: 0
A46: 34 | D46: TOTAL BIG BEND UNIT 3 | F46: 0 | G46: 0 | H46: 0 | I46: 0 | J46: 0 | K46: 0 | L46: 0 | M46: 0 | N46: 0 | O46: 0 | P46: 0 | Q46: 0 | R46: 0 | S46: 0 | T46: 0 | V46: 0 | X46: 0 | Z46: 0 | AB46: 0 | AD46: 0 | AF46: 0 | AH46: 0 | AJ46: 0
A47: 35 | F47: 0 | G47: 0 | H47: 0 | I47: 0 | J47: 0 | K47: 0 | L47: 0 | M47: 0 | N47: 0 | O47: 0 | P47: 0 | Q47: 0 | R47: 0 | S47: 0 | T47: 0
A48: 36 | D48: BIG BEND UNIT 4 | F48: 0 | G48: 0 | H48: 0 | I48: 0 | J48: 0 | K48: 0 | L48: 0 | M48: 0 | N48: 0 | O48: 0 | P48: 0 | Q48: 0 | R48: 0 | S48: 0 | T48: 0
A49: 37 | C49: 31144 | D49: Structures and Improvements | F49: 27319.47367 | G49: 0 | H49: 1950.98808 | I49: 0 | J49: 0 | K49: 0 | L49: 0 | M49: 0 | N49: 0 | O49: 0 | P49: 0 | Q49: 0 | R49: 29270.46175 | S49: 0 | T49: 28294.96771 | V49: 27319473.67 | X49: 1950988.08 | Z49: 0 | AB49: 0 | AD49: 0 | AF49: 0 | AH49: 29270461.75 | AJ49: 28294967.71
A50: 38 | C50: 31244 | D50: Boiler Plant Equipment | F50: 117102.394 | G50: 0 | H50: 17043.06628 | I50: 0 | J50: -657.01186 | K50: 0 | L50: -302.05063 | M50: 0 | N50: 0 | O50: 0 | P50: 0 | Q50: 0 | R50: 133186.3978 | S50: 0 | T50: 125203.5018 | V50: 117102394 | X50: 17043066.28 | Z50: -657011.86 | AB50: -302050.63 | AD50: 0 | AF50: 0 | AH50: 133186397.8 | AJ50: 125203501.8
A51: 39 | C51: 31444 | D51: Turbogenerator Units | F51: 53046.99929 | G51: 0 | H51: 5643.88019 | I51: 0 | J51: -657.01186 | K51: 0 | L51: -302.05063 | M51: 0 | N51: 0 | O51: 0 | P51: 0 | Q51: 0 | R51: 57731.81699 | S51: 0 | T51: 55450.09173 | V51: 53046999.29 | X51: 5643880.19 | Z51: -657011.86 | AB51: -302050.63 | AD51: 0 | AF51: 0 | AH51: 57731816.99 | AJ51: 55450091.73
A52: 40 | C52: 31544 | D52: Accessory Electric Equipment | F52: 34250.24004 | G52: 0 | H52: 1480.06584 | I52: 0 | J52: 0 | K52: 0 | L52: 0 | M52: 0 | N52: 0 | O52: 0 | P52: 0 | Q52: 0 | R52: 35730.30588 | S52: 0 | T52: 34990.27296 | V52: 34250240.04 | X52: 1480065.84 | Z52: 0 | AB52: 0 | AD52: 0 | AF52: 0 | AH52: 35730305.88 | AJ52: 34990272.96
A53: 41 | C53: 31644 | D53: Misc. Power Plant Equipment | F53: 4399.68091 | G53: 0 | H53: 112.6236 | I53: 0 | J53: 0 | K53: 0 | L53: 0 | M53: 0 | N53: 0 | O53: 0 | P53: 0 | Q53: 0 | R53: 4512.30451 | S53: 0 | T53: 4455.99271 | V53: 4399680.91 | X53: 112623.6 | Z53: 0 | AB53: 0 | AD53: 0 | AF53: 0 | AH53: 4512304.51 | AJ53: 4455992.71
A54: 42 | D54: TOTAL BIG BEND UNIT 4 | F54: 236118.7879 | G54: 0 | H54: 26230.62399 | I54: 0 | J54: -1314.02372 | K54: 0 | L54: -604.10126 | M54: 0 | N54: 0 | O54: 0 | P54: 0 | Q54: 0 | R54: 260431.2869 | S54: 0 | T54: 248394.8269 | V54: 236118787.9 | X54: 26230623.99 | Z54: -1314023.72 | AB54: -604101.26 | AD54: 0 | AF54: 0 | AH54: 260431286.9 | AJ54: 248394826.9
A55: 43 | F55: 0 | G55: 0 | H55: 0 | I55: 0 | J55: 0 | K55: 0 | L55: 0 | M55: 0 | N55: 0 | O55: 0 | P55: 0 | Q55: 0 | R55: 0 | S55: 0 | T55: 0
A56: 44 | B56: Totals may be affected due to rounding. | F56: 0 | G56: 0 | H56: 0 | I56: 0 | J56: 0 | K56: 0 | L56: 0 | M56: 0 | N56: 0 | O56: 0 | P56: 0 | Q56: 0 | R56: 0 | S56: 0 | T56: 0
A57: Supporting Schedules: B-10, B-11 | F57: 0 | G57: 0 | H57: 0 | I57: 0 | J57: 0 | K57: 0 | L57: 0 | M57: 0 | N57: 0 | O57: 0 | P57: 0 | Q57: 0 | R57: Recap Schedules: B-03, B-06 | S57: 0 | T57: 0 | AH57: Recap Schedules: B-03, B-06
A58: SCHEDULE B-09 | F58: DEPRECIATION RESERVE BALANCES BY ACCOUNT AND SUB-ACCOUNT | G58: 0 | H58: 0 | I58: 0 | J58: 0 | K58: 0 | L58: 0 | M58: 0 | N58: 0 | O58: 0 | P58: 0 | Q58: 0 | R58: 0 | S58: 0 | T58: Page 2 of 10 | V58: DEPRECIATION RESERVE BALANCES BY ACCOUNT AND SUB-ACCOUNT | AJ58: Page 2 of 10
A59: FLORIDA PUBLIC SERVICE COMMISSION | E59: EXPLANATION: | F59: Provide the depreciation reserve balances for each account or sub-account to which | G59: 0 | H59: 0 | I59: 0 | J59: 0 | K59: 0 | L59: 0 | M59: 0 | N59: 0 | O59: 0 | P59: 0 | Q59: 0 | R59: Type of data shown: | S59: 0 | T59: 0 | V59: Provide the depreciation reserve balances for each account or sub-account to which | AH59: Type of data shown:
F60: an individual depreciation rate is applied. (Include Amortization/Recovery amounts). | G60: 0 | H60: 0 | I60: 0 | J60: 0 | K60: 0 | L60: 0 | M60: 0 | N60: 0 | O60: 0 | P60: 0 | Q60: XX | R60: Projected Test Year Ended 12/31/2025 | S60: 0 | T60: 0 | V60: an individual depreciation rate is applied. (Include Amortization/Recovery amounts). | AG60: XX | AH60: Projected Test Year Ended 12/31/2025
A61: COMPANY: TAMPA ELECTRIC COMPANY | G61: 0 | H61: 0 | I61: 0 | J61: 0 | K61: 0 | L61: 0 | M61: 0 | N61: 0 | O61: 0 | P61: 0 | R61: Projected Prior Year Ended 12/31/2024 | S61: 0 | T61: 0 | AH61: Projected Prior Year Ended 12/31/2024
G62: 0 | H62: 0 | I62: 0 | J62: 0 | K62: 0 | L62: 0 | M62: 0 | N62: 0 | O62: 0 | P62: 0 | R62: Historical Prior Year Ended 12/31/2023 | S62: 0 | T62: 0 | AH62: Historical Prior Year Ended 12/31/2023
F63: 0 | G63: 0 | H63: 0 | I63: 0 | J63: 0 | K63: 0 | L63: 0 | M63: 0 | N63: 0 | O63: 0 | P63: 0 | Q63: 0 | R63: Witness: D. Avellan | S63: 0 | T63: 0 | AH63: Witness: D. Avellan
A64: DOCKET No. XXX | G64: 0 | H64: (Dollars in cents) | I64: 0 | J64: 0 | K64: 0 | L64: 0 | M64: 0 | N64: 0 | O64: 0 | P64: 0 | Q64: 0 | S64: 0 | T64: 0 | X64: (Dollars in cents)
F65: 0 | G65: 0 | H65: 0 | I65: 0 | J65: 0 | K65: 0 | L65: 0 | M65: 0 | N65: 0 | O65: 0 | P65: 0 | Q65: 0 | R65: 0 | S65: 0 | T65: 0
C66: (1) | D66: (2) | F66: (3) | G66: 0 | H66: (4) | I66: 0 | J66: (5) | K66: 0 | L66: (6) | M66: 0 | N66: (7) | O66: 0 | P66: (8) | Q66: 0 | R66: (9) | S66: 0 | T66: (10) | V66: (3) | X66: (4) | Z66: (5) | AB66: (6) | AD66: (7) | AF66: (8) | AH66: (9) | AJ66: (10)
C67: Account/ | D67: Account/ | F67: Accumulated | G67: 0 | H67: Total | I67: 0 | J67: 0 | K67: 0 | L67: 0 | M67: 0 | N67: 0 | O67: 0 | P67: 0 | Q67: 0 | R67: Accumulated | S67: 0 | T67: 0 | V67: Accumulated | X67: Total | AH67: Accumulated
A68: Line | C68: Sub-account | D68: Sub-account | F68: Depreciation | G68: 0 | H68: Depreciation | I68: 0 | J68: 0 | K68: 0 | L68: Gross | M68: 0 | N68: Gross | O68: 0 | P68: Adjustments | Q68: 0 | R68: Depreciation | S68: 0 | T68: 13-Month | V68: Depreciation | X68: Depreciation | AB68: Gross | AD68: Gross | AF68: Adjustments | AH68: Depreciation | AJ68: 13-Month
A69: No. | C69: Number | D69: Title | F69: Beg. of Year | G69: 00:00:00 | H69: Accrued | I69: 00:00:00 | J69: Retirements | K69: 00:00:00 | L69: COR | M69: 0 | N69: Salvage | O69: 0 | P69: or Transfers | Q69: 0 | R69: End of Year | S69: 0 | T69: Average | V69: Beg. of Year | X69: Accrued | Z69: Retirements | AB69: COR | AD69: Salvage | AF69: or Transfers | AH69: End of Year | AJ69: Average
A70: 1 | F70: 0 | G70: 0 | H70: 0 | I70: 0 | J70: 0 | K70: 0 | L70: 0 | M70: 0 | N70: 0 | O70: 0 | P70: 0 | Q70: 0 | R70: 0 | S70: 0 | T70: 0
A71: 2 | D71: BIG BEND UNIT 3 & 4 FGD | F71: 0 | G71: 0 | H71: 0 | I71: 0 | J71: 0 | K71: 0 | L71: 0 | M71: 0 | N71: 0 | O71: 0 | P71: 0 | Q71: 0 | R71: 0 | S71: 0 | T71: 0
A72: 3 | C72: 31145 | D72: Structures and Improvements | F72: 19373.05054 | G72: 0 | H72: 1116.75336 | I72: 0 | J72: 0 | K72: 0 | L72: 0 | M72: 0 | N72: 0 | O72: 0 | P72: 0 | Q72: 0 | R72: 20489.8039 | S72: 0 | T72: 19931.42722 | V72: 19373050.54 | X72: 1116753.36 | Z72: 0 | AB72: 0 | AD72: 0 | AF72: 0 | AH72: 20489803.9 | AJ72: 19931427.22
A73: 4 | C73: 31245 | D73: Boiler Plant Equipment | F73: 80754.23411 | G73: 0 | H73: 10612.96385 | I73: 0 | J73: -115.00058 | K73: 0 | L73: -7.86948 | M73: 0 | N73: 0 | O73: 0 | P73: 0 | Q73: 0 | R73: 91244.3279 | S73: 0 | T73: 86017.60668 | V73: 80754234.11 | X73: 10612963.85 | Z73: -115000.58 | AB73: -7869.48 | AD73: 0 | AF73: 0 | AH73: 91244327.9 | AJ73: 86017606.68
A74: 5 | C74: 31545 | D74: Accessory Electric Equipment | F74: 17640.0775 | G74: 0 | H74: 755.2165 | I74: 0 | J74: -115.00058 | K74: 0 | L74: -7.86948 | M74: 0 | N74: 0 | O74: 0 | P74: 0 | Q74: 0 | R74: 18272.42394 | S74: 0 | T74: 17975.58902 | V74: 17640077.5 | X74: 755216.5 | Z74: -115000.58 | AB74: -7869.48 | AD74: 0 | AF74: 0 | AH74: 18272423.94 | AJ74: 17975589.02
A75: 6 | C75: 31645 | D75: Misc. Power Plant Equipment | F75: 1278.88332 | G75: 0 | H75: 32.54112 | I75: 0 | J75: 0 | K75: 0 | L75: 0 | M75: 0 | N75: 0 | O75: 0 | P75: 0 | Q75: 0 | R75: 1311.42444 | S75: 0 | T75: 1295.15388 | V75: 1278883.32 | X75: 32541.12 | Z75: 0 | AB75: 0 | AD75: 0 | AF75: 0 | AH75: 1311424.44 | AJ75: 1295153.88
A76: 7 | D76: TOTAL BIG BEND UNIT 3 & 4 FGD | F76: 119046.2455 | G76: 0 | H76: 12517.47483 | I76: 0 | J76: -230.00116 | K76: 0 | L76: -15.73896 | M76: 0 | N76: 0 | O76: 0 | P76: 0 | Q76: 0 | R76: 131317.9802 | S76: 0 | T76: 125219.7768 | V76: 119046245.5 | X76: 12517474.83 | Z76: -230001.16 | AB76: -15738.96 | AD76: 0 | AF76: 0 | AH76: 131317980.2 | AJ76: 125219776.8
A77: 8 | F77: 0 | G77: 0 | H77: 0 | I77: 0 | J77: 0 | K77: 0 | L77: 0 | M77: 0 | N77: 0 | O77: 0 | P77: 0 | Q77: 0 | R77: 0 | S77: 0 | T77: 0
A78: 9 | D78: BIG BEND UNIT 1 & 2 FGD | F78: 0 | G78: 0 | H78: 0 | I78: 0 | J78: 0 | K78: 0 | L78: 0 | M78: 0 | N78: 0 | O78: 0 | P78: 0 | Q78: 0 | R78: 0 | S78: 0 | T78: 0
A79: 10 | C79: 31146 | D79: Structures and Improvements | F79: 0 | G79: 0 | H79: 0 | I79: 0 | J79: 0 | K79: 0 | L79: 0 | M79: 0 | N79: 0 | O79: 0 | P79: 0 | Q79: 0 | R79: 0 | S79: 0 | T79: 0 | V79: 0 | X79: 0 | Z79: 0 | AB79: 0 | AD79: 0 | AF79: 0 | AH79: 0 | AJ79: 0
A80: 11 | C80: 31246 | D80: Boiler Plant Equipment | F80: 0 | G80: 0 | H80: 0 | I80: 0 | J80: 0 | K80: 0 | L80: 0 | M80: 0 | N80: 0 | O80: 0 | P80: 0 | Q80: 0 | R80: 0 | S80: 0 | T80: 0 | V80: 0 | X80: 0 | Z80: 0 | AB80: 0 | AD80: 0 | AF80: 0 | AH80: 0 | AJ80: 0
A81: 12 | C81: 31546 | D81: Accessory Electric Equipment | F81: 0 | G81: =+IF(ISNUMBER(W81),W81/1000,W81) -> 0 | H81: =+IF(ISNUMBER(X81),X81/1000,X81) -> 0 | I81: =+IF(ISNUMBER(Y81),Y81/1000,Y81) -> 0 | J81: =+IF(ISNUMBER(Z81),Z81/1000,Z81) -> 0 | K81: =+IF(ISNUMBER(AA81),AA81/1000,AA81) -> 0 | L81: =+IF(ISNUMBER(AB81),AB81/1000,AB81) -> 0 | M81: =+IF(ISNUMBER(AC81),AC81/1000,AC81) -> 0 | N81: =+IF(ISNUMBER(AD81),AD81/1000,AD81) -> 0 | O81: =+IF(ISNUMBER(AE81),AE81/1000,AE81) -> 0 | P81: =+IF(ISNUMBER(AF81),AF81/1000,AF81) -> 0 | Q81: =+IF(ISNUMBER(AG81),AG81/1000,AG81) -> 0 | R81: =+IF(ISNUMBER(AH81),AH81/1000,AH81) -> 0 | S81: =+IF(ISNUMBER(AI81),AI81/1000,AI81) -> 0 | T81: =+IF(ISNUMBER(AJ81),AJ81/1000,AJ81) -> 0 | V81: 0 | X81: 0 | Z81: 0 | AB81: 0 | AD81: 0 | AF81: 0 | AH81: 0 | AJ81: 0
A82: 13 | C82: 31646 | D82: Misc. Power Plant Equipment | F82: =+IF(ISNUMBER(V82),V82/1000,V82) -> 0 | G82: 0 | H82: 0 | I82: 0 | J82: 0 | K82: 0 | L82: 0 | M82: 0 | N82: 0 | O82: 0 | P82: 0 | Q82: 0 | R82: 0 | S82: 0 | T82: 0 | V82: 0 | X82: 0 | Z82: 0 | AB82: 0 | AD82: 0 | AF82: 0 | AH82: 0 | AJ82: 0
A83: 14 | D83: TOTAL BIG BEND UNIT 1 & 2 FGD | F83: 0 | G83: 0 | H83: 0 | I83: 0 | J83: 0 | K83: 0 | L83: 0 | M83: 0 | N83: 0 | O83: 0 | P83: 0 | Q83: 0 | R83: 0 | S83: 0 | T83: 0 | V83: 0 | X83: 0 | Z83: 0 | AB83: 0 | AD83: 0 | AF83: 0 | AH83: 0 | AJ83: 0
A84: 15 | F84: 0 | G84: 0 | H84: 0 | I84: 0 | J84: 0 | K84: 0 | L84: 0 | M84: 0 | N84: 0 | O84: 0 | P84: 0 | Q84: 0 | R84: 0 | S84: 0 | T84: 0
A85: 16 | D85: BIG BEND UNIT 1 SCR | F85: 0 | G85: 0 | H85: 0 | I85: 0 | J85: 0 | K85: 0 | L85: 0 | M85: 0 | N85: 0 | O85: 0 | P85: 0 | Q85: 0 | R85: 0 | S85: 0 | T85: 0
A86: 17 | C86: 31151 | D86: Structures and Improvements | F86: 0 | G86: 0 | H86: 0 | I86: 0 | J86: 0 | K86: 0 | L86: 0 | M86: 0 | N86: 0 | O86: 0 | P86: 0 | Q86: 0 | R86: 0 | S86: 0 | T86: 0 | V86: 0 | X86: 0 | Z86: 0 | AB86: 0 | AD86: 0 | AF86: 0 | AH86: 0 | AJ86: 0
A87: 18 | C87: 31251 | D87: Boiler Plant Equipment | F87: 0 | G87: 0 | H87: 0 | I87: 0 | J87: 0 | K87: 0 | L87: 0 | M87: 0 | N87: 0 | O87: 0 | P87: 0 | Q87: 0 | R87: 0 | S87: 0 | T87: 0 | V87: 0 | X87: 0 | Z87: 0 | AB87: 0 | AD87: 0 | AF87: 0 | AH87: 0 | AJ87: 0
A88: 19 | C88: 31551 | D88: Accessory Electric Equipment | F88: 0 | G88: 0 | H88: 0 | I88: 0 | J88: 0 | K88: 0 | L88: 0 | M88: 0 | N88: 0 | O88: 0 | P88: 0 | Q88: 0 | R88: 0 | S88: 0 | T88: 0 | V88: 0 | X88: 0 | Z88: 0 | AB88: 0 | AD88: 0 | AF88: 0 | AH88: 0 | AJ88: 0
A89: 20 | C89: 31651 | D89: Misc Power Plant Eq-BPC | F89: 0 | G89: 0 | H89: 0 | I89: 0 | J89: 0 | K89: 0 | L89: 0 | M89: 0 | N89: 0 | O89: 0 | P89: 0 | Q89: 0 | R89: 0 | S89: 0 | T89: 0 | V89: 0 | X89: 0 | Z89: 0 | AB89: 0 | AD89: 0 | AF89: 0 | AH89: 0 | AJ89: 0
A90: 21 | D90: TOTAL BIG BEND UNIT 1 SCR | F90: 0 | G90: 0 | H90: 0 | I90: 0 | J90: 0 | K90: 0 | L90: 0 | M90: 0 | N90: 0 | O90: 0 | P90: 0 | Q90: 0 | R90: 0 | S90: 0 | T90: 0 | V90: 0 | X90: 0 | Z90: 0 | AB90: 0 | AD90: 0 | AF90: 0 | AH90: 0 | AJ90: 0
A91: 22 | F91: 0 | G91: 0 | H91: 0 | I91: 0 | J91: 0 | K91: 0 | L91: 0 | M91: 0 | N91: 0 | O91: 0 | P91: 0 | Q91: 0 | R91: 0 | S91: 0 | T91: 0
A92: 23 | D92: BIG BEND UNIT 2 SCR | F92: 0 | G92: 0 | H92: 0 | I92: 0 | J92: 0 | K92: 0 | L92: 0 | M92: 0 | N92: 0 | O92: 0 | P92: 0 | Q92: 0 | R92: 0 | S92: 0 | T92: 0
A93: 24 | C93: 31152 | D93: Structures and Improvements | F93: 0 | G93: 0 | H93: 0 | I93: 0 | J93: 0 | K93: 0 | L93: 0 | M93: 0 | N93: 0 | O93: 0 | P93: 0 | Q93: 0 | R93: 0 | S93: 0 | T93: 0 | V93: 0 | X93: 0 | Z93: 0 | AB93: 0 | AD93: 0 | AF93: 0 | AH93: 0 | AJ93: 0
A94: 25 | C94: 31252 | D94: Boiler Plant Equipment | F94: 0 | G94: 0 | H94: 0 | I94: 0 | J94: 0 | K94: 0 | L94: 0 | M94: 0 | N94: 0 | O94: 0 | P94: 0 | Q94: 0 | R94: 0 | S94: 0 | T94: 0 | V94: 0 | X94: 0 | Z94: 0 | AB94: 0 | AD94: 0 | AF94: 0 | AH94: 0 | AJ94: 0
A95: 26 | C95: 31552 | D95: Accessory Electric Equipment | F95: 0 | G95: 0 | H95: 0 | I95: 0 | J95: 0 | K95: 0 | L95: 0 | M95: 0 | N95: 0 | O95: 0 | P95: 0 | Q95: 0 | R95: 0 | S95: 0 | T95: 0 | V95: 0 | X95: 0 | Z95: 0 | AB95: 0 | AD95: 0 | AF95: 0 | AH95: 0 | AJ95: 0
A96: 27 | C96: 31652 | D96: Misc. Power Plant Equipment | F96: 0 | G96: 0 | H96: 0 | I96: 0 | J96: 0 | K96: 0 | L96: 0 | M96: 0 | N96: 0 | O96: 0 | P96: 0 | Q96: 0 | R96: 0 | S96: 0 | T96: 0 | V96: 0 | X96: 0 | Z96: 0 | AB96: 0 | AD96: 0 | AF96: 0 | AH96: 0 | AJ96: 0
A97: 28 | D97: TOTAL BIG BEND UNIT 2 SCR | F97: 0 | G97: 0 | H97: 0 | I97: 0 | J97: 0 | K97: 0 | L97: 0 | M97: 0 | N97: 0 | O97: 0 | P97: 0 | Q97: 0 | R97: 0 | S97: 0 | T97: 0 | V97: 0 | X97: 0 | Z97: 0 | AB97: 0 | AD97: 0 | AF97: 0 | AH97: 0 | AJ97: 0
A98: 29 | F98: 0 | G98: 0 | H98: 0 | I98: 0 | J98: 0 | K98: 0 | L98: 0 | M98: 0 | N98: 0 | O98: 0 | P98: 0 | Q98: 0 | R98: 0 | S98: 0 | T98: 0
A99: 30 | D99: BIG BEND UNIT 3 SCR | F99: 0 | G99: 0 | H99: 0 | I99: 0 | J99: 0 | K99: 0 | L99: 0 | M99: 0 | N99: 0 | O99: 0 | P99: 0 | Q99: 0 | R99: 0 | S99: 0 | T99: 0
A100: 31 | C100: 31153 | D100: Structures and Improvements | F100: 0 | G100: 0 | H100: 0 | I100: 0 | J100: 0 | K100: 0 | L100: 0 | M100: 0 | N100: 0 | O100: 0 | P100: 0 | Q100: 0 | R100: 0 | S100: 0 | T100: 0 | V100: 0 | X100: 0 | Z100: 0 | AB100: 0 | AD100: 0 | AF100: 0 | AH100: 0 | AJ100: 0
A101: 32 | C101: 31253 | D101: Boiler Plant Equipment | F101: 0 | G101: 0 | H101: 0 | I101: 0 | J101: 0 | K101: 0 | L101: 0 | M101: 0 | N101: 0 | O101: 0 | P101: 0 | Q101: 0 | R101: 0 | S101: 0 | T101: 0 | V101: 0 | X101: 0 | Z101: 0 | AB101: 0 | AD101: 0 | AF101: 0 | AH101: 0 | AJ101: 0
A102: 33 | C102: 31553 | D102: Accessory Electric Equipment | F102: 0 | G102: 0 | H102: 0 | I102: 0 | J102: 0 | K102: 0 | L102: 0 | M102: 0 | N102: 0 | O102: 0 | P102: 0 | Q102: 0 | R102: 0 | S102: 0 | T102: 0 | V102: 0 | X102: 0 | Z102: 0 | AB102: 0 | AD102: 0 | AF102: 0 | AH102: 0 | AJ102: 0
A103: 34 | C103: 31653 | D103: Misc. Power Plant Equipment | F103: 0 | G103: 0 | H103: 0 | I103: 0 | J103: 0 | K103: 0 | L103: 0 | M103: 0 | N103: 0 | O103: 0 | P103: 0 | Q103: 0 | R103: 0 | S103: 0 | T103: 0 | V103: 0 | X103: 0 | Z103: 0 | AB103: 0 | AD103: 0 | AF103: 0 | AH103: 0 | AJ103: 0
A104: 35 | D104: TOTAL BIG BEND UNIT 3 SCR | F104: 0 | G104: 0 | H104: 0 | I104: 0 | J104: 0 | K104: 0 | L104: 0 | M104: 0 | N104: 0 | O104: 0 | P104: 0 | Q104: 0 | R104: 0 | S104: 0 | T104: 0 | V104: 0 | X104: 0 | Z104: 0 | AB104: 0 | AD104: 0 | AF104: 0 | AH104: 0 | AJ104: 0
A105: 36 | F105: 0 | G105: 0 | H105: 0 | I105: 0 | J105: 0 | K105: 0 | L105: 0 | M105: 0 | N105: 0 | O105: 0 | P105: 0 | Q105: 0 | R105: 0 | S105: 0 | T105: 0
A106: 37 | D106: BIG BEND UNIT 4 SCR | F106: 0 | G106: 0 | H106: 0 | I106: 0 | J106: 0 | K106: 0 | L106: 0 | M106: 0 | N106: 0 | O106: 0 | P106: 0 | Q106: 0 | R106: 0 | S106: 0 | T106: 0
A107: 38 | C107: 31154 | D107: Structures and Improvements | F107: 7340.80375 | G107: 0 | H107: 593.14044 | I107: 0 | J107: 0 | K107: 0 | L107: 0 | M107: 0 | N107: 0 | O107: 0 | P107: 0 | Q107: 0 | R107: 7933.94419 | S107: 0 | T107: 7637.37397 | V107: 7340803.75 | X107: 593140.44 | Z107: 0 | AB107: 0 | AD107: 0 | AF107: 0 | AH107: 7933944.19 | AJ107: 7637373.97
A108: 39 | C108: 31254 | D108: Boiler Plant Equipment | F108: 16146.17574 | G108: 0 | H108: 2166.39696 | I108: 0 | J108: 0 | K108: 0 | L108: 0 | M108: 0 | N108: 0 | O108: 0 | P108: 0 | Q108: 0 | R108: 18312.5727 | S108: 0 | T108: 17229.37422 | V108: 16146175.74 | X108: 2166396.96 | Z108: 0 | AB108: 0 | AD108: 0 | AF108: 0 | AH108: 18312572.7 | AJ108: 17229374.22
A109: 40 | C109: 31554 | D109: Accessory Electric Equipment | F109: 10029.9186 | G109: 0 | H109: 433.87584 | I109: 0 | J109: 0 | K109: 0 | L109: 0 | M109: 0 | N109: 0 | O109: 0 | P109: 0 | Q109: 0 | R109: 10463.79444 | S109: 0 | T109: 10246.85652 | V109: 10029918.6 | X109: 433875.84 | Z109: 0 | AB109: 0 | AD109: 0 | AF109: 0 | AH109: 10463794.44 | AJ109: 10246856.52
A110: 41 | C110: 31654 | D110: Misc. Power Plant Equipment | F110: 377.52844 | G110: 0 | H110: 13.20828 | I110: 0 | J110: 0 | K110: 0 | L110: 0 | M110: 0 | N110: 0 | O110: 0 | P110: 0 | Q110: 0 | R110: 390.73672 | S110: 0 | T110: 384.13258 | V110: 377528.44 | X110: 13208.28 | Z110: 0 | AB110: 0 | AD110: 0 | AF110: 0 | AH110: 390736.72 | AJ110: 384132.58
A111: 42 | D111: TOTAL BIG BEND UNIT 4 SCR | F111: 33894.42653 | G111: 0 | H111: 3206.62152 | I111: 0 | J111: 0 | K111: 0 | L111: 0 | M111: 0 | N111: 0 | O111: 0 | P111: 0 | Q111: 0 | R111: 37101.04805 | S111: 0 | T111: 35497.73729 | V111: 33894426.53 | X111: 3206621.52 | Z111: 0 | AB111: 0 | AD111: 0 | AF111: 0 | AH111: 37101048.05 | AJ111: 35497737.29
A112: 43 | F112: 0 | G112: 0 | H112: 0 | I112: 0 | J112: 0 | K112: 0 | L112: 0 | M112: 0 | N112: 0 | O112: 0 | P112: 0 | Q112: 0 | R112: 0 | S112: 0 | T112: 0
A113: 44 | B113: Totals may be affected due to rounding. | F113: 0 | G113: 0 | H113: 0 | I113: 0 | J113: 0 | K113: 0 | L113: 0 | M113: 0 | N113: 0 | O113: 0 | P113: 0 | Q113: 0 | R113: 0 | S113: 0 | T113: 0
A114: Supporting Schedules: B-10, B-11 | F114: 0 | G114: 0 | H114: 0 | I114: 0 | J114: 0 | K114: 0 | L114: 0 | M114: 0 | N114: 0 | O114: 0 | P114: 0 | Q114: 0 | R114: Recap Schedules: B-03, B-06 | S114: 0 | T114: 0 | AH114: Recap Schedules: B-03, B-06
A115: SCHEDULE B-09 | F115: DEPRECIATION RESERVE BALANCES BY ACCOUNT AND SUB-ACCOUNT | G115: 0 | H115: 0 | I115: 0 | J115: 0 | K115: 0 | L115: 0 | M115: 0 | N115: 0 | O115: 0 | P115: 0 | Q115: 0 | R115: 0 | S115: 0 | T115: Page 3 of 10 | V115: DEPRECIATION RESERVE BALANCES BY ACCOUNT AND SUB-ACCOUNT | AJ115: Page 3 of 10
A116: FLORIDA PUBLIC SERVICE COMMISSION | E116: EXPLANATION: | F116: Provide the depreciation reserve balances for each account or sub-account to which | G116: 0 | H116: 0 | I116: 0 | J116: 0 | K116: 0 | L116: 0 | M116: 0 | N116: 0 | O116: 0 | P116: 0 | Q116: 0 | R116: Type of data shown: | S116: 0 | T116: 0 | V116: Provide the depreciation reserve balances for each account or sub-account to which | AH116: Type of data shown:
F117: an individual depreciation rate is applied. (Include Amortization/Recovery amounts). | G117: 0 | H117: 0 | I117: 0 | J117: 0 | K117: 0 | L117: 0 | M117: 0 | N117: 0 | O117: 0 | P117: 0 | Q117: XX | R117: Projected Test Year Ended 12/31/2025 | S117: 0 | T117: 0 | V117: an individual depreciation rate is applied. (Include Amortization/Recovery amounts). | AG117: XX | AH117: Projected Test Year Ended 12/31/2025
A118: COMPANY: TAMPA ELECTRIC COMPANY | G118: 0 | H118: 0 | I118: 0 | J118: 0 | K118: 0 | L118: 0 | M118: 0 | N118: 0 | O118: 0 | P118: 0 | R118: Projected Prior Year Ended 12/31/2024 | S118: 0 | T118: 0 | AH118: Projected Prior Year Ended 12/31/2024
G119: 0 | H119: 0 | I119: 0 | J119: 0 | K119: 0 | L119: 0 | M119: 0 | N119: 0 | O119: 0 | P119: 0 | R119: Historical Prior Year Ended 12/31/2023 | S119: 0 | T119: 0 | AH119: Historical Prior Year Ended 12/31/2023
F120: 0 | G120: 0 | H120: 0 | I120: 0 | J120: 0 | K120: 0 | L120: 0 | M120: 0 | N120: 0 | O120: 0 | P120: 0 | Q120: 0 | R120: Witness: D. Avellan | S120: 0 | T120: 0 | AH120: Witness: D. Avellan
A121: DOCKET No. XXX | G121: 0 | H121: (Dollars in cents) | I121: 0 | J121: 0 | K121: 0 | L121: 0 | M121: 0 | N121: 0 | O121: 0 | P121: 0 | Q121: 0 | S121: 0 | T121: 0 | X121: (Dollars in cents)
F122: 0 | G122: 0 | H122: 0 | I122: 0 | J122: 0 | K122: 0 | L122: 0 | M122: 0 | N122: 0 | O122: 0 | P122: 0 | Q122: 0 | R122: 0 | S122: 0 | T122: 0
C123: (1) | D123: (2) | F123: (3) | G123: 0 | H123: (4) | I123: 0 | J123: (5) | K123: 0 | L123: (6) | M123: 0 | N123: (7) | O123: 0 | P123: (8) | Q123: 0 | R123: (9) | S123: 0 | T123: (10) | V123: (3) | X123: (4) | Z123: (5) | AB123: (6) | AD123: (7) | AF123: (8) | AH123: (9) | AJ123: (10)
C124: Account/ | D124: Account/ | F124: Accumulated | G124: 0 | H124: Total | I124: 0 | J124: 0 | K124: 0 | L124: 0 | M124: 0 | N124: 0 | O124: 0 | P124: 0 | Q124: 0 | R124: Accumulated | S124: 0 | T124: 0 | V124: Accumulated | X124: Total | AH124: Accumulated
A125: Line | C125: Sub-account | D125: Sub-account | F125: Depreciation | G125: 0 | H125: Depreciation | I125: 0 | J125: 0 | K125: 0 | L125: Gross | M125: 0 | N125: Gross | O125: 0 | P125: Adjustments | Q125: 0 | R125: Depreciation | S125: 0 | T125: 13-Month | V125: Depreciation | X125: Depreciation | AB125: Gross | AD125: Gross | AF125: Adjustments | AH125: Depreciation | AJ125: 13-Month
A126: No. | C126: Number | D126: Title | F126: Beg. of Year | G126: 00:00:00 | H126: Accrued | I126: 00:00:00 | J126: Retirements | K126: 00:00:00 | L126: COR | M126: 0 | N126: Salvage | O126: 0 | P126: or Transfers | Q126: 0 | R126: End of Year | S126: 0 | T126: Average | V126: Beg. of Year | X126: Accrued | Z126: Retirements | AB126: COR | AD126: Salvage | AF126: or Transfers | AH126: End of Year | AJ126: Average
A127: 1 | F127: 0 | G127: 0 | H127: 0 | I127: 0 | J127: 0 | K127: 0 | L127: 0 | M127: 0 | N127: 0 | O127: 0 | P127: 0 | Q127: 0 | R127: 0 | S127: 0 | T127: 0
A128: 2 | C128: 31247 | D128: Big Bend Fuel Clause | F128: 10187.10965 | G128: 0 | H128: 0 | I128: 0 | J128: 0 | K128: 0 | L128: 0 | M128: 0 | N128: 0 | O128: 0 | P128: 0 | Q128: 0 | R128: 10187.10965 | S128: 0 | T128: 10187.10965 | V128: 10187109.65 | X128: 0 | Z128: 0 | AB128: 0 | AD128: 0 | AF128: 0 | AH128: 10187109.65 | AJ128: 10187109.65
A129: 3 | C129: 31647 | D129: Big Bend Tools - Amort | F129: 312.57224 | G129: 0 | H129: 105.36611 | I129: 0 | J129: -37.59132 | K129: 0 | L129: 0 | M129: 0 | N129: 0 | O129: 0 | P129: 0 | Q129: 0 | R129: 380.34703 | S129: 0 | T129: 336.33982 | V129: 312572.24 | X129: 105366.11 | Z129: -37591.32 | AB129: 0 | AD129: 0 | AF129: 0 | AH129: 380347.03 | AJ129: 336339.82
A130: 4 | F130: 0 | G130: 0 | H130: 0 | I130: 0 | J130: 0 | K130: 0 | L130: 0 | M130: 0 | N130: 0 | O130: 0 | P130: 0 | Q130: 0 | R130: 0 | S130: 0 | T130: 0
A131: 5 | D131: TOTAL BIG BEND POWER STATION | F131: 554930.8778 | G131: 0 | H131: 59405.93276 | I131: 0 | J131: -3724.44238 | K131: 0 | L131: -1716.33172 | M131: 0 | N131: 0 | O131: 0 | P131: 0 | Q131: 0 | R131: 608896.0364 | S131: 0 | T131: 582206.3403 | V131: 554930877.8 | X131: 59405932.76 | Z131: -3724442.38 | AB131: -1716331.72 | AD131: 0 | AF131: 0 | AH131: 608896036.4 | AJ131: 582206340.3
A132: 6 | F132: 0 | G132: 0 | H132: 0 | I132: 0 | J132: 0 | K132: 0 | L132: 0 | M132: 0 | N132: 0 | O132: 0 | P132: 0 | Q132: 0 | R132: 0 | S132: 0 | T132: 0
A133: 7 | D133: TOTAL STEAM PRODUCTION | F133: 554930.8778 | G133: 0 | H133: 59405.93276 | I133: 0 | J133: -3724.44238 | K133: 0 | L133: -1716.33172 | M133: 0 | N133: 0 | O133: 0 | P133: 0 | Q133: 0 | R133: 608896.0364 | S133: 0 | T133: 582206.3403 | V133: 554930877.8 | X133: 59405932.76 | Z133: -3724442.38 | AB133: -1716331.72 | AD133: 0 | AF133: 0 | AH133: 608896036.4 | AJ133: 582206340.3
A134: 8 | F134: 0 | G134: 0 | H134: 0 | I134: 0 | J134: 0 | K134: 0 | L134: 0 | M134: 0 | N134: 0 | O134: 0 | P134: 0 | Q134: 0 | R134: 0 | S134: 0 | T134: 0
A135: 9 | D135: OTHER PRODUCTION | F135: 0 | G135: 0 | H135: 0 | I135: 0 | J135: 0 | K135: 0 | L135: 0 | M135: 0 | N135: 0 | O135: 0 | P135: 0 | Q135: 0 | R135: 0 | S135: 0 | T135: 0
A136: 10 | D136: BIG BEND POWER STATION | F136: 0 | G136: 0 | H136: 0 | I136: 0 | J136: 0 | K136: 0 | L136: 0 | M136: 0 | N136: 0 | O136: 0 | P136: 0 | Q136: 0 | R136: 0 | S136: 0 | T136: 0
A137: 11 | D137: BIG BEND COMBUSTION TURBINE 4 | F137: 00:00:00 | G137: 00:00:00 | H137: 0 | I137: 0 | J137: 0 | K137: 0 | L137: 0 | M137: 0 | N137: 0 | O137: 0 | P137: 0 | Q137: 0 | R137: 0 | S137: 0 | T137: 0
A138: 12 | C138: 34144 | D138: Structures and Improvements | F138: 1049.69726 | G138: 0 | H138: 112.75284 | I138: 0 | J138: 0 | K138: 0 | L138: 0 | M138: 0 | N138: 0 | O138: 0 | P138: 0 | Q138: 0 | R138: 1162.4501 | S138: 0 | T138: 1106.07368 | V138: 1049697.26 | X138: 112752.84 | Z138: 0 | AB138: 0 | AD138: 0 | AF138: 0 | AH138: 1162450.1 | AJ138: 1106073.68
A139: 13 | C139: 34244 | D139: Fuel Holders, Producers and Accessories | F139: 669.54561 | G139: 0 | H139: 165.66204 | I139: 0 | J139: 0 | K139: 0 | L139: 0 | M139: 0 | N139: 0 | O139: 0 | P139: 0 | Q139: 0 | R139: 835.20765 | S139: 0 | T139: 752.37663 | V139: 669545.61 | X139: 165662.04 | Z139: 0 | AB139: 0 | AD139: 0 | AF139: 0 | AH139: 835207.65 | AJ139: 752376.63
A140: 14 | C140: 34344 | D140: Prime Movers | F140: 11147.57674 | G140: 0 | H140: 590.51928 | I140: 0 | J140: 0 | K140: 0 | L140: 0 | M140: 0 | N140: 0 | O140: 0 | P140: 0 | Q140: 0 | R140: 11738.09602 | S140: 0 | T140: 11442.83638 | V140: 11147576.74 | X140: 590519.28 | Z140: 0 | AB140: 0 | AD140: 0 | AF140: 0 | AH140: 11738096.02 | AJ140: 11442836.38
A141: 15 | C141: 34544 | D141: Accessory Electric Equipment | F141: 7561.76943 | G141: 0 | H141: 395.15484 | I141: 0 | J141: 0 | K141: 0 | L141: 0 | M141: 0 | N141: 0 | O141: 0 | P141: 0 | Q141: 0 | R141: 7956.92427 | S141: 0 | T141: 7759.34685 | V141: 7561769.43 | X141: 395154.84 | Z141: 0 | AB141: 0 | AD141: 0 | AF141: 0 | AH141: 7956924.27 | AJ141: 7759346.85
A142: 16 | C142: 34644 | D142: Misc. Power Plant Equipment | F142: 252.98654 | G142: 0 | H142: 15.98376 | I142: 0 | J142: 0 | K142: 0 | L142: 0 | M142: 0 | N142: 0 | O142: 0 | P142: 0 | Q142: 0 | R142: 268.9703 | S142: 0 | T142: 260.97842 | V142: 252986.54 | X142: 15983.76 | Z142: 0 | AB142: 0 | AD142: 0 | AF142: 0 | AH142: 268970.3 | AJ142: 260978.42
A143: 17 | D143: TOTAL BIG BEND COMBUSTION TURBINE 4 | F143: 20681.57558 | G143: 0 | H143: 1280.07276 | I143: 0 | J143: 0 | K143: 0 | L143: 0 | M143: 0 | N143: 0 | O143: 0 | P143: 0 | Q143: 0 | R143: 21961.64834 | S143: 0 | T143: 21321.61196 | V143: 20681575.58 | X143: 1280072.76 | Z143: 0 | AB143: 0 | AD143: 0 | AF143: 0 | AH143: 21961648.34 | AJ143: 21321611.96
A144: 18 | F144: 0 | G144: 0 | H144: 0 | I144: 0 | J144: 0 | K144: 0 | L144: 0 | M144: 0 | N144: 0 | O144: 0 | P144: 0 | Q144: 0 | R144: 0 | S144: 0 | T144: 0
A145: 19 | D145: BIG BEND COMBUSTION TURBINE 5 | F145: 0 | G145: =+IF(ISNUMBER(W145),W145/1000,W145) -> 0 | H145: =+IF(ISNUMBER(X145),X145/1000,X145) -> 0 | I145: =+IF(ISNUMBER(Y145),Y145/1000,Y145) -> 0 | J145: =+IF(ISNUMBER(Z145),Z145/1000,Z145) -> 0 | K145: =+IF(ISNUMBER(AA145),AA145/1000,AA145) -> 0 | L145: =+IF(ISNUMBER(AB145),AB145/1000,AB145) -> 0 | M145: =+IF(ISNUMBER(AC145),AC145/1000,AC145) -> 0 | N145: =+IF(ISNUMBER(AD145),AD145/1000,AD145) -> 0 | O145: =+IF(ISNUMBER(AE145),AE145/1000,AE145) -> 0 | P145: =+IF(ISNUMBER(AF145),AF145/1000,AF145) -> 0 | Q145: =+IF(ISNUMBER(AG145),AG145/1000,AG145) -> 0 | R145: =+IF(ISNUMBER(AH145),AH145/1000,AH145) -> 0 | S145: =+IF(ISNUMBER(AI145),AI145/1000,AI145) -> 0 | T145: =+IF(ISNUMBER(AJ145),AJ145/1000,AJ145) -> 0
A146: 20 | C146: 34145 | D146: Structures and Improvements | F146: =+IF(ISNUMBER(V146),V146/1000,V146) -> 0 | G146: 0 | H146: 0 | I146: 0 | J146: 0 | K146: 0 | L146: 0 | M146: 0 | N146: 0 | O146: 0 | P146: 0 | Q146: 0 | R146: 0 | S146: 0 | T146: 0 | V146: 0 | X146: 0 | Z146: 0 | AB146: 0 | AD146: 0 | AF146: 0 | AH146: 0 | AJ146: 0
A147: 21 | C147: 34245 | D147: Fuel Holders, Producers and Accessories | F147: -15.38788 | G147: 0 | H147: 14.44065 | I147: 0 | J147: 0 | K147: 0 | L147: -20 | M147: 0 | N147: 0 | O147: 0 | P147: 0 | Q147: 0 | R147: -20.94723 | S147: 0 | T147: -18.88539 | V147: -15387.88 | X147: 14440.65 | Z147: 0 | AB147: -20000 | AD147: 0 | AF147: 0 | AH147: -20947.23 | AJ147: -18885.39
A148: 22 | C148: 34345 | D148: Prime Movers | F148: 14396.00098 | G148: 0 | H148: 6191.51343 | I148: 0 | J148: 0 | K148: 0 | L148: -20 | M148: 0 | N148: 0 | O148: 0 | P148: 0 | Q148: 0 | R148: 20567.51441 | S148: 0 | T148: 17481.09302 | V148: 14396000.98 | X148: 6191513.43 | Z148: 0 | AB148: -20000 | AD148: 0 | AF148: 0 | AH148: 20567514.41 | AJ148: 17481093.02
A149: 23 | C149: 34545 | D149: Accessory Electric Equipment | F149: 1.70436 | G149: 0 | H149: 1.11072 | I149: 0 | J149: 0 | K149: 0 | L149: 0 | M149: 0 | N149: 0 | O149: 0 | P149: 0 | Q149: 0 | R149: 2.81508 | S149: 0 | T149: 2.25972 | V149: 1704.36 | X149: 1110.72 | Z149: 0 | AB149: 0 | AD149: 0 | AF149: 0 | AH149: 2815.08 | AJ149: 2259.72
A150: 24 | C150: 34645 | D150: Misc. Power Plant Equipment | F150: 0 | G150: 0 | H150: 0 | I150: 0 | J150: 0 | K150: 0 | L150: 0 | M150: 0 | N150: 0 | O150: 0 | P150: 0 | Q150: 0 | R150: 0 | S150: 0 | T150: 0 | V150: 0 | X150: 0 | Z150: 0 | AB150: 0 | AD150: 0 | AF150: 0 | AH150: 0 | AJ150: 0
A151: 25 | D151: TOTAL BIG BEND COMBUSTION TURBINE 5 | F151: 14382.31746 | G151: 0 | H151: 6207.0648 | I151: 0 | J151: 0 | K151: 0 | L151: -40 | M151: 0 | N151: 0 | O151: 0 | P151: 0 | Q151: 0 | R151: 20549.38226 | S151: 0 | T151: 17464.46735 | V151: 14382317.46 | X151: 6207064.8 | Z151: 0 | AB151: -40000 | AD151: 0 | AF151: 0 | AH151: 20549382.26 | AJ151: 17464467.35
A152: 26 | F152: 00:00:00 | G152: 00:00:00 | H152: 0 | I152: 0 | J152: 0 | K152: 0 | L152: 0 | M152: 0 | N152: 0 | O152: 0 | P152: 0 | Q152: 0 | R152: 0 | S152: 0 | T152: 0
A153: 27 | D153: BIG BEND COMBUSTION TURBINE 6 | F153: 0 | G153: 0 | H153: 0 | I153: 0 | J153: 0 | K153: 0 | L153: 0 | M153: 0 | N153: 0 | O153: 0 | P153: 0 | Q153: 0 | R153: 0 | S153: 0 | T153: 0
A154: 28 | C154: 34146 | D154: Structures and Improvements | F154: 0 | G154: 0 | H154: 0 | I154: 0 | J154: 0 | K154: 0 | L154: 0 | M154: 0 | N154: 0 | O154: 0 | P154: 0 | Q154: 0 | R154: 0 | S154: 0 | T154: 0 | V154: 0 | X154: 0 | Z154: 0 | AB154: 0 | AD154: 0 | AF154: 0 | AH154: 0 | AJ154: 0
A155: 29 | C155: 34246 | D155: Fuel Holders, Producers and Accessories | F155: -15.04413 | G155: 0 | H155: 14.16612 | I155: 0 | J155: 0 | K155: 0 | L155: 0 | M155: 0 | N155: 0 | O155: 0 | P155: 0 | Q155: 0 | R155: -0.87801 | S155: 0 | T155: -7.96107 | V155: -15044.13 | X155: 14166.12 | Z155: 0 | AB155: 0 | AD155: 0 | AF155: 0 | AH155: -878.01 | AJ155: -7961.07
A156: 30 | C156: 34346 | D156: Prime Movers | F156: 14305.93717 | G156: 0 | H156: 6147.27516 | I156: 0 | J156: 0 | K156: 0 | L156: 0 | M156: 0 | N156: 0 | O156: 0 | P156: 0 | Q156: 0 | R156: 20453.21233 | S156: 0 | T156: 17379.57475 | V156: 14305937.17 | X156: 6147275.16 | Z156: 0 | AB156: 0 | AD156: 0 | AF156: 0 | AH156: 20453212.33 | AJ156: 17379574.75
A157: 31 | C157: 34546 | D157: Accessory Electric Equipment | F157: 0.68647 | G157: 0 | H157: 0.36276 | I157: 0 | J157: 0 | K157: 0 | L157: 0 | M157: 0 | N157: 0 | O157: 0 | P157: 0 | Q157: 0 | R157: 1.04923 | S157: 0 | T157: 0.86785 | V157: 686.47 | X157: 362.76 | Z157: 0 | AB157: 0 | AD157: 0 | AF157: 0 | AH157: 1049.23 | AJ157: 867.85
A158: 32 | C158: 34646 | D158: Misc. Power Plant Equipment | F158: 0 | G158: 0 | H158: 0 | I158: 0 | J158: 0 | K158: 0 | L158: 0 | M158: 0 | N158: 0 | O158: 0 | P158: 0 | Q158: 0 | R158: 0 | S158: 0 | T158: 0 | V158: 0 | X158: 0 | Z158: 0 | AB158: 0 | AD158: 0 | AF158: 0 | AH158: 0 | AJ158: 0
A159: 33 | D159: TOTAL BIG BEND COMBUSTION TURBINE 6 | F159: 14291.57951 | G159: 0 | H159: 6161.80404 | I159: 0 | J159: 0 | K159: 0 | L159: 0 | M159: 0 | N159: 0 | O159: 0 | P159: 0 | Q159: 0 | R159: 20453.38355 | S159: 0 | T159: 17372.48153 | V159: 14291579.51 | X159: 6161804.04 | Z159: 0 | AB159: 0 | AD159: 0 | AF159: 0 | AH159: 20453383.55 | AJ159: 17372481.53
A160: 34 | F160: 0 | G160: 0 | H160: 0 | I160: 0 | J160: 0 | K160: 0 | L160: 0 | M160: 0 | N160: 0 | O160: 0 | P160: 0 | Q160: 0 | R160: 0 | S160: 0 | T160: 0
A161: 35 | D161: BIG BEND NEW STEAM TURBINE 1 | F161: 0 | G161: 0 | H161: 0 | I161: 0 | J161: 0 | K161: 0 | L161: 0 | M161: 0 | N161: 0 | O161: 0 | P161: 0 | Q161: 0 | R161: 0 | S161: 0 | T161: 0
A162: 36 | C162: 34143 | D162: Structures and Improvements | F162: 1537.83614 | G162: 0 | H162: 78.5658 | I162: 0 | J162: 0 | K162: 0 | L162: 0 | M162: 0 | N162: 0 | O162: 0 | P162: 0 | Q162: 0 | R162: 1616.40194 | S162: 0 | T162: 1577.11904 | V162: 1537836.14 | X162: 78565.8 | Z162: 0 | AB162: 0 | AD162: 0 | AF162: 0 | AH162: 1616401.94 | AJ162: 1577119.04
A163: 37 | C163: 34243 | D163: Fuel Holders, Producers and Accessories | F163: 1581.13708 | G163: 0 | H163: 79.69056 | I163: 0 | J163: 0 | K163: 0 | L163: -269.9502 | M163: 0 | N163: 0 | O163: 0 | P163: 0 | Q163: 0 | R163: 1390.87744 | S163: 0 | T163: 1485.94919 | V163: 1581137.08 | X163: 79690.56 | Z163: 0 | AB163: -269950.2 | AD163: 0 | AF163: 0 | AH163: 1390877.44 | AJ163: 1485949.19
A164: 38 | C164: 34343 | D164: Prime Movers | F164: 19813.60806 | G164: 0 | H164: 16716.5811 | I164: 0 | J164: 0 | K164: 0 | L164: -269.9502 | M164: 0 | N164: 0 | O164: 0 | P164: 0 | Q164: 0 | R164: 36260.23896 | S164: 0 | T164: 28036.82829 | V164: 19813608.06 | X164: 16716581.1 | Z164: 0 | AB164: -269950.2 | AD164: 0 | AF164: 0 | AH164: 36260238.96 | AJ164: 28036828.29
A165: 39 | C165: 34543 | D165: Accessory Electric Equipment | F165: 95.98473 | G165: 0 | H165: 20.45976 | I165: 0 | J165: 0 | K165: 0 | L165: 0 | M165: 0 | N165: 0 | O165: 0 | P165: 0 | Q165: 0 | R165: 116.44449 | S165: 0 | T165: 106.21461 | V165: 95984.73 | X165: 20459.76 | Z165: 0 | AB165: 0 | AD165: 0 | AF165: 0 | AH165: 116444.49 | AJ165: 106214.61
A166: 40 | C166: 34643 | D166: Misc. Power Plant Equipment | F166: 245.2322 | G166: 0 | H166: 8.2068 | I166: 0 | J166: 0 | K166: 0 | L166: 0 | M166: 0 | N166: 0 | O166: 0 | P166: 0 | Q166: 0 | R166: 253.439 | S166: 0 | T166: 249.3356 | V166: 245232.2 | X166: 8206.8 | Z166: 0 | AB166: 0 | AD166: 0 | AF166: 0 | AH166: 253439 | AJ166: 249335.6
A167: 41 | D167: TOTAL BIG BEND NEW STEAM TURBINE 1 | F167: 23273.79821 | G167: 0 | H167: 16903.50402 | I167: 0 | J167: 0 | K167: 0 | L167: -539.9004 | M167: 0 | N167: 0 | O167: 0 | P167: 0 | Q167: 0 | R167: 39637.40183 | S167: 0 | T167: 31455.44673 | V167: 23273798.21 | X167: 16903504.02 | Z167: 0 | AB167: -539900.4 | AD167: 0 | AF167: 0 | AH167: 39637401.83 | AJ167: 31455446.73
A168: 42 | F168: 0 | G168: 0 | H168: 0 | I168: 0 | J168: 0 | K168: 0 | L168: 0 | M168: 0 | N168: 0 | O168: 0 | P168: 0 | Q168: 0 | R168: 0 | S168: 0 | T168: 0
A169: 43 | D169: TOTAL BIG BEND POWER STATION | F169: 72629.27076 | G169: 0 | H169: 30552.44562 | I169: 0 | J169: 0 | K169: 0 | L169: -579.9004 | M169: 0 | N169: 0 | O169: 0 | P169: 0 | Q169: 0 | R169: 102601.816 | S169: 0 | T169: 87614.00757 | V169: 72629270.76 | X169: 30552445.62 | Z169: 0 | AB169: -579900.4 | AD169: 0 | AF169: 0 | AH169: 102601816 | AJ169: 87614007.57
A170: 44 | B170: Totals may be affected due to rounding. | F170: 0 | G170: 0 | H170: 0 | I170: 0 | J170: 0 | K170: 0 | L170: 0 | M170: 0 | N170: 0 | O170: 0 | P170: 0 | Q170: 0 | R170: 0 | S170: 0 | T170: 0
A171: Supporting Schedules: B-10, B-11 | F171: 0 | G171: 0 | H171: 0 | I171: 0 | J171: 0 | K171: 0 | L171: 0 | M171: 0 | N171: 0 | O171: 0 | P171: 0 | Q171: 0 | R171: Recap Schedules: B-03, B-06 | S171: 0 | T171: 0 | AH171: Recap Schedules: B-03, B-06
A172: SCHEDULE B-09 | F172: DEPRECIATION RESERVE BALANCES BY ACCOUNT AND SUB-ACCOUNT | G172: 0 | H172: 0 | I172: 0 | J172: 0 | K172: 0 | L172: 0 | M172: 0 | N172: 0 | O172: 0 | P172: 0 | Q172: 0 | R172: 0 | S172: 0 | T172: Page 4 of 10 | V172: DEPRECIATION RESERVE BALANCES BY ACCOUNT AND SUB-ACCOUNT | AJ172: Page 4 of 10
A173: FLORIDA PUBLIC SERVICE COMMISSION | E173: EXPLANATION: | F173: Provide the depreciation reserve balances for each account or sub-account to which | G173: 0 | H173: 0 | I173: 0 | J173: 0 | K173: 0 | L173: 0 | M173: 0 | N173: 0 | O173: 0 | P173: 0 | Q173: 0 | R173: Type of data shown: | S173: 0 | T173: 0 | V173: Provide the depreciation reserve balances for each account or sub-account to which | AH173: Type of data shown:
F174: an individual depreciation rate is applied. (Include Amortization/Recovery amounts). | G174: 0 | H174: 0 | I174: 0 | J174: 0 | K174: 0 | L174: 0 | M174: 0 | N174: 0 | O174: 0 | P174: 0 | Q174: XX | R174: Projected Test Year Ended 12/31/2025 | S174: 0 | T174: 0 | V174: an individual depreciation rate is applied. (Include Amortization/Recovery amounts). | AG174: XX | AH174: Projected Test Year Ended 12/31/2025
A175: COMPANY: TAMPA ELECTRIC COMPANY | G175: 0 | H175: 0 | I175: 0 | J175: 0 | K175: 0 | L175: 0 | M175: 0 | N175: 0 | O175: 0 | P175: 0 | R175: Projected Prior Year Ended 12/31/2024 | S175: 0 | T175: 0 | AH175: Projected Prior Year Ended 12/31/2024
G176: 0 | H176: 0 | I176: 0 | J176: 0 | K176: 0 | L176: 0 | M176: 0 | N176: 0 | O176: 0 | P176: 0 | R176: Historical Prior Year Ended 12/31/2023 | S176: 0 | T176: 0 | AH176: Historical Prior Year Ended 12/31/2023
F177: 0 | G177: 0 | H177: 0 | I177: 0 | J177: 0 | K177: 0 | L177: 0 | M177: 0 | N177: 0 | O177: 0 | P177: 0 | Q177: 0 | R177: Witness: D. Avellan | S177: 0 | T177: 0 | AH177: Witness: D. Avellan
A178: DOCKET No. XXX | G178: 0 | H178: (Dollars in cents) | I178: 0 | J178: 0 | K178: 0 | L178: 0 | M178: 0 | N178: 0 | O178: 0 | P178: 0 | Q178: 0 | S178: 0 | T178: 0 | X178: (Dollars in cents)
F179: 0 | G179: 0 | H179: 0 | I179: 0 | J179: 0 | K179: 0 | L179: 0 | M179: 0 | N179: 0 | O179: 0 | P179: 0 | Q179: 0 | R179: 0 | S179: 0 | T179: 0
C180: (1) | D180: (2) | F180: (3) | G180: 0 | H180: (4) | I180: 0 | J180: (5) | K180: 0 | L180: (6) | M180: 0 | N180: (7) | O180: 0 | P180: (8) | Q180: 0 | R180: (9) | S180: 0 | T180: (10) | V180: (3) | X180: (4) | Z180: (5) | AB180: (6) | AD180: (7) | AF180: (8) | AH180: (9) | AJ180: (10)
C181: Account/ | D181: Account/ | F181: Accumulated | G181: 0 | H181: Total | I181: 0 | J181: 0 | K181: 0 | L181: 0 | M181: 0 | N181: 0 | O181: 0 | P181: 0 | Q181: 0 | R181: Accumulated | S181: 0 | T181: 0 | V181: Accumulated | X181: Total | AH181: Accumulated
A182: Line | C182: Sub-account | D182: Sub-account | F182: Depreciation | G182: 0 | H182: Depreciation | I182: 0 | J182: 0 | K182: 0 | L182: Gross | M182: 0 | N182: Gross | O182: 0 | P182: Adjustments | Q182: 0 | R182: Depreciation | S182: 0 | T182: 13-Month | V182: Depreciation | X182: Depreciation | AB182: Gross | AD182: Gross | AF182: Adjustments | AH182: Depreciation | AJ182: 13-Month
A183: No. | C183: Number | D183: Title | F183: Beg. of Year | G183: 00:00:00 | H183: Accrued | I183: 00:00:00 | J183: Retirements | K183: 00:00:00 | L183: COR | M183: 0 | N183: Salvage | O183: 0 | P183: or Transfers | Q183: 0 | R183: End of Year | S183: 0 | T183: Average | V183: Beg. of Year | X183: Accrued | Z183: Retirements | AB183: COR | AD183: Salvage | AF183: or Transfers | AH183: End of Year | AJ183: Average
A184: 1 | F184: 0 | G184: 0 | H184: 0 | I184: 0 | J184: 0 | K184: 0 | L184: 0 | M184: 0 | N184: 0 | O184: 0 | P184: 0 | Q184: 0 | R184: 0 | S184: 0 | T184: 0
A185: 2 | D185: POLK POWER STATION | F185: 0 | G185: 0 | H185: 0 | I185: 0 | J185: 0 | K185: 0 | L185: 0 | M185: 0 | N185: 0 | O185: 0 | P185: 0 | Q185: 0 | R185: 0 | S185: 0 | T185: 0
A186: 3 | D186: POLK COMMON | F186: 0 | G186: 0 | H186: 0 | I186: 0 | J186: 0 | K186: 0 | L186: 0 | M186: 0 | N186: 0 | O186: 0 | P186: 0 | Q186: 0 | R186: 0 | S186: 0 | T186: 0
A187: 4 | C187: 34180 | D187: Structures and Improvements | F187: 67242.1149 | G187: 0 | H187: 5752.2606 | I187: 0 | J187: 0 | K187: 0 | L187: 0 | M187: 0 | N187: 0 | O187: 0 | P187: 0 | Q187: 0 | R187: 72994.3755 | S187: 0 | T187: 70118.2452 | V187: 67242114.9 | X187: 5752260.6 | Z187: 0 | AB187: 0 | AD187: 0 | AF187: 0 | AH187: 72994375.5 | AJ187: 70118245.2
A188: 5 | C188: 34280 | D188: Fuel Holders, Producers and Accessories | F188: 3981.10729 | G188: 0 | H188: 413.6743 | I188: 0 | J188: -618.96859 | K188: 0 | L188: -238.33334 | M188: 0 | N188: 0 | O188: 0 | P188: 0 | Q188: 0 | R188: 3537.47966 | S188: 0 | T188: 3898.10662 | V188: 3981107.29 | X188: 413674.3 | Z188: -618968.59 | AB188: -238333.34 | AD188: 0 | AF188: 0 | AH188: 3537479.66 | AJ188: 3898106.62
A189: 6 | C189: 34380 | D189: Prime Movers | F189: 2663.15012 | G189: 0 | H189: 526.15556 | I189: 0 | J189: -618.96859 | K189: 0 | L189: -238.33334 | M189: 0 | N189: 0 | O189: 0 | P189: 0 | Q189: 0 | R189: 2332.00375 | S189: 0 | T189: 2635.80726 | V189: 2663150.12 | X189: 526155.56 | Z189: -618968.59 | AB189: -238333.34 | AD189: 0 | AF189: 0 | AH189: 2332003.75 | AJ189: 2635807.26
A190: 7 | C190: 34580 | D190: Accessory Electric Equipment | F190: 4502.47562 | G190: 0 | H190: 411.81696 | I190: 0 | J190: 0 | K190: 0 | L190: 0 | M190: 0 | N190: 0 | O190: 0 | P190: 0 | Q190: 0 | R190: 4914.29258 | S190: 0 | T190: 4708.3841 | V190: 4502475.62 | X190: 411816.96 | Z190: 0 | AB190: 0 | AD190: 0 | AF190: 0 | AH190: 4914292.58 | AJ190: 4708384.1
A191: 8 | C191: 34680 | D191: Misc. Power Plant Equipment | F191: 68.3577 | G191: 0 | H191: 58.81896 | I191: 0 | J191: 0 | K191: 0 | L191: 0 | M191: 0 | N191: 0 | O191: 0 | P191: 0 | Q191: 0 | R191: 127.17666 | S191: 0 | T191: 97.76718 | V191: 68357.7 | X191: 58818.96 | Z191: 0 | AB191: 0 | AD191: 0 | AF191: 0 | AH191: 127176.66 | AJ191: 97767.18
A192: 9 | D192: TOTAL POLK POWER COMMON | F192: 78457.20563 | G192: 0 | H192: 7162.72638 | I192: 0 | J192: -1237.93718 | K192: 0 | L192: -476.66668 | M192: 0 | N192: 0 | O192: 0 | P192: 0 | Q192: 0 | R192: 83905.32815 | S192: 0 | T192: 81458.31036 | V192: 78457205.63 | X192: 7162726.38 | Z192: -1237937.18 | AB192: -476666.68 | AD192: 0 | AF192: 0 | AH192: 83905328.15 | AJ192: 81458310.36
A193: 10 | F193: 0 | G193: 0 | H193: 0 | I193: 0 | J193: 0 | K193: 0 | L193: 0 | M193: 0 | N193: 0 | O193: 0 | P193: 0 | Q193: 0 | R193: 0 | S193: 0 | T193: 0
A194: 11 | D194: POLK UNIT 1 | F194: 0 | G194: 0 | H194: 0 | I194: 0 | J194: 0 | K194: 0 | L194: 0 | M194: 0 | N194: 0 | O194: 0 | P194: 0 | Q194: 0 | R194: 0 | S194: 0 | T194: 0
A195: 12 | C195: 34181 | D195: Structures and Improvements | F195: 28571.96903 | G195: 0 | H195: 2601.96252 | I195: 0 | J195: 0 | K195: 0 | L195: 0 | M195: 0 | N195: 0 | O195: 0 | P195: 0 | Q195: 0 | R195: 31173.93155 | S195: 0 | T195: 29872.95029 | V195: 28571969.03 | X195: 2601962.52 | Z195: 0 | AB195: 0 | AD195: 0 | AF195: 0 | AH195: 31173931.55 | AJ195: 29872950.29
A196: 13 | C196: 34281 | D196: Fuel Holders, Producers and Accessories | F196: 153401.0514 | G196: 0 | H196: 10176.76894 | I196: 0 | J196: -282.92578 | K196: 0 | L196: -98.33323 | M196: 0 | N196: 0 | O196: 0 | P196: 0 | Q196: 0 | R196: 163196.5614 | S196: 0 | T196: 158218.0016 | V196: 153401051.4 | X196: 10176768.94 | Z196: -282925.78 | AB196: -98333.23 | AD196: 0 | AF196: 0 | AH196: 163196561.4 | AJ196: 158218001.6
A197: 14 | C197: 34381 | D197: Prime Movers | F197: 91770.28403 | G197: 0 | H197: 8032.02868 | I197: 0 | J197: -282.92578 | K197: 0 | L197: -98.33323 | M197: 0 | N197: 0 | O197: 0 | P197: 0 | Q197: 0 | R197: 99421.0537 | S197: 0 | T197: 95489.87797 | V197: 91770284.03 | X197: 8032028.68 | Z197: -282925.78 | AB197: -98333.23 | AD197: 0 | AF197: 0 | AH197: 99421053.7 | AJ197: 95489877.97
A198: 15 | C198: 34581 | D198: Accessory Electric Equipment | F198: 45601.24564 | G198: 0 | H198: 1536.7662 | I198: 0 | J198: 0 | K198: 0 | L198: 0 | M198: 0 | N198: 0 | O198: 0 | P198: 0 | Q198: 0 | R198: 47138.01184 | S198: 0 | T198: 46369.62874 | V198: 45601245.64 | X198: 1536766.2 | Z198: 0 | AB198: 0 | AD198: 0 | AF198: 0 | AH198: 47138011.84 | AJ198: 46369628.74
A199: 16 | C199: 34681 | D199: Misc. Power Plant Equipment | F199: 2936.53267 | G199: 0 | H199: 354.66084 | I199: 0 | J199: 0 | K199: 0 | L199: 0 | M199: 0 | N199: 0 | O199: 0 | P199: 0 | Q199: 0 | R199: 3291.19351 | S199: 0 | T199: 3113.86309 | V199: 2936532.67 | X199: 354660.84 | Z199: 0 | AB199: 0 | AD199: 0 | AF199: 0 | AH199: 3291193.51 | AJ199: 3113863.09
A200: 17 | D200: TOTAL POLK UNIT 1 | F200: 322281.0828 | G200: 0 | H200: 22702.18718 | I200: 0 | J200: -565.85156 | K200: 0 | L200: -196.66646 | M200: 0 | N200: 0 | O200: 0 | P200: 0 | Q200: 0 | R200: 344220.752 | S200: 0 | T200: 333064.3217 | V200: 322281082.8 | X200: 22702187.18 | Z200: -565851.56 | AB200: -196666.46 | AD200: 0 | AF200: 0 | AH200: 344220752 | AJ200: 333064321.7
A201: 18 | F201: 0 | G201: 0 | H201: 0 | I201: 0 | J201: 0 | K201: 0 | L201: 0 | M201: 0 | N201: 0 | O201: 0 | P201: 0 | Q201: 0 | R201: 0 | S201: 0 | T201: 0
... 369 more rows

Sheet 300s Plant Balances Input
A1: Manual
A2: Link | B2: =+'300s - 5 Digit FERC Accounts'!A1 -> 0
A3: Calc | D3: ANNUAL STATUS REPORT
F4: PLANT | J4: PLANT | K4: PLANT | L4: RESERVE | R4: RESERVE | S4: RESERVE | T4: Depr
B5: 3 digit | C5: Functional Roll | D5: Account | E5: PowerPlant Depr Group | F5: BOP | G5: Additions | H5: Retirements | I5: Adj / Xfers | J5: EOP | K5: 13-mth Avg | L5: BOP | M5: Depreciation | N5: Retirements | O5: Gross COR | P5: Gross Salv | Q5: Adj / Xfers | R5: EOP | S5: 13-mth Avg | T5: Rate | V5: FUNC ROLL | W5: ACCOUNT
A6: =+_xlfn.XMATCH(D6,'300s - 5 Digit FERC Accounts'!B:B) -> 4 | B6: =IF(D6="","",MID(D6,1,3)) -> 303 | C6: =+_xlfn.SINGLE(IF(D6="","",_xlfn.XLOOKUP(D6,W:W,V:V,"CHECK"))) -> SOFT | D6: 30300 | E6: 303.00 Misc Intangible Plant 5yr | F6: 0 | G6: 0 | H6: 0 | I6: =+J6-F6-G6-H6 -> 0 | J6: 0 | K6: 0 | L6: 0 | M6: 0 | N6: 0 | O6: 0 | P6: 0 | Q6: =+R6-P6-O6-N6-M6-L6 -> 0 | R6: 0 | S6: 0 | T6: 0 | V6: SOFT | W6: 30300
A7: =+_xlfn.XMATCH(D7,'300s - 5 Digit FERC Accounts'!B:B) -> 5 | B7: =IF(D7="","",MID(D7,1,3)) -> 303 | C7: SOFT | D7: 30301 | E7: 303.01 SAP Intangible Plant 10yr | F7: 0 | G7: 0 | H7: 0 | I7: =+J7-F7-G7-H7 -> 0 | J7: 0 | K7: 0 | L7: 0 | M7: 0 | N7: 0 | O7: 0 | P7: 0 | Q7: =+R7-P7-O7-N7-M7-L7 -> 0 | R7: 0 | S7: 0 | T7: 0 | V7: SOFT | W7: 30301
A8: =+_xlfn.XMATCH(D8,'300s - 5 Digit FERC Accounts'!B:B) -> 6 | B8: 303 | C8: SOFT | D8: 30302 | E8: 303.02 ARO Costs-Intangible | F8: 0 | G8: 0 | H8: 0 | I8: 0 | J8: 0 | K8: 0 | L8: 0 | M8: 0 | N8: 0 | O8: 0 | P8: 0 | Q8: 0 | R8: 0 | S8: 0 | T8: 0 | V8: SOFT | W8: 30302
A9: =+_xlfn.XMATCH(D9,'300s - 5 Digit FERC Accounts'!B:B) -> 7 | B9: 303 | C9: SOFT | D9: 30315 | E9: 303.15 Intangible Software 15yr | F9: 577595317.9 | G9: 83861887.68 | H9: -4800478.31 | I9: 1.164153218e-07 | J9: 656656727.2 | K9: 596630121.5 | L9: 176428182.1 | M9: 39639069.59 | N9: -4800478.31 | O9: 0 | P9: 0 | Q9: 0 | R9: 211266773.3 | S9: 192032007.4 | T9: 0.067 | V9: SOFT | W9: 30315
A10: =+_xlfn.XMATCH(D10,'300s - 5 Digit FERC Accounts'!B:B) -> 8 | B10: 303 | C10: SOFT | D10: 30399 | E10: 303.99 Intangible Software Solar | F10: 4620086.03 | G10: 0 | H10: 0 | I10: 0 | J10: 4620086.03 | K10: 4620086.03 | L10: 362891.24 | M10: 152462.88 | N10: 0 | O10: 0 | P10: 0 | Q10: 0 | R10: 515354.12 | S10: 439122.68 | T10: 0.033 | V10: SOFT | W10: 30399
A11: =+_xlfn.XMATCH(D11,'300s - 5 Digit FERC Accounts'!B:B) -> 9 | B11: 310 | C11: Prod | D11: 31001 | E11: 310.01 Land & Land Rights-Misc | F11: 0 | G11: 0 | H11: 0 | I11: 0 | J11: 0 | K11: 0 | L11: 0 | M11: 0 | N11: 0 | O11: 0 | P11: 0 | Q11: 0 | R11: 0 | S11: 0 | T11: 0 | V11: Prod | W11: 31001
A12: =+_xlfn.XMATCH(D12,'300s - 5 Digit FERC Accounts'!B:B) -> 10 | B12: 310 | C12: Prod | D12: 31011 | E12: 310.11 Land & LR-Dinner Lake | F12: 0 | G12: 0 | H12: 0 | I12: 0 | J12: 0 | K12: 0 | L12: 0 | M12: 0 | N12: 0 | O12: 0 | P12: 0 | Q12: 0 | R12: 0 | S12: 0 | T12: 0 | V12: Prod | W12: 31040
A13: =+_xlfn.XMATCH(D13,'300s - 5 Digit FERC Accounts'!B:B) -> 11 | B13: 310 | C13: Prod | D13: 31040 | E13: 310.40 Land & Land Rights-BBCM | F13: 6923628.51 | G13: 0 | H13: 0 | I13: 0 | J13: 6923628.51 | K13: 6923628.51 | L13: 0 | M13: 0 | N13: 0 | O13: 0 | P13: 0 | Q13: 0 | R13: 0 | S13: 0 | T13: 0 | V13: Prod | W13: 31101
A14: =+_xlfn.XMATCH(D14,'300s - 5 Digit FERC Accounts'!B:B) -> 12 | B14: 311 | C14: Prod | D14: 31101 | E14: 311.01 Str & Improvements-Misc | F14: 0 | G14: 0 | H14: 0 | I14: 0 | J14: 0 | K14: 0 | L14: 0 | M14: 0 | N14: 0 | O14: 0 | P14: 0 | Q14: 0 | R14: 0 | S14: 0 | T14: 0 | V14: Prod | W14: 31130
A15: =+_xlfn.XMATCH(D15,'300s - 5 Digit FERC Accounts'!B:B) -> 13 | B15: 311 | C15: Prod | D15: 31130 | E15: 311.30 Str & Improvements-BPC | F15: 0 | G15: 0 | H15: 0 | I15: 0 | J15: 0 | K15: 0 | L15: 0 | M15: 0 | N15: 0 | O15: 0 | P15: 0 | Q15: 0 | R15: 0 | S15: 0 | T15: 0 | V15: Prod | W15: 31140
A16: =+_xlfn.XMATCH(D16,'300s - 5 Digit FERC Accounts'!B:B) -> 14 | B16: 311 | C16: Prod | D16: 31131 | E16: 311.31 Str & Improvements-BP1 | F16: 0 | G16: 0 | H16: 0 | I16: 0 | J16: 0 | K16: 0 | L16: 0 | M16: 0 | N16: 0 | O16: 0 | P16: 0 | Q16: 0 | R16: 0 | S16: 0 | T16: 0 | V16: Prod | W16: 31141
A17: =+_xlfn.XMATCH(D17,'300s - 5 Digit FERC Accounts'!B:B) -> 15 | B17: 311 | C17: Prod | D17: 31132 | E17: 311.32 Str & Improvements-BP2 | F17: 0 | G17: 0 | H17: 0 | I17: 0 | J17: 0 | K17: 0 | L17: 0 | M17: 0 | N17: 0 | O17: 0 | P17: 0 | Q17: 0 | R17: 0 | S17: 0 | T17: 0 | V17: Prod | W17: 31142
A18: =+_xlfn.XMATCH(D18,'300s - 5 Digit FERC Accounts'!B:B) -> 16 | B18: 311 | C18: Prod | D18: 31133 | E18: 311.33 Str & Improvements-BP3 | F18: 0 | G18: 0 | H18: 0 | I18: 0 | J18: 0 | K18: 0 | L18: 0 | M18: 0 | N18: 0 | O18: 0 | P18: 0 | Q18: 0 | R18: 0 | S18: 0 | T18: 0 | V18: Prod | W18: 31143
A19: =+_xlfn.XMATCH(D19,'300s - 5 Digit FERC Accounts'!B:B) -> 17 | B19: 311 | C19: Prod | D19: 31134 | E19: 311.34 Str & Improvements-BP4 | F19: 0 | G19: 0 | H19: 0 | I19: 0 | J19: 0 | K19: 0 | L19: 0 | M19: 0 | N19: 0 | O19: 0 | P19: 0 | Q19: 0 | R19: 0 | S19: 0 | T19: 0 | V19: Prod | W19: 31144
A20: =+_xlfn.XMATCH(D20,'300s - 5 Digit FERC Accounts'!B:B) -> 18 | B20: 311 | C20: Prod | D20: 31140 | E20: 311.40 Str & Improvements-BBCM | F20: 280963525.3 | G20: 0 | H20: 0 | I20: 0 | J20: 280963525.3 | K20: 280963525.3 | L20: 72424455.29 | M20: 7080280.8 | N20: 0 | O20: 0 | P20: 0 | Q20: 0 | R20: 79504736.09 | S20: 75964595.69 | T20: 0.0252 | V20: Prod | W20: 31145
A21: =+_xlfn.XMATCH(D21,'300s - 5 Digit FERC Accounts'!B:B) -> 19 | B21: 311 | C21: Prod | D21: 31141 | E21: 311.41 Str & Improvements-BB1 | F21: 0 | G21: 0 | H21: 0 | I21: 0 | J21: 0 | K21: 0 | L21: 0 | M21: 0 | N21: 0 | O21: 0 | P21: 0 | Q21: 0 | R21: 0 | S21: 0 | T21: 0 | V21: Prod | W21: 31146
A22: =+_xlfn.XMATCH(D22,'300s - 5 Digit FERC Accounts'!B:B) -> 20 | B22: 311 | C22: Prod | D22: 31142 | E22: 311.42 Str & Improvements-BB2 | F22: 0 | G22: 0 | H22: 0 | I22: 0 | J22: 0 | K22: 0 | L22: 0 | M22: 0 | N22: 0 | O22: 0 | P22: 0 | Q22: 0 | R22: 0 | S22: 0 | T22: 0 | V22: Prod | W22: 31151
A23: =+_xlfn.XMATCH(D23,'300s - 5 Digit FERC Accounts'!B:B) -> 21 | B23: 311 | C23: Prod | D23: 31143 | E23: 311.43 Str & Improvements-BB3 | F23: 0 | G23: 0 | H23: 0 | I23: 0 | J23: 0 | K23: 0 | L23: 0 | M23: 0 | N23: 0 | O23: 0 | P23: 0 | Q23: 0 | R23: 0 | S23: 0 | T23: 0 | V23: Prod | W23: 31152
A24: =+_xlfn.XMATCH(D24,'300s - 5 Digit FERC Accounts'!B:B) -> 22 | B24: 311 | C24: Prod | D24: 31144 | E24: 311.44 Str & Improve-BB4 MAIN STT | F24: 55902236.31 | G24: 0 | H24: 0 | I24: 0 | J24: 55902236.31 | K24: 55902236.31 | L24: 27319473.67 | M24: 1950988.08 | N24: 0 | O24: 0 | P24: 0 | Q24: 0 | R24: 29270461.75 | S24: 28294967.71 | T24: 0.0349 | V24: Prod | W24: 31153
A25: =+_xlfn.XMATCH(D25,'300s - 5 Digit FERC Accounts'!B:B) -> 23 | B25: 311 | C25: Prod | D25: 31145 | E25: 311.45 Str & Improvements-BB3&4 FGD | F25: 31998663.15 | G25: 0 | H25: 0 | I25: 0 | J25: 31998663.15 | K25: 31998663.15 | L25: 19373050.54 | M25: 1116753.36 | N25: 0 | O25: 0 | P25: 0 | Q25: 0 | R25: 20489803.9 | S25: 19931427.22 | T25: 0.0349 | V25: Prod | W25: 31154
A26: =+_xlfn.XMATCH(D26,'300s - 5 Digit FERC Accounts'!B:B) -> 24 | B26: 311 | C26: Prod | D26: 31146 | E26: 311.46 Str & Improve-BB1&2 FGD | F26: 0 | G26: 0 | H26: 0 | I26: 0 | J26: 0 | K26: 0 | L26: 0 | M26: 0 | N26: 0 | O26: 0 | P26: 0 | Q26: 0 | R26: 0 | S26: 0 | T26: 0 | V26: Prod | W26: 31240
A27: =+_xlfn.XMATCH(D27,'300s - 5 Digit FERC Accounts'!B:B) -> 25 | B27: 311 | C27: Prod | D27: 31151 | E27: 311.51 Str & Improve-BB1 SCR | F27: 0 | G27: 0 | H27: 0 | I27: 0 | J27: 0 | K27: 0 | L27: 0 | M27: 0 | N27: 0 | O27: 0 | P27: 0 | Q27: 0 | R27: 0 | S27: 0 | T27: 0 | V27: Prod | W27: 31241
A28: =+_xlfn.XMATCH(D28,'300s - 5 Digit FERC Accounts'!B:B) -> 26 | B28: 311 | C28: Prod | D28: 31152 | E28: 311.52 Str & Improve-BB2 SCR | F28: 0 | G28: 0 | H28: 0 | I28: 0 | J28: 0 | K28: 0 | L28: 0 | M28: 0 | N28: 0 | O28: 0 | P28: 0 | Q28: 0 | R28: 0 | S28: 0 | T28: 0 | V28: Prod | W28: 31242
A29: =+_xlfn.XMATCH(D29,'300s - 5 Digit FERC Accounts'!B:B) -> 27 | B29: 311 | C29: Prod | D29: 31153 | E29: 311.53 Str & Improve-BB3 SCR | F29: 0 | G29: 0 | H29: 0 | I29: 0 | J29: 0 | K29: 0 | L29: 0 | M29: 0 | N29: 0 | O29: 0 | P29: 0 | Q29: 0 | R29: 0 | S29: 0 | T29: 0 | V29: Prod | W29: 31243
A30: =+_xlfn.XMATCH(D30,'300s - 5 Digit FERC Accounts'!B:B) -> 28 | B30: 311 | C30: Prod | D30: 31154 | E30: 311.54 Str & Improve-BB4 SCR | F30: 16995428.25 | G30: 0 | H30: 0 | I30: 0 | J30: 16995428.25 | K30: 16995428.25 | L30: 7340803.75 | M30: 593140.44 | N30: 0 | O30: 0 | P30: 0 | Q30: 0 | R30: 7933944.19 | S30: 7637373.97 | T30: 0.0349 | V30: Prod | W30: 31244
A31: =+_xlfn.XMATCH(D31,'300s - 5 Digit FERC Accounts'!B:B) -> 29 | B31: 311 | C31: Prod | D31: 31175 | E31: 311.75 Str & Improvements-BPC | F31: 0 | G31: 0 | H31: 0 | I31: 0 | J31: 0 | K31: 0 | L31: 0 | M31: 0 | N31: 0 | O31: 0 | P31: 0 | Q31: 0 | R31: 0 | S31: 0 | T31: 0 | V31: Prod | W31: 31245
A32: =+_xlfn.XMATCH(D32,'300s - 5 Digit FERC Accounts'!B:B) -> 30 | B32: 311 | C32: Prod | D32: 31178 | E32: 311.78 Str & Improvements-BP3 | F32: 0 | G32: 0 | H32: 0 | I32: 0 | J32: 0 | K32: 0 | L32: 0 | M32: 0 | N32: 0 | O32: 0 | P32: 0 | Q32: 0 | R32: 0 | S32: 0 | T32: 0 | V32: Prod | W32: 31246
A33: =+_xlfn.XMATCH(D33,'300s - 5 Digit FERC Accounts'!B:B) -> 31 | B33: 311 | C33: Prod | D33: 31179 | E33: 311.79 Str & Improvements-BP4 | F33: 0 | G33: 0 | H33: 0 | I33: 0 | J33: 0 | K33: 0 | L33: 0 | M33: 0 | N33: 0 | O33: 0 | P33: 0 | Q33: 0 | R33: 0 | S33: 0 | T33: 0 | V33: Prod | W33: 31247
A34: =+_xlfn.XMATCH(D34,'300s - 5 Digit FERC Accounts'!B:B) -> 32 | B34: 312 | C34: Prod | D34: 31230 | E34: 312.30 Boiler Plant Eq-BPC | F34: 0 | G34: 0 | H34: 0 | I34: 0 | J34: 0 | K34: 0 | L34: 0 | M34: 0 | N34: 0 | O34: 0 | P34: 0 | Q34: 0 | R34: 0 | S34: 0 | T34: 0 | V34: Prod | W34: 31251
A35: =+_xlfn.XMATCH(D35,'300s - 5 Digit FERC Accounts'!B:B) -> 33 | B35: 312 | C35: Prod | D35: 31231 | E35: 312.31 Boiler Plant Eq-BP1 | F35: 0 | G35: 0 | H35: 0 | I35: 0 | J35: 0 | K35: 0 | L35: 0 | M35: 0 | N35: 0 | O35: 0 | P35: 0 | Q35: 0 | R35: 0 | S35: 0 | T35: 0 | V35: Prod | W35: 31252
A36: =+_xlfn.XMATCH(D36,'300s - 5 Digit FERC Accounts'!B:B) -> 34 | B36: 312 | C36: Prod | D36: 31232 | E36: 312.32 Boiler Plant Eq-BP2 | F36: 0 | G36: 0 | H36: 0 | I36: 0 | J36: 0 | K36: 0 | L36: 0 | M36: 0 | N36: 0 | O36: 0 | P36: 0 | Q36: 0 | R36: 0 | S36: 0 | T36: 0 | V36: Prod | W36: 31253
A37: =+_xlfn.XMATCH(D37,'300s - 5 Digit FERC Accounts'!B:B) -> 35 | B37: 312 | C37: Prod | D37: 31240 | E37: 312.40 Boiler Plant Eq-BBCM | F37: 197728668.5 | G37: 5357065.62 | H37: -1071413.09 | I37: 0 | J37: 202014321 | K37: 199557615.4 | L37: 50486989.94 | M37: 7595345.11 | N37: -1071413.09 | O37: -548245.75 | P37: 0 | Q37: 0 | R37: 56462676.21 | S37: 53547756.22 | T37: 0.0381 | V37: Prod | W37: 31254
A38: =+_xlfn.XMATCH(D38,'300s - 5 Digit FERC Accounts'!B:B) -> 36 | B38: 312 | C38: Prod | D38: 31241 | E38: 312.41 Boiler Plant Eq-BB1 | F38: 0 | G38: 0 | H38: 0 | I38: 0 | J38: 0 | K38: 0 | L38: 0 | M38: 0 | N38: 0 | O38: 0 | P38: 0 | Q38: 0 | R38: 0 | S38: 0 | T38: 0 | V38: Prod | W38: 31440
A39: =+_xlfn.XMATCH(D39,'300s - 5 Digit FERC Accounts'!B:B) -> 37 | B39: 312 | C39: Prod | D39: 31242 | E39: 312.42 Boiler Plant Eq-BB2 | F39: 0 | G39: 0 | H39: 0 | I39: 0 | J39: 0 | K39: 0 | L39: 0 | M39: 0 | N39: 0 | O39: 0 | P39: 0 | Q39: 0 | R39: 0 | S39: 0 | T39: 0 | V39: Prod | W39: 31441
A40: =+_xlfn.XMATCH(D40,'300s - 5 Digit FERC Accounts'!B:B) -> 38 | B40: 312 | C40: Prod | D40: 31243 | E40: 312.43 Boiler Plant Eq-BB3 | F40: 0 | G40: 0 | H40: 0 | I40: 0 | J40: 0 | K40: 0 | L40: 0 | M40: 0 | N40: 0 | O40: 0 | P40: 0 | Q40: 0 | R40: 0 | S40: 0 | T40: 0 | V40: Prod | W40: 31442
A41: =+_xlfn.XMATCH(D41,'300s - 5 Digit FERC Accounts'!B:B) -> 39 | B41: 312 | C41: Prod | D41: 31244 | E41: 312.44 Boiler Plant Eq-BB4 MAIN STT | F41: 315953309.9 | G41: 3285059.34 | H41: -657011.86 | I41: -4.039611667e-08 | J41: 318581357.4 | K41: 316923751.9 | L41: 117102394 | M41: 17043066.28 | N41: -657011.86 | O41: -302050.63 | P41: 0 | Q41: 0 | R41: 133186397.8 | S41: 125203501.8 | T41: 0.0538 | V41: Prod | W41: 31443
A42: =+_xlfn.XMATCH(D42,'300s - 5 Digit FERC Accounts'!B:B) -> 40 | B42: 312 | C42: Prod | D42: 31245 | E42: 312.45 Boiler Plant Eq-BB3&4 FGD | F42: 197144713 | G42: 575002.88 | H42: -115000.58 | I42: -1.788430382e-08 | J42: 197604715.3 | K42: 197292965.2 | L42: 80754234.11 | M42: 10612963.85 | N42: -115000.58 | O42: -7869.48 | P42: 0 | Q42: 0 | R42: 91244327.9 | S42: 86017606.68 | T42: 0.0538 | V42: Prod | W42: 31444
A43: =+_xlfn.XMATCH(D43,'300s - 5 Digit FERC Accounts'!B:B) -> 41 | B43: 312 | C43: Prod | D43: 31246 | E43: 312.46 Boiler Plant Eq-BB1&2 FGD | F43: 0 | G43: 0 | H43: 0 | I43: 0 | J43: 0 | K43: 0 | L43: 0 | M43: 0 | N43: 0 | O43: 0 | P43: 0 | Q43: 0 | R43: 0 | S43: 0 | T43: 0 | V43: Prod | W43: 31540
A44: =+_xlfn.XMATCH(D44,'300s - 5 Digit FERC Accounts'!B:B) -> 42 | B44: 312 | C44: Prod | D44: 31247 | E44: 312.47 Fuel Clause Big Bend | F44: 10156523.81 | G44: 0 | H44: 0 | I44: 0 | J44: 10156523.81 | K44: 10156523.81 | L44: 10187109.65 | M44: 0 | N44: 0 | O44: 0 | P44: 0 | Q44: 0 | R44: 10187109.65 | S44: 10187109.65 | T44: 0.2 | V44: Prod | W44: 31541
A45: =+_xlfn.XMATCH(D45,'300s - 5 Digit FERC Accounts'!B:B) -> 43 | B45: 312 | C45: Prod | D45: 31251 | E45: 312.51 Boiler Plant Eq-BB1 SCR | F45: 0 | G45: 0 | H45: 0 | I45: 0 | J45: 0 | K45: 0 | L45: 0 | M45: 0 | N45: 0 | O45: 0 | P45: 0 | Q45: 0 | R45: 0 | S45: 0 | T45: 0 | V45: Prod | W45: 31542
A46: =+_xlfn.XMATCH(D46,'300s - 5 Digit FERC Accounts'!B:B) -> 44 | B46: 312 | C46: Prod | D46: 31252 | E46: 312.52 Boiler Plant Eq-BB2 SCR | F46: 0 | G46: 0 | H46: 0 | I46: 0 | J46: 0 | K46: 0 | L46: 0 | M46: 0 | N46: 0 | O46: 0 | P46: 0 | Q46: 0 | R46: 0 | S46: 0 | T46: 0 | V46: Prod | W46: 31543
A47: =+_xlfn.XMATCH(D47,'300s - 5 Digit FERC Accounts'!B:B) -> 45 | B47: 312 | C47: Prod | D47: 31253 | E47: 312.53 Boiler Plant Eq-BB3 SCR | F47: 0 | G47: 0 | H47: 0 | I47: 0 | J47: 0 | K47: 0 | L47: 0 | M47: 0 | N47: 0 | O47: 0 | P47: 0 | Q47: 0 | R47: 0 | S47: 0 | T47: 0 | V47: Prod | W47: 31544
A48: =+_xlfn.XMATCH(D48,'300s - 5 Digit FERC Accounts'!B:B) -> 46 | B48: 312 | C48: Prod | D48: 31254 | E48: 312.54 Boiler Plant Eq-BB4 SCR | F48: 40267602.59 | G48: 0 | H48: 0 | I48: 0 | J48: 40267602.59 | K48: 40267602.59 | L48: 16146175.74 | M48: 2166396.96 | N48: 0 | O48: 0 | P48: 0 | Q48: 0 | R48: 18312572.7 | S48: 17229374.22 | T48: 0.0538 | V48: Prod | W48: 31545
A49: =+_xlfn.XMATCH(D49,'300s - 5 Digit FERC Accounts'!B:B) -> 47 | B49: 312 | C49: Prod | D49: 31275 | E49: 312.75 Boiler Plant Eq-BPC | F49: 0 | G49: 0 | H49: 0 | I49: 0 | J49: 0 | K49: 0 | L49: 0 | M49: 0 | N49: 0 | O49: 0 | P49: 0 | Q49: 0 | R49: 0 | S49: 0 | T49: 0 | V49: Prod | W49: 31546
A50: =+_xlfn.XMATCH(D50,'300s - 5 Digit FERC Accounts'!B:B) -> 48 | B50: 314 | C50: Prod | D50: 31430 | E50: 314.30 Turbogenerator Units-BPC | F50: 0 | G50: 0 | H50: 0 | I50: 0 | J50: 0 | K50: 0 | L50: 0 | M50: 0 | N50: 0 | O50: 0 | P50: 0 | Q50: 0 | R50: 0 | S50: 0 | T50: 0 | V50: Prod | W50: 31551
A51: =+_xlfn.XMATCH(D51,'300s - 5 Digit FERC Accounts'!B:B) -> 49 | B51: 314 | C51: Prod | D51: 31431 | E51: 314.31 Turbogenerator Units-BP1 | F51: 0 | G51: 0 | H51: 0 | I51: 0 | J51: 0 | K51: 0 | L51: 0 | M51: 0 | N51: 0 | O51: 0 | P51: 0 | Q51: 0 | R51: 0 | S51: 0 | T51: 0 | V51: Prod | W51: 31552
A52: =+_xlfn.XMATCH(D52,'300s - 5 Digit FERC Accounts'!B:B) -> 50 | B52: 314 | C52: Prod | D52: 31432 | E52: 314.32 Turbogenerator Units-BP2 | F52: 0 | G52: 0 | H52: 0 | I52: 0 | J52: 0 | K52: 0 | L52: 0 | M52: 0 | N52: 0 | O52: 0 | P52: 0 | Q52: 0 | R52: 0 | S52: 0 | T52: 0 | V52: Prod | W52: 31553
A53: =+_xlfn.XMATCH(D53,'300s - 5 Digit FERC Accounts'!B:B) -> 51 | B53: 314 | C53: Prod | D53: 31433 | E53: 314.33 Turbogenerator Units-BP3 | F53: 0 | G53: 0 | H53: 0 | I53: 0 | J53: 0 | K53: 0 | L53: 0 | M53: 0 | N53: 0 | O53: 0 | P53: 0 | Q53: 0 | R53: 0 | S53: 0 | T53: 0 | V53: Prod | W53: 31554
A54: =+_xlfn.XMATCH(D54,'300s - 5 Digit FERC Accounts'!B:B) -> 52 | B54: 314 | C54: Prod | D54: 31434 | E54: 314.34 Turbogenerator Units-BP4 | F54: 0 | G54: 0 | H54: 0 | I54: 0 | J54: 0 | K54: 0 | L54: 0 | M54: 0 | N54: 0 | O54: 0 | P54: 0 | Q54: 0 | R54: 0 | S54: 0 | T54: 0 | V54: Prod | W54: 31601
A55: =+_xlfn.XMATCH(D55,'300s - 5 Digit FERC Accounts'!B:B) -> 53 | B55: 314 | C55: Prod | D55: 31440 | E55: 314.40 Turbogenerator Units-BBCM | F55: 28785796.03 | G55: 5357065.62 | H55: -1071413.09 | I55: 0 | J55: 33071448.56 | K55: 30614742.95 | L55: 954130.385 | M55: 1185990.68 | N55: -1071413.09 | O55: -548245.75 | P55: 0 | Q55: 0 | R55: 520462.225 | S55: 809922.62 | T55: 0.039 | V55: Prod | W55: 31617
A56: =+_xlfn.XMATCH(D56,'300s - 5 Digit FERC Accounts'!B:B) -> 54 | B56: 314 | C56: Prod | D56: 31441 | E56: 314.41 Turbogenerator Units-BB1 | F56: 0 | G56: 0 | H56: 0 | I56: 0 | J56: 0 | K56: 0 | L56: 0 | M56: 0 | N56: 0 | O56: 0 | P56: 0 | Q56: 0 | R56: 0 | S56: 0 | T56: 0 | V56: Prod | W56: 31630
A57: =+_xlfn.XMATCH(D57,'300s - 5 Digit FERC Accounts'!B:B) -> 55 | B57: 314 | C57: Prod | D57: 31442 | E57: 314.42 Turbogenerator Units-BB2 | F57: 0 | G57: 0 | H57: 0 | I57: 0 | J57: 0 | K57: 0 | L57: 0 | M57: 0 | N57: 0 | O57: 0 | P57: 0 | Q57: 0 | R57: 0 | S57: 0 | T57: 0 | V57: Prod | W57: 31640
A58: =+_xlfn.XMATCH(D58,'300s - 5 Digit FERC Accounts'!B:B) -> 56 | B58: 314 | C58: Prod | D58: 31443 | E58: 314.43 Turbogenerator Units-BB3 | F58: 0 | G58: 0 | H58: 0 | I58: 0 | J58: 0 | K58: 0 | L58: 0 | M58: 0 | N58: 0 | O58: 0 | P58: 0 | Q58: 0 | R58: 0 | S58: 0 | T58: 0 | V58: Prod | W58: 31641
A59: =+_xlfn.XMATCH(D59,'300s - 5 Digit FERC Accounts'!B:B) -> 57 | B59: 314 | C59: Prod | D59: 31444 | E59: 314.44 Turbogen Units-BB4 MAIN STT | F59: 120281000.4 | G59: 3285059.34 | H59: -657011.86 | I59: 4.307366908e-09 | J59: 122909047.9 | K59: 121251442.4 | L59: 53046999.29 | M59: 5643880.19 | N59: -657011.86 | O59: -302050.63 | P59: 0 | Q59: 0 | R59: 57731816.99 | S59: 55450091.73 | T59: 0.0466 | V59: Prod | W59: 31642
A60: =+_xlfn.XMATCH(D60,'300s - 5 Digit FERC Accounts'!B:B) -> 58 | B60: 315 | C60: Prod | D60: 31530 | E60: 315.30 Accessory Electric Eq-BPC | F60: 0 | G60: 0 | H60: 0 | I60: 0 | J60: 0 | K60: 0 | L60: 0 | M60: 0 | N60: 0 | O60: 0 | P60: 0 | Q60: 0 | R60: 0 | S60: 0 | T60: 0 | V60: Prod | W60: 31643
A61: =+_xlfn.XMATCH(D61,'300s - 5 Digit FERC Accounts'!B:B) -> 59 | B61: 315 | C61: Prod | D61: 31531 | E61: 315.31 Accessory Electric Eq-BP1 | F61: 0 | G61: 0 | H61: 0 | I61: 0 | J61: 0 | K61: 0 | L61: 0 | M61: 0 | N61: 0 | O61: 0 | P61: 0 | Q61: 0 | R61: 0 | S61: 0 | T61: 0 | V61: Prod | W61: 31644
A62: =+_xlfn.XMATCH(D62,'300s - 5 Digit FERC Accounts'!B:B) -> 60 | B62: 315 | C62: Prod | D62: 31532 | E62: 315.32 Accessory Electric Eq-BP2 | F62: 0 | G62: 0 | H62: 0 | I62: 0 | J62: 0 | K62: 0 | L62: 0 | M62: 0 | N62: 0 | O62: 0 | P62: 0 | Q62: 0 | R62: 0 | S62: 0 | T62: 0 | V62: Prod | W62: 31645
A63: =+_xlfn.XMATCH(D63,'300s - 5 Digit FERC Accounts'!B:B) -> 61 | B63: 315 | C63: Prod | D63: 31533 | E63: 315.33 Accessory Electric Eq-BP3 | F63: 0 | G63: 0 | H63: 0 | I63: 0 | J63: 0 | K63: 0 | L63: 0 | M63: 0 | N63: 0 | O63: 0 | P63: 0 | Q63: 0 | R63: 0 | S63: 0 | T63: 0 | V63: Prod | W63: 31646
A64: =+_xlfn.XMATCH(D64,'300s - 5 Digit FERC Accounts'!B:B) -> 62 | B64: 315 | C64: Prod | D64: 31534 | E64: 315.34 Accessory Electric Eq-BP4 | F64: 0 | G64: 0 | H64: 0 | I64: 0 | J64: 0 | K64: 0 | L64: 0 | M64: 0 | N64: 0 | O64: 0 | P64: 0 | Q64: 0 | R64: 0 | S64: 0 | T64: 0 | V64: Prod | W64: 31647
A65: =+_xlfn.XMATCH(D65,'300s - 5 Digit FERC Accounts'!B:B) -> 63 | B65: 315 | C65: Prod | D65: 31540 | E65: 315.40 Accessory Electric Eq-BBCM | F65: 43980094.72 | G65: 0 | H65: 0 | I65: 0 | J65: 43980094.72 | K65: 43980094.72 | L65: 19711999.14 | M65: 949970.04 | N65: 0 | O65: 0 | P65: 0 | Q65: 0 | R65: 20661969.18 | S65: 20186984.16 | T65: 0.0216 | V65: Prod | W65: 31651
A66: =+_xlfn.XMATCH(D66,'300s - 5 Digit FERC Accounts'!B:B) -> 64 | B66: 315 | C66: Prod | D66: 31541 | E66: 315.41 Accessory Electric Eq-BB1 | F66: 0 | G66: 0 | H66: 0 | I66: 0 | J66: 0 | K66: 0 | L66: 0 | M66: 0 | N66: 0 | O66: 0 | P66: 0 | Q66: 0 | R66: 0 | S66: 0 | T66: 0 | V66: Prod | W66: 31652
A67: =+_xlfn.XMATCH(D67,'300s - 5 Digit FERC Accounts'!B:B) -> 65 | B67: 315 | C67: Prod | D67: 31542 | E67: 315.42 Accessory Electric Eq-BB2 | F67: 0 | G67: 0 | H67: 0 | I67: 0 | J67: 0 | K67: 0 | L67: 0 | M67: 0 | N67: 0 | O67: 0 | P67: 0 | Q67: 0 | R67: 0 | S67: 0 | T67: 0 | V67: Prod | W67: 31653
A68: =+_xlfn.XMATCH(D68,'300s - 5 Digit FERC Accounts'!B:B) -> 66 | B68: 315 | C68: Prod | D68: 31543 | E68: 315.43 Accessory Electric Eq-BB3 | F68: 0 | G68: 0 | H68: 0 | I68: 0 | J68: 0 | K68: 0 | L68: 0 | M68: 0 | N68: 0 | O68: 0 | P68: 0 | Q68: 0 | R68: 0 | S68: 0 | T68: 0 | V68: Prod | W68: 31654
A69: =+_xlfn.XMATCH(D69,'300s - 5 Digit FERC Accounts'!B:B) -> 67 | B69: 315 | C69: Prod | D69: 31544 | E69: 315.44 Access Elect Eq-BB4 MAIN STT | F69: 52859494.08 | G69: 0 | H69: 0 | I69: 0 | J69: 52859494.08 | K69: 52859494.08 | L69: 34250240.04 | M69: 1480065.84 | N69: 0 | O69: 0 | P69: 0 | Q69: 0 | R69: 35730305.88 | S69: 34990272.96 | T69: 0.028 | V69: ARO | W69: 31700
A70: =+_xlfn.XMATCH(D70,'300s - 5 Digit FERC Accounts'!B:B) -> 68 | B70: 315 | C70: =+_xlfn.SINGLE(IF(D70="","",_xlfn.XLOOKUP(D70,W:W,V:V,"CHECK"))) -> Prod | D70: 31545 | E70: 315.45 Accessory Elect Eq-BB3&4 FGD | F70: 26849743.93 | G70: 575002.88 | H70: -115000.58 | I70: 7.421476766e-10 | J70: 27309746.23 | K70: 26997996.07 | L70: 17640077.5 | M70: 755216.5 | N70: -115000.58 | O70: -7869.48 | P70: 0 | Q70: 0 | R70: 18272423.94 | S70: 17975589.02 | T70: 0.028 | V70: Prod | W70: 34028
A71: =+_xlfn.XMATCH(D71,'300s - 5 Digit FERC Accounts'!B:B) -> 69 | B71: =IF(D71="","",MID(D71,1,3)) -> 315 | C71: Prod | D71: 31546 | E71: 315.46 Accessory Elect Eq-BB1&2 FGD | F71: 0 | G71: 0 | H71: 0 | I71: =+J71-F71-G71-H71 -> 0 | J71: 0 | K71: 0 | L71: 0 | M71: 0 | N71: 0 | O71: 0 | P71: 0 | Q71: =+R71-P71-O71-N71-M71-L71 -> 0 | R71: 0 | S71: 0 | T71: 0 | V71: Prod | W71: 34030
A72: =+_xlfn.XMATCH(D72,'300s - 5 Digit FERC Accounts'!B:B) -> 70 | B72: 315 | C72: Prod | D72: 31551 | E72: 315.51 Accessory Elect Eq-BB1 SCR | F72: 0 | G72: 0 | H72: 0 | I72: 0 | J72: 0 | K72: 0 | L72: 0 | M72: 0 | N72: 0 | O72: 0 | P72: 0 | Q72: 0 | R72: 0 | S72: 0 | T72: 0 | V72: Prod | W72: 34081
A73: =+_xlfn.XMATCH(D73,'300s - 5 Digit FERC Accounts'!B:B) -> 71 | B73: 315 | C73: Prod | D73: 31552 | E73: 315.52 Accessory Elect Eq-BB2 SCR | F73: 0 | G73: 0 | H73: 0 | I73: 0 | J73: 0 | K73: 0 | L73: 0 | M73: 0 | N73: 0 | O73: 0 | P73: 0 | Q73: 0 | R73: 0 | S73: 0 | T73: 0 | V73: Prod | W73: 34099
A74: =+_xlfn.XMATCH(D74,'300s - 5 Digit FERC Accounts'!B:B) -> 72 | B74: 315 | C74: Prod | D74: 31553 | E74: 315.53 Accessory Elect Eq-BB3 SCR | F74: 0 | G74: 0 | H74: 0 | I74: 0 | J74: 0 | K74: 0 | L74: 0 | M74: 0 | N74: 0 | O74: 0 | P74: 0 | Q74: 0 | R74: 0 | S74: 0 | T74: 0 | V74: Prod | W74: 34128
A75: =+_xlfn.XMATCH(D75,'300s - 5 Digit FERC Accounts'!B:B) -> 73 | B75: 315 | C75: Prod | D75: 31554 | E75: 315.54 Accessory Elect Eq-BB4 SCR | F75: 15495565.48 | G75: 0 | H75: 0 | I75: 0 | J75: 15495565.48 | K75: 15495565.49 | L75: 10029918.6 | M75: 433875.84 | N75: 0 | O75: 0 | P75: 0 | Q75: 0 | R75: 10463794.44 | S75: 10246856.52 | T75: 0.028 | V75: Prod | W75: 34130
A76: =+_xlfn.XMATCH(D76,'300s - 5 Digit FERC Accounts'!B:B) -> 74 | B76: 316 | C76: Prod | D76: 31601 | E76: 316.01 Misc Power Plant Equip | F76: 0 | G76: 0 | H76: 0 | I76: 0 | J76: 0 | K76: 0 | L76: 0 | M76: 0 | N76: 0 | O76: 0 | P76: 0 | Q76: 0 | R76: 0 | S76: 0 | T76: 0 | V76: Prod | W76: 34131
A77: =+_xlfn.XMATCH(D77,'300s - 5 Digit FERC Accounts'!B:B) -> 75 | B77: 316 | C77: Prod | D77: 31617 | E77: 316.17 Tools Misc Supply 7yr | F77: 0 | G77: 0 | H77: 0 | I77: 0 | J77: 0 | K77: 0 | L77: 0 | M77: 0 | N77: 0 | O77: 0 | P77: 0 | Q77: 0 | R77: 0 | S77: 0 | T77: 0 | V77: Prod | W77: 34132
A78: =+_xlfn.XMATCH(D78,'300s - 5 Digit FERC Accounts'!B:B) -> 76 | B78: 316 | C78: Prod | D78: 31630 | E78: 316.30 Misc Power Plant Eq-BPC | F78: 0 | G78: 0 | H78: 0 | I78: 0 | J78: 0 | K78: 0 | L78: 0 | M78: 0 | N78: 0 | O78: 0 | P78: 0 | Q78: 0 | R78: 0 | S78: 0 | T78: 0 | V78: Prod | W78: 34133
A79: =+_xlfn.XMATCH(D79,'300s - 5 Digit FERC Accounts'!B:B) -> 77 | B79: 316 | C79: Prod | D79: 31631 | E79: 316.31 Misc Power Plant Eq-BP1 | F79: 0 | G79: 0 | H79: 0 | I79: 0 | J79: 0 | K79: 0 | L79: 0 | M79: 0 | N79: 0 | O79: 0 | P79: 0 | Q79: 0 | R79: 0 | S79: 0 | T79: 0 | V79: Prod | W79: 34134
A80: =+_xlfn.XMATCH(D80,'300s - 5 Digit FERC Accounts'!B:B) -> 78 | B80: 316 | C80: Prod | D80: 31632 | E80: 316.32 Misc Power Plant Eq-BP2 | F80: 0 | G80: 0 | H80: 0 | I80: 0 | J80: 0 | K80: 0 | L80: 0 | M80: 0 | N80: 0 | O80: 0 | P80: 0 | Q80: 0 | R80: 0 | S80: 0 | T80: 0 | V80: Prod | W80: 34135
A81: =+_xlfn.XMATCH(D81,'300s - 5 Digit FERC Accounts'!B:B) -> 79 | B81: 316 | C81: Prod | D81: 31633 | E81: 316.33 Misc Power Plant Eq-BP3 | F81: 0 | G81: 0 | H81: 0 | I81: 0 | J81: 0 | K81: 0 | L81: 0 | M81: 0 | N81: 0 | O81: 0 | P81: 0 | Q81: 0 | R81: 0 | S81: 0 | T81: 0 | V81: Prod | W81: 34136
A82: =+_xlfn.XMATCH(D82,'300s - 5 Digit FERC Accounts'!B:B) -> 80 | B82: 316 | C82: Prod | D82: 31634 | E82: 316.34 Misc Power Plant Eq-BP4 | F82: 0 | G82: 0 | H82: 0 | I82: 0 | J82: 0 | K82: 0 | L82: 0 | M82: 0 | N82: 0 | O82: 0 | P82: 0 | Q82: 0 | R82: 0 | S82: 0 | T82: 0 | V82: Prod | W82: 34141
A83: =+_xlfn.XMATCH(D83,'300s - 5 Digit FERC Accounts'!B:B) -> 81 | B83: 316 | C83: Prod | D83: 31640 | E83: 316.40 Misc Power Plant Eq-BBCM | F83: 26448498.8 | G83: 0 | H83: 0 | I83: 0 | J83: 26448498.8 | K83: 26448498.8 | L83: 11794161.24 | M83: 534259.68 | N83: 0 | O83: 0 | P83: 0 | Q83: 0 | R83: 12328420.92 | S83: 12061291.08 | T83: 0.0202 | V83: Prod | W83: 34144
A84: =+_xlfn.XMATCH(D84,'300s - 5 Digit FERC Accounts'!B:B) -> 82 | B84: 316 | C84: Prod | D84: 31641 | E84: 316.41 Misc Power Plant Eq-BB1 | F84: 0 | G84: 0 | H84: 0 | I84: 0 | J84: 0 | K84: 0 | L84: 0 | M84: 0 | N84: 0 | O84: 0 | P84: 0 | Q84: 0 | R84: 0 | S84: 0 | T84: 0 | V84: Prod | W84: 34180
A85: =+_xlfn.XMATCH(D85,'300s - 5 Digit FERC Accounts'!B:B) -> 83 | B85: 316 | C85: Prod | D85: 31642 | E85: 316.42 Misc Power Plant Eq-BB2 | F85: 0 | G85: 0 | H85: 0 | I85: 0 | J85: 0 | K85: 0 | L85: 0 | M85: 0 | N85: 0 | O85: 0 | P85: 0 | Q85: 0 | R85: 0 | S85: 0 | T85: 0 | V85: Prod | W85: 34181
A86: =+_xlfn.XMATCH(D86,'300s - 5 Digit FERC Accounts'!B:B) -> 84 | B86: 316 | C86: Prod | D86: 31643 | E86: 316.43 Misc Power Plant Eq-BB3 | F86: 0 | G86: 0 | H86: 0 | I86: 0 | J86: 0 | K86: 0 | L86: 0 | M86: 0 | N86: 0 | O86: 0 | P86: 0 | Q86: 0 | R86: 0 | S86: 0 | T86: 0 | V86: Prod | W86: 34182
A87: =+_xlfn.XMATCH(D87,'300s - 5 Digit FERC Accounts'!B:B) -> 85 | B87: 316 | C87: Prod | D87: 31644 | E87: 316.44 Misc Pwr Plt Eq-BB 4 MAIN ST | F87: 5865811.79 | G87: 0 | H87: 0 | I87: 0 | J87: 5865811.79 | K87: 5865811.79 | L87: 4399680.91 | M87: 112623.6 | N87: 0 | O87: 0 | P87: 0 | Q87: 0 | R87: 4512304.51 | S87: 4455992.71 | T87: 0.0192 | V87: Prod | W87: 34183
A88: =+_xlfn.XMATCH(D88,'300s - 5 Digit FERC Accounts'!B:B) -> 86 | B88: 316 | C88: Prod | D88: 31645 | E88: 316.45 Misc Power Plant Eq-BB3&4FGD | F88: 1694847.95 | G88: 0 | H88: 0 | I88: 0 | J88: 1694847.95 | K88: 1694847.95 | L88: 1278883.32 | M88: 32541.12 | N88: 0 | O88: 0 | P88: 0 | Q88: 0 | R88: 1311424.44 | S88: 1295153.88 | T88: 0.0192 | V88: Prod | W88: 34184
A89: =+_xlfn.XMATCH(D89,'300s - 5 Digit FERC Accounts'!B:B) -> 87 | B89: 316 | C89: Prod | D89: 31646 | E89: 316.46 Misc Power Plt Eq-BB1&2 FGD | F89: 0 | G89: 0 | H89: 0 | I89: 0 | J89: 0 | K89: 0 | L89: 0 | M89: 0 | N89: 0 | O89: 0 | P89: 0 | Q89: 0 | R89: 0 | S89: 0 | T89: 0 | V89: Prod | W89: 34185
A90: =+_xlfn.XMATCH(D90,'300s - 5 Digit FERC Accounts'!B:B) -> 88 | B90: 316 | C90: Prod | D90: 31647 | E90: 316.47 Tools Big Bend 7yr | F90: 765494.25 | G90: 0 | H90: -37591.32 | I90: 0 | J90: 727902.93 | K90: 736139.37 | L90: 312572.24 | M90: 105366.11 | N90: -37591.32 | O90: 0 | P90: 0 | Q90: 0 | R90: 380347.03 | S90: 336339.82 | T90: 0.143 | V90: Prod | W90: 34186
A91: =+_xlfn.XMATCH(D91,'300s - 5 Digit FERC Accounts'!B:B) -> 89 | B91: 316 | C91: Prod | D91: 31651 | E91: 316.51 Misc Power Plt Eq-BB1 SCR | F91: 0 | G91: 0 | H91: 0 | I91: 0 | J91: 0 | K91: 0 | L91: 0 | M91: 0 | N91: 0 | O91: 0 | P91: 0 | Q91: 0 | R91: 0 | S91: 0 | T91: 0 | V91: Prod | W91: 34199
A92: =+_xlfn.XMATCH(D92,'300s - 5 Digit FERC Accounts'!B:B) -> 90 | B92: 316 | C92: Prod | D92: 31652 | E92: 316.52 Misc Power Plt Eq-BB2 SCR | F92: 0 | G92: 0 | H92: 0 | I92: 0 | J92: 0 | K92: 0 | L92: 0 | M92: 0 | N92: 0 | O92: 0 | P92: 0 | Q92: 0 | R92: 0 | S92: 0 | T92: 0 | V92: Prod | W92: 34228
A93: =+_xlfn.XMATCH(D93,'300s - 5 Digit FERC Accounts'!B:B) -> 91 | B93: 316 | C93: Prod | D93: 31653 | E93: 316.53 Misc Power Plt Eq-BB3 SCR | F93: 0 | G93: 0 | H93: 0 | I93: 0 | J93: 0 | K93: 0 | L93: 0 | M93: 0 | N93: 0 | O93: 0 | P93: 0 | Q93: 0 | R93: 0 | S93: 0 | T93: 0 | V93: Prod | W93: 34230
A94: =+_xlfn.XMATCH(D94,'300s - 5 Digit FERC Accounts'!B:B) -> 92 | B94: 316 | C94: Prod | D94: 31654 | E94: 316.54 Misc Power Plt Eq-BB4 SCR | F94: 687934.36 | G94: 0 | H94: 0 | I94: 0 | J94: 687934.36 | K94: 687934.36 | L94: 377528.44 | M94: 13208.28 | N94: 0 | O94: 0 | P94: 0 | Q94: 0 | R94: 390736.72 | S94: 384132.58 | T94: 0.0192 | V94: Prod | W94: 34231
A95: =+_xlfn.XMATCH(D95,'300s - 5 Digit FERC Accounts'!B:B) -> 93 | B95: 317 | C95: ARO | D95: 31700 | E95: 317.00 ARO Costs-Steam | F95: 5602918.48 | G95: 0 | H95: 0 | I95: 0 | J95: 5602918.48 | K95: 5602918.48 | L95: 1504338.84 | M95: 156881.76 | N95: 0 | O95: 0 | P95: 0 | Q95: 0 | R95: 1661220.6 | S95: 1582779.72 | T95: 0.028 | V95: Prod | W95: 34232
A96: =+_xlfn.XMATCH(D96,'300s - 5 Digit FERC Accounts'!B:B) -> 94 | B96: 340 | C96: Prod | D96: 34028 | E96: 340.28 Land & Land Rights-Phillips | F96: 0 | G96: 0 | H96: 0 | I96: 0 | J96: 0 | K96: 0 | L96: 0 | M96: 0 | N96: 0 | O96: 0 | P96: 0 | Q96: 0 | R96: 0 | S96: 0 | T96: 0 | V96: Prod | W96: 34233
A97: =+_xlfn.XMATCH(D97,'300s - 5 Digit FERC Accounts'!B:B) -> 95 | B97: 340 | C97: Prod | D97: 34030 | E97: 340.30 Land & Land Rights-BPC | F97: 1592891.05 | G97: 0 | H97: 0 | I97: 0 | J97: 1592891.05 | K97: 1592891.05 | L97: 0 | M97: 0 | N97: 0 | O97: 0 | P97: 0 | Q97: 0 | R97: 0 | S97: 0 | T97: 0 | V97: Prod | W97: 34234
A98: =+_xlfn.XMATCH(D98,'300s - 5 Digit FERC Accounts'!B:B) -> 96 | B98: 340 | C98: Prod | D98: 34042 | E98: 340.42 Land & Land Rights-BBCT1&3 | F98: 0 | G98: 0 | H98: 0 | I98: 0 | J98: 0 | K98: 0 | L98: 0 | M98: 0 | N98: 0 | O98: 0 | P98: 0 | Q98: 0 | R98: 0 | S98: 0 | T98: 0 | V98: Prod | W98: 34235
A99: =+_xlfn.XMATCH(D99,'300s - 5 Digit FERC Accounts'!B:B) -> 97 | B99: 340 | C99: Prod | D99: 34081 | E99: 340.81 Land & Land Rights-Polk U1 | F99: 18197341.47 | G99: 0 | H99: 0 | I99: 0 | J99: 18197341.47 | K99: 18197341.47 | L99: 0 | M99: 0 | N99: 0 | O99: 0 | P99: 0 | Q99: 0 | R99: 0 | S99: 0 | T99: 0 | V99: Prod | W99: 34236
A100: =+_xlfn.XMATCH(D100,'300s - 5 Digit FERC Accounts'!B:B) -> 98 | B100: 340 | C100: Prod | D100: 34099 | E100: 340.99 Land & Land Rights-Solar | F100: 174163367.9 | G100: 15362126.26 | H100: 0 | I100: -9.313225746e-09 | J100: 189525494.2 | K100: 175345070 | L100: 0 | M100: 0 | N100: 0 | O100: 0 | P100: 0 | Q100: 0 | R100: 0 | S100: 0 | T100: 0 | V100: Prod | W100: 34241
A101: =+_xlfn.XMATCH(D101,'300s - 5 Digit FERC Accounts'!B:B) -> 99 | B101: 341 | C101: Prod | D101: 34120 | E101: 341.20 Str and Improvements-MDAFB | F101: 0 | G101: 0 | H101: 0 | I101: 0 | J101: 0 | K101: 0 | L101: 0 | M101: 0 | N101: 0 | O101: 0 | P101: 0 | Q101: 0 | R101: 0 | S101: 0 | T101: 0.022 | V101: Prod | W101: 34244
A102: =+_xlfn.XMATCH(D102,'300s - 5 Digit FERC Accounts'!B:B) -> 100 | B102: 341 | C102: Prod | D102: 34128 | E102: 341.28 Str and Improve-Phillips | F102: 0 | G102: 0 | H102: 0 | I102: 0 | J102: 0 | K102: 0 | L102: 0 | M102: 0 | N102: 0 | O102: 0 | P102: 0 | Q102: 0 | R102: 0 | S102: 0 | T102: 0 | V102: Prod | W102: 34280
A103: =+_xlfn.XMATCH(D103,'300s - 5 Digit FERC Accounts'!B:B) -> 101 | B103: 341 | C103: Prod | D103: 34130 | E103: 341.30 Str and Improvements-BPC | F103: 112232113.9 | G103: 0 | H103: 0 | I103: 0 | J103: 112232113.9 | K103: 112232113.9 | L103: 27560672.96 | M103: 4152588.24 | N103: 0 | O103: 0 | P103: 0 | Q103: 0 | R103: 31713261.2 | S103: 29636967.08 | T103: 0.037 | V103: Prod | W103: 34281
A104: =+_xlfn.XMATCH(D104,'300s - 5 Digit FERC Accounts'!B:B) -> 102 | B104: 341 | C104: Prod | D104: 34131 | E104: 341.31 Str and Improvements-BP1 | F104: 21253120.77 | G104: 0 | H104: 0 | I104: 0 | J104: 21253120.77 | K104: 21253120.77 | L104: 9609725.62 | M104: 1041402.96 | N104: 0 | O104: 0 | P104: 0 | Q104: 0 | R104: 10651128.58 | S104: 10130427.1 | T104: 0.049 | V104: Prod | W104: 34282
A105: =+_xlfn.XMATCH(D105,'300s - 5 Digit FERC Accounts'!B:B) -> 103 | B105: 341 | C105: Prod | D105: 34132 | E105: 341.32 Str and Improvements-BP2 | F105: 27131136.17 | G105: 0 | H105: 0 | I105: 0 | J105: 27131136.17 | K105: 27131136.17 | L105: 14552664.96 | M105: 1150360.2 | N105: 0 | O105: 0 | P105: 0 | Q105: 0 | R105: 15703025.16 | S105: 15127845.06 | T105: 0.0424 | V105: Prod | W105: 34283
A106: =+_xlfn.XMATCH(D106,'300s - 5 Digit FERC Accounts'!B:B) -> 104 | B106: 341 | C106: Prod | D106: 34133 | E106: 341.33 Str and Improvements-BP3 | F106: 656349.29 | G106: 0 | H106: 0 | I106: 0 | J106: 656349.29 | K106: 656349.29 | L106: 75171.19 | M106: 27829.2 | N106: 0 | O106: 0 | P106: 0 | Q106: 0 | R106: 103000.39 | S106: 89085.79 | T106: 0.0424 | V106: Prod | W106: 34284
A107: =+_xlfn.XMATCH(D107,'300s - 5 Digit FERC Accounts'!B:B) -> 105 | B107: 341 | C107: Prod | D107: 34134 | E107: 341.34 Str and Improvements-BP4 | F107: 242333.96 | G107: 0 | H107: 0 | I107: 0 | J107: 242333.96 | K107: 242333.96 | L107: -73139.03 | M107: 14661.24 | N107: 0 | O107: 0 | P107: 0 | Q107: 0 | R107: -58477.79 | S107: -65808.41 | T107: 0.0605 | V107: Prod | W107: 34285
A108: =+_xlfn.XMATCH(D108,'300s - 5 Digit FERC Accounts'!B:B) -> 106 | B108: 341 | C108: Prod | D108: 34135 | E108: 341.35 Str and Improvements-BP5 | F108: 793114.26 | G108: 0 | H108: 0 | I108: 0 | J108: 793114.26 | K108: 793114.26 | L108: -27676.38 | M108: 38545.32 | N108: 0 | O108: 0 | P108: 0 | Q108: 0 | R108: 10868.94 | S108: -8403.72 | T108: 0.0486 | V108: Prod | W108: 34286
A109: =+_xlfn.XMATCH(D109,'300s - 5 Digit FERC Accounts'!B:B) -> 107 | B109: 341 | C109: Prod | D109: 34136 | E109: 341.36 Str and Improvements-BP6 | F109: 2656231.54 | G109: 0 | H109: 0 | I109: 0 | J109: 2656231.54 | K109: 2656231.54 | L109: 695087.72 | M109: 96155.64 | N109: 0 | O109: 0 | P109: 0 | Q109: 0 | R109: 791243.36 | S109: 743165.54 | T109: 0.0362 | V109: Prod | W109: 34287
A110: =+_xlfn.XMATCH(D110,'300s - 5 Digit FERC Accounts'!B:B) -> 108 | B110: 341 | C110: Prod | D110: 34141 | E110: 341.41 Str and Improvements-BBCT1 | F110: 0 | G110: 0 | H110: 0 | I110: 0 | J110: 0 | K110: 0 | L110: 0 | M110: 0 | N110: 0 | O110: 0 | P110: 0 | Q110: 0 | R110: 0 | S110: 0 | T110: 0 | V110: Prod | W110: 34328
A111: =+_xlfn.XMATCH(D111,'300s - 5 Digit FERC Accounts'!B:B) -> 109 | B111: 341 | C111: Prod | D111: 34142 | E111: 341.42 Str and Improvements-BBCT2&3 | F111: 0 | G111: 0 | H111: 0 | I111: 0 | J111: 0 | K111: 0 | L111: 0 | M111: 0 | N111: 0 | O111: 0 | P111: 0 | Q111: 0 | R111: 0 | S111: 0 | T111: 0 | V111: Prod | W111: 34330
A112: =+_xlfn.XMATCH(D112,'300s - 5 Digit FERC Accounts'!B:B) -> 110 | B112: 341 | C112: Prod | D112: 34143 | E112: 341.43 Str and Improvements-BBCCST1 | F112: 2290548.98 | G112: 0 | H112: 0 | I112: 0 | J112: 2290548.98 | K112: 2290548.98 | L112: 1537836.14 | M112: 78565.8 | N112: 0 | O112: 0 | P112: 0 | Q112: 0 | R112: 1616401.94 | S112: 1577119.04 | T112: 0.0343 | V112: Prod | W112: 34331
A113: =+_xlfn.XMATCH(D113,'300s - 5 Digit FERC Accounts'!B:B) -> 111 | B113: 341 | C113: Prod | D113: 34144 | E113: 341.44 Str and Improvements-BBCT4 | F113: 3335882.55 | G113: 0 | H113: 0 | I113: 0 | J113: 3335882.55 | K113: 3335882.55 | L113: 1049697.26 | M113: 112752.84 | N113: 0 | O113: 0 | P113: 0 | Q113: 0 | R113: 1162450.1 | S113: 1106073.68 | T113: 0.0338 | V113: Prod | W113: 34332
A114: =+_xlfn.XMATCH(D114,'300s - 5 Digit FERC Accounts'!B:B) -> 112 | B114: 341 | C114: Prod | D114: 34145 | E114: 341.45 Str and Improvements-BBCT5 | F114: 0 | G114: 0 | H114: 0 | I114: 0 | J114: 0 | K114: 0 | L114: 0 | M114: 0 | N114: 0 | O114: 0 | P114: 0 | Q114: 0 | R114: 0 | S114: 0 | T114: 0.022 | V114: Prod | W114: 34333
A115: =+_xlfn.XMATCH(D115,'300s - 5 Digit FERC Accounts'!B:B) -> 113 | B115: 341 | C115: Prod | D115: 34146 | E115: 341.46 Str and Improvements-BBCT6 | F115: 0 | G115: 0 | H115: 0 | I115: 0 | J115: 0 | K115: 0 | L115: 0 | M115: 0 | N115: 0 | O115: 0 | P115: 0 | Q115: 0 | R115: 0 | S115: 0 | T115: 0.022 | V115: Prod | W115: 34334
A116: =+_xlfn.XMATCH(D116,'300s - 5 Digit FERC Accounts'!B:B) -> 114 | B116: 341 | C116: Prod | D116: 34180 | E116: 341.80 Str and Improve-Polk Comm | F116: 193028877.7 | G116: 0 | H116: 0 | I116: 0 | J116: 193028877.7 | K116: 193028877.7 | L116: 67242114.9 | M116: 5752260.6 | N116: 0 | O116: 0 | P116: 0 | Q116: 0 | R116: 72994375.5 | S116: 70118245.2 | T116: 0.0298 | V116: Prod | W116: 34335
A117: =+_xlfn.XMATCH(D117,'300s - 5 Digit FERC Accounts'!B:B) -> 115 | B117: 341 | C117: Prod | D117: 34181 | E117: 341.81 Str and Improvements-Polk U1 | F117: 53101275.78 | G117: 0 | H117: 0 | I117: 0 | J117: 53101275.78 | K117: 53101275.78 | L117: 28571969.03 | M117: 2601962.52 | N117: 0 | O117: 0 | P117: 0 | Q117: 0 | R117: 31173931.55 | S117: 29872950.29 | T117: 0.049 | V117: Prod | W117: 34336
A118: =+_xlfn.XMATCH(D118,'300s - 5 Digit FERC Accounts'!B:B) -> 116 | B118: 341 | C118: Prod | D118: 34182 | E118: 341.82 Str and Improvements-Polk U2 | F118: 2342155.29 | G118: 0 | H118: 0 | I118: 0 | J118: 2342155.29 | K118: 2342155.29 | L118: 1331510.58 | M118: 52932.72 | N118: 0 | O118: 0 | P118: 0 | Q118: 0 | R118: 1384443.3 | S118: 1357976.94 | T118: 0.0226 | V118: Prod | W118: 34337
A119: =+_xlfn.XMATCH(D119,'300s - 5 Digit FERC Accounts'!B:B) -> 117 | B119: 341 | C119: Prod | D119: 34183 | E119: 341.83 Str and Improvements-Polk U3 | F119: 10708676.69 | G119: 0 | H119: 0 | I119: 0 | J119: 10708676.69 | K119: 10708676.69 | L119: 6000960.31 | M119: 243087 | N119: 0 | O119: 0 | P119: 0 | Q119: 0 | R119: 6244047.31 | S119: 6122503.81 | T119: 0.0227 | V119: Prod | W119: 34342
A120: =+_xlfn.XMATCH(D120,'300s - 5 Digit FERC Accounts'!B:B) -> 118 | B120: 341 | C120: Prod | D120: 34184 | E120: 341.84 Str and Improvements-Polk U4 | F120: 5812062.15 | G120: 0 | H120: 0 | I120: 0 | J120: 5812062.15 | K120: 5812062.15 | L120: 2397493.38 | M120: 159250.56 | N120: 0 | O120: 0 | P120: 0 | Q120: 0 | R120: 2556743.94 | S120: 2477118.66 | T120: 0.0274 | V120: Prod | W120: 34344
A121: =+_xlfn.XMATCH(D121,'300s - 5 Digit FERC Accounts'!B:B) -> 119 | B121: 341 | C121: Prod | D121: 34185 | E121: 341.85 Str and Improvements-Polk U5 | F121: 5746580.11 | G121: 0 | H121: 0 | I121: 0 | J121: 5746580.11 | K121: 5746580.11 | L121: 2424266.7 | M121: 156306.96 | N121: 0 | O121: 0 | P121: 0 | Q121: 0 | R121: 2580573.66 | S121: 2502420.18 | T121: 0.0272 | V121: Prod | W121: 34345
A122: =+_xlfn.XMATCH(D122,'300s - 5 Digit FERC Accounts'!B:B) -> 120 | B122: 341 | C122: Prod | D122: 34186 | E122: 341.86 Str and Improvements-PKCCST | F122: 13374554.05 | G122: 1291111.07 | H122: -258222.22 | I122: -4.365574569e-10 | J122: 14407442.9 | K122: 13593049.77 | L122: 4266581.87 | M122: 396287.85 | N122: -258222.22 | O122: -108888.9 | P122: 0 | Q122: 0 | R122: 4295758.6 | S122: 4353951.88 | T122: 0.0293 | V122: Prod | W122: 34198
A123: =+_xlfn.XMATCH(D123,'300s - 5 Digit FERC Accounts'!B:B) -> 121 | B123: 341 | C123: Prod | D123: 34198 | E123: 341.98 Str and Improvements-DCMG | F123: 0 | G123: 0 | H123: 0 | I123: 0 | J123: 0 | K123: 0 | L123: 0 | M123: 0 | N123: 0 | O123: 0 | P123: 0 | Q123: 0 | R123: 0 | S123: 0 | T123: 0.0333 | V123: Prod | W123: 34346
A124: =+_xlfn.XMATCH(D124,'300s - 5 Digit FERC Accounts'!B:B) -> 122 | B124: 341 | C124: Prod | D124: 34199 | E124: 341.99 Str and Improvements-Solar | F124: 470718920.1 | G124: 0 | H124: 0 | I124: 0 | J124: 470718920.1 | K124: 470718920.1 | L124: 54082009.74 | M124: 15863227.56 | N124: 0 | O124: 0 | P124: 0 | Q124: 0 | R124: 69945237.3 | S124: 62013623.52 | T124: 0.0337 | V124: Prod | W124: 34343
A125: =+_xlfn.XMATCH(D125,'300s - 5 Digit FERC Accounts'!B:B) -> 123 | B125: 342 | C125: Prod | D125: 34220 | E125: 342.20 Fuel Holders,Prod Acc-MDAFB | F125: 0 | G125: 53790116.17 | H125: 0 | I125: 0 | J125: 53790116.17 | K125: 36099210.57 | L125: 0 | M125: 761749.3 | N125: 0 | O125: 0 | P125: 0 | Q125: 0 | R125: 761749.3 | S125: 261886.81 | T125: 0.022 | V125: Prod | W125: 34380
A126: =+_xlfn.XMATCH(D126,'300s - 5 Digit FERC Accounts'!B:B) -> 124 | B126: 342 | C126: Prod | D126: 34228 | E126: 342.28 FuelHolders,ProdAcc-Phillips | F126: 0 | G126: 0 | H126: 0 | I126: 0 | J126: 0 | K126: 0 | L126: 0 | M126: 0 | N126: 0 | O126: 0 | P126: 0 | Q126: 0 | R126: 0 | S126: 0 | T126: 0 | V126: Prod | W126: 34381
A127: =+_xlfn.XMATCH(D127,'300s - 5 Digit FERC Accounts'!B:B) -> 125 | B127: 342 | C127: Prod | D127: 34230 | E127: 342.30 Fuel Holders,Prod Acc-BPC | F127: 41315289.07 | G127: 8972430.39 | H127: -1794486.08 | I127: 1.862645149e-09 | J127: 48493233.38 | K127: 45243593.82 | L127: 4083940.74 | M127: 1915840.89 | N127: -1794486.08 | O127: -50000 | P127: 0 | Q127: 0 | R127: 4155295.55 | S127: 4014239.17 | T127: 0.0426 | V127: Prod | W127: 34382
A128: =+_xlfn.XMATCH(D128,'300s - 5 Digit FERC Accounts'!B:B) -> 126 | B128: 342 | C128: Prod | D128: 34231 | E128: 342.31 Fuel Holders,Prod Acc-BP1 | F128: 90649036.2 | G128: 17523903.68 | H128: -3504780.74 | I128: 0 | J128: 104668159.1 | K128: 97775274.16 | L128: 38098120.84 | M128: 4578160.85 | N128: -3504780.74 | O128: -112204.15 | P128: 0 | Q128: 0 | R128: 39059296.8 | S128: 38502885.35 | T128: 0.0471 | V128: Prod | W128: 34383
A129: =+_xlfn.XMATCH(D129,'300s - 5 Digit FERC Accounts'!B:B) -> 127 | B129: 342 | C129: Prod | D129: 34232 | E129: 342.32 Fuel Holders,Prod Acc-BP2 | F129: 142690124.3 | G129: 5985489.5 | H129: -1197097.9 | I129: -6.053596735e-09 | J129: 147478515.9 | K129: 144286029.9 | L129: 41339893.11 | M129: 8065119.4 | N129: -1197097.9 | O129: -1225000 | P129: 0 | Q129: 0 | R129: 46982914.61 | S129: 44248025.61 | T129: 0.056 | V129: Prod | W129: 34384
A130: =+_xlfn.XMATCH(D130,'300s - 5 Digit FERC Accounts'!B:B) -> 128 | B130: 342 | C130: Prod | D130: 34233 | E130: 342.33 Fuel Holders,Prod Acc-BP3 | F130: 4701026.285 | G130: 0 | H130: 0 | I130: 0 | J130: 4701026.285 | K130: 4701026.29 | L130: 1093320.22 | M130: 151843.2 | N130: 0 | O130: 0 | P130: 0 | Q130: 0 | R130: 1245163.42 | S130: 1169241.82 | T130: 0.0323 | V130: Prod | W130: 34385
A131: =+_xlfn.XMATCH(D131,'300s - 5 Digit FERC Accounts'!B:B) -> 129 | B131: 342 | C131: Prod | D131: 34234 | E131: 342.34 Fuel Holders,Prod Acc-BP4 | F131: 3384097.56 | G131: 0 | H131: 0 | I131: 0 | J131: 3384097.56 | K131: 3384097.56 | L131: 1414628.32 | M131: 95093.16 | N131: 0 | O131: 0 | P131: 0 | Q131: 0 | R131: 1509721.48 | S131: 1462174.9 | T131: 0.0281 | V131: Prod | W131: 34386
A132: =+_xlfn.XMATCH(D132,'300s - 5 Digit FERC Accounts'!B:B) -> 130 | B132: 342 | C132: Prod | D132: 34235 | E132: 342.35 Fuel Holders,Prod Acc-BP5 | F132: 2224655.695 | G132: 0 | H132: 0 | I132: 0 | J132: 2224655.695 | K132: 2224655.7 | L132: 844700.81 | M132: 67851.96 | N132: 0 | O132: 0 | P132: 0 | Q132: 0 | R132: 912552.77 | S132: 878626.79 | T132: 0.0305 | V132: Prod | W132: 34388
A133: =+_xlfn.XMATCH(D133,'300s - 5 Digit FERC Accounts'!B:B) -> 131 | B133: 342 | C133: Prod | D133: 34236 | E133: 342.36 Fuel Holders,Prod Acc-BP6 | F133: 1562890.97 | G133: 0 | H133: 0 | I133: 0 | J133: 1562890.97 | K133: 1562890.97 | L133: 635398.16 | M133: 44386.08 | N133: 0 | O133: 0 | P133: 0 | Q133: 0 | R133: 679784.24 | S133: 657591.2 | T133: 0.0284 | V133: Prod | W133: 34390
A134: =+_xlfn.XMATCH(D134,'300s - 5 Digit FERC Accounts'!B:B) -> 132 | B134: 342 | C134: =+_xlfn.SINGLE(IF(D134="","",_xlfn.XLOOKUP(D134,W:W,V:V,"CHECK"))) -> Prod | D134: 34241 | E134: 342.41 Fuel Holders,Prod Acc-BBCT1 | F134: 0 | G134: 0 | H134: 0 | I134: 0 | J134: 0 | K134: 0 | L134: 0 | M134: 0 | N134: 0 | O134: 0 | P134: 0 | Q134: 0 | R134: 0 | S134: 0 | T134: 0 | V134: Prod | W134: 34399
A135: =+_xlfn.XMATCH(D135,'300s - 5 Digit FERC Accounts'!B:B) -> 133 | B135: =IF(D135="","",MID(D135,1,3)) -> 342 | C135: Prod | D135: 34242 | E135: 342.42 Fuel Holders,ProdAcc-BBCT2&3 | F135: 0 | G135: 0 | H135: 0 | I135: =+J135-F135-G135-H135 -> 0 | J135: 0 | K135: 0 | L135: 0 | M135: 0 | N135: 0 | O135: 0 | P135: 0 | Q135: =+R135-P135-O135-N135-M135-L135 -> 0 | R135: 0 | S135: 0 | T135: 0 | V135: Prod | W135: 34528
A136: =+_xlfn.XMATCH(D136,'300s - 5 Digit FERC Accounts'!B:B) -> 134 | B136: 342 | C136: Prod | D136: 34243 | E136: 342.43 Fuel Holders,ProdAcc-BBCCST1 | F136: 3578328.715 | G136: 22673.64 | H136: 0 | I136: 1.309672371e-10 | J136: 3601002.355 | K136: 3590537.6 | L136: 1581137.08 | M136: 79690.56 | N136: 0 | O136: -269950.2 | P136: 0 | Q136: 0 | R136: 1390877.44 | S136: 1485949.19 | T136: 0.0222 | V136: Prod | W136: 34530
A137: =+_xlfn.XMATCH(D137,'300s - 5 Digit FERC Accounts'!B:B) -> 135 | B137: 342 | C137: Prod | D137: 34244 | E137: 342.44 Fuel Holders,Prod Acc-BBCT4 | F137: 3722741.325 | G137: 0 | H137: 0 | I137: 0 | J137: 3722741.325 | K137: 3722741.33 | L137: 669545.61 | M137: 165662.04 | N137: 0 | O137: 0 | P137: 0 | Q137: 0 | R137: 835207.65 | S137: 752376.63 | T137: 0.0445 | V137: Prod | W137: 34531
A138: =+_xlfn.XMATCH(D138,'300s - 5 Digit FERC Accounts'!B:B) -> 136 | B138: 342 | C138: Prod | D138: 34245 | E138: 342.45 Fuel Holders,Prod Acc-BBCT5 | F138: 307028.13 | G138: 202500 | H138: 0 | I138: 0 | J138: 509528.13 | K138: 391835.82 | L138: -15387.88 | M138: 14440.65 | N138: 0 | O138: -20000 | P138: 0 | Q138: 0 | R138: -20947.23 | S138: -18885.39 | T138: 0.0378 | V138: Prod | W138: 34532
A139: =+_xlfn.XMATCH(D139,'300s - 5 Digit FERC Accounts'!B:B) -> 137 | B139: 342 | C139: Prod | D139: 34246 | E139: 342.46 Fuel Holders,Prod Acc-BBCT6 | F139: 388113.425 | G139: 0 | H139: 0 | I139: 0 | J139: 388113.425 | K139: 388113.43 | L139: -15044.13 | M139: 14166.12 | N139: 0 | O139: 0 | P139: 0 | Q139: 0 | R139: -878.01 | S139: -7961.07 | T139: 0.0365 | V139: Prod | W139: 34533
A140: =+_xlfn.XMATCH(D140,'300s - 5 Digit FERC Accounts'!B:B) -> 138 | B140: 342 | C140: Prod | D140: 34280 | E140: 342.80 Fuel Holders,Prod Acc-Polk C | F140: 12463388.85 | G140: 3094842.98 | H140: -618968.59 | I140: 0 | J140: 14939263.24 | K140: 13157136.47 | L140: 3981107.29 | M140: 413674.3 | N140: -618968.59 | O140: -238333.34 | P140: 0 | Q140: 0 | R140: 3537479.66 | S140: 3898106.62 | T140: 0.0318 | V140: Prod | W140: 34534
A141: =+_xlfn.XMATCH(D141,'300s - 5 Digit FERC Accounts'!B:B) -> 139 | B141: 342 | C141: Prod | D141: 34281 | E141: 342.81 Fuel Holders,Prod Acc-Polk 1 | F141: 249190687.5 | G141: 41699077.41 | H141: -282925.78 | I141: 2.863816917e-08 | J141: 290606839.1 | K141: 274202644.4 | L141: 153401051.4 | M141: 10176768.94 | N141: -282925.78 | O141: -98333.23 | P141: 0 | Q141: 0 | R141: 163196561.4 | S141: 158218001.6 | T141: 0.0373 | V141: Prod | W141: 34535
A142: =+_xlfn.XMATCH(D142,'300s - 5 Digit FERC Accounts'!B:B) -> 140 | B142: 342 | C142: Prod | D142: 34282 | E142: 342.82 Fuel Holders,Prod Acc-Polk 2 | F142: 3721240.6 | G142: 5122430.82 | H142: -1024486.19 | I142: 0 | J142: 7819185.23 | K142: 4238123.06 | L142: 454514.11 | M142: 121342.79 | N142: -1024486.19 | O142: -52133.4 | P142: 0 | Q142: 0 | R142: -500762.69 | S142: 357825.41 | T142: 0.0308 | V142: Prod | W142: 34536
A143: =+_xlfn.XMATCH(D143,'300s - 5 Digit FERC Accounts'!B:B) -> 141 | B143: 342 | C143: Prod | D143: 34283 | E143: 342.83 Fuel Holders,Prod Acc-Polk 3 | F143: 1847091.01 | G143: 1949801.76 | H143: -389960.35 | I143: 0 | J143: 3406932.42 | K143: 1967078.81 | L143: 563166.32 | M143: 47285.52 | N143: -389960.35 | O143: 0 | P143: 0 | Q143: 0 | R143: 220491.49 | S143: 556812.13 | T143: 0.0256 | V143: Prod | W143: 34541
A144: =+_xlfn.XMATCH(D144,'300s - 5 Digit FERC Accounts'!B:B) -> 142 | B144: 342 | C144: Prod | D144: 34284 | E144: 342.84 Fuel Holders,Prod Acc-Polk 4 | F144: 2710665.565 | G144: 3206910.65 | H144: -641382.13 | I144: 0 | J144: 5276194.085 | K144: 2908013.91 | L144: 289986.77 | M144: 105173.88 | N144: -641382.13 | O144: 0 | P144: 0 | Q144: 0 | R144: -246221.48 | S144: 293236.62 | T144: 0.0388 | V144: Prod | W144: 34544
A145: =+_xlfn.XMATCH(D145,'300s - 5 Digit FERC Accounts'!B:B) -> 143 | B145: 342 | C145: Prod | D145: 34285 | E145: 342.85 Fuel Holders,Prod Acc-Polk 5 | F145: 3090954.21 | G145: 3543064.53 | H145: -708612.91 | I145: 0 | J145: 5925405.83 | K145: 3437805.12 | L145: 821501.39 | M145: 101114.82 | N145: -708612.91 | O145: 0 | P145: 0 | Q145: 0 | R145: 214003.3 | S145: 783498.1 | T145: 0.0313 | V145: Prod | W145: 34580
A146: =+_xlfn.XMATCH(D146,'300s - 5 Digit FERC Accounts'!B:B) -> 144 | B146: 342 | C146: Prod | D146: 34286 | E146: 342.86 Fuel Holders,Prod Acc-PKCCST | F146: 215270346.1 | G146: 3629358.14 | H146: -725871.64 | I146: 0 | J146: 218173832.6 | K146: 215839674.2 | L146: 46404921.26 | M146: 7267241.93 | N146: -725871.64 | O146: -1234907.62 | P146: 0 | Q146: 0 | R146: 51711383.93 | S146: 49276651.2 | T146: 0.0337 | V146: Prod | W146: 34581
A147: =+_xlfn.XMATCH(D147,'300s - 5 Digit FERC Accounts'!B:B) -> 145 | B147: 342 | C147: Prod | D147: 34287 | E147: 342.87 Fuel Clause Polk 1 | F147: 0 | G147: 0 | H147: 0 | I147: 0 | J147: 0 | K147: 0 | L147: 0 | M147: 0 | N147: 0 | O147: 0 | P147: 0 | Q147: 0 | R147: 0 | S147: 0 | T147: 0.2 | V147: Prod | W147: 34582
A148: =+_xlfn.XMATCH(D148,'300s - 5 Digit FERC Accounts'!B:B) -> 146 | B148: 343 | C148: Prod | D148: 34320 | E148: 343.20 Prime Movers-MDAFB | F148: 0 | G148: 53790116.17 | H148: 0 | I148: 0 | J148: 53790116.17 | K148: 36099210.57 | L148: 0 | M148: 720199.34 | N148: 0 | O148: 0 | P148: 0 | Q148: 0 | R148: 720199.34 | S148: 247602.08 | T148: 0.0208 | V148: Prod | W148: 34583
A149: =+_xlfn.XMATCH(D149,'300s - 5 Digit FERC Accounts'!B:B) -> 147 | B149: 343 | C149: Prod | D149: 34328 | E149: 343.28 Prime Movers-Phillips | F149: 0 | G149: 0 | H149: 0 | I149: 0 | J149: 0 | K149: 0 | L149: 0 | M149: 0 | N149: 0 | O149: 0 | P149: 0 | Q149: 0 | R149: 0 | S149: 0 | T149: 0 | V149: Prod | W149: 34584
A150: =+_xlfn.XMATCH(D150,'300s - 5 Digit FERC Accounts'!B:B) -> 148 | B150: 343 | C150: Prod | D150: 34330 | E150: 343.30 Prime Movers-BPC | F150: 56329274.84 | G150: 8972430.39 | H150: -1794486.08 | I150: 1.862645149e-09 | J150: 63507219.15 | K150: 60257579.59 | L150: 14254042.05 | M150: 3281276.66 | N150: -1794486.08 | O150: -50000 | P150: 0 | Q150: 0 | R150: 15690832.63 | S150: 14861222.58 | T150: 0.0547 | V150: Prod | W150: 34585
A151: =+_xlfn.XMATCH(D151,'300s - 5 Digit FERC Accounts'!B:B) -> 149 | B151: 343 | C151: Prod | D151: 34331 | E151: 343.31 Prime Movers-BP1 | F151: 257142960.8 | G151: 17523903.68 | H151: -3504780.74 | I151: 0 | J151: 271162083.8 | K151: 264269198.8 | L151: 105037292.9 | M151: 13633020.72 | N151: -3504780.74 | O151: -112204.15 | P151: 0 | Q151: 0 | R151: 115053328.8 | S151: 109964930.9 | T151: 0.0517 | V151: Prod | W151: 34586
A152: =+_xlfn.XMATCH(D152,'300s - 5 Digit FERC Accounts'!B:B) -> 150 | B152: 343 | C152: Prod | D152: 34332 | E152: 343.32 Prime Movers-BP2 | F152: 325379583 | G152: 5985489.5 | H152: -1197097.9 | I152: 2.374872565e-08 | J152: 330167974.6 | K152: 326975488.6 | L152: 127467801 | M152: 17642310.22 | N152: -1197097.9 | O152: -1225000 | P152: 0 | Q152: 0 | R152: 142688013.4 | S152: 135165197.5 | T152: 0.054 | V152: Prod | W152: 34599
A153: =+_xlfn.XMATCH(D153,'300s - 5 Digit FERC Accounts'!B:B) -> 151 | B153: 343 | C153: Prod | D153: 34333 | E153: 343.33 Prime Movers-BP3 | F153: 16800143.01 | G153: 0 | H153: 0 | I153: 0 | J153: 16800143.01 | K153: 16800143.02 | L153: 9023420.49 | M153: 356163 | N153: 0 | O153: 0 | P153: 0 | Q153: 0 | R153: 9379583.49 | S153: 9201501.99 | T153: 0.0212 | V153: Prod | W153: 34628
A154: =+_xlfn.XMATCH(D154,'300s - 5 Digit FERC Accounts'!B:B) -> 152 | B154: 343 | C154: Prod | D154: 34334 | E154: 343.34 Prime Movers-BP4 | F154: 16052104.97 | G154: 0 | H154: 0 | I154: 0 | J154: 16052104.97 | K154: 16052104.97 | L154: 9491777.74 | M154: 329068.2 | N154: 0 | O154: 0 | P154: 0 | Q154: 0 | R154: 9820845.94 | S154: 9656311.84 | T154: 0.0205 | V154: Prod | W154: 34630
A155: =+_xlfn.XMATCH(D155,'300s - 5 Digit FERC Accounts'!B:B) -> 153 | B155: 343 | C155: Prod | D155: 34335 | E155: 343.35 Prime Movers-BP5 | F155: 18801752.45 | G155: 0 | H155: 0 | I155: 0 | J155: 18801752.45 | K155: 18801752.45 | L155: 11929082.48 | M155: 389196.24 | N155: 0 | O155: 0 | P155: 0 | Q155: 0 | R155: 12318278.72 | S155: 12123680.6 | T155: 0.0207 | V155: Prod | W155: 34631
A156: =+_xlfn.XMATCH(D156,'300s - 5 Digit FERC Accounts'!B:B) -> 154 | B156: 343 | C156: Prod | D156: 34336 | E156: 343.36 Prime Movers-BP6 | F156: 17542092.24 | G156: 0 | H156: 0 | I156: 0 | J156: 17542092.24 | K156: 17542092.24 | L156: 11493965.27 | M156: 315757.68 | N156: 0 | O156: 0 | P156: 0 | Q156: 0 | R156: 11809722.95 | S156: 11651844.11 | T156: 0.018 | V156: Prod | W156: 34632
A157: =+_xlfn.XMATCH(D157,'300s - 5 Digit FERC Accounts'!B:B) -> 155 | B157: 343 | C157: Prod | D157: 34341 | E157: 343.41 Prime Movers-BBCT1 | F157: 0 | G157: 0 | H157: 0 | I157: 0 | J157: 0 | K157: 0 | L157: 0 | M157: 0 | N157: 0 | O157: 0 | P157: 0 | Q157: 0 | R157: 0 | S157: 0 | T157: 0 | V157: Prod | W157: 34633
A158: =+_xlfn.XMATCH(D158,'300s - 5 Digit FERC Accounts'!B:B) -> 156 | B158: 343 | C158: Prod | D158: 34342 | E158: 343.42 Prime Movers-BBCT2&3 | F158: 0 | G158: 0 | H158: 0 | I158: 0 | J158: 0 | K158: 0 | L158: 0 | M158: 0 | N158: 0 | O158: 0 | P158: 0 | Q158: 0 | R158: 0 | S158: 0 | T158: 0 | V158: Prod | W158: 34634
A159: =+_xlfn.XMATCH(D159,'300s - 5 Digit FERC Accounts'!B:B) -> 157 | B159: 343 | C159: Prod | D159: 34343 | E159: 343.43 Prime Movers-BBCCST1 | F159: 459235396.4 | G159: 22673.64 | H159: 0 | I159: -1.430453267e-08 | J159: 459258070.1 | K159: 459247605.3 | L159: 19813608.06 | M159: 16716581.1 | N159: 0 | O159: -269950.2 | P159: 0 | Q159: 0 | R159: 36260238.96 | S159: 28036828.29 | T159: 0.0364 | V159: Prod | W159: 34635
A160: =+_xlfn.XMATCH(D160,'300s - 5 Digit FERC Accounts'!B:B) -> 158 | B160: 343 | C160: Prod | D160: 34344 | E160: 343.44 Prime Movers-BBCT4 | F160: 21710268.8 | G160: 0 | H160: 0 | I160: 0 | J160: 21710268.8 | K160: 21710268.8 | L160: 11147576.74 | M160: 590519.28 | N160: 0 | O160: 0 | P160: 0 | Q160: 0 | R160: 11738096.02 | S160: 11442836.38 | T160: 0.0272 | V160: Prod | W160: 34636
A161: =+_xlfn.XMATCH(D161,'300s - 5 Digit FERC Accounts'!B:B) -> 159 | B161: 343 | C161: Prod | D161: 34345 | E161: 343.45 Prime Movers-BBCT5 | F161: 176825383.3 | G161: 202500 | H161: 0 | I161: 0 | J161: 177027883.3 | K161: 176910190.9 | L161: 14396000.98 | M161: 6191513.43 | N161: 0 | O161: -20000 | P161: 0 | Q161: 0 | R161: 20567514.41 | S161: 17481093.02 | T161: 0.035 | V161: Prod | W161: 34637
A162: =+_xlfn.XMATCH(D162,'300s - 5 Digit FERC Accounts'!B:B) -> 160 | B162: 343 | C162: Prod | D162: 34346 | E162: 343.46 Prime Movers-BBCT6 | F162: 175636432.6 | G162: 0 | H162: 0 | I162: 0 | J162: 175636432.6 | K162: 175636432.6 | L162: 14305937.17 | M162: 6147275.16 | N162: 0 | O162: 0 | P162: 0 | Q162: 0 | R162: 20453212.33 | S162: 17379574.75 | T162: 0.035 | V162: Prod | W162: 34644
